Workbook

Sheet Inputs
C1: Loan & General Info | F1: Personal Info | I1: Income Info* (student loan servicers use income on specific tax forms to determine your payments) | J1: You | K1: Spouse | P1: 2 | Q1: yes
C2: =IF(P1=3,"Your Student Loan Balance","Spouse 1 Student Loan Balance (List Higher Debt First)") -> Spouse 1 Student Loan Balance (List Higher Debt First) | D2: 50000 | F2: Current Family size (Include any children on the way) | G2: 4 | I2: Expected 2023 AGI (what you think you'll make in 2023) | J2: 50000 | K2: 50000 | Q2: no | T2: =J2+K2 -> 100000 | U2: =IF(K2="",T2,T2/2) -> 50000 | V2: =IF(K2="","",U2) -> 50000
C3: =IF(P1=3,"","Spouse 2 Student Loan Balance (List Lower Debt Here, if applicable)") -> Spouse 2 Student Loan Balance (List Lower Debt Here, if applicable) | D3: 50000 | F3: Tax Filing Status when Married | I3: Expected 2024 AGI | J3: =J2*1.03 -> 51500 | K3: =K2*1.03 -> 51500 | T3: 103000 | U3: 51500 | V3: 51500
C4: Average interest rate | D4: 0.06 | F4: =IF(P1=2,"*Filing separately can cost thousands in tax penalties not estimated here. Consult SLP and your CPA","") -> *Filing separately can cost thousands in tax penalties not estimated here. Consult SLP and your CPA | I4: Expected 2025 AGI | J4: =J3*1.03 -> 53045 | K4: =K3*1.03 -> 53045 | T4: 106090 | U4: 53045 | V4: 53045
C5: Inflation Rate Assumption | D5: 0.03 | F5: Kids Born in Future Years (if N/A leave blank) | G5: Enter Year of Birth | I5: Expected 2026 AGI | J5: 54636.35 | K5: =K4*1.03 -> 54636.35 | T5: 109272.7 | U5: 54636.35 | V5: 54636.35
C6: Paying Loan since what year? | D6: 2024 | F6: Child 1 | I6: Expected 2027 AGI | J6: 56275.4405 | K6: =K5*1.03 -> 56275.4405 | T6: 112550.881 | U6: 56275.4405 | V6: 56275.4405
C7: Do you work for a not-for-profit or govt employer? | D7: yes | F7: Child 2 | I7: Expected 2028 AGI | J7: 57963.70371 | K7: =K6*1.03 -> 57963.70371 | T7: 115927.4074 | U7: 57963.70371 | V7: 57963.70371
C8: Borrowed before Oct. 1, 2007? | D8: no | F8: Child 3 | I8: Expected 2029 AGI | J8: 59702.61483 | K8: =K7*1.03 -> 59702.61483 | T8: 119405.2297 | U8: 59702.61483 | V8: 59702.61483
C9: What Percent (%) of your loans are from grad school? | D9: 1 | F9: Child 4 | I9: Expected 2030 AGI | J9: 61493.69327 | K9: =K8*1.03 -> 61493.69327 | T9: 122987.3865 | U9: 61493.69327 | V9: 61493.69327
I10: Expected 2031 AGI | J10: 63338.50407 | K10: =K9*1.03 -> 63338.50407 | T10: 126677.0081 | U10: 63338.50407 | V10: 63338.50407
C11: © 2016-2023 Student Loan Planner, LLC. For personal and noncommercial use only | I11: Expected 2032 AGI | J11: 65238.65919 | K11: =K10*1.03 -> 65238.65919 | T11: 130477.3184 | U11: 65238.65919 | V11: 65238.65919
I12: Salary Growth Rate % after that | J12: 0.03 | K12: 0.03

Sheet Calculations
A1: Year | B1: Total Household Discretionary Income OLD REPAYE | C1: Total Household Discretionary Income Single or Married Filing Joint PAYE, New IBR, and Old IBR | D1: Total Household Discretionary Income Married Filing Separate PAYE, New IBR, and Old IBR spouse 1 | E1: Total Household Discretionary Income Married Filing Separate PAYE, Old IBR, and New IBR spouse 2 | F1: Total Household Discretionary Income Single or Married Filing Joint New REPAYE | G1: Total Household Discretionary Income Married Filing Separate New REPAYE spouse 1 | H1: Total Household Discretionary Income Married Filing Separate New REPAYE spouse 2 | I1: Monthly Payment under existing Old REPAYE (you) | J1: Monthly Payment under old IBR (you) | K1: Monthly Payment under PAYE / New IBR (You) | L1: Monthly Payment under SAVE (You) | M1: Monthly Payment under Private Refinancing (you) | N1: Monthly Payment under existing Old REPAYE (spouse) | O1: Monthly Payment under old IBR (spouse) | P1: Monthly Payment under PAYE / New IBR (spouse) | Q1: Monthly Payment under SAVE (Spouse) | R1: Monthly Payment under Private Refinancing (spouse) | S1: Monthly Payment under Old REPAYE (TOTAL) | T1: Monthly Payment under Old IBR (TOTAL) | U1: Monthly Payment under PAYE / New IBR (TOTAL) | V1: Monthly Payment under SAVE TOTAL | W1: Monthly Payment under Private Refinancing TOTAL | X1: Monthly Payment under Standard 10 Year TOTAL | Y1: PAYE / IBR Cap under Standard 10 Year | Z1: PAYE / IBR Cap under Standard 10 Year | AA1: Total Owed under Old REPAYE | AB1: Total Owed under old IBR | AC1: Total Owed under PAYE | AD1: Total Owed under SAVE | AE1: Total Owed under Private Refinancing | AF1: Total Owed under Standard | AG1: Annual Interest Charge Old REPAYE | AH1: Annual Interest Charge old IBR | AI1: Annual Interest Charge PAYE / New IBR | AJ1: Annual Interest Charge SAVE | AK1: Annual Interest Charge Private Refinancing | AL1: Annual Interest Charge Standard | AM1: Effective Interest Rate Old REPAYE | AN1: Effective Interest Rate Old IBR | AO1: Effective Interest Rate Old PAYE / New IBR | AP1: Effective Interest Rate SAVE | AQ1: Effective Interest Rate Refinancing | AR1: Effective Interest Rate Standard | AS1: Yearly Payment under Old REPAYE | AT1: Yearly Payment under old IBR | AU1: Yearly Payment under PAYE | AV1: Yearly Payment under SAVE | AW1: Yearly Payment under Private Refinancing | AX1: Yearly Payment under Standard | AY1: Monthly PAYE / New IBR MFJ Spouse 1 | AZ1: Monthly PAYE / New IBR MFS Spouse 1 | BA1: Monthly PAYE / New IBR MFJ Spouse 2 | BB1: Monthly PAYE / New IBR MFS Spouse 2 | BC1: Monthly SAVE MFJ Spouse 1 | BD1: Monthly SAVE MFS Spouse 1 | BE1: Monthly SAVE MFJ Spouse 2 | BF1: Monthly SAVE MFS Spouse 2 | BG1: Total New IBR / PAYE MFJ | BH1: Total SAVE MFJ | BI1: Total New IBR / PAYE MFS | BJ1: Total New REPAYE / SAVE MFS | BK1: Monthly Difference Filing Separate NEW IBR / PAYE (student loans only) | BL1: Monthly Difference Filing Separate SAVE (student loans only) | BM1: Monthly extra tax cost of filing separate instead of joint)** (estimated) | BN1: Annual Savings from filing separate on NEW IBR / PAYE (green) or cost (red) | BO1: Annual Savings from filing separate on SAVE (green) or cost (red) | BP1: PV Yearly Payment under REPAYE | BQ1: PV Yearly Payment under PAYE | BR1: PV Yearly Payment under old IBR | BS1: PV Yearly Payment under SAVE | BT1: PV Yearly Payment under Private Refinancing | BU1: PV Yearly Payment under Standard | BW1: Repayment match year | BX1: Repayment before forgiveness match REPAYE | BY1: Repayment before forgiveness match PAYE | BZ1: Repayment before forgiveness match old IBR | CA1: Repayment before forgiveness match SAVE | CB1: Repayment before forgiveness match Standard | CC1: Family Size | CD1: Yearly Payment under PSLF | CE1: PV Yearly Payment under PSLF | CF1: Year 2023 | CG1: Family Size | CH1: Federal Poverty Line | CI1: 150% of poverty line for discretionary income calculation | CJ1: 225% of poverty line for discretionary income calculation | CK1: Year | CL1: Income before deduction of FPL | CM1: Savings (1% savings rate) | CN1: Savings (2% savings rate) | CO1: Savings (3% savings rate) | CP1: Savings (4% savings rate) | CQ1: Savings (5% savings rate) | CR1: Savings (6% savings rate) | CS1: Savings (7% savings rate) | CT1: Savings (8% savings rate) | CU1: Savings (9% savings rate) | CV1: Savings (10% savings rate) | CW1: Savings (11% savings rate) | CX1: Savings (12% savings rate) | CY1: Savings (13% savings rate) | CZ1: Savings (14% savings rate) | DA1: Savings (15% savings rate) | DB1: Savings (16% savings rate) | DC1: Savings (17% savings rate) | DD1: Savings (18% savings rate) | DE1: Savings (19% savings rate) | DF1: Savings (20% savings rate) | DG1: Year | DH1: Portfolio (1% savings rate) | DI1: Portfolio (2% savings rate) | DJ1: Portfolio (3% savings rate) | DK1: Portfolio (4% savings rate) | DL1: Portfolio (5% savings rate) | DM1: Portfolio (6% savings rate) | DN1: Portfolio (7% savings rate) | DO1: Portfolio (8% savings rate) | DP1: Portfolio (9% savings rate) | DQ1: Portfolio (10% savings rate) | DR1: Portfolio (11% savings rate) | DS1: Portfolio (12% savings rate) | DT1: Portfolio (13% savings rate) | DU1: Portfolio (14% savings rate) | DV1: Portfolio (15% savings rate) | DW1: Portfolio (16% savings rate) | DX1: Portfolio (17% savings rate) | DY1: Portfolio (18% savings rate) | DZ1: Portfolio (19% savings rate) | EA1: Portfolio (20% savings rate) | EB1: Tax Rate REPAYE | EC1: Tax Rate PAYE | ED1: Tax Rate IBR | EE1: Tax rate Standard 10 year | EF1: Tax rate Private refinancing | EG1: Income before deduction of FPL
A2: =YEAR(TODAY()) -> 2024 | B2: =IF((SUM(Inputs!J2:K2)-VLOOKUP(Calculations!CC2,Calculations!$CG$1:$CI$9,3,FALSE))<=0,0,(SUM(Inputs!J2:K2)-VLOOKUP(Calculations!CC2,Calculations!$CG$1:$CI$9,3,FALSE))) -> 55000 | C2: =IF(Inputs!J2+Inputs!K2-((1+Inputs!$D$5)^(A2-$A$2))*VLOOKUP(CC2,Calculations!$CG$1:$CJ$18,3,FALSE)<0,0,Inputs!J2+Inputs!K2-((1+Inputs!$D$5)^(A2-$A$2))*VLOOKUP(CC2,Calculations!$CG$1:$CJ$18,3,FALSE)) -> 55000 | D2: =IF(Inputs!K2="",Calculations!C2,IF(Inputs!J2-((1+Inputs!$D$5)^(A2-$A$2))*VLOOKUP((CC2-1),Calculations!$CG$1:$CJ$18,3,FALSE)<0,0,Inputs!J2-((1+Inputs!$D$5)^(A2-$A$2))*VLOOKUP(CC2-1,Calculations!$CG$1:$CJ$18,3,FALSE))) -> 12710 | E2: =IF(Inputs!K2-((1+Inputs!$D$5)^(A2-$A$2))*VLOOKUP((1),Calculations!$CG$1:$CJ$18,3,FALSE)<0,0,Inputs!K2-((1+Inputs!$D$5)^(A2-$A$2))*VLOOKUP(1,Calculations!$CG$1:$CJ$18,3,FALSE)) -> 28130 | F2: =IF(Inputs!J2+Inputs!K2-((1+Inputs!$D$5)^(A2-$A$2))*VLOOKUP(CC2,Calculations!$CG$1:$CJ$18,4,FALSE)<0,0,Inputs!J2+Inputs!K2-((1+Inputs!$D$5)^(A2-$A$2))*VLOOKUP(CC2,Calculations!$CG$1:$CJ$18,4,FALSE)) -> 32500 | G2: =IF(Inputs!K2="",Calculations!F2,IF(Inputs!J2-((1+Inputs!$D$5)^(A2-$A$2))*VLOOKUP((CC2-1),Calculations!$CG$1:$CJ$18,4,FALSE)<0,0,Inputs!J2-((1+Inputs!$D$5)^(A2-$A$2))*VLOOKUP(CC2-1,Calculations!$CG$1:$CJ$18,4,FALSE))) -> 0 | H2: =IF(Inputs!K2-((1+Inputs!$D$5)^(A2-$A$2))*VLOOKUP((1),Calculations!$CG$1:$CJ$18,4,FALSE)<0,0,Inputs!K2-((1+Inputs!$D$5)^(A2-$A$2))*VLOOKUP(1,Calculations!$CG$1:$CJ$18,4,FALSE)) -> 17195 | I2: =IF($A2-Inputs!$D$6>24,"",(Inputs!$D$2/(Inputs!$D$2+Inputs!$D$3)*B2*0.1/12)) -> 229.1666667 | J2: =IF(AND(Inputs!$D$3>=0,Inputs!$P$1=1),IF($A2-Inputs!$D$6>24,"",MIN((Inputs!$D$2/(Inputs!$D$2+Inputs!$D$3))*C2*0.15/12,$Y$2)),IF(Inputs!P1=3,IF($A2-Inputs!$D$6>24,"",MIN(C2*0.15/12,$Y$2)),IF($A2-Inputs!$D$6>24,"",MIN(D2*0.15/12,$Y$2)))) -> 158.875 | K2: =IF(AND(Inputs!$D$3>=0,Inputs!$P$1=1),IF($A2-Inputs!$D$6>19,"",MIN((Inputs!$D$2/(Inputs!$D$2+Inputs!$D$3))*C2*0.1/12,$Y$2)),IF(Inputs!P1=3,IF($A2-Inputs!$D$6>19,"",MIN(C2*0.1/12,$Y$2)),IF($A2-Inputs!$D$6>19,"",MIN(D2*0.1/12,$Y$2)))) -> 105.9166667 | L2: =IFERROR(IF(AND(OR(Inputs!$D$3>=0,Inputs!$D$3=""),Inputs!$P$1=1),(Inputs!$D$2/(Inputs!$D$2+Inputs!$D$3))*IF($A2-Inputs!$D$6>IF(Inputs!$D$9=0,19,24),"",F2*((0.1*Inputs!$D$9+0.05*(1-Inputs!$D$9)))/12),IF(Inputs!P1=3,IF($A2-Inputs!$D$6>IF(Inputs!$D$9=0,19,24),"",F2*((0.1*Inputs!$D$9+0.05*(1-Inputs!$D$9)))/12),IF($A2-Inputs!$D$6>IF(Inputs!$D$9=0,19,24),"",G2*((0.1*Inputs!$D$9+0.05*(1-Inputs!$D$9)))/12))),"") -> 0 | M2: =(Inputs!$D$2)*((('Main page'!N5/12)*((1+'Main page'!N5/12)^('Main page'!N6*12)))/(((1+'Main page'!N5/12)^('Main page'!N6*12))-1)) -> 302.9901646 | N2: =IF($A2-Inputs!$D$6>24,"",(Inputs!$D$3/(Inputs!$D$2+Inputs!$D$3)*B2*0.1/12)) -> 229.1666667 | O2: =IF(AND(Inputs!$D$3>0,Inputs!$P$1=1),IF($A2-Inputs!$D$6>24,"",MIN((Inputs!$D$3/(Inputs!$D$2+Inputs!$D$3))*C2*0.15/12,$Z$2)),IF(Inputs!P1=3,(Inputs!$D$3/(Inputs!$D$2+Inputs!$D$3))*IF($A2-Inputs!$D$6>24,"",MIN(C2*0.15/12,$Z$2)),IF($A2-Inputs!$D$6>24,"",MIN(E2*0.15/12,$Z$2)))) -> 351.625 | P2: =IF(AND(Inputs!$D$3>0,Inputs!$P$1=1),IF($A2-Inputs!$D$6>19,"",MIN((Inputs!$D$3/(Inputs!$D$2+Inputs!$D$3))*C2*0.1/12,$Z$2)),IF(Inputs!P1=3,(Inputs!$D$3/(Inputs!$D$2+Inputs!$D$3))*IF($A2-Inputs!$D$6>19,"",MIN(C2*0.1/12,$Z$2)),IF($A2-Inputs!$D$6>19,"",MIN(E2*0.1/12,$Z$2)))) -> 234.4166667 | Q2: =IFERROR(IF(OR(Inputs!$D$3=0,Inputs!$D$3=""),0,IF(AND(Inputs!$D$3>0,Inputs!$P$1=1),(Inputs!$D$3/(Inputs!$D$2+Inputs!$D$3))*IF($A2-Inputs!$D$6>IF(Inputs!$D$9=0,19,24),"",F2*((0.1*Inputs!$D$9+0.05*(1-Inputs!$D$9)))/12),IF(Inputs!P1=3,IF($A2-Inputs!$D$6>IF(Inputs!$D$9=0,19,24),"",F2*((0.1*Inputs!$D$9+0.05*(1-Inputs!$D$9)))/12),IF($A2-Inputs!$D$6>IF(Inputs!$D$9=0,19,24),"",H2*((0.1*Inputs!$D$9+0.05*(1-Inputs!$D$9)))/12)))),"") -> 143.2916667 | R2: =(Inputs!$D$3)*((('Main page'!$N$5/12)*((1+'Main page'!$N$5/12)^('Main page'!$N$6*12)))/(((1+'Main page'!$N$5/12)^('Main page'!$N$6*12))-1)) -> 302.9901646 | S2: =IFERROR(I2+N2,"") -> 458.3333333 | T2: =IFERROR(J2+O2,"") -> 510.5 | U2: =IFERROR(K2+P2,"") -> 340.3333333 | V2: =IFERROR(L2+Q2,"") -> 143.2916667 | W2: =M2+R2 -> 605.9803293 | X2: =IFERROR(Y2+Z2,"") -> 1110.205019 | Y2: =IF(AF2="","",(Inputs!$D$2)*(((Inputs!$D$4/12)*((1+Inputs!$D$4/12)^120))/(((1+Inputs!$D$4/12)^120)-1))) -> 555.1025097 | Z2: =IF(AF2="","",(Inputs!$D$3)*(((Inputs!$D$4/12)*((1+Inputs!$D$4/12)^120))/(((1+Inputs!$D$4/12)^120)-1))) -> 555.1025097 | AA2: =Inputs!$D$2+Inputs!$D$3 -> 100000 | AB2: =Inputs!$D$2+Inputs!$D$3 -> 100000 | AC2: =Inputs!$D$2+Inputs!$D$3 -> 100000 | AD2: =Inputs!$D$2+Inputs!$D$3 -> 100000 | AE2: =Inputs!$D$2+Inputs!$D$3 -> 100000 | AF2: =Inputs!$D$2+Inputs!$D$3 -> 100000 | AG2: =IF(AA2="","",IF(Calculations!$A2-Inputs!$D$6>24,"",IF(AS2<$AA$2*Inputs!$D$4,$AA$2*Inputs!$D$4-($AA$2*Inputs!$D$4-AS2)/2,MIN($AA$2*Inputs!$D$4,AA2*Inputs!$D$4)))) -> 5750 | AH2: =(Inputs!$D$2+Inputs!$D$3)*Inputs!$D$4 -> 6000 | AI2: =(Inputs!$D$2+Inputs!$D$3)*Inputs!$D$4 -> 6000 | AJ2: =IF(AD2="","",IF(Calculations!$A2-Inputs!$D$6>IF(Inputs!$D$9=0,19,24),"",IF(AV2<$AD$2*Inputs!$D$4,MAX(0,AV2),MIN($AD$2*Inputs!$D$4,AD2*Inputs!$D$4)))) -> 1719.5 | AK2: =(Inputs!$D$2+Inputs!$D$3)*'Main page'!N5 -> 4000 | AL2: =(Inputs!$D$2+Inputs!$D$3)*Inputs!$D$4 -> 6000 | AM2: =IFERROR(AG2/AA2,"") -> 0.0575 | AN2: 0.06 | AO2: 0.06 | AP2: 0.017195 | AQ2: 0.04 | AR2: 0.06 | AS2: =IFERROR(IF(OR(AA2="",AA2=0),"",IF(AA2<S2*12,AA2,S2*12)),"") -> 5500 | AT2: 6126 | AU2: 4084 | AV2: 1719.5 | AW2: 7271.763952 | AX2: 13322.46023 | AY2: =IF($A2-Inputs!$D$6>19,"",MIN((Inputs!$D$2/(Inputs!$D$2+Inputs!$D$3))*C2*0.1/12,$Y$2)) -> 229.1666667 | AZ2: =IF($A2-Inputs!$D$6>19,"",MIN(D2*0.1/12,$Y$2)) -> 105.9166667 | BA2: =IF($A2-Inputs!$D$6>19,"",MIN((Inputs!$D$3/(Inputs!$D$2+Inputs!$D$3))*C2*0.1/12,$Z$2)) -> 229.1666667 | BB2: =IF($A2-Inputs!$D$6>19,"",MIN(E2*0.1/12,$Z$2)) -> 234.4166667 | BC2: =(Inputs!$D$2/(Inputs!$D$2+Inputs!$D$3))*IF($A2-Inputs!$D$6>IF(Inputs!$D$9=0,19,24),"",F2*((0.1*Inputs!$D$9+0.05*(1-Inputs!$D$9)))/12) -> 135.4166667 | BD2: =IF($A2-Inputs!$D$6>IF(Inputs!$D$9=0,19,24),"",G2*((0.1*Inputs!$D$9+0.05*(1-Inputs!$D$9)))/12) -> 0 | BE2: =(Inputs!$D$3/(Inputs!$D$2+Inputs!$D$3))*IF($A2-Inputs!$D$6>IF(Inputs!$D$9=0,19,24),"",F2*((0.1*Inputs!$D$9+0.05*(1-Inputs!$D$9)))/12) -> 135.4166667 | BF2: =IF(Inputs!$D$3=0,0,1)*IF($A2-Inputs!$D$6>IF(Inputs!$D$9=0,19,24),"",H2*((0.1*Inputs!$D$9+0.05*(1-Inputs!$D$9)))/12) -> 143.2916667 | BG2: =IFERROR(AY2+BA2,"") -> 458.3333333 | BH2: =IFERROR(BC2+BE2,"") -> 270.8333333 | BI2: =IFERROR(AZ2+BB2,"") -> 340.3333333 | BJ2: =IFERROR(BD2+BF2,"") -> 143.2916667 | BK2: =IFERROR((BI2-BG2),"") -> -118 | BL2: =IFERROR((BJ2-BH2),"") -> -127.5416667 | BM2: =#REF! ->  | BN2: =IFERROR(((BI2-BG2)+#REF!/12)*12,"") ->  | BO2: =IFERROR(((BJ2-BH2)+#REF!/12)*12,"") ->  | BP2: =AS2 -> 5500 | BQ2: =AU2 -> 4084 | BR2: =AT2 -> 6126 | BS2: =AV2 -> 1719.5 | BT2: =AW2 -> 7271.763952 | BU2: =AX2 -> 13322.46023 | BW2: =A2 -> 2024 | BX2: =IF(AA2=0,0,IF(AS2=AA2,1,IF(AA2<AS2,1,0))) -> 0 | BY2: =IF(AC2=0,0,IF(AU2=AC2,1,IF(AC2<AU2,1,0))) -> 0 | BZ2: =IF(AB2=0,0,IF(AT2=AB2,1,IF(AB2<AT2,1,0))) -> 0 | CA2: =IF(AD2=0,0,IF(AV2=AD2,1,IF(AD2<AV2,1,0))) -> 0 | CB2: =IF(AF2=0,0,IF(AX2=AF2,1,IF(AF2<AX2,1,0))) -> 0 | CC2: =Inputs!G2 -> 4 | CD2: =IF(Inputs!$D$6+10>Calculations!$A2,MIN(AT2:AV2),"") -> 1719.5 | CE2: =IF(Inputs!$D$6+10>Calculations!$A2,MIN(BP2:BS2),"") -> 1719.5 | CG2: 1 | CH2: 14580 | CI2: =CH2*1.5 -> 21870 | CJ2: =CH2*2.25 -> 32805 | CK2: =YEAR(TODAY()) -> 2024 | CL2: =Inputs!J2+Inputs!K2 -> 100000 | CM2: =$CL2*0.01 -> 1000 | CN2: =$CL2*0.02 -> 2000 | CO2: =$CL2*0.03 -> 3000 | CP2: =$CL2*0.04 -> 4000 | CQ2: =$CL2*0.05 -> 5000 | CR2: =$CL2*0.06 -> 6000 | CS2: =$CL2*0.07 -> 7000 | CT2: =$CL2*0.08 -> 8000 | CU2: =$CL2*0.09 -> 9000 | CV2: =$CL2*0.1 -> 10000 | CW2: =$CL2*0.11 -> 11000 | CX2: =$CL2*0.12 -> 12000 | CY2: =$CL2*0.13 -> 13000 | CZ2: =$CL2*0.14 -> 14000 | DA2: =$CL2*0.15 -> 15000 | DB2: =$CL2*0.16 -> 16000 | DC2: =$CL2*0.17 -> 17000 | DD2: =$CL2*0.18 -> 18000 | DE2: =$CL2*0.19 -> 19000 | DF2: =$CL2*0.2 -> 20000 | DG2: =YEAR(TODAY()) -> 2024 | DH2: =CM2*(1+'Main page'!$N$4) -> 1050 | DI2: =CN2*(1+'Main page'!$N$4) -> 2100 | DJ2: =CO2*(1+'Main page'!$N$4) -> 3150 | DK2: =CP2*(1+'Main page'!$N$4) -> 4200 | DL2: =CQ2*(1+'Main page'!$N$4) -> 5250 | DM2: =CR2*(1+'Main page'!$N$4) -> 6300 | DN2: =CS2*(1+'Main page'!$N$4) -> 7350 | DO2: =CT2*(1+'Main page'!$N$4) -> 8400 | DP2: =CU2*(1+'Main page'!$N$4) -> 9450 | DQ2: =CV2*(1+'Main page'!$N$4) -> 10500 | DR2: =CW2*(1+'Main page'!$N$4) -> 11550 | DS2: =CX2*(1+'Main page'!$N$4) -> 12600 | DT2: =CY2*(1+'Main page'!$N$4) -> 13650 | DU2: =CZ2*(1+'Main page'!$N$4) -> 14700 | DV2: =DA2*(1+'Main page'!$N$4) -> 15750 | DW2: =DB2*(1+'Main page'!$N$4) -> 16800 | DX2: =DC2*(1+'Main page'!$N$4) -> 17850 | DY2: =DD2*(1+'Main page'!$N$4) -> 18900 | DZ2: =DE2*(1+'Main page'!$N$4) -> 19950 | EA2: =DF2*(1+'Main page'!$N$4) -> 21000 | EB2: =IFERROR(AS2/EG2,0) -> 0.055 | EC2: =IFERROR(AU2/EG2,0) -> 0.04084 | ED2: =IFERROR(AT2/EG2,0) -> 0.06126 | EE2: =IFERROR(AX2/CL2,0) -> 0.1332246023 | EF2: =IFERROR(AW2/CL2,0) -> 0.07271763952 | EG2: =Inputs!J2+Inputs!K2 -> 100000
A3: =A2+1 -> 2025 | B3: =IF((SUM(Inputs!J3:K3)-((1+Inputs!$D$5)^(A3-$A$2))*VLOOKUP(Calculations!CC3,Calculations!$CG$1:$CI$9,3,FALSE))<=0,0,(SUM(Inputs!J3:K3)-((1+Inputs!$D$5)^(A3-$A$2))*VLOOKUP(Calculations!CC3,Calculations!$CG$1:$CI$9,3,FALSE))) -> 56650 | C3: =IF(Inputs!J3+Inputs!K3-((1+Inputs!$D$5)^(A3-$A$2))*VLOOKUP(CC3,Calculations!$CG$1:$CJ$18,3,FALSE)<0,0,Inputs!J3+Inputs!K3-((1+Inputs!$D$5)^(A3-$A$2))*VLOOKUP(CC3,Calculations!$CG$1:$CJ$18,3,FALSE)) -> 56650 | D3: =IF(Inputs!K3="",Calculations!C3,IF(Inputs!J3-((1+Inputs!$D$5)^(A3-$A$2))*VLOOKUP((CC3-1),Calculations!$CG$1:$CJ$18,3,FALSE)<0,0,Inputs!J3-((1+Inputs!$D$5)^(A3-$A$2))*VLOOKUP(CC3-1,Calculations!$CG$1:$CJ$18,3,FALSE))) -> 13091.3 | E3: =IF(Inputs!K3-((1+Inputs!$D$5)^(A3-$A$2))*VLOOKUP((1),Calculations!$CG$1:$CJ$18,3,FALSE)<0,0,Inputs!K3-((1+Inputs!$D$5)^(A3-$A$2))*VLOOKUP(1,Calculations!$CG$1:$CJ$18,3,FALSE)) -> 28973.9 | F3: =IF(Inputs!J3+Inputs!K3-((1+Inputs!$D$5)^(A3-$A$2))*VLOOKUP(CC3,Calculations!$CG$1:$CJ$18,4,FALSE)<0,0,Inputs!J3+Inputs!K3-((1+Inputs!$D$5)^(A3-$A$2))*VLOOKUP(CC3,Calculations!$CG$1:$CJ$18,4,FALSE)) -> 33475 | G3: =IF(Inputs!K3="",Calculations!F3,IF(Inputs!J3-((1+Inputs!$D$5)^(A3-$A$2))*VLOOKUP((CC3-1),Calculations!$CG$1:$CJ$18,4,FALSE)<0,0,Inputs!J3-((1+Inputs!$D$5)^(A3-$A$2))*VLOOKUP(CC3-1,Calculations!$CG$1:$CJ$18,4,FALSE))) -> 0 | H3: =IF(Inputs!K3-((1+Inputs!$D$5)^(A3-$A$2))*VLOOKUP((1),Calculations!$CG$1:$CJ$18,4,FALSE)<0,0,Inputs!K3-((1+Inputs!$D$5)^(A3-$A$2))*VLOOKUP(1,Calculations!$CG$1:$CJ$18,4,FALSE)) -> 17710.85 | I3: =IF($A3-Inputs!$D$6>24,"",(Inputs!$D$2/(Inputs!$D$2+Inputs!$D$3)*B3*0.1/12)) -> 236.0416667 | J3: =IF(AND(Inputs!$D$3>=0,Inputs!$P$1=1),IF($A3-Inputs!$D$6>24,"",MIN((Inputs!$D$2/(Inputs!$D$2+Inputs!$D$3))*C3*0.15/12,$Y$2)),IF(Inputs!P2=3,IF($A3-Inputs!$D$6>24,"",MIN(C3*0.15/12,$Y$2)),IF($A3-Inputs!$D$6>24,"",MIN(D3*0.15/12,$Y$2)))) -> 163.64125 | K3: =IF(AND(Inputs!$D$3>=0,Inputs!$P$1=1),IF($A3-Inputs!$D$6>19,"",MIN((Inputs!$D$2/(Inputs!$D$2+Inputs!$D$3))*C3*0.1/12,$Y$2)),IF(Inputs!P2=3,IF($A3-Inputs!$D$6>19,"",MIN(C3*0.1/12,$Y$2)),IF($A3-Inputs!$D$6>19,"",MIN(D3*0.1/12,$Y$2)))) -> 109.0941667 | L3: =IFERROR(IF(AND(OR(Inputs!$D$3>=0,Inputs!$D$3=""),Inputs!$P$1=1),(Inputs!$D$2/(Inputs!$D$2+Inputs!$D$3))*IF($A3-Inputs!$D$6>IF(Inputs!$D$9=0,19,24),"",F3*((0.1*Inputs!$D$9+0.05*(1-Inputs!$D$9)))/12),IF(Inputs!P2=3,IF($A3-Inputs!$D$6>IF(Inputs!$D$9=0,19,24),"",F3*((0.1*Inputs!$D$9+0.05*(1-Inputs!$D$9)))/12),IF($A3-Inputs!$D$6>IF(Inputs!$D$9=0,19,24),"",G3*((0.1*Inputs!$D$9+0.05*(1-Inputs!$D$9)))/12))),"") -> 0 | M3: =IFERROR(IF(AE3=0,"",M2),"") -> 302.9901646 | N3: =IF($A3-Inputs!$D$6>24,"",(Inputs!$D$3/(Inputs!$D$2+Inputs!$D$3)*B3*0.1/12)) -> 236.0416667 | O3: =IF(AND(Inputs!$D$3>0,Inputs!$P$1=1),IF($A3-Inputs!$D$6>24,"",MIN((Inputs!$D$3/(Inputs!$D$2+Inputs!$D$3))*C3*0.15/12,$Z$2)),IF(Inputs!P2=3,(Inputs!$D$3/(Inputs!$D$2+Inputs!$D$3))*IF($A3-Inputs!$D$6>24,"",MIN(C3*0.15/12,$Z$2)),IF($A3-Inputs!$D$6>24,"",MIN(E3*0.15/12,$Z$2)))) -> 362.17375 | P3: =IF(AND(Inputs!$D$3>0,Inputs!$P$1=1),IF($A3-Inputs!$D$6>19,"",MIN((Inputs!$D$3/(Inputs!$D$2+Inputs!$D$3))*C3*0.1/12,$Z$2)),IF(Inputs!P2=3,(Inputs!$D$3/(Inputs!$D$2+Inputs!$D$3))*IF($A3-Inputs!$D$6>19,"",MIN(C3*0.1/12,$Z$2)),IF($A3-Inputs!$D$6>19,"",MIN(E3*0.1/12,$Z$2)))) -> 241.4491667 | Q3: =IFERROR(IF(OR(Inputs!$D$3=0,Inputs!$D$3=""),0,IF(AND(Inputs!$D$3>0,Inputs!$P$1=1),(Inputs!$D$3/(Inputs!$D$2+Inputs!$D$3))*IF($A3-Inputs!$D$6>IF(Inputs!$D$9=0,19,24),"",F3*((0.1*Inputs!$D$9+0.05*(1-Inputs!$D$9)))/12),IF(Inputs!P2=3,IF($A3-Inputs!$D$6>IF(Inputs!$D$9=0,19,24),"",F3*((0.1*Inputs!$D$9+0.05*(1-Inputs!$D$9)))/12),IF($A3-Inputs!$D$6>IF(Inputs!$D$9=0,19,24),"",H3*((0.1*Inputs!$D$9+0.05*(1-Inputs!$D$9)))/12)))),"") -> 147.5904167 | R3: =IF(AK3=0,"",R2) -> 302.9901646 | S3: 472.0833333 | T3: 525.815 | U3: 350.5433333 | V3: 147.5904167 | W3: =IF(AK3=0,"",W2) -> 605.9803293 | X3: 1110.205019 | Y3: =IF(AF3="","",(Inputs!$D$2)*(((Inputs!$D$4/12)*((1+Inputs!$D$4/12)^120))/(((1+Inputs!$D$4/12)^120)-1))) -> 555.1025097 | Z3: =IF(AF3="","",(Inputs!$D$3)*(((Inputs!$D$4/12)*((1+Inputs!$D$4/12)^120))/(((1+Inputs!$D$4/12)^120)-1))) -> 555.1025097 | AA3: =IF(AA2=0,0,IF($A3-Inputs!$D$6>25,"",IF((AA2+IF(AS2<AG2,(AH2-AS2)/2,AG2-AS2))>0,AA2+IF(AS2<AG2,(AH2-AS2)/2,AG2-AS2),0))) -> 100250 | AB3: =IF(AB2=0,0,IF($A3-Inputs!$D$6>25,"",IF(AB2-AT2+AH2>0,AB2-AT2+AH2,0))) -> 99874 | AC3: =IF(AC2=0,0,IF($A3-Inputs!$D$6>20,"",IF(AC2-AU2+AI2>0,AC2-AU2+AI2,0))) -> 101916 | AD3: =IF(AD2=0,0,IF($A3-Inputs!$D$6>IF(Inputs!$D$9=0,20,25),"",IF(AV2<$AD$2*Inputs!$D$4,IF(V2*12>AD2,0,AD2),IF(AD2-AV2+AJ2>0,AD2-AV2+AJ2,0)))) -> 100000 | AE3: =IF(AE2-AW2+AK2>0,AE2-AW2+AK2,0) -> 96728.23605 | AF3: =IF(AF2-AX2+AL2>0,AF2-AX2+AL2,0) -> 92677.53977 | AG3: =IF(AA3<AS2,0,IF(AA3="","",IF(Calculations!$A3-Inputs!$D$6>24,"",IF(AS3<$AA$2*Inputs!$D$4,$AA$2*Inputs!$D$4-($AA$2*Inputs!$D$4-AS3)/2,MIN($AA$2*Inputs!$D$4,AA3*Inputs!$D$4))))) -> 5832.5 | AH3: =IF(AB3="","",IF(Calculations!$A3-Inputs!$D$6>24,"",IF(AB3>(Inputs!$D$2+Inputs!$D$3),(Inputs!$D$2+Inputs!$D$3)*Inputs!$D$4,IF(AB3<$X$3*12,0,AB3*Inputs!$D$4)))) -> 5992.44 | AI3: =IF(AC3="","",IF(Calculations!$A3-Inputs!$D$6>24,"",IF(AC3>(Inputs!$D$2+Inputs!$D$3),(Inputs!$D$2+Inputs!$D$3)*Inputs!$D$4,IF(AC3<$X$3*12,0,AC3*Inputs!$D$4)))) -> 6000 | AJ3: =IF(AD3<AV2,0,IF(AD3="","",IF(Calculations!$A3-Inputs!$D$6>IF(Inputs!$D$9=0,19,24),"",IF(AV3<$AD$2*Inputs!$D$4,MAX(0,AV3),MIN($AD$2*Inputs!$D$4,AD3*Inputs!$D$4))))) -> 1771.085 | AK3: =IF(AE3="","",IF(AE3<$AW$2,0,IF(AE3>(Inputs!$D$2+Inputs!$D$3),(Inputs!$D$2+Inputs!$D$3)*'Main page'!$N$5,AE3*'Main page'!$N$5))) -> 3869.129442 | AL3: =IF(AF3="","",IF(AF3<$AX$2,0,IF(AF3>(Inputs!$D$2+Inputs!$D$3),(Inputs!$D$2+Inputs!$D$3)*Inputs!$D$4,AF3*Inputs!$D$4))) -> 5560.652386 | AM3: =IFERROR(AG3/AA3,"") -> 0.05817955112 | AN3: 0.06 | AO3: 0.05887201225 | AP3: 0.01771085 | AQ3: 0.04 | AR3: 0.06 | AS3: =IFERROR(IF(OR(AA3="",AA3=0),"",IF(AA3<S3*12,AA3,S3*12)),"") -> 5665 | AT3: 6309.78 | AU3: 4206.52 | AV3: 1771.085 | AW3: 7271.763952 | AX3: 13322.46023 | AY3: =IF($A3-Inputs!$D$6>19,"",MIN((Inputs!$D$2/(Inputs!$D$2+Inputs!$D$3))*C3*0.1/12,$Y$2)) -> 236.0416667 | AZ3: =IF($A3-Inputs!$D$6>19,"",MIN(D3*0.1/12,$Y$2)) -> 109.0941667 | BA3: =IF($A3-Inputs!$D$6>19,"",MIN((Inputs!$D$3/(Inputs!$D$2+Inputs!$D$3))*C3*0.1/12,$Z$2)) -> 236.0416667 | BB3: =IF($A3-Inputs!$D$6>19,"",MIN(E3*0.1/12,$Z$2)) -> 241.4491667 | BC3: =(Inputs!$D$2/(Inputs!$D$2+Inputs!$D$3))*IF($A3-Inputs!$D$6>IF(Inputs!$D$9=0,19,24),"",F3*((0.1*Inputs!$D$9+0.05*(1-Inputs!$D$9)))/12) -> 139.4791667 | BD3: =IF($A3-Inputs!$D$6>IF(Inputs!$D$9=0,19,24),"",G3*((0.1*Inputs!$D$9+0.05*(1-Inputs!$D$9)))/12) -> 0 | BE3: =(Inputs!$D$3/(Inputs!$D$2+Inputs!$D$3))*IF($A3-Inputs!$D$6>IF(Inputs!$D$9=0,19,24),"",F3*((0.1*Inputs!$D$9+0.05*(1-Inputs!$D$9)))/12) -> 139.4791667 | BF3: =IF(Inputs!$D$3=0,0,1)*IF($A3-Inputs!$D$6>IF(Inputs!$D$9=0,19,24),"",H3*((0.1*Inputs!$D$9+0.05*(1-Inputs!$D$9)))/12) -> 147.5904167 | BG3: 472.0833333 | BH3: 278.9583333 | BI3: 350.5433333 | BJ3: 147.5904167 | BK3: -121.54 | BL3: -131.3679167 | BM3: =#REF! ->  | BN3: =IFERROR(((BI3-BG3)+#REF!/12)*12,"") ->  | BO3: =IFERROR(((BJ3-BH3)+#REF!/12)*12,"") ->  | BP3: =IFERROR(AS3/((1+'Main page'!$N$4)^($A3-$A$2)),"") -> 5395.238095 | BQ3: =IFERROR(AU3/((1+'Main page'!$N$4)^($A3-$A$2)),"") -> 4006.209524 | BR3: =IFERROR(AT3/((1+'Main page'!$N$4)^($A3-$A$2)),"") -> 6009.314286 | BS3: =IFERROR(AV3/((1+'Main page'!$N$4)^($A3-$A$2)),"") -> 1686.747619 | BT3: =IF(AW3="","",IFERROR(AW3/((1+'Main page'!$N$4)^($A3-$A$2)),"")) -> 6925.489478 | BU3: =IFERROR(AX3/((1+'Main page'!$N$4)^($A3-$A$2)),"") -> 12688.05736 | BW3: 2025 | BX3: 0 | BY3: 0 | BZ3: 0 | CA3: 0 | CB3: =IF(CB2=1,0,IF(AF3=0,0,IF(AX3=AF3,1,IF(AF3<AX3,1,0)))) -> 0 | CC3: =$CC$2+IF(AND(Inputs!$K$2="",Inputs!K3<>""),1,0)+IF(AND(Calculations!$A3>=Inputs!$G$6,Inputs!$G$6<>""),1,0)+IF(AND(Calculations!$A3>=Inputs!$G$7,Inputs!$G$7<>""),1,0)+IF(AND(Calculations!$A3>=Inputs!$G$8,Inputs!$G$8<>""),1,0)+IF(AND(Calculations!$A3>=Inputs!$G$9,Inputs!$G$9<>""),1,0) -> 4 | CD3: =IF(Inputs!$D$6+10>Calculations!$A3,MIN(AT3:AV3),"") -> 1771.085 | CE3: =IF(Inputs!$D$6+10>Calculations!$A3,MIN(BP3:BS3),"") -> 1686.747619 | CG3: 2 | CH3: 19720 | CI3: 29580 | CJ3: 44370 | CK3: =CK2+1 -> 2025 | CL3: =Inputs!J3+Inputs!K3 -> 103000 | CM3: 1030 | CN3: 2060 | CO3: 3090 | CP3: 4120 | CQ3: 5150 | CR3: 6180 | CS3: 7210 | CT3: 8240 | CU3: 9270 | CV3: 10300 | CW3: 11330 | CX3: 12360 | CY3: 13390 | CZ3: 14420 | DA3: 15450 | DB3: 16480 | DC3: 17510 | DD3: 18540 | DE3: 19570 | DF3: 20600 | DG3: =DG2+1 -> 2025 | DH3: =CM3*(1+'Main page'!$N$4)+DH2*(1+'Main page'!$N$4) -> 2184 | DI3: =CN3*(1+'Main page'!$N$4)+DI2*(1+'Main page'!$N$4) -> 4368 | DJ3: =CO3*(1+'Main page'!$N$4)+DJ2*(1+'Main page'!$N$4) -> 6552 | DK3: =CP3*(1+'Main page'!$N$4)+DK2*(1+'Main page'!$N$4) -> 8736 | DL3: =CQ3*(1+'Main page'!$N$4)+DL2*(1+'Main page'!$N$4) -> 10920 | DM3: =CR3*(1+'Main page'!$N$4)+DM2*(1+'Main page'!$N$4) -> 13104 | DN3: =CS3*(1+'Main page'!$N$4)+DN2*(1+'Main page'!$N$4) -> 15288 | DO3: =CT3*(1+'Main page'!$N$4)+DO2*(1+'Main page'!$N$4) -> 17472 | DP3: =CU3*(1+'Main page'!$N$4)+DP2*(1+'Main page'!$N$4) -> 19656 | DQ3: =CV3*(1+'Main page'!$N$4)+DQ2*(1+'Main page'!$N$4) -> 21840 | DR3: =CW3*(1+'Main page'!$N$4)+DR2*(1+'Main page'!$N$4) -> 24024 | DS3: =CX3*(1+'Main page'!$N$4)+DS2*(1+'Main page'!$N$4) -> 26208 | DT3: =CY3*(1+'Main page'!$N$4)+DT2*(1+'Main page'!$N$4) -> 28392 | DU3: =CZ3*(1+'Main page'!$N$4)+DU2*(1+'Main page'!$N$4) -> 30576 | DV3: =DA3*(1+'Main page'!$N$4)+DV2*(1+'Main page'!$N$4) -> 32760 | DW3: =DB3*(1+'Main page'!$N$4)+DW2*(1+'Main page'!$N$4) -> 34944 | DX3: =DC3*(1+'Main page'!$N$4)+DX2*(1+'Main page'!$N$4) -> 37128 | DY3: =DD3*(1+'Main page'!$N$4)+DY2*(1+'Main page'!$N$4) -> 39312 | DZ3: =DE3*(1+'Main page'!$N$4)+DZ2*(1+'Main page'!$N$4) -> 41496 | EA3: =DF3*(1+'Main page'!$N$4)+EA2*(1+'Main page'!$N$4) -> 43680 | EB3: 0.055 | EC3: 0.04084 | ED3: 0.06126 | EE3: 0.1293442741 | EF3: 0.07059965002 | EG3: =Inputs!J3+Inputs!K3 -> 103000
A4: 2026 | B4: =IF((SUM(Inputs!J4:K4)-((1+Inputs!$D$5)^(A4-$A$2))*VLOOKUP(Calculations!CC4,Calculations!$CG$1:$CI$9,3,FALSE))<=0,0,(SUM(Inputs!J4:K4)-((1+Inputs!$D$5)^(A4-$A$2))*VLOOKUP(Calculations!CC4,Calculations!$CG$1:$CI$9,3,FALSE))) -> 58349.5 | C4: =IF(Inputs!J4+Inputs!K4-((1+Inputs!$D$5)^(A4-$A$2))*VLOOKUP(CC4,Calculations!$CG$1:$CJ$18,3,FALSE)<0,0,Inputs!J4+Inputs!K4-((1+Inputs!$D$5)^(A4-$A$2))*VLOOKUP(CC4,Calculations!$CG$1:$CJ$18,3,FALSE)) -> 58349.5 | D4: =IF(Inputs!K4="",Calculations!C4,IF(Inputs!J4-((1+Inputs!$D$5)^(A4-$A$2))*VLOOKUP((CC4-1),Calculations!$CG$1:$CJ$18,3,FALSE)<0,0,Inputs!J4-((1+Inputs!$D$5)^(A4-$A$2))*VLOOKUP(CC4-1,Calculations!$CG$1:$CJ$18,3,FALSE))) -> 13484.039 | E4: =IF(Inputs!K4-((1+Inputs!$D$5)^(A4-$A$2))*VLOOKUP((1),Calculations!$CG$1:$CJ$18,3,FALSE)<0,0,Inputs!K4-((1+Inputs!$D$5)^(A4-$A$2))*VLOOKUP(1,Calculations!$CG$1:$CJ$18,3,FALSE)) -> 29843.117 | F4: =IF(Inputs!J4+Inputs!K4-((1+Inputs!$D$5)^(A4-$A$2))*VLOOKUP(CC4,Calculations!$CG$1:$CJ$18,4,FALSE)<0,0,Inputs!J4+Inputs!K4-((1+Inputs!$D$5)^(A4-$A$2))*VLOOKUP(CC4,Calculations!$CG$1:$CJ$18,4,FALSE)) -> 34479.25 | G4: =IF(Inputs!K4="",Calculations!F4,IF(Inputs!J4-((1+Inputs!$D$5)^(A4-$A$2))*VLOOKUP((CC4-1),Calculations!$CG$1:$CJ$18,4,FALSE)<0,0,Inputs!J4-((1+Inputs!$D$5)^(A4-$A$2))*VLOOKUP(CC4-1,Calculations!$CG$1:$CJ$18,4,FALSE))) -> 0 | H4: =IF(Inputs!K4-((1+Inputs!$D$5)^(A4-$A$2))*VLOOKUP((1),Calculations!$CG$1:$CJ$18,4,FALSE)<0,0,Inputs!K4-((1+Inputs!$D$5)^(A4-$A$2))*VLOOKUP(1,Calculations!$CG$1:$CJ$18,4,FALSE)) -> 18242.1755 | I4: =IF($A4-Inputs!$D$6>24,"",(Inputs!$D$2/(Inputs!$D$2+Inputs!$D$3)*B4*0.1/12)) -> 243.1229167 | J4: =IF(AND(Inputs!$D$3>=0,Inputs!$P$1=1),IF($A4-Inputs!$D$6>24,"",MIN((Inputs!$D$2/(Inputs!$D$2+Inputs!$D$3))*C4*0.15/12,$Y$2)),IF(Inputs!P3=3,IF($A4-Inputs!$D$6>24,"",MIN(C4*0.15/12,$Y$2)),IF($A4-Inputs!$D$6>24,"",MIN(D4*0.15/12,$Y$2)))) -> 168.5504875 | K4: =IF(AND(Inputs!$D$3>=0,Inputs!$P$1=1),IF($A4-Inputs!$D$6>19,"",MIN((Inputs!$D$2/(Inputs!$D$2+Inputs!$D$3))*C4*0.1/12,$Y$2)),IF(Inputs!P3=3,IF($A4-Inputs!$D$6>19,"",MIN(C4*0.1/12,$Y$2)),IF($A4-Inputs!$D$6>19,"",MIN(D4*0.1/12,$Y$2)))) -> 112.3669917 | L4: =IFERROR(IF(AND(OR(Inputs!$D$3>=0,Inputs!$D$3=""),Inputs!$P$1=1),(Inputs!$D$2/(Inputs!$D$2+Inputs!$D$3))*IF($A4-Inputs!$D$6>IF(Inputs!$D$9=0,19,24),"",F4*((0.1*Inputs!$D$9+0.05*(1-Inputs!$D$9)))/12),IF(Inputs!P3=3,IF($A4-Inputs!$D$6>IF(Inputs!$D$9=0,19,24),"",F4*((0.1*Inputs!$D$9+0.05*(1-Inputs!$D$9)))/12),IF($A4-Inputs!$D$6>IF(Inputs!$D$9=0,19,24),"",G4*((0.1*Inputs!$D$9+0.05*(1-Inputs!$D$9)))/12))),"") -> 0 | M4: 302.9901646 | N4: =IF($A4-Inputs!$D$6>24,"",(Inputs!$D$3/(Inputs!$D$2+Inputs!$D$3)*B4*0.1/12)) -> 243.1229167 | O4: =IF(AND(Inputs!$D$3>0,Inputs!$P$1=1),IF($A4-Inputs!$D$6>24,"",MIN((Inputs!$D$3/(Inputs!$D$2+Inputs!$D$3))*C4*0.15/12,$Z$2)),IF(Inputs!P3=3,(Inputs!$D$3/(Inputs!$D$2+Inputs!$D$3))*IF($A4-Inputs!$D$6>24,"",MIN(C4*0.15/12,$Z$2)),IF($A4-Inputs!$D$6>24,"",MIN(E4*0.15/12,$Z$2)))) -> 373.0389625 | P4: =IF(AND(Inputs!$D$3>0,Inputs!$P$1=1),IF($A4-Inputs!$D$6>19,"",MIN((Inputs!$D$3/(Inputs!$D$2+Inputs!$D$3))*C4*0.1/12,$Z$2)),IF(Inputs!P3=3,(Inputs!$D$3/(Inputs!$D$2+Inputs!$D$3))*IF($A4-Inputs!$D$6>19,"",MIN(C4*0.1/12,$Z$2)),IF($A4-Inputs!$D$6>19,"",MIN(E4*0.1/12,$Z$2)))) -> 248.6926417 | Q4: =IFERROR(IF(OR(Inputs!$D$3=0,Inputs!$D$3=""),0,IF(AND(Inputs!$D$3>0,Inputs!$P$1=1),(Inputs!$D$3/(Inputs!$D$2+Inputs!$D$3))*IF($A4-Inputs!$D$6>IF(Inputs!$D$9=0,19,24),"",F4*((0.1*Inputs!$D$9+0.05*(1-Inputs!$D$9)))/12),IF(Inputs!P3=3,IF($A4-Inputs!$D$6>IF(Inputs!$D$9=0,19,24),"",F4*((0.1*Inputs!$D$9+0.05*(1-Inputs!$D$9)))/12),IF($A4-Inputs!$D$6>IF(Inputs!$D$9=0,19,24),"",H4*((0.1*Inputs!$D$9+0.05*(1-Inputs!$D$9)))/12)))),"") -> 152.0181292 | R4: 302.9901646 | S4: 486.2458333 | T4: 541.58945 | U4: 361.0596333 | V4: 152.0181292 | W4: 605.9803293 | X4: 1110.205019 | Y4: =IF(AF4="","",(Inputs!$D$2)*(((Inputs!$D$4/12)*((1+Inputs!$D$4/12)^120))/(((1+Inputs!$D$4/12)^120)-1))) -> 555.1025097 | Z4: =IF(AF4="","",(Inputs!$D$3)*(((Inputs!$D$4/12)*((1+Inputs!$D$4/12)^120))/(((1+Inputs!$D$4/12)^120)-1))) -> 555.1025097 | AA4: =IF(AA3=0,0,IF($A4-Inputs!$D$6>25,"",IF((AA3+IF(AS3<AG3,(AH3-AS3)/2,AG3-AS3))>0,AA3+IF(AS3<AG3,(AH3-AS3)/2,AG3-AS3),0))) -> 100413.72 | AB4: =IF(AB3=0,0,IF($A4-Inputs!$D$6>25,"",IF(AB3-AT3+AH3>0,AB3-AT3+AH3,0))) -> 99556.66 | AC4: =IF(AC3=0,0,IF($A4-Inputs!$D$6>20,"",IF(AC3-AU3+AI3>0,AC3-AU3+AI3,0))) -> 103709.48 | AD4: =IF(AD3=0,0,IF($A4-Inputs!$D$6>IF(Inputs!$D$9=0,20,25),"",IF(AV3<$AD$2*Inputs!$D$4,IF(V3*12>AD3,0,AD3),IF(AD3-AV3+AJ3>0,AD3-AV3+AJ3,0)))) -> 100000 | AE4: =IFERROR(IF(AE3<$AW$2,0,IF(AE3-AW3+AK3>0,AE3-AW3+AK3,0)),"") -> 93325.60154 | AF4: =IFERROR(IF(AF3<$AX$2,"",IF(AF3-AX3+AL3>0,AF3-AX3+AL3,0)),"") -> 84915.73192 | AG4: =IF(AA4<AS3,0,IF(AA4="","",IF(Calculations!$A4-Inputs!$D$6>24,"",IF(AS4<$AA$2*Inputs!$D$4,$AA$2*Inputs!$D$4-($AA$2*Inputs!$D$4-AS4)/2,MIN($AA$2*Inputs!$D$4,AA4*Inputs!$D$4))))) -> 5917.475 | AH4: =IF(AB4="","",IF(Calculations!$A4-Inputs!$D$6>24,"",IF(AB4>(Inputs!$D$2+Inputs!$D$3),(Inputs!$D$2+Inputs!$D$3)*Inputs!$D$4,IF(AB4<$X$3*12,0,AB4*Inputs!$D$4)))) -> 5973.3996 | AI4: =IF(AC4="","",IF(Calculations!$A4-Inputs!$D$6>24,"",IF(AC4>(Inputs!$D$2+Inputs!$D$3),(Inputs!$D$2+Inputs!$D$3)*Inputs!$D$4,IF(AC4<$X$3*12,0,AC4*Inputs!$D$4)))) -> 6000 | AJ4: =IF(AD4<AV3,0,IF(AD4="","",IF(Calculations!$A4-Inputs!$D$6>IF(Inputs!$D$9=0,19,24),"",IF(AV4<$AD$2*Inputs!$D$4,MAX(0,AV4),MIN($AD$2*Inputs!$D$4,AD4*Inputs!$D$4))))) -> 1824.21755 | AK4: =IF(AE4="","",IF(AE4<$AW$2,0,IF(AE4>(Inputs!$D$2+Inputs!$D$3),(Inputs!$D$2+Inputs!$D$3)*'Main page'!$N$5,AE4*'Main page'!$N$5))) -> 3733.024062 | AL4: =IF(AF4="","",IF(AF4<$AX$2,0,IF(AF4>(Inputs!$D$2+Inputs!$D$3),(Inputs!$D$2+Inputs!$D$3)*Inputs!$D$4,AF4*Inputs!$D$4))) -> 5094.943915 | AM4: =IFERROR(AG4/AA4,"") -> 0.05893094091 | AN4: 0.06 | AO4: 0.05785392039 | AP4: 0.0182421755 | AQ4: 0.04 | AR4: 0.06 | AS4: =IFERROR(IF(OR(AA4="",AA4=0),"",IF(AA4<S4*12,AA4,S4*12)),"") -> 5834.95 | AT4: 6499.0734 | AU4: 4332.7156 | AV4: 1824.21755 | AW4: 7271.763952 | AX4: 13322.46023 | AY4: =IF($A4-Inputs!$D$6>19,"",MIN((Inputs!$D$2/(Inputs!$D$2+Inputs!$D$3))*C4*0.1/12,$Y$2)) -> 243.1229167 | AZ4: =IF($A4-Inputs!$D$6>19,"",MIN(D4*0.1/12,$Y$2)) -> 112.3669917 | BA4: =IF($A4-Inputs!$D$6>19,"",MIN((Inputs!$D$3/(Inputs!$D$2+Inputs!$D$3))*C4*0.1/12,$Z$2)) -> 243.1229167 | BB4: =IF($A4-Inputs!$D$6>19,"",MIN(E4*0.1/12,$Z$2)) -> 248.6926417 | BC4: =(Inputs!$D$2/(Inputs!$D$2+Inputs!$D$3))*IF($A4-Inputs!$D$6>IF(Inputs!$D$9=0,19,24),"",F4*((0.1*Inputs!$D$9+0.05*(1-Inputs!$D$9)))/12) -> 143.6635417 | BD4: =IF($A4-Inputs!$D$6>IF(Inputs!$D$9=0,19,24),"",G4*((0.1*Inputs!$D$9+0.05*(1-Inputs!$D$9)))/12) -> 0 | BE4: =(Inputs!$D$3/(Inputs!$D$2+Inputs!$D$3))*IF($A4-Inputs!$D$6>IF(Inputs!$D$9=0,19,24),"",F4*((0.1*Inputs!$D$9+0.05*(1-Inputs!$D$9)))/12) -> 143.6635417 | BF4: =IF(Inputs!$D$3=0,0,1)*IF($A4-Inputs!$D$6>IF(Inputs!$D$9=0,19,24),"",H4*((0.1*Inputs!$D$9+0.05*(1-Inputs!$D$9)))/12) -> 152.0181292 | BG4: 486.2458333 | BH4: 287.3270833 | BI4: 361.0596333 | BJ4: 152.0181292 | BK4: -125.1862 | BL4: -135.3089542 | BM4: =#REF! ->  | BN4: =IFERROR(((BI4-BG4)+#REF!/12)*12,"") ->  | BO4: =IFERROR(((BJ4-BH4)+#REF!/12)*12,"") ->  | BP4: =IFERROR(AS4/((1+'Main page'!$N$4)^($A4-$A$2)),"") -> 5292.471655 | BQ4: =IFERROR(AU4/((1+'Main page'!$N$4)^($A4-$A$2)),"") -> 3929.900771 | BR4: =IFERROR(AT4/((1+'Main page'!$N$4)^($A4-$A$2)),"") -> 5894.851156 | BS4: =IFERROR(AV4/((1+'Main page'!$N$4)^($A4-$A$2)),"") -> 1654.619093 | BT4: =IF(AW4="","",IFERROR(AW4/((1+'Main page'!$N$4)^($A4-$A$2)),"")) -> 6595.704264 | BU4: =IFERROR(AX4/((1+'Main page'!$N$4)^($A4-$A$2)),"") -> 12083.86416 | BW4: 2026 | BX4: 0 | BY4: 0 | BZ4: 0 | CA4: 0 | CB4: 0 | CC4: =$CC$2+IF(AND(Inputs!$K$2="",Inputs!K4<>""),1,0)+IF(AND(Calculations!$A4>=Inputs!$G$6,Inputs!$G$6<>""),1,0)+IF(AND(Calculations!$A4>=Inputs!$G$7,Inputs!$G$7<>""),1,0)+IF(AND(Calculations!$A4>=Inputs!$G$8,Inputs!$G$8<>""),1,0)+IF(AND(Calculations!$A4>=Inputs!$G$9,Inputs!$G$9<>""),1,0) -> 4 | CD4: =IF(Inputs!$D$6+10>Calculations!$A4,MIN(AT4:AV4),"") -> 1824.21755 | CE4: =IF(Inputs!$D$6+10>Calculations!$A4,MIN(BP4:BS4),"") -> 1654.619093 | CG4: 3 | CH4: 24860 | CI4: 37290 | CJ4: 55935 | CK4: 2026 | CL4: =Inputs!J4+Inputs!K4 -> 106090 | CM4: 1060.9 | CN4: 2121.8 | CO4: 3182.7 | CP4: 4243.6 | CQ4: 5304.5 | CR4: 6365.4 | CS4: 7426.3 | CT4: 8487.2 | CU4: 9548.1 | CV4: 10609 | CW4: 11669.9 | CX4: 12730.8 | CY4: 13791.7 | CZ4: 14852.6 | DA4: 15913.5 | DB4: 16974.4 | DC4: 18035.3 | DD4: 19096.2 | DE4: 20157.1 | DF4: 21218 | DG4: 2026 | DH4: =CM4*(1+'Main page'!$N$4)+DH3*(1+'Main page'!$N$4) -> 3407.145 | DI4: =CN4*(1+'Main page'!$N$4)+DI3*(1+'Main page'!$N$4) -> 6814.29 | DJ4: =CO4*(1+'Main page'!$N$4)+DJ3*(1+'Main page'!$N$4) -> 10221.435 | DK4: =CP4*(1+'Main page'!$N$4)+DK3*(1+'Main page'!$N$4) -> 13628.58 | DL4: =CQ4*(1+'Main page'!$N$4)+DL3*(1+'Main page'!$N$4) -> 17035.725 | DM4: =CR4*(1+'Main page'!$N$4)+DM3*(1+'Main page'!$N$4) -> 20442.87 | DN4: =CS4*(1+'Main page'!$N$4)+DN3*(1+'Main page'!$N$4) -> 23850.015 | DO4: =CT4*(1+'Main page'!$N$4)+DO3*(1+'Main page'!$N$4) -> 27257.16 | DP4: =CU4*(1+'Main page'!$N$4)+DP3*(1+'Main page'!$N$4) -> 30664.305 | DQ4: =CV4*(1+'Main page'!$N$4)+DQ3*(1+'Main page'!$N$4) -> 34071.45 | DR4: =CW4*(1+'Main page'!$N$4)+DR3*(1+'Main page'!$N$4) -> 37478.595 | DS4: =CX4*(1+'Main page'!$N$4)+DS3*(1+'Main page'!$N$4) -> 40885.74 | DT4: =CY4*(1+'Main page'!$N$4)+DT3*(1+'Main page'!$N$4) -> 44292.885 | DU4: =CZ4*(1+'Main page'!$N$4)+DU3*(1+'Main page'!$N$4) -> 47700.03 | DV4: =DA4*(1+'Main page'!$N$4)+DV3*(1+'Main page'!$N$4) -> 51107.175 | DW4: =DB4*(1+'Main page'!$N$4)+DW3*(1+'Main page'!$N$4) -> 54514.32 | DX4: =DC4*(1+'Main page'!$N$4)+DX3*(1+'Main page'!$N$4) -> 57921.465 | DY4: =DD4*(1+'Main page'!$N$4)+DY3*(1+'Main page'!$N$4) -> 61328.61 | DZ4: =DE4*(1+'Main page'!$N$4)+DZ3*(1+'Main page'!$N$4) -> 64735.755 | EA4: =DF4*(1+'Main page'!$N$4)+EA3*(1+'Main page'!$N$4) -> 68142.9 | EB4: 0.055 | EC4: 0.04084 | ED4: 0.06126 | EE4: 0.1255769652 | EF4: 0.06854334953 | EG4: =Inputs!J4+Inputs!K4 -> 106090
A5: 2027 | B5: =IF((SUM(Inputs!J5:K5)-((1+Inputs!$D$5)^(A5-$A$2))*VLOOKUP(Calculations!CC5,Calculations!$CG$1:$CI$9,3,FALSE))<=0,0,(SUM(Inputs!J5:K5)-((1+Inputs!$D$5)^(A5-$A$2))*VLOOKUP(Calculations!CC5,Calculations!$CG$1:$CI$9,3,FALSE))) -> 60099.985 | C5: =IF(Inputs!J5+Inputs!K5-((1+Inputs!$D$5)^(A5-$A$2))*VLOOKUP(CC5,Calculations!$CG$1:$CJ$18,3,FALSE)<0,0,Inputs!J5+Inputs!K5-((1+Inputs!$D$5)^(A5-$A$2))*VLOOKUP(CC5,Calculations!$CG$1:$CJ$18,3,FALSE)) -> 60099.985 | D5: =IF(Inputs!K5="",Calculations!C5,IF(Inputs!J5-((1+Inputs!$D$5)^(A5-$A$2))*VLOOKUP((CC5-1),Calculations!$CG$1:$CJ$18,3,FALSE)<0,0,Inputs!J5-((1+Inputs!$D$5)^(A5-$A$2))*VLOOKUP(CC5-1,Calculations!$CG$1:$CJ$18,3,FALSE))) -> 13888.56017 | E5: =IF(Inputs!K5-((1+Inputs!$D$5)^(A5-$A$2))*VLOOKUP((1),Calculations!$CG$1:$CJ$18,3,FALSE)<0,0,Inputs!K5-((1+Inputs!$D$5)^(A5-$A$2))*VLOOKUP(1,Calculations!$CG$1:$CJ$18,3,FALSE)) -> 30738.41051 | F5: =IF(Inputs!J5+Inputs!K5-((1+Inputs!$D$5)^(A5-$A$2))*VLOOKUP(CC5,Calculations!$CG$1:$CJ$18,4,FALSE)<0,0,Inputs!J5+Inputs!K5-((1+Inputs!$D$5)^(A5-$A$2))*VLOOKUP(CC5,Calculations!$CG$1:$CJ$18,4,FALSE)) -> 35513.6275 | G5: =IF(Inputs!K5="",Calculations!F5,IF(Inputs!J5-((1+Inputs!$D$5)^(A5-$A$2))*VLOOKUP((CC5-1),Calculations!$CG$1:$CJ$18,4,FALSE)<0,0,Inputs!J5-((1+Inputs!$D$5)^(A5-$A$2))*VLOOKUP(CC5-1,Calculations!$CG$1:$CJ$18,4,FALSE))) -> 0 | H5: =IF(Inputs!K5-((1+Inputs!$D$5)^(A5-$A$2))*VLOOKUP((1),Calculations!$CG$1:$CJ$18,4,FALSE)<0,0,Inputs!K5-((1+Inputs!$D$5)^(A5-$A$2))*VLOOKUP(1,Calculations!$CG$1:$CJ$18,4,FALSE)) -> 18789.44076 | I5: =IF($A5-Inputs!$D$6>24,"",(Inputs!$D$2/(Inputs!$D$2+Inputs!$D$3)*B5*0.1/12)) -> 250.4166042 | J5: =IF(AND(Inputs!$D$3>=0,Inputs!$P$1=1),IF($A5-Inputs!$D$6>24,"",MIN((Inputs!$D$2/(Inputs!$D$2+Inputs!$D$3))*C5*0.15/12,$Y$2)),IF(Inputs!P4=3,IF($A5-Inputs!$D$6>24,"",MIN(C5*0.15/12,$Y$2)),IF($A5-Inputs!$D$6>24,"",MIN(D5*0.15/12,$Y$2)))) -> 173.6070021 | K5: =IF(AND(Inputs!$D$3>=0,Inputs!$P$1=1),IF($A5-Inputs!$D$6>19,"",MIN((Inputs!$D$2/(Inputs!$D$2+Inputs!$D$3))*C5*0.1/12,$Y$2)),IF(Inputs!P4=3,IF($A5-Inputs!$D$6>19,"",MIN(C5*0.1/12,$Y$2)),IF($A5-Inputs!$D$6>19,"",MIN(D5*0.1/12,$Y$2)))) -> 115.7380014 | L5: =IFERROR(IF(AND(OR(Inputs!$D$3>=0,Inputs!$D$3=""),Inputs!$P$1=1),(Inputs!$D$2/(Inputs!$D$2+Inputs!$D$3))*IF($A5-Inputs!$D$6>IF(Inputs!$D$9=0,19,24),"",F5*((0.1*Inputs!$D$9+0.05*(1-Inputs!$D$9)))/12),IF(Inputs!P4=3,IF($A5-Inputs!$D$6>IF(Inputs!$D$9=0,19,24),"",F5*((0.1*Inputs!$D$9+0.05*(1-Inputs!$D$9)))/12),IF($A5-Inputs!$D$6>IF(Inputs!$D$9=0,19,24),"",G5*((0.1*Inputs!$D$9+0.05*(1-Inputs!$D$9)))/12))),"") -> 0 | M5: 302.9901646 | N5: =IF($A5-Inputs!$D$6>24,"",(Inputs!$D$3/(Inputs!$D$2+Inputs!$D$3)*B5*0.1/12)) -> 250.4166042 | O5: =IF(AND(Inputs!$D$3>0,Inputs!$P$1=1),IF($A5-Inputs!$D$6>24,"",MIN((Inputs!$D$3/(Inputs!$D$2+Inputs!$D$3))*C5*0.15/12,$Z$2)),IF(Inputs!P4=3,(Inputs!$D$3/(Inputs!$D$2+Inputs!$D$3))*IF($A5-Inputs!$D$6>24,"",MIN(C5*0.15/12,$Z$2)),IF($A5-Inputs!$D$6>24,"",MIN(E5*0.15/12,$Z$2)))) -> 384.2301314 | P5: =IF(AND(Inputs!$D$3>0,Inputs!$P$1=1),IF($A5-Inputs!$D$6>19,"",MIN((Inputs!$D$3/(Inputs!$D$2+Inputs!$D$3))*C5*0.1/12,$Z$2)),IF(Inputs!P4=3,(Inputs!$D$3/(Inputs!$D$2+Inputs!$D$3))*IF($A5-Inputs!$D$6>19,"",MIN(C5*0.1/12,$Z$2)),IF($A5-Inputs!$D$6>19,"",MIN(E5*0.1/12,$Z$2)))) -> 256.1534209 | Q5: =IFERROR(IF(OR(Inputs!$D$3=0,Inputs!$D$3=""),0,IF(AND(Inputs!$D$3>0,Inputs!$P$1=1),(Inputs!$D$3/(Inputs!$D$2+Inputs!$D$3))*IF($A5-Inputs!$D$6>IF(Inputs!$D$9=0,19,24),"",F5*((0.1*Inputs!$D$9+0.05*(1-Inputs!$D$9)))/12),IF(Inputs!P4=3,IF($A5-Inputs!$D$6>IF(Inputs!$D$9=0,19,24),"",F5*((0.1*Inputs!$D$9+0.05*(1-Inputs!$D$9)))/12),IF($A5-Inputs!$D$6>IF(Inputs!$D$9=0,19,24),"",H5*((0.1*Inputs!$D$9+0.05*(1-Inputs!$D$9)))/12)))),"") -> 156.578673 | R5: 302.9901646 | S5: 500.8332083 | T5: 557.8371335 | U5: 371.8914223 | V5: 156.578673 | W5: 605.9803293 | X5: 1110.205019 | Y5: =IF(AF5="","",(Inputs!$D$2)*(((Inputs!$D$4/12)*((1+Inputs!$D$4/12)^120))/(((1+Inputs!$D$4/12)^120)-1))) -> 555.1025097 | Z5: =IF(AF5="","",(Inputs!$D$3)*(((Inputs!$D$4/12)*((1+Inputs!$D$4/12)^120))/(((1+Inputs!$D$4/12)^120)-1))) -> 555.1025097 | AA5: =IF(AA4=0,0,IF($A5-Inputs!$D$6>25,"",IF((AA4+IF(AS4<AG4,(AH4-AS4)/2,AG4-AS4))>0,AA4+IF(AS4<AG4,(AH4-AS4)/2,AG4-AS4),0))) -> 100482.9448 | AB5: =IF(AB4=0,0,IF($A5-Inputs!$D$6>25,"",IF(AB4-AT4+AH4>0,AB4-AT4+AH4,0))) -> 99030.9862 | AC5: =IF(AC4=0,0,IF($A5-Inputs!$D$6>20,"",IF(AC4-AU4+AI4>0,AC4-AU4+AI4,0))) -> 105376.7644 | AD5: =IF(AD4=0,0,IF($A5-Inputs!$D$6>IF(Inputs!$D$9=0,20,25),"",IF(AV4<$AD$2*Inputs!$D$4,IF(V4*12>AD4,0,AD4),IF(AD4-AV4+AJ4>0,AD4-AV4+AJ4,0)))) -> 100000 | AE5: 89786.86165 | AF5: 76688.2156 | AG5: =IF(AA5<AS4,0,IF(AA5="","",IF(Calculations!$A5-Inputs!$D$6>24,"",IF(AS5<$AA$2*Inputs!$D$4,$AA$2*Inputs!$D$4-($AA$2*Inputs!$D$4-AS5)/2,MIN($AA$2*Inputs!$D$4,AA5*Inputs!$D$4))))) -> 6000 | AH5: =IF(AB5="","",IF(Calculations!$A5-Inputs!$D$6>24,"",IF(AB5>(Inputs!$D$2+Inputs!$D$3),(Inputs!$D$2+Inputs!$D$3)*Inputs!$D$4,IF(AB5<$X$3*12,0,AB5*Inputs!$D$4)))) -> 5941.859172 | AI5: =IF(AC5="","",IF(Calculations!$A5-Inputs!$D$6>24,"",IF(AC5>(Inputs!$D$2+Inputs!$D$3),(Inputs!$D$2+Inputs!$D$3)*Inputs!$D$4,IF(AC5<$X$3*12,0,AC5*Inputs!$D$4)))) -> 6000 | AJ5: =IF(AD5<AV4,0,IF(AD5="","",IF(Calculations!$A5-Inputs!$D$6>IF(Inputs!$D$9=0,19,24),"",IF(AV5<$AD$2*Inputs!$D$4,MAX(0,AV5),MIN($AD$2*Inputs!$D$4,AD5*Inputs!$D$4))))) -> 1878.944076 | AK5: =IF(AE5="","",IF(AE5<$AW$2,0,IF(AE5>(Inputs!$D$2+Inputs!$D$3),(Inputs!$D$2+Inputs!$D$3)*'Main page'!$N$5,AE5*'Main page'!$N$5))) -> 3591.474466 | AL5: =IF(AF5="","",IF(AF5<$AX$2,0,IF(AF5>(Inputs!$D$2+Inputs!$D$3),(Inputs!$D$2+Inputs!$D$3)*Inputs!$D$4,AF5*Inputs!$D$4))) -> 4601.292936 | AM5: =IFERROR(AG5/AA5,"") -> 0.05971162581 | AN5: 0.06 | AO5: 0.0569385484 | AP5: 0.01878944076 | AQ5: 0.04 | AR5: 0.06 | AS5: =IFERROR(IF(OR(AA5="",AA5=0),"",IF(AA5<S5*12,AA5,S5*12)),"") -> 6009.9985 | AT5: 6694.045602 | AU5: 4462.697068 | AV5: 1878.944076 | AW5: 7271.763952 | AX5: 13322.46023 | AY5: =IF($A5-Inputs!$D$6>19,"",MIN((Inputs!$D$2/(Inputs!$D$2+Inputs!$D$3))*C5*0.1/12,$Y$2)) -> 250.4166042 | AZ5: =IF($A5-Inputs!$D$6>19,"",MIN(D5*0.1/12,$Y$2)) -> 115.7380014 | BA5: =IF($A5-Inputs!$D$6>19,"",MIN((Inputs!$D$3/(Inputs!$D$2+Inputs!$D$3))*C5*0.1/12,$Z$2)) -> 250.4166042 | BB5: =IF($A5-Inputs!$D$6>19,"",MIN(E5*0.1/12,$Z$2)) -> 256.1534209 | BC5: =(Inputs!$D$2/(Inputs!$D$2+Inputs!$D$3))*IF($A5-Inputs!$D$6>IF(Inputs!$D$9=0,19,24),"",F5*((0.1*Inputs!$D$9+0.05*(1-Inputs!$D$9)))/12) -> 147.9734479 | BD5: =IF($A5-Inputs!$D$6>IF(Inputs!$D$9=0,19,24),"",G5*((0.1*Inputs!$D$9+0.05*(1-Inputs!$D$9)))/12) -> 0 | BE5: =(Inputs!$D$3/(Inputs!$D$2+Inputs!$D$3))*IF($A5-Inputs!$D$6>IF(Inputs!$D$9=0,19,24),"",F5*((0.1*Inputs!$D$9+0.05*(1-Inputs!$D$9)))/12) -> 147.9734479 | BF5: =IF(Inputs!$D$3=0,0,1)*IF($A5-Inputs!$D$6>IF(Inputs!$D$9=0,19,24),"",H5*((0.1*Inputs!$D$9+0.05*(1-Inputs!$D$9)))/12) -> 156.578673 | BG5: 500.8332083 | BH5: 295.9468958 | BI5: 371.8914223 | BJ5: 156.578673 | BK5: -128.941786 | BL5: -139.3682228 | BM5: =#REF! ->  | BN5: =IFERROR(((BI5-BG5)+#REF!/12)*12,"") ->  | BO5: =IFERROR(((BJ5-BH5)+#REF!/12)*12,"") ->  | BP5: =IFERROR(AS5/((1+'Main page'!$N$4)^($A5-$A$2)),"") -> 5191.662671 | BQ5: =IFERROR(AU5/((1+'Main page'!$N$4)^($A5-$A$2)),"") -> 3855.045518 | BR5: =IFERROR(AT5/((1+'Main page'!$N$4)^($A5-$A$2)),"") -> 5782.568277 | BS5: =IFERROR(AV5/((1+'Main page'!$N$4)^($A5-$A$2)),"") -> 1623.102539 | BT5: =IF(AW5="","",IFERROR(AW5/((1+'Main page'!$N$4)^($A5-$A$2)),"")) -> 6281.623109 | BU5: =IFERROR(AX5/((1+'Main page'!$N$4)^($A5-$A$2)),"") -> 11508.44205 | BW5: 2027 | BX5: 0 | BY5: 0 | BZ5: 0 | CA5: 0 | CB5: 0 | CC5: =$CC$2+IF(AND(Inputs!$K$2="",Inputs!K5<>""),1,0)+IF(AND(Calculations!$A5>=Inputs!$G$6,Inputs!$G$6<>""),1,0)+IF(AND(Calculations!$A5>=Inputs!$G$7,Inputs!$G$7<>""),1,0)+IF(AND(Calculations!$A5>=Inputs!$G$8,Inputs!$G$8<>""),1,0)+IF(AND(Calculations!$A5>=Inputs!$G$9,Inputs!$G$9<>""),1,0) -> 4 | CD5: =IF(Inputs!$D$6+10>Calculations!$A5,MIN(AT5:AV5),"") -> 1878.944076 | CE5: =IF(Inputs!$D$6+10>Calculations!$A5,MIN(BP5:BS5),"") -> 1623.102539 | CG5: 4 | CH5: 30000 | CI5: 45000 | CJ5: 67500 | CK5: 2027 | CL5: =Inputs!J5+Inputs!K5 -> 109272.7 | CM5: 1092.727 | CN5: 2185.454 | CO5: 3278.181 | CP5: 4370.908 | CQ5: 5463.635 | CR5: 6556.362 | CS5: 7649.089 | CT5: 8741.816 | CU5: 9834.543 | CV5: 10927.27 | CW5: 12019.997 | CX5: 13112.724 | CY5: 14205.451 | CZ5: 15298.178 | DA5: 16390.905 | DB5: 17483.632 | DC5: 18576.359 | DD5: 19669.086 | DE5: 20761.813 | DF5: 21854.54 | DG5: 2027 | DH5: =CM5*(1+'Main page'!$N$4)+DH4*(1+'Main page'!$N$4) -> 4724.8656 | DI5: =CN5*(1+'Main page'!$N$4)+DI4*(1+'Main page'!$N$4) -> 9449.7312 | DJ5: =CO5*(1+'Main page'!$N$4)+DJ4*(1+'Main page'!$N$4) -> 14174.5968 | DK5: =CP5*(1+'Main page'!$N$4)+DK4*(1+'Main page'!$N$4) -> 18899.4624 | DL5: =CQ5*(1+'Main page'!$N$4)+DL4*(1+'Main page'!$N$4) -> 23624.328 | DM5: =CR5*(1+'Main page'!$N$4)+DM4*(1+'Main page'!$N$4) -> 28349.1936 | DN5: =CS5*(1+'Main page'!$N$4)+DN4*(1+'Main page'!$N$4) -> 33074.0592 | DO5: =CT5*(1+'Main page'!$N$4)+DO4*(1+'Main page'!$N$4) -> 37798.9248 | DP5: =CU5*(1+'Main page'!$N$4)+DP4*(1+'Main page'!$N$4) -> 42523.7904 | DQ5: =CV5*(1+'Main page'!$N$4)+DQ4*(1+'Main page'!$N$4) -> 47248.656 | DR5: =CW5*(1+'Main page'!$N$4)+DR4*(1+'Main page'!$N$4) -> 51973.5216 | DS5: =CX5*(1+'Main page'!$N$4)+DS4*(1+'Main page'!$N$4) -> 56698.3872 | DT5: =CY5*(1+'Main page'!$N$4)+DT4*(1+'Main page'!$N$4) -> 61423.2528 | DU5: =CZ5*(1+'Main page'!$N$4)+DU4*(1+'Main page'!$N$4) -> 66148.1184 | DV5: =DA5*(1+'Main page'!$N$4)+DV4*(1+'Main page'!$N$4) -> 70872.984 | DW5: =DB5*(1+'Main page'!$N$4)+DW4*(1+'Main page'!$N$4) -> 75597.8496 | DX5: =DC5*(1+'Main page'!$N$4)+DX4*(1+'Main page'!$N$4) -> 80322.7152 | DY5: =DD5*(1+'Main page'!$N$4)+DY4*(1+'Main page'!$N$4) -> 85047.5808 | DZ5: =DE5*(1+'Main page'!$N$4)+DZ4*(1+'Main page'!$N$4) -> 89772.4464 | EA5: =DF5*(1+'Main page'!$N$4)+EA4*(1+'Main page'!$N$4) -> 94497.312 | EB5: 0.055 | EC5: 0.04084 | ED5: 0.06126 | EE5: 0.1219193836 | EF5: 0.06654694129 | EG5: =Inputs!J5+Inputs!K5 -> 109272.7
A6: 2028 | B6: =IF((SUM(Inputs!J6:K6)-((1+Inputs!$D$5)^(A6-$A$2))*VLOOKUP(Calculations!CC6,Calculations!$CG$1:$CI$9,3,FALSE))<=0,0,(SUM(Inputs!J6:K6)-((1+Inputs!$D$5)^(A6-$A$2))*VLOOKUP(Calculations!CC6,Calculations!$CG$1:$CI$9,3,FALSE))) -> 61902.98455 | C6: =IF(Inputs!J6+Inputs!K6-((1+Inputs!$D$5)^(A6-$A$2))*VLOOKUP(CC6,Calculations!$CG$1:$CJ$18,3,FALSE)<0,0,Inputs!J6+Inputs!K6-((1+Inputs!$D$5)^(A6-$A$2))*VLOOKUP(CC6,Calculations!$CG$1:$CJ$18,3,FALSE)) -> 61902.98455 | D6: =IF(Inputs!K6="",Calculations!C6,IF(Inputs!J6-((1+Inputs!$D$5)^(A6-$A$2))*VLOOKUP((CC6-1),Calculations!$CG$1:$CJ$18,3,FALSE)<0,0,Inputs!J6-((1+Inputs!$D$5)^(A6-$A$2))*VLOOKUP(CC6-1,Calculations!$CG$1:$CJ$18,3,FALSE))) -> 14305.21698 | E6: =IF(Inputs!K6-((1+Inputs!$D$5)^(A6-$A$2))*VLOOKUP((1),Calculations!$CG$1:$CJ$18,3,FALSE)<0,0,Inputs!K6-((1+Inputs!$D$5)^(A6-$A$2))*VLOOKUP(1,Calculations!$CG$1:$CJ$18,3,FALSE)) -> 31660.56283 | F6: =IF(Inputs!J6+Inputs!K6-((1+Inputs!$D$5)^(A6-$A$2))*VLOOKUP(CC6,Calculations!$CG$1:$CJ$18,4,FALSE)<0,0,Inputs!J6+Inputs!K6-((1+Inputs!$D$5)^(A6-$A$2))*VLOOKUP(CC6,Calculations!$CG$1:$CJ$18,4,FALSE)) -> 36579.03632 | G6: =IF(Inputs!K6="",Calculations!F6,IF(Inputs!J6-((1+Inputs!$D$5)^(A6-$A$2))*VLOOKUP((CC6-1),Calculations!$CG$1:$CJ$18,4,FALSE)<0,0,Inputs!J6-((1+Inputs!$D$5)^(A6-$A$2))*VLOOKUP(CC6-1,Calculations!$CG$1:$CJ$18,4,FALSE))) -> 0 | H6: =IF(Inputs!K6-((1+Inputs!$D$5)^(A6-$A$2))*VLOOKUP((1),Calculations!$CG$1:$CJ$18,4,FALSE)<0,0,Inputs!K6-((1+Inputs!$D$5)^(A6-$A$2))*VLOOKUP(1,Calculations!$CG$1:$CJ$18,4,FALSE)) -> 19353.12399 | I6: =IF($A6-Inputs!$D$6>24,"",(Inputs!$D$2/(Inputs!$D$2+Inputs!$D$3)*B6*0.1/12)) -> 257.9291023 | J6: =IF(AND(Inputs!$D$3>=0,Inputs!$P$1=1),IF($A6-Inputs!$D$6>24,"",MIN((Inputs!$D$2/(Inputs!$D$2+Inputs!$D$3))*C6*0.15/12,$Y$2)),IF(Inputs!P5=3,IF($A6-Inputs!$D$6>24,"",MIN(C6*0.15/12,$Y$2)),IF($A6-Inputs!$D$6>24,"",MIN(D6*0.15/12,$Y$2)))) -> 178.8152122 | K6: =IF(AND(Inputs!$D$3>=0,Inputs!$P$1=1),IF($A6-Inputs!$D$6>19,"",MIN((Inputs!$D$2/(Inputs!$D$2+Inputs!$D$3))*C6*0.1/12,$Y$2)),IF(Inputs!P5=3,IF($A6-Inputs!$D$6>19,"",MIN(C6*0.1/12,$Y$2)),IF($A6-Inputs!$D$6>19,"",MIN(D6*0.1/12,$Y$2)))) -> 119.2101415 | L6: =IFERROR(IF(AND(OR(Inputs!$D$3>=0,Inputs!$D$3=""),Inputs!$P$1=1),(Inputs!$D$2/(Inputs!$D$2+Inputs!$D$3))*IF($A6-Inputs!$D$6>IF(Inputs!$D$9=0,19,24),"",F6*((0.1*Inputs!$D$9+0.05*(1-Inputs!$D$9)))/12),IF(Inputs!P5=3,IF($A6-Inputs!$D$6>IF(Inputs!$D$9=0,19,24),"",F6*((0.1*Inputs!$D$9+0.05*(1-Inputs!$D$9)))/12),IF($A6-Inputs!$D$6>IF(Inputs!$D$9=0,19,24),"",G6*((0.1*Inputs!$D$9+0.05*(1-Inputs!$D$9)))/12))),"") -> 0 | M6: 302.9901646 | N6: =IF($A6-Inputs!$D$6>24,"",(Inputs!$D$3/(Inputs!$D$2+Inputs!$D$3)*B6*0.1/12)) -> 257.9291023 | O6: =IF(AND(Inputs!$D$3>0,Inputs!$P$1=1),IF($A6-Inputs!$D$6>24,"",MIN((Inputs!$D$3/(Inputs!$D$2+Inputs!$D$3))*C6*0.15/12,$Z$2)),IF(Inputs!P5=3,(Inputs!$D$3/(Inputs!$D$2+Inputs!$D$3))*IF($A6-Inputs!$D$6>24,"",MIN(C6*0.15/12,$Z$2)),IF($A6-Inputs!$D$6>24,"",MIN(E6*0.15/12,$Z$2)))) -> 395.7570353 | P6: =IF(AND(Inputs!$D$3>0,Inputs!$P$1=1),IF($A6-Inputs!$D$6>19,"",MIN((Inputs!$D$3/(Inputs!$D$2+Inputs!$D$3))*C6*0.1/12,$Z$2)),IF(Inputs!P5=3,(Inputs!$D$3/(Inputs!$D$2+Inputs!$D$3))*IF($A6-Inputs!$D$6>19,"",MIN(C6*0.1/12,$Z$2)),IF($A6-Inputs!$D$6>19,"",MIN(E6*0.1/12,$Z$2)))) -> 263.8380235 | Q6: =IFERROR(IF(OR(Inputs!$D$3=0,Inputs!$D$3=""),0,IF(AND(Inputs!$D$3>0,Inputs!$P$1=1),(Inputs!$D$3/(Inputs!$D$2+Inputs!$D$3))*IF($A6-Inputs!$D$6>IF(Inputs!$D$9=0,19,24),"",F6*((0.1*Inputs!$D$9+0.05*(1-Inputs!$D$9)))/12),IF(Inputs!P5=3,IF($A6-Inputs!$D$6>IF(Inputs!$D$9=0,19,24),"",F6*((0.1*Inputs!$D$9+0.05*(1-Inputs!$D$9)))/12),IF($A6-Inputs!$D$6>IF(Inputs!$D$9=0,19,24),"",H6*((0.1*Inputs!$D$9+0.05*(1-Inputs!$D$9)))/12)))),"") -> 161.2760332 | R6: 302.9901646 | S6: 515.8582046 | T6: 574.5722475 | U6: 383.048165 | V6: 161.2760332 | W6: 605.9803293 | X6: 1110.205019 | Y6: =IF(AF6="","",(Inputs!$D$2)*(((Inputs!$D$4/12)*((1+Inputs!$D$4/12)^120))/(((1+Inputs!$D$4/12)^120)-1))) -> 555.1025097 | Z6: =IF(AF6="","",(Inputs!$D$3)*(((Inputs!$D$4/12)*((1+Inputs!$D$4/12)^120))/(((1+Inputs!$D$4/12)^120)-1))) -> 555.1025097 | AA6: =IF(AA5=0,0,IF($A6-Inputs!$D$6>25,"",IF((AA5+IF(AS5<AG5,(AH5-AS5)/2,AG5-AS5))>0,AA5+IF(AS5<AG5,(AH5-AS5)/2,AG5-AS5),0))) -> 100472.9463 | AB6: =IF(AB5=0,0,IF($A6-Inputs!$D$6>25,"",IF(AB5-AT5+AH5>0,AB5-AT5+AH5,0))) -> 98278.79977 | AC6: =IF(AC5=0,0,IF($A6-Inputs!$D$6>20,"",IF(AC5-AU5+AI5>0,AC5-AU5+AI5,0))) -> 106914.0673 | AD6: =IF(AD5=0,0,IF($A6-Inputs!$D$6>IF(Inputs!$D$9=0,20,25),"",IF(AV5<$AD$2*Inputs!$D$4,IF(V5*12>AD5,0,AD5),IF(AD5-AV5+AJ5>0,AD5-AV5+AJ5,0)))) -> 100000 | AE6: 86106.57216 | AF6: 67967.04831 | AG6: =IF(AA6<AS5,0,IF(AA6="","",IF(Calculations!$A6-Inputs!$D$6>24,"",IF(AS6<$AA$2*Inputs!$D$4,$AA$2*Inputs!$D$4-($AA$2*Inputs!$D$4-AS6)/2,MIN($AA$2*Inputs!$D$4,AA6*Inputs!$D$4))))) -> 6000 | AH6: =IF(AB6="","",IF(Calculations!$A6-Inputs!$D$6>24,"",IF(AB6>(Inputs!$D$2+Inputs!$D$3),(Inputs!$D$2+Inputs!$D$3)*Inputs!$D$4,IF(AB6<$X$3*12,0,AB6*Inputs!$D$4)))) -> 5896.727986 | AI6: =IF(AC6="","",IF(Calculations!$A6-Inputs!$D$6>24,"",IF(AC6>(Inputs!$D$2+Inputs!$D$3),(Inputs!$D$2+Inputs!$D$3)*Inputs!$D$4,IF(AC6<$X$3*12,0,AC6*Inputs!$D$4)))) -> 6000 | AJ6: =IF(AD6<AV5,0,IF(AD6="","",IF(Calculations!$A6-Inputs!$D$6>IF(Inputs!$D$9=0,19,24),"",IF(AV6<$AD$2*Inputs!$D$4,MAX(0,AV6),MIN($AD$2*Inputs!$D$4,AD6*Inputs!$D$4))))) -> 1935.312399 | AK6: =IF(AE6="","",IF(AE6<$AW$2,0,IF(AE6>(Inputs!$D$2+Inputs!$D$3),(Inputs!$D$2+Inputs!$D$3)*'Main page'!$N$5,AE6*'Main page'!$N$5))) -> 3444.262887 | AL6: =IF(AF6="","",IF(AF6<$AX$2,0,IF(AF6>(Inputs!$D$2+Inputs!$D$3),(Inputs!$D$2+Inputs!$D$3)*Inputs!$D$4,AF6*Inputs!$D$4))) -> 4078.022898 | AM6: =IFERROR(AG6/AA6,"") -> 0.05971756797 | AN6: 0.06 | AO6: 0.0561198367 | AP6: 0.01935312399 | AQ6: 0.04 | AR6: 0.06 | AS6: =IFERROR(IF(OR(AA6="",AA6=0),"",IF(AA6<S6*12,AA6,S6*12)),"") -> 6190.298455 | AT6: 6894.86697 | AU6: 4596.57798 | AV6: 1935.312399 | AW6: 7271.763952 | AX6: 13322.46023 | AY6: =IF($A6-Inputs!$D$6>19,"",MIN((Inputs!$D$2/(Inputs!$D$2+Inputs!$D$3))*C6*0.1/12,$Y$2)) -> 257.9291023 | AZ6: =IF($A6-Inputs!$D$6>19,"",MIN(D6*0.1/12,$Y$2)) -> 119.2101415 | BA6: =IF($A6-Inputs!$D$6>19,"",MIN((Inputs!$D$3/(Inputs!$D$2+Inputs!$D$3))*C6*0.1/12,$Z$2)) -> 257.9291023 | BB6: =IF($A6-Inputs!$D$6>19,"",MIN(E6*0.1/12,$Z$2)) -> 263.8380235 | BC6: =(Inputs!$D$2/(Inputs!$D$2+Inputs!$D$3))*IF($A6-Inputs!$D$6>IF(Inputs!$D$9=0,19,24),"",F6*((0.1*Inputs!$D$9+0.05*(1-Inputs!$D$9)))/12) -> 152.4126514 | BD6: =IF($A6-Inputs!$D$6>IF(Inputs!$D$9=0,19,24),"",G6*((0.1*Inputs!$D$9+0.05*(1-Inputs!$D$9)))/12) -> 0 | BE6: =(Inputs!$D$3/(Inputs!$D$2+Inputs!$D$3))*IF($A6-Inputs!$D$6>IF(Inputs!$D$9=0,19,24),"",F6*((0.1*Inputs!$D$9+0.05*(1-Inputs!$D$9)))/12) -> 152.4126514 | BF6: =IF(Inputs!$D$3=0,0,1)*IF($A6-Inputs!$D$6>IF(Inputs!$D$9=0,19,24),"",H6*((0.1*Inputs!$D$9+0.05*(1-Inputs!$D$9)))/12) -> 161.2760332 | BG6: 515.8582046 | BH6: 304.8253027 | BI6: 383.048165 | BJ6: 161.2760332 | BK6: -132.8100396 | BL6: -143.5492695 | BM6: =#REF! ->  | BN6: =IFERROR(((BI6-BG6)+#REF!/12)*12,"") ->  | BO6: =IFERROR(((BJ6-BH6)+#REF!/12)*12,"") ->  | BP6: =IFERROR(AS6/((1+'Main page'!$N$4)^($A6-$A$2)),"") -> 5092.773859 | BQ6: =IFERROR(AU6/((1+'Main page'!$N$4)^($A6-$A$2)),"") -> 3781.61608 | BR6: =IFERROR(AT6/((1+'Main page'!$N$4)^($A6-$A$2)),"") -> 5672.42412 | BS6: =IFERROR(AV6/((1+'Main page'!$N$4)^($A6-$A$2)),"") -> 1592.1863 | BT6: =IF(AW6="","",IFERROR(AW6/((1+'Main page'!$N$4)^($A6-$A$2)),"")) -> 5982.498199 | BU6: =IFERROR(AX6/((1+'Main page'!$N$4)^($A6-$A$2)),"") -> 10960.421 | BW6: 2028 | BX6: 0 | BY6: 0 | BZ6: 0 | CA6: 0 | CB6: 0 | CC6: =$CC$2+IF(AND(Inputs!$K$2="",Inputs!K6<>""),1,0)+IF(AND(Calculations!$A6>=Inputs!$G$6,Inputs!$G$6<>""),1,0)+IF(AND(Calculations!$A6>=Inputs!$G$7,Inputs!$G$7<>""),1,0)+IF(AND(Calculations!$A6>=Inputs!$G$8,Inputs!$G$8<>""),1,0)+IF(AND(Calculations!$A6>=Inputs!$G$9,Inputs!$G$9<>""),1,0) -> 4 | CD6: =IF(Inputs!$D$6+10>Calculations!$A6,MIN(AT6:AV6),"") -> 1935.312399 | CE6: =IF(Inputs!$D$6+10>Calculations!$A6,MIN(BP6:BS6),"") -> 1592.1863 | CG6: 5 | CH6: 35140 | CI6: 52710 | CJ6: 79065 | CK6: 2028 | CL6: =Inputs!J6+Inputs!K6 -> 112550.881 | CM6: 1125.50881 | CN6: 2251.01762 | CO6: 3376.52643 | CP6: 4502.03524 | CQ6: 5627.54405 | CR6: 6753.05286 | CS6: 7878.56167 | CT6: 9004.07048 | CU6: 10129.57929 | CV6: 11255.0881 | CW6: 12380.59691 | CX6: 13506.10572 | CY6: 14631.61453 | CZ6: 15757.12334 | DA6: 16882.63215 | DB6: 18008.14096 | DC6: 19133.64977 | DD6: 20259.15858 | DE6: 21384.66739 | DF6: 22510.1762 | DG6: 2028 | DH6: =CM6*(1+'Main page'!$N$4)+DH5*(1+'Main page'!$N$4) -> 6142.893131 | DI6: =CN6*(1+'Main page'!$N$4)+DI5*(1+'Main page'!$N$4) -> 12285.78626 | DJ6: =CO6*(1+'Main page'!$N$4)+DJ5*(1+'Main page'!$N$4) -> 18428.67939 | DK6: =CP6*(1+'Main page'!$N$4)+DK5*(1+'Main page'!$N$4) -> 24571.57252 | DL6: =CQ6*(1+'Main page'!$N$4)+DL5*(1+'Main page'!$N$4) -> 30714.46565 | DM6: =CR6*(1+'Main page'!$N$4)+DM5*(1+'Main page'!$N$4) -> 36857.35878 | DN6: =CS6*(1+'Main page'!$N$4)+DN5*(1+'Main page'!$N$4) -> 43000.25191 | DO6: =CT6*(1+'Main page'!$N$4)+DO5*(1+'Main page'!$N$4) -> 49143.14504 | DP6: =CU6*(1+'Main page'!$N$4)+DP5*(1+'Main page'!$N$4) -> 55286.03817 | DQ6: =CV6*(1+'Main page'!$N$4)+DQ5*(1+'Main page'!$N$4) -> 61428.93131 | DR6: =CW6*(1+'Main page'!$N$4)+DR5*(1+'Main page'!$N$4) -> 67571.82444 | DS6: =CX6*(1+'Main page'!$N$4)+DS5*(1+'Main page'!$N$4) -> 73714.71757 | DT6: =CY6*(1+'Main page'!$N$4)+DT5*(1+'Main page'!$N$4) -> 79857.6107 | DU6: =CZ6*(1+'Main page'!$N$4)+DU5*(1+'Main page'!$N$4) -> 86000.50383 | DV6: =DA6*(1+'Main page'!$N$4)+DV5*(1+'Main page'!$N$4) -> 92143.39696 | DW6: =DB6*(1+'Main page'!$N$4)+DW5*(1+'Main page'!$N$4) -> 98286.29009 | DX6: =DC6*(1+'Main page'!$N$4)+DX5*(1+'Main page'!$N$4) -> 104429.1832 | DY6: =DD6*(1+'Main page'!$N$4)+DY5*(1+'Main page'!$N$4) -> 110572.0763 | DZ6: =DE6*(1+'Main page'!$N$4)+DZ5*(1+'Main page'!$N$4) -> 116714.9695 | EA6: =DF6*(1+'Main page'!$N$4)+EA5*(1+'Main page'!$N$4) -> 122857.8626 | EB6: 0.055 | EC6: 0.04084 | ED6: 0.06126 | EE6: 0.1183683336 | EF6: 0.06460868086 | EG6: =Inputs!J6+Inputs!K6 -> 112550.881
A7: 2029 | B7: =IF((SUM(Inputs!J7:K7)-((1+Inputs!$D$5)^(A7-$A$2))*VLOOKUP(Calculations!CC7,Calculations!$CG$1:$CI$9,3,FALSE))<=0,0,(SUM(Inputs!J7:K7)-((1+Inputs!$D$5)^(A7-$A$2))*VLOOKUP(Calculations!CC7,Calculations!$CG$1:$CI$9,3,FALSE))) -> 63760.07409 | C7: =IF(Inputs!J7+Inputs!K7-((1+Inputs!$D$5)^(A7-$A$2))*VLOOKUP(CC7,Calculations!$CG$1:$CJ$18,3,FALSE)<0,0,Inputs!J7+Inputs!K7-((1+Inputs!$D$5)^(A7-$A$2))*VLOOKUP(CC7,Calculations!$CG$1:$CJ$18,3,FALSE)) -> 63760.07409 | D7: =IF(Inputs!K7="",Calculations!C7,IF(Inputs!J7-((1+Inputs!$D$5)^(A7-$A$2))*VLOOKUP((CC7-1),Calculations!$CG$1:$CJ$18,3,FALSE)<0,0,Inputs!J7-((1+Inputs!$D$5)^(A7-$A$2))*VLOOKUP(CC7-1,Calculations!$CG$1:$CJ$18,3,FALSE))) -> 14734.37348 | E7: =IF(Inputs!K7-((1+Inputs!$D$5)^(A7-$A$2))*VLOOKUP((1),Calculations!$CG$1:$CJ$18,3,FALSE)<0,0,Inputs!K7-((1+Inputs!$D$5)^(A7-$A$2))*VLOOKUP(1,Calculations!$CG$1:$CJ$18,3,FALSE)) -> 32610.37971 | F7: =IF(Inputs!J7+Inputs!K7-((1+Inputs!$D$5)^(A7-$A$2))*VLOOKUP(CC7,Calculations!$CG$1:$CJ$18,4,FALSE)<0,0,Inputs!J7+Inputs!K7-((1+Inputs!$D$5)^(A7-$A$2))*VLOOKUP(CC7,Calculations!$CG$1:$CJ$18,4,FALSE)) -> 37676.40741 | G7: =IF(Inputs!K7="",Calculations!F7,IF(Inputs!J7-((1+Inputs!$D$5)^(A7-$A$2))*VLOOKUP((CC7-1),Calculations!$CG$1:$CJ$18,4,FALSE)<0,0,Inputs!J7-((1+Inputs!$D$5)^(A7-$A$2))*VLOOKUP(CC7-1,Calculations!$CG$1:$CJ$18,4,FALSE))) -> 0 | H7: =IF(Inputs!K7-((1+Inputs!$D$5)^(A7-$A$2))*VLOOKUP((1),Calculations!$CG$1:$CJ$18,4,FALSE)<0,0,Inputs!K7-((1+Inputs!$D$5)^(A7-$A$2))*VLOOKUP(1,Calculations!$CG$1:$CJ$18,4,FALSE)) -> 19933.71771 | I7: =IF($A7-Inputs!$D$6>24,"",(Inputs!$D$2/(Inputs!$D$2+Inputs!$D$3)*B7*0.1/12)) -> 265.6669754 | J7: =IF(AND(Inputs!$D$3>=0,Inputs!$P$1=1),IF($A7-Inputs!$D$6>24,"",MIN((Inputs!$D$2/(Inputs!$D$2+Inputs!$D$3))*C7*0.15/12,$Y$2)),IF(Inputs!P6=3,IF($A7-Inputs!$D$6>24,"",MIN(C7*0.15/12,$Y$2)),IF($A7-Inputs!$D$6>24,"",MIN(D7*0.15/12,$Y$2)))) -> 184.1796686 | K7: =IF(AND(Inputs!$D$3>=0,Inputs!$P$1=1),IF($A7-Inputs!$D$6>19,"",MIN((Inputs!$D$2/(Inputs!$D$2+Inputs!$D$3))*C7*0.1/12,$Y$2)),IF(Inputs!P6=3,IF($A7-Inputs!$D$6>19,"",MIN(C7*0.1/12,$Y$2)),IF($A7-Inputs!$D$6>19,"",MIN(D7*0.1/12,$Y$2)))) -> 122.7864457 | L7: =IFERROR(IF(AND(OR(Inputs!$D$3>=0,Inputs!$D$3=""),Inputs!$P$1=1),(Inputs!$D$2/(Inputs!$D$2+Inputs!$D$3))*IF($A7-Inputs!$D$6>IF(Inputs!$D$9=0,19,24),"",F7*((0.1*Inputs!$D$9+0.05*(1-Inputs!$D$9)))/12),IF(Inputs!P6=3,IF($A7-Inputs!$D$6>IF(Inputs!$D$9=0,19,24),"",F7*((0.1*Inputs!$D$9+0.05*(1-Inputs!$D$9)))/12),IF($A7-Inputs!$D$6>IF(Inputs!$D$9=0,19,24),"",G7*((0.1*Inputs!$D$9+0.05*(1-Inputs!$D$9)))/12))),"") -> 0 | M7: 302.9901646 | N7: =IF($A7-Inputs!$D$6>24,"",(Inputs!$D$3/(Inputs!$D$2+Inputs!$D$3)*B7*0.1/12)) -> 265.6669754 | O7: =IF(AND(Inputs!$D$3>0,Inputs!$P$1=1),IF($A7-Inputs!$D$6>24,"",MIN((Inputs!$D$3/(Inputs!$D$2+Inputs!$D$3))*C7*0.15/12,$Z$2)),IF(Inputs!P6=3,(Inputs!$D$3/(Inputs!$D$2+Inputs!$D$3))*IF($A7-Inputs!$D$6>24,"",MIN(C7*0.15/12,$Z$2)),IF($A7-Inputs!$D$6>24,"",MIN(E7*0.15/12,$Z$2)))) -> 407.6297464 | P7: =IF(AND(Inputs!$D$3>0,Inputs!$P$1=1),IF($A7-Inputs!$D$6>19,"",MIN((Inputs!$D$3/(Inputs!$D$2+Inputs!$D$3))*C7*0.1/12,$Z$2)),IF(Inputs!P6=3,(Inputs!$D$3/(Inputs!$D$2+Inputs!$D$3))*IF($A7-Inputs!$D$6>19,"",MIN(C7*0.1/12,$Z$2)),IF($A7-Inputs!$D$6>19,"",MIN(E7*0.1/12,$Z$2)))) -> 271.7531643 | Q7: =IFERROR(IF(OR(Inputs!$D$3=0,Inputs!$D$3=""),0,IF(AND(Inputs!$D$3>0,Inputs!$P$1=1),(Inputs!$D$3/(Inputs!$D$2+Inputs!$D$3))*IF($A7-Inputs!$D$6>IF(Inputs!$D$9=0,19,24),"",F7*((0.1*Inputs!$D$9+0.05*(1-Inputs!$D$9)))/12),IF(Inputs!P6=3,IF($A7-Inputs!$D$6>IF(Inputs!$D$9=0,19,24),"",F7*((0.1*Inputs!$D$9+0.05*(1-Inputs!$D$9)))/12),IF($A7-Inputs!$D$6>IF(Inputs!$D$9=0,19,24),"",H7*((0.1*Inputs!$D$9+0.05*(1-Inputs!$D$9)))/12)))),"") -> 166.1143142 | R7: 302.9901646 | S7: 531.3339507 | T7: 591.8094149 | U7: 394.53961 | V7: 166.1143142 | W7: 605.9803293 | X7: 1110.205019 | Y7: =IF(AF7="","",(Inputs!$D$2)*(((Inputs!$D$4/12)*((1+Inputs!$D$4/12)^120))/(((1+Inputs!$D$4/12)^120)-1))) -> 555.1025097 | Z7: =IF(AF7="","",(Inputs!$D$3)*(((Inputs!$D$4/12)*((1+Inputs!$D$4/12)^120))/(((1+Inputs!$D$4/12)^120)-1))) -> 555.1025097 | AA7: =IF(AA6=0,0,IF($A7-Inputs!$D$6>25,"",IF((AA6+IF(AS6<AG6,(AH6-AS6)/2,AG6-AS6))>0,AA6+IF(AS6<AG6,(AH6-AS6)/2,AG6-AS6),0))) -> 100282.6478 | AB7: =IF(AB6=0,0,IF($A7-Inputs!$D$6>25,"",IF(AB6-AT6+AH6>0,AB6-AT6+AH6,0))) -> 97280.66079 | AC7: =IF(AC6=0,0,IF($A7-Inputs!$D$6>20,"",IF(AC6-AU6+AI6>0,AC6-AU6+AI6,0))) -> 108317.4894 | AD7: =IF(AD6=0,0,IF($A7-Inputs!$D$6>IF(Inputs!$D$9=0,20,25),"",IF(AV6<$AD$2*Inputs!$D$4,IF(V6*12>AD6,0,AD6),IF(AD6-AV6+AJ6>0,AD6-AV6+AJ6,0)))) -> 100000 | AE7: 82279.0711 | AF7: 58722.61097 | AG7: =IF(AA7<AS6,0,IF(AA7="","",IF(Calculations!$A7-Inputs!$D$6>24,"",IF(AS7<$AA$2*Inputs!$D$4,$AA$2*Inputs!$D$4-($AA$2*Inputs!$D$4-AS7)/2,MIN($AA$2*Inputs!$D$4,AA7*Inputs!$D$4))))) -> 6000 | AH7: =IF(AB7="","",IF(Calculations!$A7-Inputs!$D$6>24,"",IF(AB7>(Inputs!$D$2+Inputs!$D$3),(Inputs!$D$2+Inputs!$D$3)*Inputs!$D$4,IF(AB7<$X$3*12,0,AB7*Inputs!$D$4)))) -> 5836.839647 | AI7: =IF(AC7="","",IF(Calculations!$A7-Inputs!$D$6>24,"",IF(AC7>(Inputs!$D$2+Inputs!$D$3),(Inputs!$D$2+Inputs!$D$3)*Inputs!$D$4,IF(AC7<$X$3*12,0,AC7*Inputs!$D$4)))) -> 6000 | AJ7: =IF(AD7<AV6,0,IF(AD7="","",IF(Calculations!$A7-Inputs!$D$6>IF(Inputs!$D$9=0,19,24),"",IF(AV7<$AD$2*Inputs!$D$4,MAX(0,AV7),MIN($AD$2*Inputs!$D$4,AD7*Inputs!$D$4))))) -> 1993.371771 | AK7: =IF(AE7="","",IF(AE7<$AW$2,0,IF(AE7>(Inputs!$D$2+Inputs!$D$3),(Inputs!$D$2+Inputs!$D$3)*'Main page'!$N$5,AE7*'Main page'!$N$5))) -> 3291.162844 | AL7: =IF(AF7="","",IF(AF7<$AX$2,0,IF(AF7>(Inputs!$D$2+Inputs!$D$3),(Inputs!$D$2+Inputs!$D$3)*Inputs!$D$4,AF7*Inputs!$D$4))) -> 3523.356658 | AM7: =IFERROR(AG7/AA7,"") -> 0.05983088928 | AN7: 0.06 | AO7: 0.05539271669 | AP7: 0.01993371771 | AQ7: 0.04 | AR7: 0.06 | AS7: =IFERROR(IF(OR(AA7="",AA7=0),"",IF(AA7<S7*12,AA7,S7*12)),"") -> 6376.007409 | AT7: 7101.712979 | AU7: 4734.475319 | AV7: 1993.371771 | AW7: 7271.763952 | AX7: 13322.46023 | AY7: =IF($A7-Inputs!$D$6>19,"",MIN((Inputs!$D$2/(Inputs!$D$2+Inputs!$D$3))*C7*0.1/12,$Y$2)) -> 265.6669754 | AZ7: =IF($A7-Inputs!$D$6>19,"",MIN(D7*0.1/12,$Y$2)) -> 122.7864457 | BA7: =IF($A7-Inputs!$D$6>19,"",MIN((Inputs!$D$3/(Inputs!$D$2+Inputs!$D$3))*C7*0.1/12,$Z$2)) -> 265.6669754 | BB7: =IF($A7-Inputs!$D$6>19,"",MIN(E7*0.1/12,$Z$2)) -> 271.7531643 | BC7: =(Inputs!$D$2/(Inputs!$D$2+Inputs!$D$3))*IF($A7-Inputs!$D$6>IF(Inputs!$D$9=0,19,24),"",F7*((0.1*Inputs!$D$9+0.05*(1-Inputs!$D$9)))/12) -> 156.9850309 | BD7: =IF($A7-Inputs!$D$6>IF(Inputs!$D$9=0,19,24),"",G7*((0.1*Inputs!$D$9+0.05*(1-Inputs!$D$9)))/12) -> 0 | BE7: =(Inputs!$D$3/(Inputs!$D$2+Inputs!$D$3))*IF($A7-Inputs!$D$6>IF(Inputs!$D$9=0,19,24),"",F7*((0.1*Inputs!$D$9+0.05*(1-Inputs!$D$9)))/12) -> 156.9850309 | BF7: =IF(Inputs!$D$3=0,0,1)*IF($A7-Inputs!$D$6>IF(Inputs!$D$9=0,19,24),"",H7*((0.1*Inputs!$D$9+0.05*(1-Inputs!$D$9)))/12) -> 166.1143142 | BG7: 531.3339507 | BH7: 313.9700618 | BI7: 394.53961 | BJ7: 166.1143142 | BK7: -136.7943408 | BL7: -147.8557476 | BM7: =#REF! ->  | BN7: =IFERROR(((BI7-BG7)+#REF!/12)*12,"") ->  | BO7: =IFERROR(((BJ7-BH7)+#REF!/12)*12,"") ->  | BP7: =IFERROR(AS7/((1+'Main page'!$N$4)^($A7-$A$2)),"") -> 4995.768642 | BQ7: =IFERROR(AU7/((1+'Main page'!$N$4)^($A7-$A$2)),"") -> 3709.585297 | BR7: =IFERROR(AT7/((1+'Main page'!$N$4)^($A7-$A$2)),"") -> 5564.377946 | BS7: =IFERROR(AV7/((1+'Main page'!$N$4)^($A7-$A$2)),"") -> 1561.858942 | BT7: =IF(AW7="","",IFERROR(AW7/((1+'Main page'!$N$4)^($A7-$A$2)),"")) -> 5697.617332 | BU7: =IFERROR(AX7/((1+'Main page'!$N$4)^($A7-$A$2)),"") -> 10438.49619 | BW7: 2029 | BX7: 0 | BY7: 0 | BZ7: 0 | CA7: 0 | CB7: 0 | CC7: =$CC$2+IF(AND(Inputs!$K$2="",Inputs!K7<>""),1,0)+IF(AND(Calculations!$A7>=Inputs!$G$6,Inputs!$G$6<>""),1,0)+IF(AND(Calculations!$A7>=Inputs!$G$7,Inputs!$G$7<>""),1,0)+IF(AND(Calculations!$A7>=Inputs!$G$8,Inputs!$G$8<>""),1,0)+IF(AND(Calculations!$A7>=Inputs!$G$9,Inputs!$G$9<>""),1,0) -> 4 | CD7: =IF(Inputs!$D$6+10>Calculations!$A7,MIN(AT7:AV7),"") -> 1993.371771 | CE7: =IF(Inputs!$D$6+10>Calculations!$A7,MIN(BP7:BS7),"") -> 1561.858942 | CG7: 6 | CH7: 40280 | CI7: 60420 | CJ7: 90630 | CK7: 2029 | CL7: =Inputs!J7+Inputs!K7 -> 115927.4074 | CM7: 1159.274074 | CN7: 2318.548149 | CO7: 3477.822223 | CP7: 4637.096297 | CQ7: 5796.370372 | CR7: 6955.644446 | CS7: 8114.91852 | CT7: 9274.192594 | CU7: 10433.46667 | CV7: 11592.74074 | CW7: 12752.01482 | CX7: 13911.28889 | CY7: 15070.56297 | CZ7: 16229.83704 | DA7: 17389.11111 | DB7: 18548.38519 | DC7: 19707.65926 | DD7: 20866.93334 | DE7: 22026.20741 | DF7: 23185.48149 | DG7: 2029 | DH7: =CM7*(1+'Main page'!$N$4)+DH6*(1+'Main page'!$N$4) -> 7667.275565 | DI7: =CN7*(1+'Main page'!$N$4)+DI6*(1+'Main page'!$N$4) -> 15334.55113 | DJ7: =CO7*(1+'Main page'!$N$4)+DJ6*(1+'Main page'!$N$4) -> 23001.8267 | DK7: =CP7*(1+'Main page'!$N$4)+DK6*(1+'Main page'!$N$4) -> 30669.10226 | DL7: =CQ7*(1+'Main page'!$N$4)+DL6*(1+'Main page'!$N$4) -> 38336.37783 | DM7: =CR7*(1+'Main page'!$N$4)+DM6*(1+'Main page'!$N$4) -> 46003.65339 | DN7: =CS7*(1+'Main page'!$N$4)+DN6*(1+'Main page'!$N$4) -> 53670.92896 | DO7: =CT7*(1+'Main page'!$N$4)+DO6*(1+'Main page'!$N$4) -> 61338.20452 | DP7: =CU7*(1+'Main page'!$N$4)+DP6*(1+'Main page'!$N$4) -> 69005.48009 | DQ7: =CV7*(1+'Main page'!$N$4)+DQ6*(1+'Main page'!$N$4) -> 76672.75565 | DR7: =CW7*(1+'Main page'!$N$4)+DR6*(1+'Main page'!$N$4) -> 84340.03122 | DS7: =CX7*(1+'Main page'!$N$4)+DS6*(1+'Main page'!$N$4) -> 92007.30678 | DT7: =CY7*(1+'Main page'!$N$4)+DT6*(1+'Main page'!$N$4) -> 99674.58235 | DU7: =CZ7*(1+'Main page'!$N$4)+DU6*(1+'Main page'!$N$4) -> 107341.8579 | DV7: =DA7*(1+'Main page'!$N$4)+DV6*(1+'Main page'!$N$4) -> 115009.1335 | DW7: =DB7*(1+'Main page'!$N$4)+DW6*(1+'Main page'!$N$4) -> 122676.409 | DX7: =DC7*(1+'Main page'!$N$4)+DX6*(1+'Main page'!$N$4) -> 130343.6846 | DY7: =DD7*(1+'Main page'!$N$4)+DY6*(1+'Main page'!$N$4) -> 138010.9602 | DZ7: =DE7*(1+'Main page'!$N$4)+DZ6*(1+'Main page'!$N$4) -> 145678.2357 | EA7: =DF7*(1+'Main page'!$N$4)+EA6*(1+'Main page'!$N$4) -> 153345.5113 | EB7: 0.055 | EC7: 0.04084 | ED7: 0.06126 | EE7: 0.1149207123 | EF7: 0.06272687463 | EG7: =Inputs!J7+Inputs!K7 -> 115927.4074
A8: 2030 | B8: =IF((SUM(Inputs!J8:K8)-((1+Inputs!$D$5)^(A8-$A$2))*VLOOKUP(Calculations!CC8,Calculations!$CG$1:$CI$9,3,FALSE))<=0,0,(SUM(Inputs!J8:K8)-((1+Inputs!$D$5)^(A8-$A$2))*VLOOKUP(Calculations!CC8,Calculations!$CG$1:$CI$9,3,FALSE))) -> 65672.87631 | C8: =IF(Inputs!J8+Inputs!K8-((1+Inputs!$D$5)^(A8-$A$2))*VLOOKUP(CC8,Calculations!$CG$1:$CJ$18,3,FALSE)<0,0,Inputs!J8+Inputs!K8-((1+Inputs!$D$5)^(A8-$A$2))*VLOOKUP(CC8,Calculations!$CG$1:$CJ$18,3,FALSE)) -> 65672.87631 | D8: =IF(Inputs!K8="",Calculations!C8,IF(Inputs!J8-((1+Inputs!$D$5)^(A8-$A$2))*VLOOKUP((CC8-1),Calculations!$CG$1:$CJ$18,3,FALSE)<0,0,Inputs!J8-((1+Inputs!$D$5)^(A8-$A$2))*VLOOKUP(CC8-1,Calculations!$CG$1:$CJ$18,3,FALSE))) -> 15176.40469 | E8: =IF(Inputs!K8-((1+Inputs!$D$5)^(A8-$A$2))*VLOOKUP((1),Calculations!$CG$1:$CJ$18,3,FALSE)<0,0,Inputs!K8-((1+Inputs!$D$5)^(A8-$A$2))*VLOOKUP(1,Calculations!$CG$1:$CJ$18,3,FALSE)) -> 33588.6911 | F8: =IF(Inputs!J8+Inputs!K8-((1+Inputs!$D$5)^(A8-$A$2))*VLOOKUP(CC8,Calculations!$CG$1:$CJ$18,4,FALSE)<0,0,Inputs!J8+Inputs!K8-((1+Inputs!$D$5)^(A8-$A$2))*VLOOKUP(CC8,Calculations!$CG$1:$CJ$18,4,FALSE)) -> 38806.69964 | G8: =IF(Inputs!K8="",Calculations!F8,IF(Inputs!J8-((1+Inputs!$D$5)^(A8-$A$2))*VLOOKUP((CC8-1),Calculations!$CG$1:$CJ$18,4,FALSE)<0,0,Inputs!J8-((1+Inputs!$D$5)^(A8-$A$2))*VLOOKUP(CC8-1,Calculations!$CG$1:$CJ$18,4,FALSE))) -> 0 | H8: =IF(Inputs!K8-((1+Inputs!$D$5)^(A8-$A$2))*VLOOKUP((1),Calculations!$CG$1:$CJ$18,4,FALSE)<0,0,Inputs!K8-((1+Inputs!$D$5)^(A8-$A$2))*VLOOKUP(1,Calculations!$CG$1:$CJ$18,4,FALSE)) -> 20531.72924 | I8: =IF($A8-Inputs!$D$6>24,"",(Inputs!$D$2/(Inputs!$D$2+Inputs!$D$3)*B8*0.1/12)) -> 273.6369846 | J8: =IF(AND(Inputs!$D$3>=0,Inputs!$P$1=1),IF($A8-Inputs!$D$6>24,"",MIN((Inputs!$D$2/(Inputs!$D$2+Inputs!$D$3))*C8*0.15/12,$Y$2)),IF(Inputs!P7=3,IF($A8-Inputs!$D$6>24,"",MIN(C8*0.15/12,$Y$2)),IF($A8-Inputs!$D$6>24,"",MIN(D8*0.15/12,$Y$2)))) -> 189.7050586 | K8: =IF(AND(Inputs!$D$3>=0,Inputs!$P$1=1),IF($A8-Inputs!$D$6>19,"",MIN((Inputs!$D$2/(Inputs!$D$2+Inputs!$D$3))*C8*0.1/12,$Y$2)),IF(Inputs!P7=3,IF($A8-Inputs!$D$6>19,"",MIN(C8*0.1/12,$Y$2)),IF($A8-Inputs!$D$6>19,"",MIN(D8*0.1/12,$Y$2)))) -> 126.4700391 | L8: =IFERROR(IF(AND(OR(Inputs!$D$3>=0,Inputs!$D$3=""),Inputs!$P$1=1),(Inputs!$D$2/(Inputs!$D$2+Inputs!$D$3))*IF($A8-Inputs!$D$6>IF(Inputs!$D$9=0,19,24),"",F8*((0.1*Inputs!$D$9+0.05*(1-Inputs!$D$9)))/12),IF(Inputs!P7=3,IF($A8-Inputs!$D$6>IF(Inputs!$D$9=0,19,24),"",F8*((0.1*Inputs!$D$9+0.05*(1-Inputs!$D$9)))/12),IF($A8-Inputs!$D$6>IF(Inputs!$D$9=0,19,24),"",G8*((0.1*Inputs!$D$9+0.05*(1-Inputs!$D$9)))/12))),"") -> 0 | M8: 302.9901646 | N8: =IF($A8-Inputs!$D$6>24,"",(Inputs!$D$3/(Inputs!$D$2+Inputs!$D$3)*B8*0.1/12)) -> 273.6369846 | O8: =IF(AND(Inputs!$D$3>0,Inputs!$P$1=1),IF($A8-Inputs!$D$6>24,"",MIN((Inputs!$D$3/(Inputs!$D$2+Inputs!$D$3))*C8*0.15/12,$Z$2)),IF(Inputs!P7=3,(Inputs!$D$3/(Inputs!$D$2+Inputs!$D$3))*IF($A8-Inputs!$D$6>24,"",MIN(C8*0.15/12,$Z$2)),IF($A8-Inputs!$D$6>24,"",MIN(E8*0.15/12,$Z$2)))) -> 419.8586388 | P8: =IF(AND(Inputs!$D$3>0,Inputs!$P$1=1),IF($A8-Inputs!$D$6>19,"",MIN((Inputs!$D$3/(Inputs!$D$2+Inputs!$D$3))*C8*0.1/12,$Z$2)),IF(Inputs!P7=3,(Inputs!$D$3/(Inputs!$D$2+Inputs!$D$3))*IF($A8-Inputs!$D$6>19,"",MIN(C8*0.1/12,$Z$2)),IF($A8-Inputs!$D$6>19,"",MIN(E8*0.1/12,$Z$2)))) -> 279.9057592 | Q8: =IFERROR(IF(OR(Inputs!$D$3=0,Inputs!$D$3=""),0,IF(AND(Inputs!$D$3>0,Inputs!$P$1=1),(Inputs!$D$3/(Inputs!$D$2+Inputs!$D$3))*IF($A8-Inputs!$D$6>IF(Inputs!$D$9=0,19,24),"",F8*((0.1*Inputs!$D$9+0.05*(1-Inputs!$D$9)))/12),IF(Inputs!P7=3,IF($A8-Inputs!$D$6>IF(Inputs!$D$9=0,19,24),"",F8*((0.1*Inputs!$D$9+0.05*(1-Inputs!$D$9)))/12),IF($A8-Inputs!$D$6>IF(Inputs!$D$9=0,19,24),"",H8*((0.1*Inputs!$D$9+0.05*(1-Inputs!$D$9)))/12)))),"") -> 171.0977437 | R8: 302.9901646 | S8: 547.2739692 | T8: 609.5636974 | U8: 406.3757983 | V8: 171.0977437 | W8: 605.9803293 | X8: 1110.205019 | Y8: =IF(AF8="","",(Inputs!$D$2)*(((Inputs!$D$4/12)*((1+Inputs!$D$4/12)^120))/(((1+Inputs!$D$4/12)^120)-1))) -> 555.1025097 | Z8: =IF(AF8="","",(Inputs!$D$3)*(((Inputs!$D$4/12)*((1+Inputs!$D$4/12)^120))/(((1+Inputs!$D$4/12)^120)-1))) -> 555.1025097 | AA8: =IF(AA7=0,0,IF($A8-Inputs!$D$6>25,"",IF((AA7+IF(AS7<AG7,(AH7-AS7)/2,AG7-AS7))>0,AA7+IF(AS7<AG7,(AH7-AS7)/2,AG7-AS7),0))) -> 99906.64044 | AB8: =IF(AB7=0,0,IF($A8-Inputs!$D$6>25,"",IF(AB7-AT7+AH7>0,AB7-AT7+AH7,0))) -> 96015.78745 | AC8: =IF(AC7=0,0,IF($A8-Inputs!$D$6>20,"",IF(AC7-AU7+AI7>0,AC7-AU7+AI7,0))) -> 109583.014 | AD8: =IF(AD7=0,0,IF($A8-Inputs!$D$6>IF(Inputs!$D$9=0,20,25),"",IF(AV7<$AD$2*Inputs!$D$4,IF(V7*12>AD7,0,AD7),IF(AD7-AV7+AJ7>0,AD7-AV7+AJ7,0)))) -> 100000 | AE8: 78298.46999 | AF8: 48923.5074 | AG8: =IF(AA8<AS7,0,IF(AA8="","",IF(Calculations!$A8-Inputs!$D$6>24,"",IF(AS8<$AA$2*Inputs!$D$4,$AA$2*Inputs!$D$4-($AA$2*Inputs!$D$4-AS8)/2,MIN($AA$2*Inputs!$D$4,AA8*Inputs!$D$4))))) -> 5994.398426 | AH8: =IF(AB8="","",IF(Calculations!$A8-Inputs!$D$6>24,"",IF(AB8>(Inputs!$D$2+Inputs!$D$3),(Inputs!$D$2+Inputs!$D$3)*Inputs!$D$4,IF(AB8<$X$3*12,0,AB8*Inputs!$D$4)))) -> 5760.947247 | AI8: =IF(AC8="","",IF(Calculations!$A8-Inputs!$D$6>24,"",IF(AC8>(Inputs!$D$2+Inputs!$D$3),(Inputs!$D$2+Inputs!$D$3)*Inputs!$D$4,IF(AC8<$X$3*12,0,AC8*Inputs!$D$4)))) -> 6000 | AJ8: =IF(AD8<AV7,0,IF(AD8="","",IF(Calculations!$A8-Inputs!$D$6>IF(Inputs!$D$9=0,19,24),"",IF(AV8<$AD$2*Inputs!$D$4,MAX(0,AV8),MIN($AD$2*Inputs!$D$4,AD8*Inputs!$D$4))))) -> 2053.172924 | AK8: =IF(AE8="","",IF(AE8<$AW$2,0,IF(AE8>(Inputs!$D$2+Inputs!$D$3),(Inputs!$D$2+Inputs!$D$3)*'Main page'!$N$5,AE8*'Main page'!$N$5))) -> 3131.9388 | AL8: =IF(AF8="","",IF(AF8<$AX$2,0,IF(AF8>(Inputs!$D$2+Inputs!$D$3),(Inputs!$D$2+Inputs!$D$3)*Inputs!$D$4,AF8*Inputs!$D$4))) -> 2935.410444 | AM8: =IFERROR(AG8/AA8,"") -> 0.06 | AN8: 0.06 | AO8: 0.05475301125 | AP8: 0.02053172924 | AQ8: 0.04 | AR8: 0.06 | AS8: =IFERROR(IF(OR(AA8="",AA8=0),"",IF(AA8<S8*12,AA8,S8*12)),"") -> 6567.287631 | AT8: 7314.764369 | AU8: 4876.509579 | AV8: 2053.172924 | AW8: 7271.763952 | AX8: 13322.46023 | AY8: =IF($A8-Inputs!$D$6>19,"",MIN((Inputs!$D$2/(Inputs!$D$2+Inputs!$D$3))*C8*0.1/12,$Y$2)) -> 273.6369846 | AZ8: =IF($A8-Inputs!$D$6>19,"",MIN(D8*0.1/12,$Y$2)) -> 126.4700391 | BA8: =IF($A8-Inputs!$D$6>19,"",MIN((Inputs!$D$3/(Inputs!$D$2+Inputs!$D$3))*C8*0.1/12,$Z$2)) -> 273.6369846 | BB8: =IF($A8-Inputs!$D$6>19,"",MIN(E8*0.1/12,$Z$2)) -> 279.9057592 | BC8: =(Inputs!$D$2/(Inputs!$D$2+Inputs!$D$3))*IF($A8-Inputs!$D$6>IF(Inputs!$D$9=0,19,24),"",F8*((0.1*Inputs!$D$9+0.05*(1-Inputs!$D$9)))/12) -> 161.6945818 | BD8: =IF($A8-Inputs!$D$6>IF(Inputs!$D$9=0,19,24),"",G8*((0.1*Inputs!$D$9+0.05*(1-Inputs!$D$9)))/12) -> 0 | BE8: =(Inputs!$D$3/(Inputs!$D$2+Inputs!$D$3))*IF($A8-Inputs!$D$6>IF(Inputs!$D$9=0,19,24),"",F8*((0.1*Inputs!$D$9+0.05*(1-Inputs!$D$9)))/12) -> 161.6945818 | BF8: =IF(Inputs!$D$3=0,0,1)*IF($A8-Inputs!$D$6>IF(Inputs!$D$9=0,19,24),"",H8*((0.1*Inputs!$D$9+0.05*(1-Inputs!$D$9)))/12) -> 171.0977437 | BG8: 547.2739692 | BH8: 323.3891636 | BI8: 406.3757983 | BJ8: 171.0977437 | BK8: -140.898171 | BL8: -152.29142 | BM8: =#REF! ->  | BN8: =IFERROR(((BI8-BG8)+#REF!/12)*12,"") ->  | BO8: =IFERROR(((BJ8-BH8)+#REF!/12)*12,"") ->  | BP8: =IFERROR(AS8/((1+'Main page'!$N$4)^($A8-$A$2)),"") -> 4900.611144 | BQ8: =IFERROR(AU8/((1+'Main page'!$N$4)^($A8-$A$2)),"") -> 3638.92653 | BR8: =IFERROR(AT8/((1+'Main page'!$N$4)^($A8-$A$2)),"") -> 5458.389795 | BS8: =IFERROR(AV8/((1+'Main page'!$N$4)^($A8-$A$2)),"") -> 1532.109248 | BT8: =IF(AW8="","",IFERROR(AW8/((1+'Main page'!$N$4)^($A8-$A$2)),"")) -> 5426.302221 | BU8: =IFERROR(AX8/((1+'Main page'!$N$4)^($A8-$A$2)),"") -> 9941.424947 | BW8: 2030 | BX8: 0 | BY8: 0 | BZ8: 0 | CA8: 0 | CB8: 0 | CC8: =$CC$2+IF(AND(Inputs!$K$2="",Inputs!$K$8<>""),1,0)+IF(AND(Calculations!$A8>=Inputs!$G$6,Inputs!$G$6<>""),1,0)+IF(AND(Calculations!$A8>=Inputs!$G$7,Inputs!$G$7<>""),1,0)+IF(AND(Calculations!$A8>=Inputs!$G$8,Inputs!$G$8<>""),1,0)+IF(AND(Calculations!$A8>=Inputs!$G$9,Inputs!$G$9<>""),1,0) -> 4 | CD8: =IF(Inputs!$D$6+10>Calculations!$A8,MIN(AT8:AV8),"") -> 2053.172924 | CE8: =IF(Inputs!$D$6+10>Calculations!$A8,MIN(BP8:BS8),"") -> 1532.109248 | CG8: 7 | CH8: 45420 | CI8: 68130 | CJ8: 102195 | CK8: 2030 | CL8: =Inputs!J8+Inputs!K8 -> 119405.2297 | CM8: 1194.052297 | CN8: 2388.104593 | CO8: 3582.15689 | CP8: 4776.209186 | CQ8: 5970.261483 | CR8: 7164.313779 | CS8: 8358.366076 | CT8: 9552.418372 | CU8: 10746.47067 | CV8: 11940.52297 | CW8: 13134.57526 | CX8: 14328.62756 | CY8: 15522.67985 | CZ8: 16716.73215 | DA8: 17910.78445 | DB8: 19104.83674 | DC8: 20298.88904 | DD8: 21492.94134 | DE8: 22686.99363 | DF8: 23881.04593 | DG8: 2030 | DH8: =CM8*(1+'Main page'!$N$4)+DH7*(1+'Main page'!$N$4) -> 9304.394255 | DI8: =CN8*(1+'Main page'!$N$4)+DI7*(1+'Main page'!$N$4) -> 18608.78851 | DJ8: =CO8*(1+'Main page'!$N$4)+DJ7*(1+'Main page'!$N$4) -> 27913.18276 | DK8: =CP8*(1+'Main page'!$N$4)+DK7*(1+'Main page'!$N$4) -> 37217.57702 | DL8: =CQ8*(1+'Main page'!$N$4)+DL7*(1+'Main page'!$N$4) -> 46521.97127 | DM8: =CR8*(1+'Main page'!$N$4)+DM7*(1+'Main page'!$N$4) -> 55826.36553 | DN8: =CS8*(1+'Main page'!$N$4)+DN7*(1+'Main page'!$N$4) -> 65130.75978 | DO8: =CT8*(1+'Main page'!$N$4)+DO7*(1+'Main page'!$N$4) -> 74435.15404 | DP8: =CU8*(1+'Main page'!$N$4)+DP7*(1+'Main page'!$N$4) -> 83739.54829 | DQ8: =CV8*(1+'Main page'!$N$4)+DQ7*(1+'Main page'!$N$4) -> 93043.94255 | DR8: =CW8*(1+'Main page'!$N$4)+DR7*(1+'Main page'!$N$4) -> 102348.3368 | DS8: =CX8*(1+'Main page'!$N$4)+DS7*(1+'Main page'!$N$4) -> 111652.7311 | DT8: =CY8*(1+'Main page'!$N$4)+DT7*(1+'Main page'!$N$4) -> 120957.1253 | DU8: =CZ8*(1+'Main page'!$N$4)+DU7*(1+'Main page'!$N$4) -> 130261.5196 | DV8: =DA8*(1+'Main page'!$N$4)+DV7*(1+'Main page'!$N$4) -> 139565.9138 | DW8: =DB8*(1+'Main page'!$N$4)+DW7*(1+'Main page'!$N$4) -> 148870.3081 | DX8: =DC8*(1+'Main page'!$N$4)+DX7*(1+'Main page'!$N$4) -> 158174.7023 | DY8: =DD8*(1+'Main page'!$N$4)+DY7*(1+'Main page'!$N$4) -> 167479.0966 | DZ8: =DE8*(1+'Main page'!$N$4)+DZ7*(1+'Main page'!$N$4) -> 176783.4908 | EA8: =DF8*(1+'Main page'!$N$4)+EA7*(1+'Main page'!$N$4) -> 186087.8851 | EB8: 0.055 | EC8: 0.04084 | ED8: 0.06126 | EE8: 0.1115735071 | EF8: 0.06089987828 | EG8: =Inputs!J8+Inputs!K8 -> 119405.2297
A9: 2031 | B9: =IF((SUM(Inputs!J9:K9)-((1+Inputs!$D$5)^(A9-$A$2))*VLOOKUP(Calculations!CC9,Calculations!$CG$1:$CI$9,3,FALSE))<=0,0,(SUM(Inputs!J9:K9)-((1+Inputs!$D$5)^(A9-$A$2))*VLOOKUP(Calculations!CC9,Calculations!$CG$1:$CI$9,3,FALSE))) -> 67643.0626 | C9: =IF(Inputs!J9+Inputs!K9-((1+Inputs!$D$5)^(A9-$A$2))*VLOOKUP(CC9,Calculations!$CG$1:$CJ$18,3,FALSE)<0,0,Inputs!J9+Inputs!K9-((1+Inputs!$D$5)^(A9-$A$2))*VLOOKUP(CC9,Calculations!$CG$1:$CJ$18,3,FALSE)) -> 67643.0626 | D9: =IF(Inputs!K9="",Calculations!C9,IF(Inputs!J9-((1+Inputs!$D$5)^(A9-$A$2))*VLOOKUP((CC9-1),Calculations!$CG$1:$CJ$18,3,FALSE)<0,0,Inputs!J9-((1+Inputs!$D$5)^(A9-$A$2))*VLOOKUP(CC9-1,Calculations!$CG$1:$CJ$18,3,FALSE))) -> 15631.69683 | E9: =IF(Inputs!K9-((1+Inputs!$D$5)^(A9-$A$2))*VLOOKUP((1),Calculations!$CG$1:$CJ$18,3,FALSE)<0,0,Inputs!K9-((1+Inputs!$D$5)^(A9-$A$2))*VLOOKUP(1,Calculations!$CG$1:$CJ$18,3,FALSE)) -> 34596.35183 | F9: =IF(Inputs!J9+Inputs!K9-((1+Inputs!$D$5)^(A9-$A$2))*VLOOKUP(CC9,Calculations!$CG$1:$CJ$18,4,FALSE)<0,0,Inputs!J9+Inputs!K9-((1+Inputs!$D$5)^(A9-$A$2))*VLOOKUP(CC9,Calculations!$CG$1:$CJ$18,4,FALSE)) -> 39970.90063 | G9: =IF(Inputs!K9="",Calculations!F9,IF(Inputs!J9-((1+Inputs!$D$5)^(A9-$A$2))*VLOOKUP((CC9-1),Calculations!$CG$1:$CJ$18,4,FALSE)<0,0,Inputs!J9-((1+Inputs!$D$5)^(A9-$A$2))*VLOOKUP(CC9-1,Calculations!$CG$1:$CJ$18,4,FALSE))) -> 0 | H9: =IF(Inputs!K9-((1+Inputs!$D$5)^(A9-$A$2))*VLOOKUP((1),Calculations!$CG$1:$CJ$18,4,FALSE)<0,0,Inputs!K9-((1+Inputs!$D$5)^(A9-$A$2))*VLOOKUP(1,Calculations!$CG$1:$CJ$18,4,FALSE)) -> 21147.68112 | I9: =IF($A9-Inputs!$D$6>24,"",(Inputs!$D$2/(Inputs!$D$2+Inputs!$D$3)*B9*0.1/12)) -> 281.8460942 | J9: =IF(AND(Inputs!$D$3>=0,Inputs!$P$1=1),IF($A9-Inputs!$D$6>24,"",MIN((Inputs!$D$2/(Inputs!$D$2+Inputs!$D$3))*C9*0.15/12,$Y$2)),IF(Inputs!P8=3,IF($A9-Inputs!$D$6>24,"",MIN(C9*0.15/12,$Y$2)),IF($A9-Inputs!$D$6>24,"",MIN(D9*0.15/12,$Y$2)))) -> 195.3962104 | K9: =IF(AND(Inputs!$D$3>=0,Inputs!$P$1=1),IF($A9-Inputs!$D$6>19,"",MIN((Inputs!$D$2/(Inputs!$D$2+Inputs!$D$3))*C9*0.1/12,$Y$2)),IF(Inputs!P8=3,IF($A9-Inputs!$D$6>19,"",MIN(C9*0.1/12,$Y$2)),IF($A9-Inputs!$D$6>19,"",MIN(D9*0.1/12,$Y$2)))) -> 130.2641402 | L9: =IFERROR(IF(AND(OR(Inputs!$D$3>=0,Inputs!$D$3=""),Inputs!$P$1=1),(Inputs!$D$2/(Inputs!$D$2+Inputs!$D$3))*IF($A9-Inputs!$D$6>IF(Inputs!$D$9=0,19,24),"",F9*((0.1*Inputs!$D$9+0.05*(1-Inputs!$D$9)))/12),IF(Inputs!P8=3,IF($A9-Inputs!$D$6>IF(Inputs!$D$9=0,19,24),"",F9*((0.1*Inputs!$D$9+0.05*(1-Inputs!$D$9)))/12),IF($A9-Inputs!$D$6>IF(Inputs!$D$9=0,19,24),"",G9*((0.1*Inputs!$D$9+0.05*(1-Inputs!$D$9)))/12))),"") -> 0 | M9: 302.9901646 | N9: =IF($A9-Inputs!$D$6>24,"",(Inputs!$D$3/(Inputs!$D$2+Inputs!$D$3)*B9*0.1/12)) -> 281.8460942 | O9: =IF(AND(Inputs!$D$3>0,Inputs!$P$1=1),IF($A9-Inputs!$D$6>24,"",MIN((Inputs!$D$3/(Inputs!$D$2+Inputs!$D$3))*C9*0.15/12,$Z$2)),IF(Inputs!P8=3,(Inputs!$D$3/(Inputs!$D$2+Inputs!$D$3))*IF($A9-Inputs!$D$6>24,"",MIN(C9*0.15/12,$Z$2)),IF($A9-Inputs!$D$6>24,"",MIN(E9*0.15/12,$Z$2)))) -> 432.4543979 | P9: =IF(AND(Inputs!$D$3>0,Inputs!$P$1=1),IF($A9-Inputs!$D$6>19,"",MIN((Inputs!$D$3/(Inputs!$D$2+Inputs!$D$3))*C9*0.1/12,$Z$2)),IF(Inputs!P8=3,(Inputs!$D$3/(Inputs!$D$2+Inputs!$D$3))*IF($A9-Inputs!$D$6>19,"",MIN(C9*0.1/12,$Z$2)),IF($A9-Inputs!$D$6>19,"",MIN(E9*0.1/12,$Z$2)))) -> 288.302932 | Q9: =IFERROR(IF(OR(Inputs!$D$3=0,Inputs!$D$3=""),0,IF(AND(Inputs!$D$3>0,Inputs!$P$1=1),(Inputs!$D$3/(Inputs!$D$2+Inputs!$D$3))*IF($A9-Inputs!$D$6>IF(Inputs!$D$9=0,19,24),"",F9*((0.1*Inputs!$D$9+0.05*(1-Inputs!$D$9)))/12),IF(Inputs!P8=3,IF($A9-Inputs!$D$6>IF(Inputs!$D$9=0,19,24),"",F9*((0.1*Inputs!$D$9+0.05*(1-Inputs!$D$9)))/12),IF($A9-Inputs!$D$6>IF(Inputs!$D$9=0,19,24),"",H9*((0.1*Inputs!$D$9+0.05*(1-Inputs!$D$9)))/12)))),"") -> 176.230676 | R9: 302.9901646 | S9: 563.6921883 | T9: 627.8506083 | U9: 418.5670722 | V9: 176.230676 | W9: 605.9803293 | X9: 1110.205019 | Y9: =IF(AF9="","",(Inputs!$D$2)*(((Inputs!$D$4/12)*((1+Inputs!$D$4/12)^120))/(((1+Inputs!$D$4/12)^120)-1))) -> 555.1025097 | Z9: =IF(AF9="","",(Inputs!$D$3)*(((Inputs!$D$4/12)*((1+Inputs!$D$4/12)^120))/(((1+Inputs!$D$4/12)^120)-1))) -> 555.1025097 | AA9: =IF(AA8=0,0,IF($A9-Inputs!$D$6>25,"",IF((AA8+IF(AS8<AG8,(AH8-AS8)/2,AG8-AS8))>0,AA8+IF(AS8<AG8,(AH8-AS8)/2,AG8-AS8),0))) -> 99333.75123 | AB9: =IF(AB8=0,0,IF($A9-Inputs!$D$6>25,"",IF(AB8-AT8+AH8>0,AB8-AT8+AH8,0))) -> 94461.97033 | AC9: =IF(AC8=0,0,IF($A9-Inputs!$D$6>20,"",IF(AC8-AU8+AI8>0,AC8-AU8+AI8,0))) -> 110706.5045 | AD9: =IF(AD8=0,0,IF($A9-Inputs!$D$6>IF(Inputs!$D$9=0,20,25),"",IF(AV8<$AD$2*Inputs!$D$4,IF(V8*12>AD8,0,AD8),IF(AD8-AV8+AJ8>0,AD8-AV8+AJ8,0)))) -> 100000 | AE9: 74158.64484 | AF9: 38536.45761 | AG9: =IF(AA9<AS8,0,IF(AA9="","",IF(Calculations!$A9-Inputs!$D$6>24,"",IF(AS9<$AA$2*Inputs!$D$4,$AA$2*Inputs!$D$4-($AA$2*Inputs!$D$4-AS9)/2,MIN($AA$2*Inputs!$D$4,AA9*Inputs!$D$4))))) -> 5960.025074 | AH9: =IF(AB9="","",IF(Calculations!$A9-Inputs!$D$6>24,"",IF(AB9>(Inputs!$D$2+Inputs!$D$3),(Inputs!$D$2+Inputs!$D$3)*Inputs!$D$4,IF(AB9<$X$3*12,0,AB9*Inputs!$D$4)))) -> 5667.71822 | AI9: =IF(AC9="","",IF(Calculations!$A9-Inputs!$D$6>24,"",IF(AC9>(Inputs!$D$2+Inputs!$D$3),(Inputs!$D$2+Inputs!$D$3)*Inputs!$D$4,IF(AC9<$X$3*12,0,AC9*Inputs!$D$4)))) -> 6000 | AJ9: =IF(AD9<AV8,0,IF(AD9="","",IF(Calculations!$A9-Inputs!$D$6>IF(Inputs!$D$9=0,19,24),"",IF(AV9<$AD$2*Inputs!$D$4,MAX(0,AV9),MIN($AD$2*Inputs!$D$4,AD9*Inputs!$D$4))))) -> 2114.768112 | AK9: =IF(AE9="","",IF(AE9<$AW$2,0,IF(AE9>(Inputs!$D$2+Inputs!$D$3),(Inputs!$D$2+Inputs!$D$3)*'Main page'!$N$5,AE9*'Main page'!$N$5))) -> 2966.345794 | AL9: =IF(AF9="","",IF(AF9<$AX$2,0,IF(AF9>(Inputs!$D$2+Inputs!$D$3),(Inputs!$D$2+Inputs!$D$3)*Inputs!$D$4,AF9*Inputs!$D$4))) -> 2312.187456 | AM9: =IFERROR(AG9/AA9,"") -> 0.06 | AN9: 0.06 | AO9: 0.05419735751 | AP9: 0.02114768112 | AQ9: 0.04 | AR9: 0.06 | AS9: =IFERROR(IF(OR(AA9="",AA9=0),"",IF(AA9<S9*12,AA9,S9*12)),"") -> 6764.30626 | AT9: 7534.2073 | AU9: 5022.804866 | AV9: 2114.768112 | AW9: 7271.763952 | AX9: 13322.46023 | AY9: =IF($A9-Inputs!$D$6>19,"",MIN((Inputs!$D$2/(Inputs!$D$2+Inputs!$D$3))*C9*0.1/12,$Y$2)) -> 281.8460942 | AZ9: =IF($A9-Inputs!$D$6>19,"",MIN(D9*0.1/12,$Y$2)) -> 130.2641402 | BA9: =IF($A9-Inputs!$D$6>19,"",MIN((Inputs!$D$3/(Inputs!$D$2+Inputs!$D$3))*C9*0.1/12,$Z$2)) -> 281.8460942 | BB9: =IF($A9-Inputs!$D$6>19,"",MIN(E9*0.1/12,$Z$2)) -> 288.302932 | BC9: =(Inputs!$D$2/(Inputs!$D$2+Inputs!$D$3))*IF($A9-Inputs!$D$6>IF(Inputs!$D$9=0,19,24),"",F9*((0.1*Inputs!$D$9+0.05*(1-Inputs!$D$9)))/12) -> 166.5454193 | BD9: =IF($A9-Inputs!$D$6>IF(Inputs!$D$9=0,19,24),"",G9*((0.1*Inputs!$D$9+0.05*(1-Inputs!$D$9)))/12) -> 0 | BE9: =(Inputs!$D$3/(Inputs!$D$2+Inputs!$D$3))*IF($A9-Inputs!$D$6>IF(Inputs!$D$9=0,19,24),"",F9*((0.1*Inputs!$D$9+0.05*(1-Inputs!$D$9)))/12) -> 166.5454193 | BF9: =IF(Inputs!$D$3=0,0,1)*IF($A9-Inputs!$D$6>IF(Inputs!$D$9=0,19,24),"",H9*((0.1*Inputs!$D$9+0.05*(1-Inputs!$D$9)))/12) -> 176.230676 | BG9: 563.6921883 | BH9: 333.0908386 | BI9: 418.5670722 | BJ9: 176.230676 | BK9: -145.1251161 | BL9: -156.8601626 | BM9: =#REF! ->  | BN9: =IFERROR(((BI9-BG9)+#REF!/12)*12,"") ->  | BO9: =IFERROR(((BJ9-BH9)+#REF!/12)*12,"") ->  | BP9: =IFERROR(AS9/((1+'Main page'!$N$4)^($A9-$A$2)),"") -> 4807.26617 | BQ9: =IFERROR(AU9/((1+'Main page'!$N$4)^($A9-$A$2)),"") -> 3569.613643 | BR9: =IFERROR(AT9/((1+'Main page'!$N$4)^($A9-$A$2)),"") -> 5354.420465 | BS9: =IFERROR(AV9/((1+'Main page'!$N$4)^($A9-$A$2)),"") -> 1502.926214 | BT9: =IF(AW9="","",IFERROR(AW9/((1+'Main page'!$N$4)^($A9-$A$2)),"")) -> 5167.906878 | BU9: =IFERROR(AX9/((1+'Main page'!$N$4)^($A9-$A$2)),"") -> 9468.023759 | BW9: 2031 | BX9: 0 | BY9: 0 | BZ9: 0 | CA9: 0 | CB9: 0 | CC9: =$CC$2+IF(AND(Inputs!$K$2="",Inputs!$K$8<>""),1,0)+IF(AND(Calculations!$A9>=Inputs!$G$6,Inputs!$G$6<>""),1,0)+IF(AND(Calculations!$A9>=Inputs!$G$7,Inputs!$G$7<>""),1,0)+IF(AND(Calculations!$A9>=Inputs!$G$8,Inputs!$G$8<>""),1,0)+IF(AND(Calculations!$A9>=Inputs!$G$9,Inputs!$G$9<>""),1,0) -> 4 | CD9: =IF(Inputs!$D$6+10>Calculations!$A9,MIN(AT9:AV9),"") -> 2114.768112 | CE9: =IF(Inputs!$D$6+10>Calculations!$A9,MIN(BP9:BS9),"") -> 1502.926214 | CG9: 8 | CH9: 50560 | CI9: 75840 | CJ9: 113760 | CK9: 2031 | CL9: =Inputs!J9+Inputs!K9 -> 122987.3865 | CM9: 1229.873865 | CN9: 2459.747731 | CO9: 3689.621596 | CP9: 4919.495462 | CQ9: 6149.369327 | CR9: 7379.243193 | CS9: 8609.117058 | CT9: 9838.990923 | CU9: 11068.86479 | CV9: 12298.73865 | CW9: 13528.61252 | CX9: 14758.48639 | CY9: 15988.36025 | CZ9: 17218.23412 | DA9: 18448.10798 | DB9: 19677.98185 | DC9: 20907.85571 | DD9: 22137.72958 | DE9: 23367.60344 | DF9: 24597.47731 | DG9: 2031 | DH9: =CM9*(1+'Main page'!$N$4)+DH8*(1+'Main page'!$N$4) -> 11060.98153 | DI9: =CN9*(1+'Main page'!$N$4)+DI8*(1+'Main page'!$N$4) -> 22121.96305 | DJ9: =CO9*(1+'Main page'!$N$4)+DJ8*(1+'Main page'!$N$4) -> 33182.94458 | DK9: =CP9*(1+'Main page'!$N$4)+DK8*(1+'Main page'!$N$4) -> 44243.9261 | DL9: =CQ9*(1+'Main page'!$N$4)+DL8*(1+'Main page'!$N$4) -> 55304.90763 | DM9: =CR9*(1+'Main page'!$N$4)+DM8*(1+'Main page'!$N$4) -> 66365.88916 | DN9: =CS9*(1+'Main page'!$N$4)+DN8*(1+'Main page'!$N$4) -> 77426.87068 | DO9: =CT9*(1+'Main page'!$N$4)+DO8*(1+'Main page'!$N$4) -> 88487.85221 | DP9: =CU9*(1+'Main page'!$N$4)+DP8*(1+'Main page'!$N$4) -> 99548.83373 | DQ9: =CV9*(1+'Main page'!$N$4)+DQ8*(1+'Main page'!$N$4) -> 110609.8153 | DR9: =CW9*(1+'Main page'!$N$4)+DR8*(1+'Main page'!$N$4) -> 121670.7968 | DS9: =CX9*(1+'Main page'!$N$4)+DS8*(1+'Main page'!$N$4) -> 132731.7783 | DT9: =CY9*(1+'Main page'!$N$4)+DT8*(1+'Main page'!$N$4) -> 143792.7598 | DU9: =CZ9*(1+'Main page'!$N$4)+DU8*(1+'Main page'!$N$4) -> 154853.7414 | DV9: =DA9*(1+'Main page'!$N$4)+DV8*(1+'Main page'!$N$4) -> 165914.7229 | DW9: =DB9*(1+'Main page'!$N$4)+DW8*(1+'Main page'!$N$4) -> 176975.7044 | DX9: =DC9*(1+'Main page'!$N$4)+DX8*(1+'Main page'!$N$4) -> 188036.6859 | DY9: =DD9*(1+'Main page'!$N$4)+DY8*(1+'Main page'!$N$4) -> 199097.6675 | DZ9: =DE9*(1+'Main page'!$N$4)+DZ8*(1+'Main page'!$N$4) -> 210158.649 | EA9: =DF9*(1+'Main page'!$N$4)+EA8*(1+'Main page'!$N$4) -> 221219.6305 | EB9: 0.055 | EC9: 0.04084 | ED9: 0.06126 | EE9: 0.1083237933 | EF9: 0.05912609542 | EG9: =Inputs!J9+Inputs!K9 -> 122987.3865
A10: 2032 | B10: =IF((SUM(Inputs!J10:K10)-((1+Inputs!$D$5)^(A10-$A$2))*VLOOKUP(Calculations!CC10,Calculations!$CG$1:$CI$9,3,FALSE))<=0,0,(SUM(Inputs!J10:K10)-((1+Inputs!$D$5)^(A10-$A$2))*VLOOKUP(Calculations!CC10,Calculations!$CG$1:$CI$9,3,FALSE))) -> 69672.35448 | C10: =IF(Inputs!J10+Inputs!K10-((1+Inputs!$D$5)^(A10-$A$2))*VLOOKUP(CC10,Calculations!$CG$1:$CJ$18,3,FALSE)<0,0,Inputs!J10+Inputs!K10-((1+Inputs!$D$5)^(A10-$A$2))*VLOOKUP(CC10,Calculations!$CG$1:$CJ$18,3,FALSE)) -> 69672.35448 | D10: =IF(Inputs!K10="",Calculations!C10,IF(Inputs!J10-((1+Inputs!$D$5)^(A10-$A$2))*VLOOKUP((CC10-1),Calculations!$CG$1:$CJ$18,3,FALSE)<0,0,Inputs!J10-((1+Inputs!$D$5)^(A10-$A$2))*VLOOKUP(CC10-1,Calculations!$CG$1:$CJ$18,3,FALSE))) -> 16100.64773 | E10: =IF(Inputs!K10-((1+Inputs!$D$5)^(A10-$A$2))*VLOOKUP((1),Calculations!$CG$1:$CJ$18,3,FALSE)<0,0,Inputs!K10-((1+Inputs!$D$5)^(A10-$A$2))*VLOOKUP(1,Calculations!$CG$1:$CJ$18,3,FALSE)) -> 35634.24239 | F10: =IF(Inputs!J10+Inputs!K10-((1+Inputs!$D$5)^(A10-$A$2))*VLOOKUP(CC10,Calculations!$CG$1:$CJ$18,4,FALSE)<0,0,Inputs!J10+Inputs!K10-((1+Inputs!$D$5)^(A10-$A$2))*VLOOKUP(CC10,Calculations!$CG$1:$CJ$18,4,FALSE)) -> 41170.02765 | G10: =IF(Inputs!K10="",Calculations!F10,IF(Inputs!J10-((1+Inputs!$D$5)^(A10-$A$2))*VLOOKUP((CC10-1),Calculations!$CG$1:$CJ$18,4,FALSE)<0,0,Inputs!J10-((1+Inputs!$D$5)^(A10-$A$2))*VLOOKUP(CC10-1,Calculations!$CG$1:$CJ$18,4,FALSE))) -> 0 | H10: =IF(Inputs!K10-((1+Inputs!$D$5)^(A10-$A$2))*VLOOKUP((1),Calculations!$CG$1:$CJ$18,4,FALSE)<0,0,Inputs!K10-((1+Inputs!$D$5)^(A10-$A$2))*VLOOKUP(1,Calculations!$CG$1:$CJ$18,4,FALSE)) -> 21782.11155 | I10: =IF($A10-Inputs!$D$6>24,"",(Inputs!$D$2/(Inputs!$D$2+Inputs!$D$3)*B10*0.1/12)) -> 290.301477 | J10: =IF(AND(Inputs!$D$3>=0,Inputs!$P$1=1),IF($A10-Inputs!$D$6>24,"",MIN((Inputs!$D$2/(Inputs!$D$2+Inputs!$D$3))*C10*0.15/12,$Y$2)),IF(Inputs!P9=3,IF($A10-Inputs!$D$6>24,"",MIN(C10*0.15/12,$Y$2)),IF($A10-Inputs!$D$6>24,"",MIN(D10*0.15/12,$Y$2)))) -> 201.2580967 | K10: =IF(AND(Inputs!$D$3>=0,Inputs!$P$1=1),IF($A10-Inputs!$D$6>19,"",MIN((Inputs!$D$2/(Inputs!$D$2+Inputs!$D$3))*C10*0.1/12,$Y$2)),IF(Inputs!P9=3,IF($A10-Inputs!$D$6>19,"",MIN(C10*0.1/12,$Y$2)),IF($A10-Inputs!$D$6>19,"",MIN(D10*0.1/12,$Y$2)))) -> 134.1720645 | L10: =IFERROR(IF(AND(OR(Inputs!$D$3>=0,Inputs!$D$3=""),Inputs!$P$1=1),(Inputs!$D$2/(Inputs!$D$2+Inputs!$D$3))*IF($A10-Inputs!$D$6>IF(Inputs!$D$9=0,19,24),"",F10*((0.1*Inputs!$D$9+0.05*(1-Inputs!$D$9)))/12),IF(Inputs!P9=3,IF($A10-Inputs!$D$6>IF(Inputs!$D$9=0,19,24),"",F10*((0.1*Inputs!$D$9+0.05*(1-Inputs!$D$9)))/12),IF($A10-Inputs!$D$6>IF(Inputs!$D$9=0,19,24),"",G10*((0.1*Inputs!$D$9+0.05*(1-Inputs!$D$9)))/12))),"") -> 0 | M10: 302.9901646 | N10: =IF($A10-Inputs!$D$6>24,"",(Inputs!$D$3/(Inputs!$D$2+Inputs!$D$3)*B10*0.1/12)) -> 290.301477 | O10: =IF(AND(Inputs!$D$3>0,Inputs!$P$1=1),IF($A10-Inputs!$D$6>24,"",MIN((Inputs!$D$3/(Inputs!$D$2+Inputs!$D$3))*C10*0.15/12,$Z$2)),IF(Inputs!P9=3,(Inputs!$D$3/(Inputs!$D$2+Inputs!$D$3))*IF($A10-Inputs!$D$6>24,"",MIN(C10*0.15/12,$Z$2)),IF($A10-Inputs!$D$6>24,"",MIN(E10*0.15/12,$Z$2)))) -> 445.4280299 | P10: =IF(AND(Inputs!$D$3>0,Inputs!$P$1=1),IF($A10-Inputs!$D$6>19,"",MIN((Inputs!$D$3/(Inputs!$D$2+Inputs!$D$3))*C10*0.1/12,$Z$2)),IF(Inputs!P9=3,(Inputs!$D$3/(Inputs!$D$2+Inputs!$D$3))*IF($A10-Inputs!$D$6>19,"",MIN(C10*0.1/12,$Z$2)),IF($A10-Inputs!$D$6>19,"",MIN(E10*0.1/12,$Z$2)))) -> 296.9520199 | Q10: =IFERROR(IF(OR(Inputs!$D$3=0,Inputs!$D$3=""),0,IF(AND(Inputs!$D$3>0,Inputs!$P$1=1),(Inputs!$D$3/(Inputs!$D$2+Inputs!$D$3))*IF($A10-Inputs!$D$6>IF(Inputs!$D$9=0,19,24),"",F10*((0.1*Inputs!$D$9+0.05*(1-Inputs!$D$9)))/12),IF(Inputs!P9=3,IF($A10-Inputs!$D$6>IF(Inputs!$D$9=0,19,24),"",F10*((0.1*Inputs!$D$9+0.05*(1-Inputs!$D$9)))/12),IF($A10-Inputs!$D$6>IF(Inputs!$D$9=0,19,24),"",H10*((0.1*Inputs!$D$9+0.05*(1-Inputs!$D$9)))/12)))),"") -> 181.5175962 | R10: 302.9901646 | S10: 580.602954 | T10: 646.6861265 | U10: 431.1240844 | V10: 181.5175962 | W10: 605.9803293 | X10: 1110.205019 | Y10: =IF(AF10="","",(Inputs!$D$2)*(((Inputs!$D$4/12)*((1+Inputs!$D$4/12)^120))/(((1+Inputs!$D$4/12)^120)-1))) -> 555.1025097 | Z10: =IF(AF10="","",(Inputs!$D$3)*(((Inputs!$D$4/12)*((1+Inputs!$D$4/12)^120))/(((1+Inputs!$D$4/12)^120)-1))) -> 555.1025097 | AA10: =IF(AA9=0,0,IF($A10-Inputs!$D$6>25,"",IF((AA9+IF(AS9<AG9,(AH9-AS9)/2,AG9-AS9))>0,AA9+IF(AS9<AG9,(AH9-AS9)/2,AG9-AS9),0))) -> 98529.47005 | AB10: =IF(AB9=0,0,IF($A10-Inputs!$D$6>25,"",IF(AB9-AT9+AH9>0,AB9-AT9+AH9,0))) -> 92595.48125 | AC10: =IF(AC9=0,0,IF($A10-Inputs!$D$6>20,"",IF(AC9-AU9+AI9>0,AC9-AU9+AI9,0))) -> 111683.6996 | AD10: =IF(AD9=0,0,IF($A10-Inputs!$D$6>IF(Inputs!$D$9=0,20,25),"",IF(AV9<$AD$2*Inputs!$D$4,IF(V9*12>AD9,0,AD9),IF(AD9-AV9+AJ9>0,AD9-AV9+AJ9,0)))) -> 100000 | AE10: 69853.22668 | AF10: 27526.18483 | AG10: =IF(AA10<AS9,0,IF(AA10="","",IF(Calculations!$A10-Inputs!$D$6>24,"",IF(AS10<$AA$2*Inputs!$D$4,$AA$2*Inputs!$D$4-($AA$2*Inputs!$D$4-AS10)/2,MIN($AA$2*Inputs!$D$4,AA10*Inputs!$D$4))))) -> 5911.768203 | AH10: =IF(AB10="","",IF(Calculations!$A10-Inputs!$D$6>24,"",IF(AB10>(Inputs!$D$2+Inputs!$D$3),(Inputs!$D$2+Inputs!$D$3)*Inputs!$D$4,IF(AB10<$X$3*12,0,AB10*Inputs!$D$4)))) -> 5555.728875 | AI10: =IF(AC10="","",IF(Calculations!$A10-Inputs!$D$6>24,"",IF(AC10>(Inputs!$D$2+Inputs!$D$3),(Inputs!$D$2+Inputs!$D$3)*Inputs!$D$4,IF(AC10<$X$3*12,0,AC10*Inputs!$D$4)))) -> 6000 | AJ10: =IF(AD10<AV9,0,IF(AD10="","",IF(Calculations!$A10-Inputs!$D$6>IF(Inputs!$D$9=0,19,24),"",IF(AV10<$AD$2*Inputs!$D$4,MAX(0,AV10),MIN($AD$2*Inputs!$D$4,AD10*Inputs!$D$4))))) -> 2178.211155 | AK10: =IF(AE10="","",IF(AE10<$AW$2,0,IF(AE10>(Inputs!$D$2+Inputs!$D$3),(Inputs!$D$2+Inputs!$D$3)*'Main page'!$N$5,AE10*'Main page'!$N$5))) -> 2794.129067 | AL10: =IF(AF10="","",IF(AF10<$AX$2,0,IF(AF10>(Inputs!$D$2+Inputs!$D$3),(Inputs!$D$2+Inputs!$D$3)*Inputs!$D$4,AF10*Inputs!$D$4))) -> 1651.57109 | AM10: =IFERROR(AG10/AA10,"") -> 0.06 | AN10: 0.06 | AO10: 0.0537231487 | AP10: 0.02178211155 | AQ10: 0.04 | AR10: 0.06 | AS10: =IFERROR(IF(OR(AA10="",AA10=0),"",IF(AA10<S10*12,AA10,S10*12)),"") -> 6967.235448 | AT10: 7760.233519 | AU10: 5173.489012 | AV10: 2178.211155 | AW10: 7271.763952 | AX10: 13322.46023 | AY10: =IF($A10-Inputs!$D$6>19,"",MIN((Inputs!$D$2/(Inputs!$D$2+Inputs!$D$3))*C10*0.1/12,$Y$2)) -> 290.301477 | AZ10: =IF($A10-Inputs!$D$6>19,"",MIN(D10*0.1/12,$Y$2)) -> 134.1720645 | BA10: =IF($A10-Inputs!$D$6>19,"",MIN((Inputs!$D$3/(Inputs!$D$2+Inputs!$D$3))*C10*0.1/12,$Z$2)) -> 290.301477 | BB10: =IF($A10-Inputs!$D$6>19,"",MIN(E10*0.1/12,$Z$2)) -> 296.9520199 | BC10: =(Inputs!$D$2/(Inputs!$D$2+Inputs!$D$3))*IF($A10-Inputs!$D$6>IF(Inputs!$D$9=0,19,24),"",F10*((0.1*Inputs!$D$9+0.05*(1-Inputs!$D$9)))/12) -> 171.5417819 | BD10: =IF($A10-Inputs!$D$6>IF(Inputs!$D$9=0,19,24),"",G10*((0.1*Inputs!$D$9+0.05*(1-Inputs!$D$9)))/12) -> 0 | BE10: =(Inputs!$D$3/(Inputs!$D$2+Inputs!$D$3))*IF($A10-Inputs!$D$6>IF(Inputs!$D$9=0,19,24),"",F10*((0.1*Inputs!$D$9+0.05*(1-Inputs!$D$9)))/12) -> 171.5417819 | BF10: =IF(Inputs!$D$3=0,0,1)*IF($A10-Inputs!$D$6>IF(Inputs!$D$9=0,19,24),"",H10*((0.1*Inputs!$D$9+0.05*(1-Inputs!$D$9)))/12) -> 181.5175962 | BG10: 580.602954 | BH10: 343.0835637 | BI10: 431.1240844 | BJ10: 181.5175962 | BK10: -149.4788696 | BL10: -161.5659675 | BM10: =#REF! ->  | BN10: =IFERROR(((BI10-BG10)+#REF!/12)*12,"") ->  | BO10: =IFERROR(((BJ10-BH10)+#REF!/12)*12,"") ->  | BP10: =IFERROR(AS10/((1+'Main page'!$N$4)^($A10-$A$2)),"") -> 4715.699195 | BQ10: =IFERROR(AU10/((1+'Main page'!$N$4)^($A10-$A$2)),"") -> 3501.621003 | BR10: =IFERROR(AT10/((1+'Main page'!$N$4)^($A10-$A$2)),"") -> 5252.431504 | BS10: =IFERROR(AV10/((1+'Main page'!$N$4)^($A10-$A$2)),"") -> 1474.299048 | BT10: =IF(AW10="","",IFERROR(AW10/((1+'Main page'!$N$4)^($A10-$A$2)),"")) -> 4921.816074 | BU10: =IFERROR(AX10/((1+'Main page'!$N$4)^($A10-$A$2)),"") -> 9017.165485 | BW10: 2032 | BX10: 0 | BY10: 0 | BZ10: 0 | CA10: 0 | CB10: 0 | CC10: =$CC$2+IF(AND(Inputs!$K$2="",Inputs!$K$8<>""),1,0)+IF(AND(Calculations!$A10>=Inputs!$G$6,Inputs!$G$6<>""),1,0)+IF(AND(Calculations!$A10>=Inputs!$G$7,Inputs!$G$7<>""),1,0)+IF(AND(Calculations!$A10>=Inputs!$G$8,Inputs!$G$8<>""),1,0)+IF(AND(Calculations!$A10>=Inputs!$G$9,Inputs!$G$9<>""),1,0) -> 4 | CD10: =IF(Inputs!$D$6+10>Calculations!$A10,MIN(AT10:AV10),"") -> 2178.211155 | CE10: =IF(Inputs!$D$6+10>Calculations!$A10,MIN(BP10:BS10),"") -> 1474.299048 | CG10: 9 | CH10: =5140+CH9 -> 55700 | CI10: 83550 | CJ10: 125325 | CK10: 2032 | CL10: =Inputs!J10+Inputs!K10 -> 126677.0081 | CM10: 1266.770081 | CN10: 2533.540163 | CO10: 3800.310244 | CP10: 5067.080326 | CQ10: 6333.850407 | CR10: 7600.620488 | CS10: 8867.39057 | CT10: 10134.16065 | CU10: 11400.93073 | CV10: 12667.70081 | CW10: 13934.4709 | CX10: 15201.24098 | CY10: 16468.01106 | CZ10: 17734.78114 | DA10: 19001.55122 | DB10: 20268.3213 | DC10: 21535.09138 | DD10: 22801.86146 | DE10: 24068.63155 | DF10: 25335.40163 | DG10: 2032 | DH10: =CM10*(1+'Main page'!$N$4)+DH9*(1+'Main page'!$N$4) -> 12944.13919 | DI10: =CN10*(1+'Main page'!$N$4)+DI9*(1+'Main page'!$N$4) -> 25888.27838 | DJ10: =CO10*(1+'Main page'!$N$4)+DJ9*(1+'Main page'!$N$4) -> 38832.41756 | DK10: =CP10*(1+'Main page'!$N$4)+DK9*(1+'Main page'!$N$4) -> 51776.55675 | DL10: =CQ10*(1+'Main page'!$N$4)+DL9*(1+'Main page'!$N$4) -> 64720.69594 | DM10: =CR10*(1+'Main page'!$N$4)+DM9*(1+'Main page'!$N$4) -> 77664.83513 | DN10: =CS10*(1+'Main page'!$N$4)+DN9*(1+'Main page'!$N$4) -> 90608.97431 | DO10: =CT10*(1+'Main page'!$N$4)+DO9*(1+'Main page'!$N$4) -> 103553.1135 | DP10: =CU10*(1+'Main page'!$N$4)+DP9*(1+'Main page'!$N$4) -> 116497.2527 | DQ10: =CV10*(1+'Main page'!$N$4)+DQ9*(1+'Main page'!$N$4) -> 129441.3919 | DR10: =CW10*(1+'Main page'!$N$4)+DR9*(1+'Main page'!$N$4) -> 142385.5311 | DS10: =CX10*(1+'Main page'!$N$4)+DS9*(1+'Main page'!$N$4) -> 155329.6703 | DT10: =CY10*(1+'Main page'!$N$4)+DT9*(1+'Main page'!$N$4) -> 168273.8094 | DU10: =CZ10*(1+'Main page'!$N$4)+DU9*(1+'Main page'!$N$4) -> 181217.9486 | DV10: =DA10*(1+'Main page'!$N$4)+DV9*(1+'Main page'!$N$4) -> 194162.0878 | DW10: =DB10*(1+'Main page'!$N$4)+DW9*(1+'Main page'!$N$4) -> 207106.227 | DX10: =DC10*(1+'Main page'!$N$4)+DX9*(1+'Main page'!$N$4) -> 220050.3662 | DY10: =DD10*(1+'Main page'!$N$4)+DY9*(1+'Main page'!$N$4) -> 232994.5054 | DZ10: =DE10*(1+'Main page'!$N$4)+DZ9*(1+'Main page'!$N$4) -> 245938.6446 | EA10: =DF10*(1+'Main page'!$N$4)+EA9*(1+'Main page'!$N$4) -> 258882.7838 | EB10: 0.055 | EC10: 0.04084 | ED10: 0.06126 | EE10: 0.1051687313 | EF10: 0.05740397613 | EG10: =Inputs!J10+Inputs!K10 -> 126677.0081
A11: 2033 | B11: =IF((SUM(Inputs!J11:K11)-((1+Inputs!$D$5)^(A11-$A$2))*VLOOKUP(Calculations!CC11,Calculations!$CG$1:$CI$9,3,FALSE))<=0,0,(SUM(Inputs!J11:K11)-((1+Inputs!$D$5)^(A11-$A$2))*VLOOKUP(Calculations!CC11,Calculations!$CG$1:$CI$9,3,FALSE))) -> 71762.52511 | C11: =IF(Inputs!J11+Inputs!K11-((1+Inputs!$D$5)^(A11-$A$2))*VLOOKUP(CC11,Calculations!$CG$1:$CJ$18,3,FALSE)<0,0,Inputs!J11+Inputs!K11-((1+Inputs!$D$5)^(A11-$A$2))*VLOOKUP(CC11,Calculations!$CG$1:$CJ$18,3,FALSE)) -> 71762.52511 | D11: =IF(Inputs!K11="",Calculations!C11,IF(Inputs!J11-((1+Inputs!$D$5)^(A11-$A$2))*VLOOKUP((CC11-1),Calculations!$CG$1:$CJ$18,3,FALSE)<0,0,Inputs!J11-((1+Inputs!$D$5)^(A11-$A$2))*VLOOKUP(CC11-1,Calculations!$CG$1:$CJ$18,3,FALSE))) -> 16583.66717 | E11: =IF(Inputs!K11-((1+Inputs!$D$5)^(A11-$A$2))*VLOOKUP((1),Calculations!$CG$1:$CJ$18,3,FALSE)<0,0,Inputs!K11-((1+Inputs!$D$5)^(A11-$A$2))*VLOOKUP(1,Calculations!$CG$1:$CJ$18,3,FALSE)) -> 36703.26966 | F11: =IF(Inputs!J11+Inputs!K11-((1+Inputs!$D$5)^(A11-$A$2))*VLOOKUP(CC11,Calculations!$CG$1:$CJ$18,4,FALSE)<0,0,Inputs!J11+Inputs!K11-((1+Inputs!$D$5)^(A11-$A$2))*VLOOKUP(CC11,Calculations!$CG$1:$CJ$18,4,FALSE)) -> 42405.12847 | G11: =IF(Inputs!K11="",Calculations!F11,IF(Inputs!J11-((1+Inputs!$D$5)^(A11-$A$2))*VLOOKUP((CC11-1),Calculations!$CG$1:$CJ$18,4,FALSE)<0,0,Inputs!J11-((1+Inputs!$D$5)^(A11-$A$2))*VLOOKUP(CC11-1,Calculations!$CG$1:$CJ$18,4,FALSE))) -> 0 | H11: =IF(Inputs!K11-((1+Inputs!$D$5)^(A11-$A$2))*VLOOKUP((1),Calculations!$CG$1:$CJ$18,4,FALSE)<0,0,Inputs!K11-((1+Inputs!$D$5)^(A11-$A$2))*VLOOKUP(1,Calculations!$CG$1:$CJ$18,4,FALSE)) -> 22435.5749 | I11: =IF($A11-Inputs!$D$6>24,"",(Inputs!$D$2/(Inputs!$D$2+Inputs!$D$3)*B11*0.1/12)) -> 299.0105213 | J11: =IF(AND(Inputs!$D$3>=0,Inputs!$P$1=1),IF($A11-Inputs!$D$6>24,"",MIN((Inputs!$D$2/(Inputs!$D$2+Inputs!$D$3))*C11*0.15/12,$Y$2)),IF(Inputs!P10=3,IF($A11-Inputs!$D$6>24,"",MIN(C11*0.15/12,$Y$2)),IF($A11-Inputs!$D$6>24,"",MIN(D11*0.15/12,$Y$2)))) -> 207.2958396 | K11: =IF(AND(Inputs!$D$3>=0,Inputs!$P$1=1),IF($A11-Inputs!$D$6>19,"",MIN((Inputs!$D$2/(Inputs!$D$2+Inputs!$D$3))*C11*0.1/12,$Y$2)),IF(Inputs!P10=3,IF($A11-Inputs!$D$6>19,"",MIN(C11*0.1/12,$Y$2)),IF($A11-Inputs!$D$6>19,"",MIN(D11*0.1/12,$Y$2)))) -> 138.1972264 | L11: =IFERROR(IF(AND(OR(Inputs!$D$3>=0,Inputs!$D$3=""),Inputs!$P$1=1),(Inputs!$D$2/(Inputs!$D$2+Inputs!$D$3))*IF($A11-Inputs!$D$6>IF(Inputs!$D$9=0,19,24),"",F11*((0.1*Inputs!$D$9+0.05*(1-Inputs!$D$9)))/12),IF(Inputs!P10=3,IF($A11-Inputs!$D$6>IF(Inputs!$D$9=0,19,24),"",F11*((0.1*Inputs!$D$9+0.05*(1-Inputs!$D$9)))/12),IF($A11-Inputs!$D$6>IF(Inputs!$D$9=0,19,24),"",G11*((0.1*Inputs!$D$9+0.05*(1-Inputs!$D$9)))/12))),"") -> 0 | M11: 302.9901646 | N11: =IF($A11-Inputs!$D$6>24,"",(Inputs!$D$3/(Inputs!$D$2+Inputs!$D$3)*B11*0.1/12)) -> 299.0105213 | O11: =IF(AND(Inputs!$D$3>0,Inputs!$P$1=1),IF($A11-Inputs!$D$6>24,"",MIN((Inputs!$D$3/(Inputs!$D$2+Inputs!$D$3))*C11*0.15/12,$Z$2)),IF(Inputs!P10=3,(Inputs!$D$3/(Inputs!$D$2+Inputs!$D$3))*IF($A11-Inputs!$D$6>24,"",MIN(C11*0.15/12,$Z$2)),IF($A11-Inputs!$D$6>24,"",MIN(E11*0.15/12,$Z$2)))) -> 458.7908708 | P11: =IF(AND(Inputs!$D$3>0,Inputs!$P$1=1),IF($A11-Inputs!$D$6>19,"",MIN((Inputs!$D$3/(Inputs!$D$2+Inputs!$D$3))*C11*0.1/12,$Z$2)),IF(Inputs!P10=3,(Inputs!$D$3/(Inputs!$D$2+Inputs!$D$3))*IF($A11-Inputs!$D$6>19,"",MIN(C11*0.1/12,$Z$2)),IF($A11-Inputs!$D$6>19,"",MIN(E11*0.1/12,$Z$2)))) -> 305.8605805 | Q11: =IFERROR(IF(OR(Inputs!$D$3=0,Inputs!$D$3=""),0,IF(AND(Inputs!$D$3>0,Inputs!$P$1=1),(Inputs!$D$3/(Inputs!$D$2+Inputs!$D$3))*IF($A11-Inputs!$D$6>IF(Inputs!$D$9=0,19,24),"",F11*((0.1*Inputs!$D$9+0.05*(1-Inputs!$D$9)))/12),IF(Inputs!P10=3,IF($A11-Inputs!$D$6>IF(Inputs!$D$9=0,19,24),"",F11*((0.1*Inputs!$D$9+0.05*(1-Inputs!$D$9)))/12),IF($A11-Inputs!$D$6>IF(Inputs!$D$9=0,19,24),"",H11*((0.1*Inputs!$D$9+0.05*(1-Inputs!$D$9)))/12)))),"") -> 186.9631241 | R11: 302.9901646 | S11: 598.0210426 | T11: 666.0867103 | U11: 444.0578069 | V11: 186.9631241 | W11: 605.9803293 | X11: 1110.205019 | Y11: =IF(AF11="","",(Inputs!$D$2)*(((Inputs!$D$4/12)*((1+Inputs!$D$4/12)^120))/(((1+Inputs!$D$4/12)^120)-1))) -> 555.1025097 | Z11: =IF(AF11="","",(Inputs!$D$3)*(((Inputs!$D$4/12)*((1+Inputs!$D$4/12)^120))/(((1+Inputs!$D$4/12)^120)-1))) -> 555.1025097 | AA11: =IF(AA10=0,0,IF($A11-Inputs!$D$6>25,"",IF((AA10+IF(AS10<AG10,(AH10-AS10)/2,AG10-AS10))>0,AA10+IF(AS10<AG10,(AH10-AS10)/2,AG10-AS10),0))) -> 97474.0028 | AB11: =IF(AB10=0,0,IF($A11-Inputs!$D$6>25,"",IF(AB10-AT10+AH10>0,AB10-AT10+AH10,0))) -> 90390.97661 | AC11: =IF(AC10=0,0,IF($A11-Inputs!$D$6>20,"",IF(AC10-AU10+AI10>0,AC10-AU10+AI10,0))) -> 112510.2106 | AD11: =IF(AD10=0,0,IF($A11-Inputs!$D$6>IF(Inputs!$D$9=0,20,25),"",IF(AV10<$AD$2*Inputs!$D$4,IF(V10*12>AD10,0,AD10),IF(AD10-AV10+AJ10>0,AD10-AV10+AJ10,0)))) -> 100000 | AE11: 65375.5918 | AF11: 15855.29569 | AG11: =IF(AA11<AS10,0,IF(AA11="","",IF(Calculations!$A11-Inputs!$D$6>24,"",IF(AS11<$AA$2*Inputs!$D$4,$AA$2*Inputs!$D$4-($AA$2*Inputs!$D$4-AS11)/2,MIN($AA$2*Inputs!$D$4,AA11*Inputs!$D$4))))) -> 5848.440168 | AH11: =IF(AB11="","",IF(Calculations!$A11-Inputs!$D$6>24,"",IF(AB11>(Inputs!$D$2+Inputs!$D$3),(Inputs!$D$2+Inputs!$D$3)*Inputs!$D$4,IF(AB11<$X$3*12,0,AB11*Inputs!$D$4)))) -> 5423.458597 | AI11: =IF(AC11="","",IF(Calculations!$A11-Inputs!$D$6>24,"",IF(AC11>(Inputs!$D$2+Inputs!$D$3),(Inputs!$D$2+Inputs!$D$3)*Inputs!$D$4,IF(AC11<$X$3*12,0,AC11*Inputs!$D$4)))) -> 6000 | AJ11: =IF(AD11<AV10,0,IF(AD11="","",IF(Calculations!$A11-Inputs!$D$6>IF(Inputs!$D$9=0,19,24),"",IF(AV11<$AD$2*Inputs!$D$4,MAX(0,AV11),MIN($AD$2*Inputs!$D$4,AD11*Inputs!$D$4))))) -> 2243.55749 | AK11: =IF(AE11="","",IF(AE11<$AW$2,0,IF(AE11>(Inputs!$D$2+Inputs!$D$3),(Inputs!$D$2+Inputs!$D$3)*'Main page'!$N$5,AE11*'Main page'!$N$5))) -> 2615.023672 | AL11: =IF(AF11="","",IF(AF11<$AX$2,0,IF(AF11>(Inputs!$D$2+Inputs!$D$3),(Inputs!$D$2+Inputs!$D$3)*Inputs!$D$4,AF11*Inputs!$D$4))) -> 951.3177412 | AM11: =IFERROR(AG11/AA11,"") -> 0.06 | AN11: 0.06 | AO11: 0.0533284932 | AP11: 0.0224355749 | AQ11: 0.04 | AR11: 0.06 | AS11: =IFERROR(IF(OR(AA11="",AA11=0),"",IF(AA11<S11*12,AA11,S11*12)),"") -> 7176.252511 | AT11: 7993.040524 | AU11: 5328.693683 | AV11: 2243.55749 | AW11: 7271.763952 | AX11: 13322.46023 | AY11: =IF($A11-Inputs!$D$6>19,"",MIN((Inputs!$D$2/(Inputs!$D$2+Inputs!$D$3))*C11*0.1/12,$Y$2)) -> 299.0105213 | AZ11: =IF($A11-Inputs!$D$6>19,"",MIN(D11*0.1/12,$Y$2)) -> 138.1972264 | BA11: =IF($A11-Inputs!$D$6>19,"",MIN((Inputs!$D$3/(Inputs!$D$2+Inputs!$D$3))*C11*0.1/12,$Z$2)) -> 299.0105213 | BB11: =IF($A11-Inputs!$D$6>19,"",MIN(E11*0.1/12,$Z$2)) -> 305.8605805 | BC11: =(Inputs!$D$2/(Inputs!$D$2+Inputs!$D$3))*IF($A11-Inputs!$D$6>IF(Inputs!$D$9=0,19,24),"",F11*((0.1*Inputs!$D$9+0.05*(1-Inputs!$D$9)))/12) -> 176.6880353 | BD11: =IF($A11-Inputs!$D$6>IF(Inputs!$D$9=0,19,24),"",G11*((0.1*Inputs!$D$9+0.05*(1-Inputs!$D$9)))/12) -> 0 | BE11: =(Inputs!$D$3/(Inputs!$D$2+Inputs!$D$3))*IF($A11-Inputs!$D$6>IF(Inputs!$D$9=0,19,24),"",F11*((0.1*Inputs!$D$9+0.05*(1-Inputs!$D$9)))/12) -> 176.6880353 | BF11: =IF(Inputs!$D$3=0,0,1)*IF($A11-Inputs!$D$6>IF(Inputs!$D$9=0,19,24),"",H11*((0.1*Inputs!$D$9+0.05*(1-Inputs!$D$9)))/12) -> 186.9631241 | BG11: 598.0210426 | BH11: 353.3760706 | BI11: 444.0578069 | BJ11: 186.9631241 | BK11: -153.9632357 | BL11: -166.4129465 | BM11: =#REF! ->  | BN11: =IFERROR(((BI11-BG11)+#REF!/12)*12,"") ->  | BO11: =IFERROR(((BJ11-BH11)+#REF!/12)*12,"") ->  | BP11: =IFERROR(AS11/((1+'Main page'!$N$4)^($A11-$A$2)),"") -> 4625.876354 | BQ11: =IFERROR(AU11/((1+'Main page'!$N$4)^($A11-$A$2)),"") -> 3434.92346 | BR11: =IFERROR(AT11/((1+'Main page'!$N$4)^($A11-$A$2)),"") -> 5152.38519 | BS11: =IFERROR(AV11/((1+'Main page'!$N$4)^($A11-$A$2)),"") -> 1446.217162 | BT11: =IF(AW11="","",IFERROR(AW11/((1+'Main page'!$N$4)^($A11-$A$2)),"")) -> 4687.44388 | BU11: =IFERROR(AX11/((1+'Main page'!$N$4)^($A11-$A$2)),"") -> 8587.776652 | BW11: 2033 | BX11: 0 | BY11: 0 | BZ11: 0 | CA11: 0 | CB11: 0 | CC11: =$CC$2+IF(AND(Inputs!$K$2="",Inputs!$K$8<>""),1,0)+IF(AND(Calculations!$A11>=Inputs!$G$6,Inputs!$G$6<>""),1,0)+IF(AND(Calculations!$A11>=Inputs!$G$7,Inputs!$G$7<>""),1,0)+IF(AND(Calculations!$A11>=Inputs!$G$8,Inputs!$G$8<>""),1,0)+IF(AND(Calculations!$A11>=Inputs!$G$9,Inputs!$G$9<>""),1,0) -> 4 | CD11: =IF(Inputs!$D$6+10>Calculations!$A11,MIN(AT11:AV11),"") -> 2243.55749 | CE11: =IF(Inputs!$D$6+10>Calculations!$A11,MIN(BP11:BS11),"") -> 1446.217162 | CG11: 10 | CH11: 60840 | CI11: 91260 | CJ11: 136890 | CK11: 2033 | CL11: =Inputs!J11+Inputs!K11 -> 130477.3184 | CM11: 1304.773184 | CN11: 2609.546368 | CO11: 3914.319551 | CP11: 5219.092735 | CQ11: 6523.865919 | CR11: 7828.639103 | CS11: 9133.412287 | CT11: 10438.18547 | CU11: 11742.95865 | CV11: 13047.73184 | CW11: 14352.50502 | CX11: 15657.27821 | CY11: 16962.05139 | CZ11: 18266.82457 | DA11: 19571.59776 | DB11: 20876.37094 | DC11: 22181.14413 | DD11: 23485.91731 | DE11: 24790.69049 | DF11: 26095.46368 | DG11: 2033 | DH11: =CM11*(1+'Main page'!$N$4)+DH10*(1+'Main page'!$N$4) -> 14961.35799 | DI11: =CN11*(1+'Main page'!$N$4)+DI10*(1+'Main page'!$N$4) -> 29922.71598 | DJ11: =CO11*(1+'Main page'!$N$4)+DJ10*(1+'Main page'!$N$4) -> 44884.07397 | DK11: =CP11*(1+'Main page'!$N$4)+DK10*(1+'Main page'!$N$4) -> 59845.43196 | DL11: =CQ11*(1+'Main page'!$N$4)+DL10*(1+'Main page'!$N$4) -> 74806.78995 | DM11: =CR11*(1+'Main page'!$N$4)+DM10*(1+'Main page'!$N$4) -> 89768.14794 | DN11: =CS11*(1+'Main page'!$N$4)+DN10*(1+'Main page'!$N$4) -> 104729.5059 | DO11: =CT11*(1+'Main page'!$N$4)+DO10*(1+'Main page'!$N$4) -> 119690.8639 | DP11: =CU11*(1+'Main page'!$N$4)+DP10*(1+'Main page'!$N$4) -> 134652.2219 | DQ11: =CV11*(1+'Main page'!$N$4)+DQ10*(1+'Main page'!$N$4) -> 149613.5799 | DR11: =CW11*(1+'Main page'!$N$4)+DR10*(1+'Main page'!$N$4) -> 164574.9379 | DS11: =CX11*(1+'Main page'!$N$4)+DS10*(1+'Main page'!$N$4) -> 179536.2959 | DT11: =CY11*(1+'Main page'!$N$4)+DT10*(1+'Main page'!$N$4) -> 194497.6539 | DU11: =CZ11*(1+'Main page'!$N$4)+DU10*(1+'Main page'!$N$4) -> 209459.0119 | DV11: =DA11*(1+'Main page'!$N$4)+DV10*(1+'Main page'!$N$4) -> 224420.3699 | DW11: =DB11*(1+'Main page'!$N$4)+DW10*(1+'Main page'!$N$4) -> 239381.7278 | DX11: =DC11*(1+'Main page'!$N$4)+DX10*(1+'Main page'!$N$4) -> 254343.0858 | DY11: =DD11*(1+'Main page'!$N$4)+DY10*(1+'Main page'!$N$4) -> 269304.4438 | DZ11: =DE11*(1+'Main page'!$N$4)+DZ10*(1+'Main page'!$N$4) -> 284265.8018 | EA11: =DF11*(1+'Main page'!$N$4)+EA10*(1+'Main page'!$N$4) -> 299227.1598 | EB11: 0.055 | EC11: 0.04084 | ED11: 0.06126 | EE11: 0.1021055644 | EF11: 0.05573201566 | EG11: =Inputs!J11+Inputs!K11 -> 130477.3184
A12: 2034 | B12: =IF((SUM(((1+Inputs!$J$12)^($A12-$A$11))*Inputs!$J$11+((1+Inputs!$K$12)^($A12-$A$11))*Inputs!$K$11)-VLOOKUP($CC12,Calculations!$CG$1:$CI$9,3,FALSE)*((1+Inputs!$D$5)^($A12-$A$2)))<=0,0,(SUM(((1+Inputs!$J$12)^($A12-$A$11))*Inputs!$J$11+((1+Inputs!$K$12)^($A12-$A$11))*Inputs!$K$11)-VLOOKUP($CC12,Calculations!$CG$1:$CI$9,3,FALSE)*((1+Inputs!$D$5)^($A12-$A$2)))) -> 73915.40086 | C12: =IF(Inputs!$J$11*((1+Inputs!$J$12)^(Calculations!A12-$A$11))+Inputs!$K$11*((1+Inputs!$K$12)^(A12-$A$11))-((1+Inputs!$D$5)^(A12-$A$2))*VLOOKUP(CC12,Calculations!$CG$1:$CJ$16,3,FALSE)<0,0,Inputs!$J$11*((1+Inputs!$J$12)^(Calculations!A12-$A$11))+Inputs!$K$11*((1+Inputs!$K$12)^(A12-$A$11))-((1+Inputs!$D$5)^(A12-$A$2))*VLOOKUP(CC12,Calculations!$CG$1:$CJ$16,3,FALSE)) -> 73915.40086 | D12: =IF(Inputs!$J$11*((1+Inputs!$J$12)^(Calculations!A12-Calculations!$A$11))-((1+Inputs!$D$5)^(A12-$A$2))*VLOOKUP(CC12-1,Calculations!$CG$1:$CJ$18,3,FALSE)<0,0,Inputs!$J$11*((1+Inputs!$J$12)^(Calculations!A12-Calculations!$A$11))-((1+Inputs!$D$5)^(A12-$A$2))*VLOOKUP(CC12-1,Calculations!$CG$1:$CJ$18,3,FALSE)) -> 17081.17718 | E12: =IF(Inputs!$K$11*((1+Inputs!$J$12)^(Calculations!A12-Calculations!$A$11))-((1+Inputs!$D$5)^(A12-$A$2))*VLOOKUP(1,Calculations!$CG$1:$CJ$18,3,FALSE)<0,0,Inputs!$K$11*((1+Inputs!$J$12)^(Calculations!A12-Calculations!$A$11))-((1+Inputs!$D$5)^(A12-$A$2))*VLOOKUP(1,Calculations!$CG$1:$CJ$18,3,FALSE)) -> 37804.36775 | F12: =IF(Inputs!$J$11*((1+Inputs!$J$12)^(Calculations!A12-$A$11))+Inputs!$K$11*((1+Inputs!$K$12)^(A12-$A$11))-((1+Inputs!$D$5)^(A12-$A$2))*VLOOKUP(CC12,Calculations!$CG$1:$CJ$16,4,FALSE)<0,0,Inputs!$J$11*((1+Inputs!$J$12)^(Calculations!A12-$A$11))+Inputs!$K$11*((1+Inputs!$K$12)^(A12-$A$11))-((1+Inputs!$D$5)^(A12-$A$2))*VLOOKUP(CC12,Calculations!$CG$1:$CJ$16,4,FALSE)) -> 43677.28233 | G12: =IF(Inputs!$K$11="",Calculations!F12,IF(Inputs!$J$11*((1+Inputs!$J$12)^(Calculations!A12-Calculations!$A$11))-((1+Inputs!$D$5)^(A12-$A$2))*VLOOKUP(CC12-1,Calculations!$CG$1:$CJ$18,4,FALSE)<0,0,Inputs!$J$11*((1+Inputs!$J$12)^(Calculations!A12-Calculations!$A$11))-((1+Inputs!$D$5)^(A12-$A$2))*VLOOKUP(CC12-1,Calculations!$CG$1:$CJ$18,4,FALSE))) -> 0 | H12: =IF(Inputs!$K$11*((1+Inputs!$J$12)^(Calculations!A12-Calculations!$A$11))-((1+Inputs!$D$5)^(A12-$A$2))*VLOOKUP(1,Calculations!$CG$1:$CJ$18,4,FALSE)<0,0,Inputs!$K$11*((1+Inputs!$J$12)^(Calculations!A12-Calculations!$A$11))-((1+Inputs!$D$5)^(A12-$A$2))*VLOOKUP(1,Calculations!$CG$1:$CJ$18,4,FALSE)) -> 23108.64214 | I12: =IF($A12-Inputs!$D$6>24,"",(Inputs!$D$2/(Inputs!$D$2+Inputs!$D$3)*B12*0.1/12)) -> 307.9808369 | J12: =IF(AND(Inputs!$D$3>=0,Inputs!$P$1=1),IF($A12-Inputs!$D$6>24,"",MIN((Inputs!$D$2/(Inputs!$D$2+Inputs!$D$3))*C12*0.15/12,$Y$2)),IF(Inputs!P11=3,IF($A12-Inputs!$D$6>24,"",MIN(C12*0.15/12,$Y$2)),IF($A12-Inputs!$D$6>24,"",MIN(D12*0.15/12,$Y$2)))) -> 213.5147148 | K12: =IF(AND(Inputs!$D$3>=0,Inputs!$P$1=1),IF($A12-Inputs!$D$6>19,"",MIN((Inputs!$D$2/(Inputs!$D$2+Inputs!$D$3))*C12*0.1/12,$Y$2)),IF(Inputs!P11=3,IF($A12-Inputs!$D$6>19,"",MIN(C12*0.1/12,$Y$2)),IF($A12-Inputs!$D$6>19,"",MIN(D12*0.1/12,$Y$2)))) -> 142.3431432 | L12: =IFERROR(IF(AND(OR(Inputs!$D$3>=0,Inputs!$D$3=""),Inputs!$P$1=1),(Inputs!$D$2/(Inputs!$D$2+Inputs!$D$3))*IF($A12-Inputs!$D$6>IF(Inputs!$D$9=0,19,24),"",F12*((0.1*Inputs!$D$9+0.05*(1-Inputs!$D$9)))/12),IF(Inputs!P11=3,IF($A12-Inputs!$D$6>IF(Inputs!$D$9=0,19,24),"",F12*((0.1*Inputs!$D$9+0.05*(1-Inputs!$D$9)))/12),IF($A12-Inputs!$D$6>IF(Inputs!$D$9=0,19,24),"",G12*((0.1*Inputs!$D$9+0.05*(1-Inputs!$D$9)))/12))),"") -> 0 | M12: 302.9901646 | N12: =IF($A12-Inputs!$D$6>24,"",(Inputs!$D$3/(Inputs!$D$2+Inputs!$D$3)*B12*0.1/12)) -> 307.9808369 | O12: =IF(AND(Inputs!$D$3>0,Inputs!$P$1=1),IF($A12-Inputs!$D$6>24,"",MIN((Inputs!$D$3/(Inputs!$D$2+Inputs!$D$3))*C12*0.15/12,$Z$2)),IF(Inputs!P11=3,(Inputs!$D$3/(Inputs!$D$2+Inputs!$D$3))*IF($A12-Inputs!$D$6>24,"",MIN(C12*0.15/12,$Z$2)),IF($A12-Inputs!$D$6>24,"",MIN(E12*0.15/12,$Z$2)))) -> 472.5545969 | P12: =IF(AND(Inputs!$D$3>0,Inputs!$P$1=1),IF($A12-Inputs!$D$6>19,"",MIN((Inputs!$D$3/(Inputs!$D$2+Inputs!$D$3))*C12*0.1/12,$Z$2)),IF(Inputs!P11=3,(Inputs!$D$3/(Inputs!$D$2+Inputs!$D$3))*IF($A12-Inputs!$D$6>19,"",MIN(C12*0.1/12,$Z$2)),IF($A12-Inputs!$D$6>19,"",MIN(E12*0.1/12,$Z$2)))) -> 315.0363979 | Q12: =IFERROR(IF(OR(Inputs!$D$3=0,Inputs!$D$3=""),0,IF(AND(Inputs!$D$3>0,Inputs!$P$1=1),(Inputs!$D$3/(Inputs!$D$2+Inputs!$D$3))*IF($A12-Inputs!$D$6>IF(Inputs!$D$9=0,19,24),"",F12*((0.1*Inputs!$D$9+0.05*(1-Inputs!$D$9)))/12),IF(Inputs!P11=3,IF($A12-Inputs!$D$6>IF(Inputs!$D$9=0,19,24),"",F12*((0.1*Inputs!$D$9+0.05*(1-Inputs!$D$9)))/12),IF($A12-Inputs!$D$6>IF(Inputs!$D$9=0,19,24),"",H12*((0.1*Inputs!$D$9+0.05*(1-Inputs!$D$9)))/12)))),"") -> 192.5720179 | R12: 302.9901646 | S12: 615.9616739 | T12: 686.0693117 | U12: 457.3795411 | V12: 192.5720179 | W12: 605.9803293 | X12: 1110.205019 | Y12: =IF(AF12="","",(Inputs!$D$2)*(((Inputs!$D$4/12)*((1+Inputs!$D$4/12)^120))/(((1+Inputs!$D$4/12)^120)-1))) -> 555.1025097 | Z12: =IF(AF12="","",(Inputs!$D$3)*(((Inputs!$D$4/12)*((1+Inputs!$D$4/12)^120))/(((1+Inputs!$D$4/12)^120)-1))) -> 555.1025097 | AA12: =IF(AA11=0,0,IF($A12-Inputs!$D$6>25,"",IF((AA11+IF(AS11<AG11,(AH11-AS11)/2,AG11-AS11))>0,AA11+IF(AS11<AG11,(AH11-AS11)/2,AG11-AS11),0))) -> 96146.19046 | AB12: =IF(AB11=0,0,IF($A12-Inputs!$D$6>25,"",IF(AB11-AT11+AH11>0,AB11-AT11+AH11,0))) -> 87821.39468 | AC12: =IF(AC11=0,0,IF($A12-Inputs!$D$6>20,"",IF(AC11-AU11+AI11>0,AC11-AU11+AI11,0))) -> 113181.5169 | AD12: =IF(AD11=0,0,IF($A12-Inputs!$D$6>IF(Inputs!$D$9=0,20,25),"",IF(AV11<$AD$2*Inputs!$D$4,IF(V11*12>AD11,0,AD11),IF(AD11-AV11+AJ11>0,AD11-AV11+AJ11,0)))) -> 100000 | AE12: 60718.85152 | AF12: 3484.153195 | AG12: =IF(AA12<AS11,0,IF(AA12="","",IF(Calculations!$A12-Inputs!$D$6>24,"",IF(AS12<$AA$2*Inputs!$D$4,$AA$2*Inputs!$D$4-($AA$2*Inputs!$D$4-AS12)/2,MIN($AA$2*Inputs!$D$4,AA12*Inputs!$D$4))))) -> 5768.771427 | AH12: =IF(AB12="","",IF(Calculations!$A12-Inputs!$D$6>24,"",IF(AB12>(Inputs!$D$2+Inputs!$D$3),(Inputs!$D$2+Inputs!$D$3)*Inputs!$D$4,IF(AB12<$X$3*12,0,AB12*Inputs!$D$4)))) -> 5269.283681 | AI12: =IF(AC12="","",IF(Calculations!$A12-Inputs!$D$6>24,"",IF(AC12>(Inputs!$D$2+Inputs!$D$3),(Inputs!$D$2+Inputs!$D$3)*Inputs!$D$4,IF(AC12<$X$3*12,0,AC12*Inputs!$D$4)))) -> 6000 | AJ12: =IF(AD12<AV11,0,IF(AD12="","",IF(Calculations!$A12-Inputs!$D$6>IF(Inputs!$D$9=0,19,24),"",IF(AV12<$AD$2*Inputs!$D$4,MAX(0,AV12),MIN($AD$2*Inputs!$D$4,AD12*Inputs!$D$4))))) -> 2310.864214 | AK12: =IF(AE12="","",IF(AE12<$AW$2,0,IF(AE12>(Inputs!$D$2+Inputs!$D$3),(Inputs!$D$2+Inputs!$D$3)*'Main page'!$N$5,AE12*'Main page'!$N$5))) -> 2428.754061 | AL12: =IF(AF12="","",IF(AF12<$AX$2,0,IF(AF12>(Inputs!$D$2+Inputs!$D$3),(Inputs!$D$2+Inputs!$D$3)*Inputs!$D$4,AF12*Inputs!$D$4))) -> 0 | AM12: =IFERROR(AG12/AA12,"") -> 0.06 | AN12: 0.06 | AO12: 0.05301218931 | AP12: 0.02310864214 | AQ12: 0.04 | AR12: 0 | AS12: =IFERROR(IF(OR(AA12="",AA12=0),"",IF(AA12<S12*12,AA12,S12*12)),"") -> 7391.540086 | AT12: =IFERROR(IF(OR(AB12="",AB12=0),"",IF(AB12<T12*12,AB12,T12*12)),"") -> 8232.83174 | AU12: =IFERROR(IF(OR(AC12="",AC12=0),"",IF(AC12<U12*12,AC12,U12*12)),"") -> 5488.554493 | AV12: =IFERROR(IF(OR(AD12="",AD12=0),"",IF(AD12<V12*12,AD12,V12*12)),"") -> 2310.864214 | AW12: =IFERROR(IF(OR(AE12="",AE12=0),"",IF(AE12<W12*12,AE12,W12*12)),"") -> 7271.763952 | AX12: 0 | AY12: =IF($A12-Inputs!$D$6>19,"",MIN((Inputs!$D$2/(Inputs!$D$2+Inputs!$D$3))*C12*0.1/12,$Y$2)) -> 307.9808369 | AZ12: =IF($A12-Inputs!$D$6>19,"",MIN(D12*0.1/12,$Y$2)) -> 142.3431432 | BA12: =IF($A12-Inputs!$D$6>19,"",MIN((Inputs!$D$3/(Inputs!$D$2+Inputs!$D$3))*C12*0.1/12,$Z$2)) -> 307.9808369 | BB12: =IF($A12-Inputs!$D$6>19,"",MIN(E12*0.1/12,$Z$2)) -> 315.0363979 | BC12: =(Inputs!$D$2/(Inputs!$D$2+Inputs!$D$3))*IF($A12-Inputs!$D$6>IF(Inputs!$D$9=0,19,24),"",F12*((0.1*Inputs!$D$9+0.05*(1-Inputs!$D$9)))/12) -> 181.9886764 | BD12: =IF($A12-Inputs!$D$6>IF(Inputs!$D$9=0,19,24),"",G12*((0.1*Inputs!$D$9+0.05*(1-Inputs!$D$9)))/12) -> 0 | BE12: =(Inputs!$D$3/(Inputs!$D$2+Inputs!$D$3))*IF($A12-Inputs!$D$6>IF(Inputs!$D$9=0,19,24),"",F12*((0.1*Inputs!$D$9+0.05*(1-Inputs!$D$9)))/12) -> 181.9886764 | BF12: =IF(Inputs!$D$3=0,0,1)*IF($A12-Inputs!$D$6>IF(Inputs!$D$9=0,19,24),"",H12*((0.1*Inputs!$D$9+0.05*(1-Inputs!$D$9)))/12) -> 192.5720179 | BG12: 615.9616739 | BH12: 363.9773527 | BI12: 457.3795411 | BJ12: 192.5720179 | BK12: -158.5821328 | BL12: -171.4053349 | BM12: =#REF! ->  | BN12: =IFERROR(((BI12-BG12)+#REF!/12)*12,"") ->  | BO12: =IFERROR(((BJ12-BH12)+#REF!/12)*12,"") ->  | BP12: =IFERROR(AS12/((1+'Main page'!$N$4)^($A12-$A$2)),"") -> 4537.764423 | BQ12: =IFERROR(AU12/((1+'Main page'!$N$4)^($A12-$A$2)),"") -> 3369.496346 | BR12: =IFERROR(AT12/((1+'Main page'!$N$4)^($A12-$A$2)),"") -> 5054.244519 | BS12: =IFERROR(AV12/((1+'Main page'!$N$4)^($A12-$A$2)),"") -> 1418.670168 | BT12: =IF(AW12="","",IFERROR(AW12/((1+'Main page'!$N$4)^($A12-$A$2)),"")) -> 4464.232267 | BU12: =IFERROR(AX12/((1+'Main page'!$N$4)^($A12-$A$2)),"") -> 0 | BW12: 2034 | BX12: 0 | BY12: 0 | BZ12: 0 | CA12: 0 | CB12: 1 | CC12: =$CC$2+IF(AND(Inputs!$K$2="",Inputs!$K$8<>""),1,0)+IF(AND(Calculations!$A12>=Inputs!$G$6,Inputs!$G$6<>""),1,0)+IF(AND(Calculations!$A12>=Inputs!$G$7,Inputs!$G$7<>""),1,0)+IF(AND(Calculations!$A12>=Inputs!$G$8,Inputs!$G$8<>""),1,0)+IF(AND(Calculations!$A12>=Inputs!$G$9,Inputs!$G$9<>""),1,0) -> 4 | CG12: 11 | CH12: 65980 | CI12: 98970 | CJ12: 148455 | CK12: 2034 | CL12: =+CL11*(1+Inputs!$J$12) -> 134391.6379 | CM12: 1343.916379 | CN12: 2687.832759 | CO12: 4031.749138 | CP12: 5375.665517 | CQ12: 6719.581897 | CR12: 8063.498276 | CS12: 9407.414655 | CT12: 10751.33103 | CU12: 12095.24741 | CV12: 13439.16379 | CW12: 14783.08017 | CX12: 16126.99655 | CY12: 17470.91293 | CZ12: 18814.82931 | DA12: 20158.74569 | DB12: 21502.66207 | DC12: 22846.57845 | DD12: 24190.49483 | DE12: 25534.41121 | DF12: 26878.32759 | DG12: 2034 | DH12: =CM12*(1+'Main page'!$N$4)+DH11*(1+'Main page'!$N$4) -> 17120.53809 | DI12: =CN12*(1+'Main page'!$N$4)+DI11*(1+'Main page'!$N$4) -> 34241.07618 | DJ12: =CO12*(1+'Main page'!$N$4)+DJ11*(1+'Main page'!$N$4) -> 51361.61426 | DK12: =CP12*(1+'Main page'!$N$4)+DK11*(1+'Main page'!$N$4) -> 68482.15235 | DL12: =CQ12*(1+'Main page'!$N$4)+DL11*(1+'Main page'!$N$4) -> 85602.69044 | DM12: =CR12*(1+'Main page'!$N$4)+DM11*(1+'Main page'!$N$4) -> 102723.2285 | DN12: =CS12*(1+'Main page'!$N$4)+DN11*(1+'Main page'!$N$4) -> 119843.7666 | DO12: =CT12*(1+'Main page'!$N$4)+DO11*(1+'Main page'!$N$4) -> 136964.3047 | DP12: =CU12*(1+'Main page'!$N$4)+DP11*(1+'Main page'!$N$4) -> 154084.8428 | DQ12: =CV12*(1+'Main page'!$N$4)+DQ11*(1+'Main page'!$N$4) -> 171205.3809 | DR12: =CW12*(1+'Main page'!$N$4)+DR11*(1+'Main page'!$N$4) -> 188325.919 | DS12: =CX12*(1+'Main page'!$N$4)+DS11*(1+'Main page'!$N$4) -> 205446.4571 | DT12: =CY12*(1+'Main page'!$N$4)+DT11*(1+'Main page'!$N$4) -> 222566.9951 | DU12: =CZ12*(1+'Main page'!$N$4)+DU11*(1+'Main page'!$N$4) -> 239687.5332 | DV12: =DA12*(1+'Main page'!$N$4)+DV11*(1+'Main page'!$N$4) -> 256808.0713 | DW12: =DB12*(1+'Main page'!$N$4)+DW11*(1+'Main page'!$N$4) -> 273928.6094 | DX12: =DC12*(1+'Main page'!$N$4)+DX11*(1+'Main page'!$N$4) -> 291049.1475 | DY12: =DD12*(1+'Main page'!$N$4)+DY11*(1+'Main page'!$N$4) -> 308169.6856 | DZ12: =DE12*(1+'Main page'!$N$4)+DZ11*(1+'Main page'!$N$4) -> 325290.2237 | EA12: =DF12*(1+'Main page'!$N$4)+EA11*(1+'Main page'!$N$4) -> 342410.7618 | EB12: 0.055 | EC12: 0.04084 | ED12: 0.06126 | EG12: =+EG11*(1+Inputs!$J$12) -> 134391.6379
A13: 2035 | B13: =IF((SUM(((1+Inputs!$J$12)^($A13-$A$11))*Inputs!$J$11+((1+Inputs!$K$12)^($A13-$A$11))*Inputs!$K$11)-VLOOKUP($CC13,Calculations!$CG$1:$CI$9,3,FALSE)*((1+Inputs!$D$5)^($A13-$A$2)))<=0,0,(SUM(((1+Inputs!$J$12)^($A13-$A$11))*Inputs!$J$11+((1+Inputs!$K$12)^($A13-$A$11))*Inputs!$K$11)-VLOOKUP($CC13,Calculations!$CG$1:$CI$9,3,FALSE)*((1+Inputs!$D$5)^($A13-$A$2)))) -> 76132.86289 | C13: =IF(Inputs!$J$11*((1+Inputs!$J$12)^(Calculations!A13-$A$11))+Inputs!$K$11*((1+Inputs!$K$12)^(A13-$A$11))-((1+Inputs!$D$5)^(A13-$A$2))*VLOOKUP(CC13,Calculations!$CG$1:$CJ$16,3,FALSE)<0,0,Inputs!$J$11*((1+Inputs!$J$12)^(Calculations!A13-$A$11))+Inputs!$K$11*((1+Inputs!$K$12)^(A13-$A$11))-((1+Inputs!$D$5)^(A13-$A$2))*VLOOKUP(CC13,Calculations!$CG$1:$CJ$16,3,FALSE)) -> 76132.86289 | D13: =IF(Inputs!$J$11*((1+Inputs!$J$12)^(Calculations!A13-Calculations!$A$11))-((1+Inputs!$D$5)^(A13-$A$2))*VLOOKUP(CC13-1,Calculations!$CG$1:$CJ$18,3,FALSE)<0,0,Inputs!$J$11*((1+Inputs!$J$12)^(Calculations!A13-Calculations!$A$11))-((1+Inputs!$D$5)^(A13-$A$2))*VLOOKUP(CC13-1,Calculations!$CG$1:$CJ$18,3,FALSE)) -> 17593.6125 | E13: =IF(Inputs!$K$11*((1+Inputs!$J$12)^(Calculations!A13-Calculations!$A$11))-((1+Inputs!$D$5)^(A13-$A$2))*VLOOKUP(1,Calculations!$CG$1:$CJ$18,3,FALSE)<0,0,Inputs!$K$11*((1+Inputs!$J$12)^(Calculations!A13-Calculations!$A$11))-((1+Inputs!$D$5)^(A13-$A$2))*VLOOKUP(1,Calculations!$CG$1:$CJ$18,3,FALSE)) -> 38938.49878 | F13: =IF(Inputs!$J$11*((1+Inputs!$J$12)^(Calculations!A13-$A$11))+Inputs!$K$11*((1+Inputs!$K$12)^(A13-$A$11))-((1+Inputs!$D$5)^(A13-$A$2))*VLOOKUP(CC13,Calculations!$CG$1:$CJ$16,4,FALSE)<0,0,Inputs!$J$11*((1+Inputs!$J$12)^(Calculations!A13-$A$11))+Inputs!$K$11*((1+Inputs!$K$12)^(A13-$A$11))-((1+Inputs!$D$5)^(A13-$A$2))*VLOOKUP(CC13,Calculations!$CG$1:$CJ$16,4,FALSE)) -> 44987.6008 | G13: =IF(Inputs!$K$11="",Calculations!F13,IF(Inputs!$J$11*((1+Inputs!$J$12)^(Calculations!A13-Calculations!$A$11))-((1+Inputs!$D$5)^(A13-$A$2))*VLOOKUP(CC13-1,Calculations!$CG$1:$CJ$18,4,FALSE)<0,0,Inputs!$J$11*((1+Inputs!$J$12)^(Calculations!A13-Calculations!$A$11))-((1+Inputs!$D$5)^(A13-$A$2))*VLOOKUP(CC13-1,Calculations!$CG$1:$CJ$18,4,FALSE))) -> 0 | H13: =IF(Inputs!$K$11*((1+Inputs!$J$12)^(Calculations!A13-Calculations!$A$11))-((1+Inputs!$D$5)^(A13-$A$2))*VLOOKUP(1,Calculations!$CG$1:$CJ$18,4,FALSE)<0,0,Inputs!$K$11*((1+Inputs!$J$12)^(Calculations!A13-Calculations!$A$11))-((1+Inputs!$D$5)^(A13-$A$2))*VLOOKUP(1,Calculations!$CG$1:$CJ$18,4,FALSE)) -> 23801.90141 | I13: =IF($A13-Inputs!$D$6>24,"",(Inputs!$D$2/(Inputs!$D$2+Inputs!$D$3)*B13*0.1/12)) -> 317.220262 | J13: =IF(AND(Inputs!$D$3>=0,Inputs!$P$1=1),IF($A13-Inputs!$D$6>24,"",MIN((Inputs!$D$2/(Inputs!$D$2+Inputs!$D$3))*C13*0.15/12,$Y$2)),IF(Inputs!P12=3,IF($A13-Inputs!$D$6>24,"",MIN(C13*0.15/12,$Y$2)),IF($A13-Inputs!$D$6>24,"",MIN(D13*0.15/12,$Y$2)))) -> 219.9201562 | K13: =IF(AND(Inputs!$D$3>=0,Inputs!$P$1=1),IF($A13-Inputs!$D$6>19,"",MIN((Inputs!$D$2/(Inputs!$D$2+Inputs!$D$3))*C13*0.1/12,$Y$2)),IF(Inputs!P12=3,IF($A13-Inputs!$D$6>19,"",MIN(C13*0.1/12,$Y$2)),IF($A13-Inputs!$D$6>19,"",MIN(D13*0.1/12,$Y$2)))) -> 146.6134375 | L13: =IFERROR(IF(AND(OR(Inputs!$D$3>=0,Inputs!$D$3=""),Inputs!$P$1=1),(Inputs!$D$2/(Inputs!$D$2+Inputs!$D$3))*IF($A13-Inputs!$D$6>IF(Inputs!$D$9=0,19,24),"",F13*((0.1*Inputs!$D$9+0.05*(1-Inputs!$D$9)))/12),IF(Inputs!P12=3,IF($A13-Inputs!$D$6>IF(Inputs!$D$9=0,19,24),"",F13*((0.1*Inputs!$D$9+0.05*(1-Inputs!$D$9)))/12),IF($A13-Inputs!$D$6>IF(Inputs!$D$9=0,19,24),"",G13*((0.1*Inputs!$D$9+0.05*(1-Inputs!$D$9)))/12))),"") -> 0 | M13: 302.9901646 | N13: =IF($A13-Inputs!$D$6>24,"",(Inputs!$D$3/(Inputs!$D$2+Inputs!$D$3)*B13*0.1/12)) -> 317.220262 | O13: =IF(AND(Inputs!$D$3>0,Inputs!$P$1=1),IF($A13-Inputs!$D$6>24,"",MIN((Inputs!$D$3/(Inputs!$D$2+Inputs!$D$3))*C13*0.15/12,$Z$2)),IF(Inputs!P12=3,(Inputs!$D$3/(Inputs!$D$2+Inputs!$D$3))*IF($A13-Inputs!$D$6>24,"",MIN(C13*0.15/12,$Z$2)),IF($A13-Inputs!$D$6>24,"",MIN(E13*0.15/12,$Z$2)))) -> 486.7312348 | P13: =IF(AND(Inputs!$D$3>0,Inputs!$P$1=1),IF($A13-Inputs!$D$6>19,"",MIN((Inputs!$D$3/(Inputs!$D$2+Inputs!$D$3))*C13*0.1/12,$Z$2)),IF(Inputs!P12=3,(Inputs!$D$3/(Inputs!$D$2+Inputs!$D$3))*IF($A13-Inputs!$D$6>19,"",MIN(C13*0.1/12,$Z$2)),IF($A13-Inputs!$D$6>19,"",MIN(E13*0.1/12,$Z$2)))) -> 324.4874899 | Q13: =IFERROR(IF(OR(Inputs!$D$3=0,Inputs!$D$3=""),0,IF(AND(Inputs!$D$3>0,Inputs!$P$1=1),(Inputs!$D$3/(Inputs!$D$2+Inputs!$D$3))*IF($A13-Inputs!$D$6>IF(Inputs!$D$9=0,19,24),"",F13*((0.1*Inputs!$D$9+0.05*(1-Inputs!$D$9)))/12),IF(Inputs!P12=3,IF($A13-Inputs!$D$6>IF(Inputs!$D$9=0,19,24),"",F13*((0.1*Inputs!$D$9+0.05*(1-Inputs!$D$9)))/12),IF($A13-Inputs!$D$6>IF(Inputs!$D$9=0,19,24),"",H13*((0.1*Inputs!$D$9+0.05*(1-Inputs!$D$9)))/12)))),"") -> 198.3491784 | R13: 302.9901646 | S13: 634.4405241 | T13: 706.651391 | U13: 471.1009273 | V13: 198.3491784 | W13: 605.9803293 | X13: 1110.205019 | Y13: =IF(AF13="","",(Inputs!$D$2)*(((Inputs!$D$4/12)*((1+Inputs!$D$4/12)^120))/(((1+Inputs!$D$4/12)^120)-1))) -> 555.1025097 | Z13: =IF(AF13="","",(Inputs!$D$3)*(((Inputs!$D$4/12)*((1+Inputs!$D$4/12)^120))/(((1+Inputs!$D$4/12)^120)-1))) -> 555.1025097 | AA13: =IF(AA12=0,0,IF($A13-Inputs!$D$6>25,"",IF((AA12+IF(AS12<AG12,(AH12-AS12)/2,AG12-AS12))>0,AA12+IF(AS12<AG12,(AH12-AS12)/2,AG12-AS12),0))) -> 94523.4218 | AB13: =IF(AB12=0,0,IF($A13-Inputs!$D$6>25,"",IF(AB12-AT12+AH12>0,AB12-AT12+AH12,0))) -> 84857.84662 | AC13: =IF(AC12=0,0,IF($A13-Inputs!$D$6>20,"",IF(AC12-AU12+AI12>0,AC12-AU12+AI12,0))) -> 113692.9624 | AD13: =IF(AD12=0,0,IF($A13-Inputs!$D$6>IF(Inputs!$D$9=0,20,25),"",IF(AV12<$AD$2*Inputs!$D$4,IF(V12*12>AD12,0,AD12),IF(AD12-AV12+AJ12>0,AD12-AV12+AJ12,0)))) -> 100000 | AE13: 55875.84163 | AF13: 0 | AG13: =IF(AA13<AS12,0,IF(AA13="","",IF(Calculations!$A13-Inputs!$D$6>24,"",IF(AS13<$AA$2*Inputs!$D$4,$AA$2*Inputs!$D$4-($AA$2*Inputs!$D$4-AS13)/2,MIN($AA$2*Inputs!$D$4,AA13*Inputs!$D$4))))) -> 5671.405308 | AH13: =IF(AB13="","",IF(Calculations!$A13-Inputs!$D$6>24,"",IF(AB13>(Inputs!$D$2+Inputs!$D$3),(Inputs!$D$2+Inputs!$D$3)*Inputs!$D$4,IF(AB13<$X$3*12,0,AB13*Inputs!$D$4)))) -> 5091.470797 | AI13: =IF(AC13="","",IF(Calculations!$A13-Inputs!$D$6>24,"",IF(AC13>(Inputs!$D$2+Inputs!$D$3),(Inputs!$D$2+Inputs!$D$3)*Inputs!$D$4,IF(AC13<$X$3*12,0,AC13*Inputs!$D$4)))) -> 6000 | AJ13: =IF(AD13<AV12,0,IF(AD13="","",IF(Calculations!$A13-Inputs!$D$6>IF(Inputs!$D$9=0,19,24),"",IF(AV13<$AD$2*Inputs!$D$4,MAX(0,AV13),MIN($AD$2*Inputs!$D$4,AD13*Inputs!$D$4))))) -> 2380.190141 | AK13: =IF(AE13="","",IF(AE13<$AW$2,0,IF(AE13>(Inputs!$D$2+Inputs!$D$3),(Inputs!$D$2+Inputs!$D$3)*'Main page'!$N$5,AE13*'Main page'!$N$5))) -> 2235.033665 | AL13: =IF(AF13="","",IF(AF13<$AX$2,0,IF(AF13>(Inputs!$D$2+Inputs!$D$3),(Inputs!$D$2+Inputs!$D$3)*Inputs!$D$4,AF13*Inputs!$D$4))) -> 0 | AM13: =IFERROR(AG13/AA13,"") -> 0.06 | AN13: 0.06 | AO13: 0.05277371504 | AP13: 0.02380190141 | AQ13: 0.04 | AS13: =IFERROR(IF(OR(AA13="",AA13=0),"",IF(AA13<S13*12,AA13,S13*12)),"") -> 7613.286289 | AT13: 8479.816692 | AU13: 5653.211128 | AV13: 2380.190141 | AW13: 7271.763952 | AY13: =IF($A13-Inputs!$D$6>19,"",MIN((Inputs!$D$2/(Inputs!$D$2+Inputs!$D$3))*C13*0.1/12,$Y$2)) -> 317.220262 | AZ13: =IF($A13-Inputs!$D$6>19,"",MIN(D13*0.1/12,$Y$2)) -> 146.6134375 | BA13: =IF($A13-Inputs!$D$6>19,"",MIN((Inputs!$D$3/(Inputs!$D$2+Inputs!$D$3))*C13*0.1/12,$Z$2)) -> 317.220262 | BB13: =IF($A13-Inputs!$D$6>19,"",MIN(E13*0.1/12,$Z$2)) -> 324.4874899 | BC13: =(Inputs!$D$2/(Inputs!$D$2+Inputs!$D$3))*IF($A13-Inputs!$D$6>IF(Inputs!$D$9=0,19,24),"",F13*((0.1*Inputs!$D$9+0.05*(1-Inputs!$D$9)))/12) -> 187.4483367 | BD13: =IF($A13-Inputs!$D$6>IF(Inputs!$D$9=0,19,24),"",G13*((0.1*Inputs!$D$9+0.05*(1-Inputs!$D$9)))/12) -> 0 | BE13: =(Inputs!$D$3/(Inputs!$D$2+Inputs!$D$3))*IF($A13-Inputs!$D$6>IF(Inputs!$D$9=0,19,24),"",F13*((0.1*Inputs!$D$9+0.05*(1-Inputs!$D$9)))/12) -> 187.4483367 | BF13: =IF(Inputs!$D$3=0,0,1)*IF($A13-Inputs!$D$6>IF(Inputs!$D$9=0,19,24),"",H13*((0.1*Inputs!$D$9+0.05*(1-Inputs!$D$9)))/12) -> 198.3491784 | BG13: 634.4405241 | BH13: 374.8966733 | BI13: 471.1009273 | BJ13: 198.3491784 | BK13: -163.3395967 | BL13: -176.5474949 | BM13: =#REF! ->  | BN13: =IFERROR(((BI13-BG13)+#REF!/12)*12,"") ->  | BO13: =IFERROR(((BJ13-BH13)+#REF!/12)*12,"") ->  | BP13: =IFERROR(AS13/((1+'Main page'!$N$4)^($A13-$A$2)),"") -> 4451.330815 | BQ13: =IFERROR(AU13/((1+'Main page'!$N$4)^($A13-$A$2)),"") -> 3305.315463 | BR13: =IFERROR(AT13/((1+'Main page'!$N$4)^($A13-$A$2)),"") -> 4957.973195 | BS13: =IFERROR(AV13/((1+'Main page'!$N$4)^($A13-$A$2)),"") -> 1391.647879 | BT13: =IF(AW13="","",IFERROR(AW13/((1+'Main page'!$N$4)^($A13-$A$2)),"")) -> 4251.649778 | BU13: =IFERROR(AX13/((1+'Main page'!$N$4)^($A13-$A$2)),"") ->  | BW13: 2035 | BX13: 0 | BY13: 0 | BZ13: 0 | CA13: 0 | CB13: =IF(CB12=1,0,IF(AF13=0,0,IF(AX13=AF13,1,IF(AF13<AX13,1,0)))) -> 0 | CC13: =$CC$2+IF(AND(Inputs!$K$2="",Inputs!$K$8<>""),1,0)+IF(AND(Calculations!$A13>=Inputs!$G$6,Inputs!$G$6<>""),1,0)+IF(AND(Calculations!$A13>=Inputs!$G$7,Inputs!$G$7<>""),1,0)+IF(AND(Calculations!$A13>=Inputs!$G$8,Inputs!$G$8<>""),1,0)+IF(AND(Calculations!$A13>=Inputs!$G$9,Inputs!$G$9<>""),1,0) -> 4 | CG13: 12 | CH13: 71120 | CI13: 106680 | CJ13: 160020 | CK13: 2035 | CL13: =+CL12*(1+Inputs!$J$12) -> 138423.3871 | CM13: 1384.233871 | CN13: 2768.467741 | CO13: 4152.701612 | CP13: 5536.935483 | CQ13: 6921.169354 | CR13: 8305.403224 | CS13: 9689.637095 | CT13: 11073.87097 | CU13: 12458.10484 | CV13: 13842.33871 | CW13: 15226.57258 | CX13: 16610.80645 | CY13: 17995.04032 | CZ13: 19379.27419 | DA13: 20763.50806 | DB13: 22147.74193 | DC13: 23531.9758 | DD13: 24916.20967 | DE13: 26300.44354 | DF13: 27684.67741 | DG13: 2035 | DH13: =CM13*(1+'Main page'!$N$4)+DH12*(1+'Main page'!$N$4) -> 19430.01056 | DI13: =CN13*(1+'Main page'!$N$4)+DI12*(1+'Main page'!$N$4) -> 38860.02111 | DJ13: =CO13*(1+'Main page'!$N$4)+DJ12*(1+'Main page'!$N$4) -> 58290.03167 | DK13: =CP13*(1+'Main page'!$N$4)+DK12*(1+'Main page'!$N$4) -> 77720.04223 | DL13: =CQ13*(1+'Main page'!$N$4)+DL12*(1+'Main page'!$N$4) -> 97150.05278 | DM13: =CR13*(1+'Main page'!$N$4)+DM12*(1+'Main page'!$N$4) -> 116580.0633 | DN13: =CS13*(1+'Main page'!$N$4)+DN12*(1+'Main page'!$N$4) -> 136010.0739 | DO13: =CT13*(1+'Main page'!$N$4)+DO12*(1+'Main page'!$N$4) -> 155440.0845 | DP13: =CU13*(1+'Main page'!$N$4)+DP12*(1+'Main page'!$N$4) -> 174870.095 | DQ13: =CV13*(1+'Main page'!$N$4)+DQ12*(1+'Main page'!$N$4) -> 194300.1056 | DR13: =CW13*(1+'Main page'!$N$4)+DR12*(1+'Main page'!$N$4) -> 213730.1161 | DS13: =CX13*(1+'Main page'!$N$4)+DS12*(1+'Main page'!$N$4) -> 233160.1267 | DT13: =CY13*(1+'Main page'!$N$4)+DT12*(1+'Main page'!$N$4) -> 252590.1372 | DU13: =CZ13*(1+'Main page'!$N$4)+DU12*(1+'Main page'!$N$4) -> 272020.1478 | DV13: =DA13*(1+'Main page'!$N$4)+DV12*(1+'Main page'!$N$4) -> 291450.1584 | DW13: =DB13*(1+'Main page'!$N$4)+DW12*(1+'Main page'!$N$4) -> 310880.1689 | DX13: =DC13*(1+'Main page'!$N$4)+DX12*(1+'Main page'!$N$4) -> 330310.1795 | DY13: =DD13*(1+'Main page'!$N$4)+DY12*(1+'Main page'!$N$4) -> 349740.19 | DZ13: =DE13*(1+'Main page'!$N$4)+DZ12*(1+'Main page'!$N$4) -> 369170.2006 | EA13: =DF13*(1+'Main page'!$N$4)+EA12*(1+'Main page'!$N$4) -> 388600.2111 | EB13: 0.055 | EC13: 0.04084 | ED13: 0.06126 | EG13: =+EG12*(1+Inputs!$J$12) -> 138423.3871
A14: 2036 | B14: =IF((SUM(((1+Inputs!$J$12)^($A14-$A$11))*Inputs!$J$11+((1+Inputs!$K$12)^($A14-$A$11))*Inputs!$K$11)-VLOOKUP($CC14,Calculations!$CG$1:$CI$9,3,FALSE)*((1+Inputs!$D$5)^($A14-$A$2)))<=0,0,(SUM(((1+Inputs!$J$12)^($A14-$A$11))*Inputs!$J$11+((1+Inputs!$K$12)^($A14-$A$11))*Inputs!$K$11)-VLOOKUP($CC14,Calculations!$CG$1:$CI$9,3,FALSE)*((1+Inputs!$D$5)^($A14-$A$2)))) -> 78416.84878 | C14: =IF(Inputs!$J$11*((1+Inputs!$J$12)^(Calculations!A14-$A$11))+Inputs!$K$11*((1+Inputs!$K$12)^(A14-$A$11))-((1+Inputs!$D$5)^(A14-$A$2))*VLOOKUP(CC14,Calculations!$CG$1:$CJ$16,3,FALSE)<0,0,Inputs!$J$11*((1+Inputs!$J$12)^(Calculations!A14-$A$11))+Inputs!$K$11*((1+Inputs!$K$12)^(A14-$A$11))-((1+Inputs!$D$5)^(A14-$A$2))*VLOOKUP(CC14,Calculations!$CG$1:$CJ$16,3,FALSE)) -> 78416.84878 | D14: =IF(Inputs!$J$11*((1+Inputs!$J$12)^(Calculations!A14-Calculations!$A$11))-((1+Inputs!$D$5)^(A14-$A$2))*VLOOKUP(CC14-1,Calculations!$CG$1:$CJ$18,3,FALSE)<0,0,Inputs!$J$11*((1+Inputs!$J$12)^(Calculations!A14-Calculations!$A$11))-((1+Inputs!$D$5)^(A14-$A$2))*VLOOKUP(CC14-1,Calculations!$CG$1:$CJ$18,3,FALSE)) -> 18121.42087 | E14: =IF(Inputs!$K$11*((1+Inputs!$J$12)^(Calculations!A14-Calculations!$A$11))-((1+Inputs!$D$5)^(A14-$A$2))*VLOOKUP(1,Calculations!$CG$1:$CJ$18,3,FALSE)<0,0,Inputs!$K$11*((1+Inputs!$J$12)^(Calculations!A14-Calculations!$A$11))-((1+Inputs!$D$5)^(A14-$A$2))*VLOOKUP(1,Calculations!$CG$1:$CJ$18,3,FALSE)) -> 40106.65375 | F14: =IF(Inputs!$J$11*((1+Inputs!$J$12)^(Calculations!A14-$A$11))+Inputs!$K$11*((1+Inputs!$K$12)^(A14-$A$11))-((1+Inputs!$D$5)^(A14-$A$2))*VLOOKUP(CC14,Calculations!$CG$1:$CJ$16,4,FALSE)<0,0,Inputs!$J$11*((1+Inputs!$J$12)^(Calculations!A14-$A$11))+Inputs!$K$11*((1+Inputs!$K$12)^(A14-$A$11))-((1+Inputs!$D$5)^(A14-$A$2))*VLOOKUP(CC14,Calculations!$CG$1:$CJ$16,4,FALSE)) -> 46337.22882 | G14: =IF(Inputs!$K$11="",Calculations!F14,IF(Inputs!$J$11*((1+Inputs!$J$12)^(Calculations!A14-Calculations!$A$11))-((1+Inputs!$D$5)^(A14-$A$2))*VLOOKUP(CC14-1,Calculations!$CG$1:$CJ$18,4,FALSE)<0,0,Inputs!$J$11*((1+Inputs!$J$12)^(Calculations!A14-Calculations!$A$11))-((1+Inputs!$D$5)^(A14-$A$2))*VLOOKUP(CC14-1,Calculations!$CG$1:$CJ$18,4,FALSE))) -> 0 | H14: =IF(Inputs!$K$11*((1+Inputs!$J$12)^(Calculations!A14-Calculations!$A$11))-((1+Inputs!$D$5)^(A14-$A$2))*VLOOKUP(1,Calculations!$CG$1:$CJ$18,4,FALSE)<0,0,Inputs!$K$11*((1+Inputs!$J$12)^(Calculations!A14-Calculations!$A$11))-((1+Inputs!$D$5)^(A14-$A$2))*VLOOKUP(1,Calculations!$CG$1:$CJ$18,4,FALSE)) -> 24515.95845 | I14: =IF($A14-Inputs!$D$6>24,"",(Inputs!$D$2/(Inputs!$D$2+Inputs!$D$3)*B14*0.1/12)) -> 326.7368699 | J14: =IF(AND(Inputs!$D$3>=0,Inputs!$P$1=1),IF($A14-Inputs!$D$6>24,"",MIN((Inputs!$D$2/(Inputs!$D$2+Inputs!$D$3))*C14*0.15/12,$Y$2)),IF(Inputs!P13=3,IF($A14-Inputs!$D$6>24,"",MIN(C14*0.15/12,$Y$2)),IF($A14-Inputs!$D$6>24,"",MIN(D14*0.15/12,$Y$2)))) -> 226.5177609 | K14: =IF(AND(Inputs!$D$3>=0,Inputs!$P$1=1),IF($A14-Inputs!$D$6>19,"",MIN((Inputs!$D$2/(Inputs!$D$2+Inputs!$D$3))*C14*0.1/12,$Y$2)),IF(Inputs!P13=3,IF($A14-Inputs!$D$6>19,"",MIN(C14*0.1/12,$Y$2)),IF($A14-Inputs!$D$6>19,"",MIN(D14*0.1/12,$Y$2)))) -> 151.0118406 | L14: =IFERROR(IF(AND(OR(Inputs!$D$3>=0,Inputs!$D$3=""),Inputs!$P$1=1),(Inputs!$D$2/(Inputs!$D$2+Inputs!$D$3))*IF($A14-Inputs!$D$6>IF(Inputs!$D$9=0,19,24),"",F14*((0.1*Inputs!$D$9+0.05*(1-Inputs!$D$9)))/12),IF(Inputs!P13=3,IF($A14-Inputs!$D$6>IF(Inputs!$D$9=0,19,24),"",F14*((0.1*Inputs!$D$9+0.05*(1-Inputs!$D$9)))/12),IF($A14-Inputs!$D$6>IF(Inputs!$D$9=0,19,24),"",G14*((0.1*Inputs!$D$9+0.05*(1-Inputs!$D$9)))/12))),"") -> 0 | M14: 302.9901646 | N14: =IF($A14-Inputs!$D$6>24,"",(Inputs!$D$3/(Inputs!$D$2+Inputs!$D$3)*B14*0.1/12)) -> 326.7368699 | O14: =IF(AND(Inputs!$D$3>0,Inputs!$P$1=1),IF($A14-Inputs!$D$6>24,"",MIN((Inputs!$D$3/(Inputs!$D$2+Inputs!$D$3))*C14*0.15/12,$Z$2)),IF(Inputs!P13=3,(Inputs!$D$3/(Inputs!$D$2+Inputs!$D$3))*IF($A14-Inputs!$D$6>24,"",MIN(C14*0.15/12,$Z$2)),IF($A14-Inputs!$D$6>24,"",MIN(E14*0.15/12,$Z$2)))) -> 501.3331718 | P14: =IF(AND(Inputs!$D$3>0,Inputs!$P$1=1),IF($A14-Inputs!$D$6>19,"",MIN((Inputs!$D$3/(Inputs!$D$2+Inputs!$D$3))*C14*0.1/12,$Z$2)),IF(Inputs!P13=3,(Inputs!$D$3/(Inputs!$D$2+Inputs!$D$3))*IF($A14-Inputs!$D$6>19,"",MIN(C14*0.1/12,$Z$2)),IF($A14-Inputs!$D$6>19,"",MIN(E14*0.1/12,$Z$2)))) -> 334.2221146 | Q14: =IFERROR(IF(OR(Inputs!$D$3=0,Inputs!$D$3=""),0,IF(AND(Inputs!$D$3>0,Inputs!$P$1=1),(Inputs!$D$3/(Inputs!$D$2+Inputs!$D$3))*IF($A14-Inputs!$D$6>IF(Inputs!$D$9=0,19,24),"",F14*((0.1*Inputs!$D$9+0.05*(1-Inputs!$D$9)))/12),IF(Inputs!P13=3,IF($A14-Inputs!$D$6>IF(Inputs!$D$9=0,19,24),"",F14*((0.1*Inputs!$D$9+0.05*(1-Inputs!$D$9)))/12),IF($A14-Inputs!$D$6>IF(Inputs!$D$9=0,19,24),"",H14*((0.1*Inputs!$D$9+0.05*(1-Inputs!$D$9)))/12)))),"") -> 204.2996537 | R14: 302.9901646 | S14: 653.4737398 | T14: 727.8509327 | U14: 485.2339552 | V14: 204.2996537 | W14: 605.9803293 | Y14: =IF(AF14="","",(Inputs!$D$2)*(((Inputs!$D$4/12)*((1+Inputs!$D$4/12)^120))/(((1+Inputs!$D$4/12)^120)-1))) ->  | Z14: =IF(AF14="","",(Inputs!$D$3)*(((Inputs!$D$4/12)*((1+Inputs!$D$4/12)^120))/(((1+Inputs!$D$4/12)^120)-1))) ->  | AA14: =IF(AA13=0,0,IF($A14-Inputs!$D$6>25,"",IF((AA13+IF(AS13<AG13,(AH13-AS13)/2,AG13-AS13))>0,AA13+IF(AS13<AG13,(AH13-AS13)/2,AG13-AS13),0))) -> 92581.54082 | AB14: =IF(AB13=0,0,IF($A14-Inputs!$D$6>25,"",IF(AB13-AT13+AH13>0,AB13-AT13+AH13,0))) -> 81469.50073 | AC14: =IF(AC13=0,0,IF($A14-Inputs!$D$6>20,"",IF(AC13-AU13+AI13>0,AC13-AU13+AI13,0))) -> 114039.7513 | AD14: =IF(AD13=0,0,IF($A14-Inputs!$D$6>IF(Inputs!$D$9=0,20,25),"",IF(AV13<$AD$2*Inputs!$D$4,IF(V13*12>AD13,0,AD13),IF(AD13-AV13+AJ13>0,AD13-AV13+AJ13,0)))) -> 100000 | AE14: 50839.11134 | AG14: =IF(AA14<AS13,0,IF(AA14="","",IF(Calculations!$A14-Inputs!$D$6>24,"",IF(AS14<$AA$2*Inputs!$D$4,$AA$2*Inputs!$D$4-($AA$2*Inputs!$D$4-AS14)/2,MIN($AA$2*Inputs!$D$4,AA14*Inputs!$D$4))))) -> 5554.892449 | AH14: =IF(AB14="","",IF(Calculations!$A14-Inputs!$D$6>24,"",IF(AB14>(Inputs!$D$2+Inputs!$D$3),(Inputs!$D$2+Inputs!$D$3)*Inputs!$D$4,IF(AB14<$X$3*12,0,AB14*Inputs!$D$4)))) -> 4888.170044 | AI14: =IF(AC14="","",IF(Calculations!$A14-Inputs!$D$6>24,"",IF(AC14>(Inputs!$D$2+Inputs!$D$3),(Inputs!$D$2+Inputs!$D$3)*Inputs!$D$4,IF(AC14<$X$3*12,0,AC14*Inputs!$D$4)))) -> 6000 | AJ14: =IF(AD14<AV13,0,IF(AD14="","",IF(Calculations!$A14-Inputs!$D$6>IF(Inputs!$D$9=0,19,24),"",IF(AV14<$AD$2*Inputs!$D$4,MAX(0,AV14),MIN($AD$2*Inputs!$D$4,AD14*Inputs!$D$4))))) -> 2451.595845 | AK14: =IF(AE14="","",IF(AE14<$AW$2,0,IF(AE14>(Inputs!$D$2+Inputs!$D$3),(Inputs!$D$2+Inputs!$D$3)*'Main page'!$N$5,AE14*'Main page'!$N$5))) -> 2033.564454 | AL14: =IF(AF14="","",IF(AF14<$AX$2,0,IF(AF14>(Inputs!$D$2+Inputs!$D$3),(Inputs!$D$2+Inputs!$D$3)*Inputs!$D$4,AF14*Inputs!$D$4))) ->  | AM14: =IFERROR(AG14/AA14,"") -> 0.06 | AN14: 0.06 | AO14: 0.05261323296 | AP14: 0.02451595845 | AQ14: 0.04 | AS14: =IFERROR(IF(OR(AA14="",AA14=0),"",IF(AA14<S14*12,AA14,S14*12)),"") -> 7841.684878 | AT14: 8734.211193 | AU14: 5822.807462 | AV14: 2451.595845 | AW14: 7271.763952 | AY14: =IF($A14-Inputs!$D$6>19,"",MIN((Inputs!$D$2/(Inputs!$D$2+Inputs!$D$3))*C14*0.1/12,$Y$2)) -> 326.7368699 | AZ14: =IF($A14-Inputs!$D$6>19,"",MIN(D14*0.1/12,$Y$2)) -> 151.0118406 | BA14: =IF($A14-Inputs!$D$6>19,"",MIN((Inputs!$D$3/(Inputs!$D$2+Inputs!$D$3))*C14*0.1/12,$Z$2)) -> 326.7368699 | BB14: =IF($A14-Inputs!$D$6>19,"",MIN(E14*0.1/12,$Z$2)) -> 334.2221146 | BC14: =(Inputs!$D$2/(Inputs!$D$2+Inputs!$D$3))*IF($A14-Inputs!$D$6>IF(Inputs!$D$9=0,19,24),"",F14*((0.1*Inputs!$D$9+0.05*(1-Inputs!$D$9)))/12) -> 193.0717868 | BD14: =IF($A14-Inputs!$D$6>IF(Inputs!$D$9=0,19,24),"",G14*((0.1*Inputs!$D$9+0.05*(1-Inputs!$D$9)))/12) -> 0 | BE14: =(Inputs!$D$3/(Inputs!$D$2+Inputs!$D$3))*IF($A14-Inputs!$D$6>IF(Inputs!$D$9=0,19,24),"",F14*((0.1*Inputs!$D$9+0.05*(1-Inputs!$D$9)))/12) -> 193.0717868 | BF14: =IF(Inputs!$D$3=0,0,1)*IF($A14-Inputs!$D$6>IF(Inputs!$D$9=0,19,24),"",H14*((0.1*Inputs!$D$9+0.05*(1-Inputs!$D$9)))/12) -> 204.2996537 | BG14: 653.4737398 | BH14: 386.1435735 | BI14: 485.2339552 | BJ14: 204.2996537 | BK14: -168.2397846 | BL14: -181.8439198 | BM14: =#REF! ->  | BN14: =IFERROR(((BI14-BG14)+#REF!/12)*12,"") ->  | BO14: =IFERROR(((BJ14-BH14)+#REF!/12)*12,"") ->  | BP14: =IFERROR(AS14/((1+'Main page'!$N$4)^($A14-$A$2)),"") -> 4366.543561 | BQ14: =IFERROR(AU14/((1+'Main page'!$N$4)^($A14-$A$2)),"") -> 3242.357074 | BR14: =IFERROR(AT14/((1+'Main page'!$N$4)^($A14-$A$2)),"") -> 4863.53561 | BS14: =IFERROR(AV14/((1+'Main page'!$N$4)^($A14-$A$2)),"") -> 1365.140301 | BT14: =IF(AW14="","",IFERROR(AW14/((1+'Main page'!$N$4)^($A14-$A$2)),"")) -> 4049.190264 | BU14: =IFERROR(AX14/((1+'Main page'!$N$4)^($A14-$A$2)),"") ->  | BW14: 2036 | BX14: 0 | BY14: 0 | BZ14: 0 | CA14: 0 | CC14: =$CC$2+IF(AND(Inputs!$K$2="",Inputs!$K$8<>""),1,0)+IF(AND(Calculations!$A14>=Inputs!$G$6,Inputs!$G$6<>""),1,0)+IF(AND(Calculations!$A14>=Inputs!$G$7,Inputs!$G$7<>""),1,0)+IF(AND(Calculations!$A14>=Inputs!$G$8,Inputs!$G$8<>""),1,0)+IF(AND(Calculations!$A14>=Inputs!$G$9,Inputs!$G$9<>""),1,0) -> 4 | CG14: 13 | CH14: 76260 | CI14: 114390 | CJ14: 171585 | CK14: 2036 | CL14: =+CL13*(1+Inputs!$J$12) -> 142576.0887 | CM14: 1425.760887 | CN14: 2851.521774 | CO14: 4277.282661 | CP14: 5703.043547 | CQ14: 7128.804434 | CR14: 8554.565321 | CS14: 9980.326208 | CT14: 11406.08709 | CU14: 12831.84798 | CV14: 14257.60887 | CW14: 15683.36976 | CX14: 17109.13064 | CY14: 18534.89153 | CZ14: 19960.65242 | DA14: 21386.4133 | DB14: 22812.17419 | DC14: 24237.93508 | DD14: 25663.69596 | DE14: 27089.45685 | DF14: 28515.21774 | DG14: 2036 | DH14: =CM14*(1+'Main page'!$N$4)+DH13*(1+'Main page'!$N$4) -> 21898.56002 | DI14: =CN14*(1+'Main page'!$N$4)+DI13*(1+'Main page'!$N$4) -> 43797.12003 | DJ14: =CO14*(1+'Main page'!$N$4)+DJ13*(1+'Main page'!$N$4) -> 65695.68005 | DK14: =CP14*(1+'Main page'!$N$4)+DK13*(1+'Main page'!$N$4) -> 87594.24006 | DL14: =CQ14*(1+'Main page'!$N$4)+DL13*(1+'Main page'!$N$4) -> 109492.8001 | DM14: =CR14*(1+'Main page'!$N$4)+DM13*(1+'Main page'!$N$4) -> 131391.3601 | DN14: =CS14*(1+'Main page'!$N$4)+DN13*(1+'Main page'!$N$4) -> 153289.9201 | DO14: =CT14*(1+'Main page'!$N$4)+DO13*(1+'Main page'!$N$4) -> 175188.4801 | DP14: =CU14*(1+'Main page'!$N$4)+DP13*(1+'Main page'!$N$4) -> 197087.0401 | DQ14: =CV14*(1+'Main page'!$N$4)+DQ13*(1+'Main page'!$N$4) -> 218985.6002 | DR14: =CW14*(1+'Main page'!$N$4)+DR13*(1+'Main page'!$N$4) -> 240884.1602 | DS14: =CX14*(1+'Main page'!$N$4)+DS13*(1+'Main page'!$N$4) -> 262782.7202 | DT14: =CY14*(1+'Main page'!$N$4)+DT13*(1+'Main page'!$N$4) -> 284681.2802 | DU14: =CZ14*(1+'Main page'!$N$4)+DU13*(1+'Main page'!$N$4) -> 306579.8402 | DV14: =DA14*(1+'Main page'!$N$4)+DV13*(1+'Main page'!$N$4) -> 328478.4002 | DW14: =DB14*(1+'Main page'!$N$4)+DW13*(1+'Main page'!$N$4) -> 350376.9603 | DX14: =DC14*(1+'Main page'!$N$4)+DX13*(1+'Main page'!$N$4) -> 372275.5203 | DY14: =DD14*(1+'Main page'!$N$4)+DY13*(1+'Main page'!$N$4) -> 394174.0803 | DZ14: =DE14*(1+'Main page'!$N$4)+DZ13*(1+'Main page'!$N$4) -> 416072.6403 | EA14: =DF14*(1+'Main page'!$N$4)+EA13*(1+'Main page'!$N$4) -> 437971.2003 | EB14: 0.055 | EC14: 0.04084 | ED14: 0.06126 | EG14: =+EG13*(1+Inputs!$J$12) -> 142576.0887
A15: 2037 | B15: =IF((SUM(((1+Inputs!$J$12)^($A15-$A$11))*Inputs!$J$11+((1+Inputs!$K$12)^($A15-$A$11))*Inputs!$K$11)-VLOOKUP($CC15,Calculations!$CG$1:$CI$9,3,FALSE)*((1+Inputs!$D$5)^($A15-$A$2)))<=0,0,(SUM(((1+Inputs!$J$12)^($A15-$A$11))*Inputs!$J$11+((1+Inputs!$K$12)^($A15-$A$11))*Inputs!$K$11)-VLOOKUP($CC15,Calculations!$CG$1:$CI$9,3,FALSE)*((1+Inputs!$D$5)^($A15-$A$2)))) -> 80769.35424 | C15: =IF(Inputs!$J$11*((1+Inputs!$J$12)^(Calculations!A15-$A$11))+Inputs!$K$11*((1+Inputs!$K$12)^(A15-$A$11))-((1+Inputs!$D$5)^(A15-$A$2))*VLOOKUP(CC15,Calculations!$CG$1:$CJ$16,3,FALSE)<0,0,Inputs!$J$11*((1+Inputs!$J$12)^(Calculations!A15-$A$11))+Inputs!$K$11*((1+Inputs!$K$12)^(A15-$A$11))-((1+Inputs!$D$5)^(A15-$A$2))*VLOOKUP(CC15,Calculations!$CG$1:$CJ$16,3,FALSE)) -> 80769.35424 | D15: =IF(Inputs!$J$11*((1+Inputs!$J$12)^(Calculations!A15-Calculations!$A$11))-((1+Inputs!$D$5)^(A15-$A$2))*VLOOKUP(CC15-1,Calculations!$CG$1:$CJ$18,3,FALSE)<0,0,Inputs!$J$11*((1+Inputs!$J$12)^(Calculations!A15-Calculations!$A$11))-((1+Inputs!$D$5)^(A15-$A$2))*VLOOKUP(CC15-1,Calculations!$CG$1:$CJ$18,3,FALSE)) -> 18665.0635 | E15: =IF(Inputs!$K$11*((1+Inputs!$J$12)^(Calculations!A15-Calculations!$A$11))-((1+Inputs!$D$5)^(A15-$A$2))*VLOOKUP(1,Calculations!$CG$1:$CJ$18,3,FALSE)<0,0,Inputs!$K$11*((1+Inputs!$J$12)^(Calculations!A15-Calculations!$A$11))-((1+Inputs!$D$5)^(A15-$A$2))*VLOOKUP(1,Calculations!$CG$1:$CJ$18,3,FALSE)) -> 41309.85336 | F15: =IF(Inputs!$J$11*((1+Inputs!$J$12)^(Calculations!A15-$A$11))+Inputs!$K$11*((1+Inputs!$K$12)^(A15-$A$11))-((1+Inputs!$D$5)^(A15-$A$2))*VLOOKUP(CC15,Calculations!$CG$1:$CJ$16,4,FALSE)<0,0,Inputs!$J$11*((1+Inputs!$J$12)^(Calculations!A15-$A$11))+Inputs!$K$11*((1+Inputs!$K$12)^(A15-$A$11))-((1+Inputs!$D$5)^(A15-$A$2))*VLOOKUP(CC15,Calculations!$CG$1:$CJ$16,4,FALSE)) -> 47727.34569 | G15: =IF(Inputs!$K$11="",Calculations!F15,IF(Inputs!$J$11*((1+Inputs!$J$12)^(Calculations!A15-Calculations!$A$11))-((1+Inputs!$D$5)^(A15-$A$2))*VLOOKUP(CC15-1,Calculations!$CG$1:$CJ$18,4,FALSE)<0,0,Inputs!$J$11*((1+Inputs!$J$12)^(Calculations!A15-Calculations!$A$11))-((1+Inputs!$D$5)^(A15-$A$2))*VLOOKUP(CC15-1,Calculations!$CG$1:$CJ$18,4,FALSE))) -> 0 | H15: =IF(Inputs!$K$11*((1+Inputs!$J$12)^(Calculations!A15-Calculations!$A$11))-((1+Inputs!$D$5)^(A15-$A$2))*VLOOKUP(1,Calculations!$CG$1:$CJ$18,4,FALSE)<0,0,Inputs!$K$11*((1+Inputs!$J$12)^(Calculations!A15-Calculations!$A$11))-((1+Inputs!$D$5)^(A15-$A$2))*VLOOKUP(1,Calculations!$CG$1:$CJ$18,4,FALSE)) -> 25251.4372 | I15: =IF($A15-Inputs!$D$6>24,"",(Inputs!$D$2/(Inputs!$D$2+Inputs!$D$3)*B15*0.1/12)) -> 336.538976 | J15: =IF(AND(Inputs!$D$3>=0,Inputs!$P$1=1),IF($A15-Inputs!$D$6>24,"",MIN((Inputs!$D$2/(Inputs!$D$2+Inputs!$D$3))*C15*0.15/12,$Y$2)),IF(Inputs!P14=3,IF($A15-Inputs!$D$6>24,"",MIN(C15*0.15/12,$Y$2)),IF($A15-Inputs!$D$6>24,"",MIN(D15*0.15/12,$Y$2)))) -> 233.3132937 | K15: =IF(AND(Inputs!$D$3>=0,Inputs!$P$1=1),IF($A15-Inputs!$D$6>19,"",MIN((Inputs!$D$2/(Inputs!$D$2+Inputs!$D$3))*C15*0.1/12,$Y$2)),IF(Inputs!P14=3,IF($A15-Inputs!$D$6>19,"",MIN(C15*0.1/12,$Y$2)),IF($A15-Inputs!$D$6>19,"",MIN(D15*0.1/12,$Y$2)))) -> 155.5421958 | L15: =IFERROR(IF(AND(OR(Inputs!$D$3>=0,Inputs!$D$3=""),Inputs!$P$1=1),(Inputs!$D$2/(Inputs!$D$2+Inputs!$D$3))*IF($A15-Inputs!$D$6>IF(Inputs!$D$9=0,19,24),"",F15*((0.1*Inputs!$D$9+0.05*(1-Inputs!$D$9)))/12),IF(Inputs!P14=3,IF($A15-Inputs!$D$6>IF(Inputs!$D$9=0,19,24),"",F15*((0.1*Inputs!$D$9+0.05*(1-Inputs!$D$9)))/12),IF($A15-Inputs!$D$6>IF(Inputs!$D$9=0,19,24),"",G15*((0.1*Inputs!$D$9+0.05*(1-Inputs!$D$9)))/12))),"") -> 0 | M15: 302.9901646 | N15: =IF($A15-Inputs!$D$6>24,"",(Inputs!$D$3/(Inputs!$D$2+Inputs!$D$3)*B15*0.1/12)) -> 336.538976 | O15: =IF(AND(Inputs!$D$3>0,Inputs!$P$1=1),IF($A15-Inputs!$D$6>24,"",MIN((Inputs!$D$3/(Inputs!$D$2+Inputs!$D$3))*C15*0.15/12,$Z$2)),IF(Inputs!P14=3,(Inputs!$D$3/(Inputs!$D$2+Inputs!$D$3))*IF($A15-Inputs!$D$6>24,"",MIN(C15*0.15/12,$Z$2)),IF($A15-Inputs!$D$6>24,"",MIN(E15*0.15/12,$Z$2)))) -> 516.373167 | P15: =IF(AND(Inputs!$D$3>0,Inputs!$P$1=1),IF($A15-Inputs!$D$6>19,"",MIN((Inputs!$D$3/(Inputs!$D$2+Inputs!$D$3))*C15*0.1/12,$Z$2)),IF(Inputs!P14=3,(Inputs!$D$3/(Inputs!$D$2+Inputs!$D$3))*IF($A15-Inputs!$D$6>19,"",MIN(C15*0.1/12,$Z$2)),IF($A15-Inputs!$D$6>19,"",MIN(E15*0.1/12,$Z$2)))) -> 344.248778 | Q15: =IFERROR(IF(OR(Inputs!$D$3=0,Inputs!$D$3=""),0,IF(AND(Inputs!$D$3>0,Inputs!$P$1=1),(Inputs!$D$3/(Inputs!$D$2+Inputs!$D$3))*IF($A15-Inputs!$D$6>IF(Inputs!$D$9=0,19,24),"",F15*((0.1*Inputs!$D$9+0.05*(1-Inputs!$D$9)))/12),IF(Inputs!P14=3,IF($A15-Inputs!$D$6>IF(Inputs!$D$9=0,19,24),"",F15*((0.1*Inputs!$D$9+0.05*(1-Inputs!$D$9)))/12),IF($A15-Inputs!$D$6>IF(Inputs!$D$9=0,19,24),"",H15*((0.1*Inputs!$D$9+0.05*(1-Inputs!$D$9)))/12)))),"") -> 210.4286434 | R15: 302.9901646 | S15: 673.077952 | T15: 749.6864607 | U15: 499.7909738 | V15: 210.4286434 | W15: 605.9803293 | Y15: =IF(AF15="","",(Inputs!$D$2)*(((Inputs!$D$4/12)*((1+Inputs!$D$4/12)^120))/(((1+Inputs!$D$4/12)^120)-1))) ->  | Z15: =IF(AF15="","",(Inputs!$D$3)*(((Inputs!$D$4/12)*((1+Inputs!$D$4/12)^120))/(((1+Inputs!$D$4/12)^120)-1))) ->  | AA15: =IF(AA14=0,0,IF($A15-Inputs!$D$6>25,"",IF((AA14+IF(AS14<AG14,(AH14-AS14)/2,AG14-AS14))>0,AA14+IF(AS14<AG14,(AH14-AS14)/2,AG14-AS14),0))) -> 90294.74839 | AB15: =IF(AB14=0,0,IF($A15-Inputs!$D$6>25,"",IF(AB14-AT14+AH14>0,AB14-AT14+AH14,0))) -> 77623.45958 | AC15: =IF(AC14=0,0,IF($A15-Inputs!$D$6>20,"",IF(AC14-AU14+AI14>0,AC14-AU14+AI14,0))) -> 114216.9438 | AD15: =IF(AD14=0,0,IF($A15-Inputs!$D$6>IF(Inputs!$D$9=0,20,25),"",IF(AV14<$AD$2*Inputs!$D$4,IF(V14*12>AD14,0,AD14),IF(AD14-AV14+AJ14>0,AD14-AV14+AJ14,0)))) -> 100000 | AE15: 45600.91184 | AG15: =IF(AA15<AS14,0,IF(AA15="","",IF(Calculations!$A15-Inputs!$D$6>24,"",IF(AS15<$AA$2*Inputs!$D$4,$AA$2*Inputs!$D$4-($AA$2*Inputs!$D$4-AS15)/2,MIN($AA$2*Inputs!$D$4,AA15*Inputs!$D$4))))) -> 5417.684903 | AH15: =IF(AB15="","",IF(Calculations!$A15-Inputs!$D$6>24,"",IF(AB15>(Inputs!$D$2+Inputs!$D$3),(Inputs!$D$2+Inputs!$D$3)*Inputs!$D$4,IF(AB15<$X$3*12,0,AB15*Inputs!$D$4)))) -> 4657.407575 | AI15: =IF(AC15="","",IF(Calculations!$A15-Inputs!$D$6>24,"",IF(AC15>(Inputs!$D$2+Inputs!$D$3),(Inputs!$D$2+Inputs!$D$3)*Inputs!$D$4,IF(AC15<$X$3*12,0,AC15*Inputs!$D$4)))) -> 6000 | AJ15: =IF(AD15<AV14,0,IF(AD15="","",IF(Calculations!$A15-Inputs!$D$6>IF(Inputs!$D$9=0,19,24),"",IF(AV15<$AD$2*Inputs!$D$4,MAX(0,AV15),MIN($AD$2*Inputs!$D$4,AD15*Inputs!$D$4))))) -> 2525.14372 | AK15: =IF(AE15="","",IF(AE15<$AW$2,0,IF(AE15>(Inputs!$D$2+Inputs!$D$3),(Inputs!$D$2+Inputs!$D$3)*'Main page'!$N$5,AE15*'Main page'!$N$5))) -> 1824.036474 | AL15: =IF(AF15="","",IF(AF15<$AX$2,0,IF(AF15>(Inputs!$D$2+Inputs!$D$3),(Inputs!$D$2+Inputs!$D$3)*Inputs!$D$4,AF15*Inputs!$D$4))) ->  | AM15: =IFERROR(AG15/AA15,"") -> 0.06 | AN15: 0.06 | AO15: 0.05253161046 | AP15: 0.0252514372 | AQ15: 0.04 | AS15: =IFERROR(IF(OR(AA15="",AA15=0),"",IF(AA15<S15*12,AA15,S15*12)),"") -> 8076.935424 | AT15: 8996.237529 | AU15: 5997.491686 | AV15: 2525.14372 | AW15: 7271.763952 | AY15: =IF($A15-Inputs!$D$6>19,"",MIN((Inputs!$D$2/(Inputs!$D$2+Inputs!$D$3))*C15*0.1/12,$Y$2)) -> 336.538976 | AZ15: =IF($A15-Inputs!$D$6>19,"",MIN(D15*0.1/12,$Y$2)) -> 155.5421958 | BA15: =IF($A15-Inputs!$D$6>19,"",MIN((Inputs!$D$3/(Inputs!$D$2+Inputs!$D$3))*C15*0.1/12,$Z$2)) -> 336.538976 | BB15: =IF($A15-Inputs!$D$6>19,"",MIN(E15*0.1/12,$Z$2)) -> 344.248778 | BC15: =(Inputs!$D$2/(Inputs!$D$2+Inputs!$D$3))*IF($A15-Inputs!$D$6>IF(Inputs!$D$9=0,19,24),"",F15*((0.1*Inputs!$D$9+0.05*(1-Inputs!$D$9)))/12) -> 198.8639404 | BD15: =IF($A15-Inputs!$D$6>IF(Inputs!$D$9=0,19,24),"",G15*((0.1*Inputs!$D$9+0.05*(1-Inputs!$D$9)))/12) -> 0 | BE15: =(Inputs!$D$3/(Inputs!$D$2+Inputs!$D$3))*IF($A15-Inputs!$D$6>IF(Inputs!$D$9=0,19,24),"",F15*((0.1*Inputs!$D$9+0.05*(1-Inputs!$D$9)))/12) -> 198.8639404 | BF15: =IF(Inputs!$D$3=0,0,1)*IF($A15-Inputs!$D$6>IF(Inputs!$D$9=0,19,24),"",H15*((0.1*Inputs!$D$9+0.05*(1-Inputs!$D$9)))/12) -> 210.4286434 | BG15: 673.077952 | BH15: 397.7278807 | BI15: 499.7909738 | BJ15: 210.4286434 | BK15: -173.2869782 | BL15: -187.2992374 | BM15: =#REF! ->  | BN15: =IFERROR(((BI15-BG15)+#REF!/12)*12,"") ->  | BO15: =IFERROR(((BJ15-BH15)+#REF!/12)*12,"") ->  | BP15: =IFERROR(AS15/((1+'Main page'!$N$4)^($A15-$A$2)),"") -> 4283.371303 | BQ15: =IFERROR(AU15/((1+'Main page'!$N$4)^($A15-$A$2)),"") -> 3180.597891 | BR15: =IFERROR(AT15/((1+'Main page'!$N$4)^($A15-$A$2)),"") -> 4770.896837 | BS15: =IFERROR(AV15/((1+'Main page'!$N$4)^($A15-$A$2)),"") -> 1339.137628 | BT15: =IF(AW15="","",IFERROR(AW15/((1+'Main page'!$N$4)^($A15-$A$2)),"")) -> 3856.37168 | BU15: =IFERROR(AX15/((1+'Main page'!$N$4)^($A15-$A$2)),"") ->  | BW15: 2037 | BX15: 0 | BY15: 0 | BZ15: 0 | CA15: 0 | CC15: =$CC$2+IF(AND(Inputs!$K$2="",Inputs!$K$8<>""),1,0)+IF(AND(Calculations!$A15>=Inputs!$G$6,Inputs!$G$6<>""),1,0)+IF(AND(Calculations!$A15>=Inputs!$G$7,Inputs!$G$7<>""),1,0)+IF(AND(Calculations!$A15>=Inputs!$G$8,Inputs!$G$8<>""),1,0)+IF(AND(Calculations!$A15>=Inputs!$G$9,Inputs!$G$9<>""),1,0) -> 4 | CG15: 14 | CH15: 81400 | CI15: 122100 | CJ15: 183150 | CK15: 2037 | CL15: =+CL14*(1+Inputs!$J$12) -> 146853.3713 | CM15: 1468.533713 | CN15: 2937.067427 | CO15: 4405.60114 | CP15: 5874.134854 | CQ15: 7342.668567 | CR15: 8811.202281 | CS15: 10279.73599 | CT15: 11748.26971 | CU15: 13216.80342 | CV15: 14685.33713 | CW15: 16153.87085 | CX15: 17622.40456 | CY15: 19090.93827 | CZ15: 20559.47199 | DA15: 22028.0057 | DB15: 23496.53942 | DC15: 24965.07313 | DD15: 26433.60684 | DE15: 27902.14056 | DF15: 29370.67427 | DG15: 2037 | DH15: =CM15*(1+'Main page'!$N$4)+DH14*(1+'Main page'!$N$4) -> 24535.44842 | DI15: =CN15*(1+'Main page'!$N$4)+DI14*(1+'Main page'!$N$4) -> 49070.89683 | DJ15: =CO15*(1+'Main page'!$N$4)+DJ14*(1+'Main page'!$N$4) -> 73606.34525 | DK15: =CP15*(1+'Main page'!$N$4)+DK14*(1+'Main page'!$N$4) -> 98141.79366 | DL15: =CQ15*(1+'Main page'!$N$4)+DL14*(1+'Main page'!$N$4) -> 122677.2421 | DM15: =CR15*(1+'Main page'!$N$4)+DM14*(1+'Main page'!$N$4) -> 147212.6905 | DN15: =CS15*(1+'Main page'!$N$4)+DN14*(1+'Main page'!$N$4) -> 171748.1389 | DO15: =CT15*(1+'Main page'!$N$4)+DO14*(1+'Main page'!$N$4) -> 196283.5873 | DP15: =CU15*(1+'Main page'!$N$4)+DP14*(1+'Main page'!$N$4) -> 220819.0357 | DQ15: =CV15*(1+'Main page'!$N$4)+DQ14*(1+'Main page'!$N$4) -> 245354.4842 | DR15: =CW15*(1+'Main page'!$N$4)+DR14*(1+'Main page'!$N$4) -> 269889.9326 | DS15: =CX15*(1+'Main page'!$N$4)+DS14*(1+'Main page'!$N$4) -> 294425.381 | DT15: =CY15*(1+'Main page'!$N$4)+DT14*(1+'Main page'!$N$4) -> 318960.8294 | DU15: =CZ15*(1+'Main page'!$N$4)+DU14*(1+'Main page'!$N$4) -> 343496.2778 | DV15: =DA15*(1+'Main page'!$N$4)+DV14*(1+'Main page'!$N$4) -> 368031.7262 | DW15: =DB15*(1+'Main page'!$N$4)+DW14*(1+'Main page'!$N$4) -> 392567.1747 | DX15: =DC15*(1+'Main page'!$N$4)+DX14*(1+'Main page'!$N$4) -> 417102.6231 | DY15: =DD15*(1+'Main page'!$N$4)+DY14*(1+'Main page'!$N$4) -> 441638.0715 | DZ15: =DE15*(1+'Main page'!$N$4)+DZ14*(1+'Main page'!$N$4) -> 466173.5199 | EA15: =DF15*(1+'Main page'!$N$4)+EA14*(1+'Main page'!$N$4) -> 490708.9683 | EB15: 0.055 | EC15: 0.04084 | ED15: 0.06126 | EG15: =+EG14*(1+Inputs!$J$12) -> 146853.3713
A16: 2038 | B16: =IF((SUM(((1+Inputs!$J$12)^($A16-$A$11))*Inputs!$J$11+((1+Inputs!$K$12)^($A16-$A$11))*Inputs!$K$11)-VLOOKUP($CC16,Calculations!$CG$1:$CI$9,3,FALSE)*((1+Inputs!$D$5)^($A16-$A$2)))<=0,0,(SUM(((1+Inputs!$J$12)^($A16-$A$11))*Inputs!$J$11+((1+Inputs!$K$12)^($A16-$A$11))*Inputs!$K$11)-VLOOKUP($CC16,Calculations!$CG$1:$CI$9,3,FALSE)*((1+Inputs!$D$5)^($A16-$A$2)))) -> 83192.43487 | C16: =IF(Inputs!$J$11*((1+Inputs!$J$12)^(Calculations!A16-$A$11))+Inputs!$K$11*((1+Inputs!$K$12)^(A16-$A$11))-((1+Inputs!$D$5)^(A16-$A$2))*VLOOKUP(CC16,Calculations!$CG$1:$CJ$16,3,FALSE)<0,0,Inputs!$J$11*((1+Inputs!$J$12)^(Calculations!A16-$A$11))+Inputs!$K$11*((1+Inputs!$K$12)^(A16-$A$11))-((1+Inputs!$D$5)^(A16-$A$2))*VLOOKUP(CC16,Calculations!$CG$1:$CJ$16,3,FALSE)) -> 83192.43487 | D16: =IF(Inputs!$J$11*((1+Inputs!$J$12)^(Calculations!A16-Calculations!$A$11))-((1+Inputs!$D$5)^(A16-$A$2))*VLOOKUP(CC16-1,Calculations!$CG$1:$CJ$18,3,FALSE)<0,0,Inputs!$J$11*((1+Inputs!$J$12)^(Calculations!A16-Calculations!$A$11))-((1+Inputs!$D$5)^(A16-$A$2))*VLOOKUP(CC16-1,Calculations!$CG$1:$CJ$18,3,FALSE)) -> 19225.0154 | E16: =IF(Inputs!$K$11*((1+Inputs!$J$12)^(Calculations!A16-Calculations!$A$11))-((1+Inputs!$D$5)^(A16-$A$2))*VLOOKUP(1,Calculations!$CG$1:$CJ$18,3,FALSE)<0,0,Inputs!$K$11*((1+Inputs!$J$12)^(Calculations!A16-Calculations!$A$11))-((1+Inputs!$D$5)^(A16-$A$2))*VLOOKUP(1,Calculations!$CG$1:$CJ$18,3,FALSE)) -> 42549.14896 | F16: =IF(Inputs!$J$11*((1+Inputs!$J$12)^(Calculations!A16-$A$11))+Inputs!$K$11*((1+Inputs!$K$12)^(A16-$A$11))-((1+Inputs!$D$5)^(A16-$A$2))*VLOOKUP(CC16,Calculations!$CG$1:$CJ$16,4,FALSE)<0,0,Inputs!$J$11*((1+Inputs!$J$12)^(Calculations!A16-$A$11))+Inputs!$K$11*((1+Inputs!$K$12)^(A16-$A$11))-((1+Inputs!$D$5)^(A16-$A$2))*VLOOKUP(CC16,Calculations!$CG$1:$CJ$16,4,FALSE)) -> 49159.16606 | G16: =IF(Inputs!$K$11="",Calculations!F16,IF(Inputs!$J$11*((1+Inputs!$J$12)^(Calculations!A16-Calculations!$A$11))-((1+Inputs!$D$5)^(A16-$A$2))*VLOOKUP(CC16-1,Calculations!$CG$1:$CJ$18,4,FALSE)<0,0,Inputs!$J$11*((1+Inputs!$J$12)^(Calculations!A16-Calculations!$A$11))-((1+Inputs!$D$5)^(A16-$A$2))*VLOOKUP(CC16-1,Calculations!$CG$1:$CJ$18,4,FALSE))) -> 0 | H16: =IF(Inputs!$K$11*((1+Inputs!$J$12)^(Calculations!A16-Calculations!$A$11))-((1+Inputs!$D$5)^(A16-$A$2))*VLOOKUP(1,Calculations!$CG$1:$CJ$18,4,FALSE)<0,0,Inputs!$K$11*((1+Inputs!$J$12)^(Calculations!A16-Calculations!$A$11))-((1+Inputs!$D$5)^(A16-$A$2))*VLOOKUP(1,Calculations!$CG$1:$CJ$18,4,FALSE)) -> 26008.98032 | I16: =IF($A16-Inputs!$D$6>24,"",(Inputs!$D$2/(Inputs!$D$2+Inputs!$D$3)*B16*0.1/12)) -> 346.6351453 | J16: =IF(AND(Inputs!$D$3>=0,Inputs!$P$1=1),IF($A16-Inputs!$D$6>24,"",MIN((Inputs!$D$2/(Inputs!$D$2+Inputs!$D$3))*C16*0.15/12,$Y$2)),IF(Inputs!P15=3,IF($A16-Inputs!$D$6>24,"",MIN(C16*0.15/12,$Y$2)),IF($A16-Inputs!$D$6>24,"",MIN(D16*0.15/12,$Y$2)))) -> 240.3126925 | K16: =IF(AND(Inputs!$D$3>=0,Inputs!$P$1=1),IF($A16-Inputs!$D$6>19,"",MIN((Inputs!$D$2/(Inputs!$D$2+Inputs!$D$3))*C16*0.1/12,$Y$2)),IF(Inputs!P15=3,IF($A16-Inputs!$D$6>19,"",MIN(C16*0.1/12,$Y$2)),IF($A16-Inputs!$D$6>19,"",MIN(D16*0.1/12,$Y$2)))) -> 160.2084617 | L16: =IFERROR(IF(AND(OR(Inputs!$D$3>=0,Inputs!$D$3=""),Inputs!$P$1=1),(Inputs!$D$2/(Inputs!$D$2+Inputs!$D$3))*IF($A16-Inputs!$D$6>IF(Inputs!$D$9=0,19,24),"",F16*((0.1*Inputs!$D$9+0.05*(1-Inputs!$D$9)))/12),IF(Inputs!P15=3,IF($A16-Inputs!$D$6>IF(Inputs!$D$9=0,19,24),"",F16*((0.1*Inputs!$D$9+0.05*(1-Inputs!$D$9)))/12),IF($A16-Inputs!$D$6>IF(Inputs!$D$9=0,19,24),"",G16*((0.1*Inputs!$D$9+0.05*(1-Inputs!$D$9)))/12))),"") -> 0 | M16: 302.9901646 | N16: =IF($A16-Inputs!$D$6>24,"",(Inputs!$D$3/(Inputs!$D$2+Inputs!$D$3)*B16*0.1/12)) -> 346.6351453 | O16: =IF(AND(Inputs!$D$3>0,Inputs!$P$1=1),IF($A16-Inputs!$D$6>24,"",MIN((Inputs!$D$3/(Inputs!$D$2+Inputs!$D$3))*C16*0.15/12,$Z$2)),IF(Inputs!P15=3,(Inputs!$D$3/(Inputs!$D$2+Inputs!$D$3))*IF($A16-Inputs!$D$6>24,"",MIN(C16*0.15/12,$Z$2)),IF($A16-Inputs!$D$6>24,"",MIN(E16*0.15/12,$Z$2)))) -> 531.864362 | P16: =IF(AND(Inputs!$D$3>0,Inputs!$P$1=1),IF($A16-Inputs!$D$6>19,"",MIN((Inputs!$D$3/(Inputs!$D$2+Inputs!$D$3))*C16*0.1/12,$Z$2)),IF(Inputs!P15=3,(Inputs!$D$3/(Inputs!$D$2+Inputs!$D$3))*IF($A16-Inputs!$D$6>19,"",MIN(C16*0.1/12,$Z$2)),IF($A16-Inputs!$D$6>19,"",MIN(E16*0.1/12,$Z$2)))) -> 354.5762413 | Q16: =IFERROR(IF(OR(Inputs!$D$3=0,Inputs!$D$3=""),0,IF(AND(Inputs!$D$3>0,Inputs!$P$1=1),(Inputs!$D$3/(Inputs!$D$2+Inputs!$D$3))*IF($A16-Inputs!$D$6>IF(Inputs!$D$9=0,19,24),"",F16*((0.1*Inputs!$D$9+0.05*(1-Inputs!$D$9)))/12),IF(Inputs!P15=3,IF($A16-Inputs!$D$6>IF(Inputs!$D$9=0,19,24),"",F16*((0.1*Inputs!$D$9+0.05*(1-Inputs!$D$9)))/12),IF($A16-Inputs!$D$6>IF(Inputs!$D$9=0,19,24),"",H16*((0.1*Inputs!$D$9+0.05*(1-Inputs!$D$9)))/12)))),"") -> 216.7415027 | R16: 302.9901646 | S16: 693.2702906 | T16: 772.1770545 | U16: 514.784703 | V16: 216.7415027 | W16: 605.9803293 | Y16: =IF(AF16="","",(Inputs!$D$2)*(((Inputs!$D$4/12)*((1+Inputs!$D$4/12)^120))/(((1+Inputs!$D$4/12)^120)-1))) ->  | Z16: =IF(AF16="","",(Inputs!$D$3)*(((Inputs!$D$4/12)*((1+Inputs!$D$4/12)^120))/(((1+Inputs!$D$4/12)^120)-1))) ->  | AA16: =IF(AA15=0,0,IF($A16-Inputs!$D$6>25,"",IF((AA15+IF(AS15<AG15,(AH15-AS15)/2,AG15-AS15))>0,AA15+IF(AS15<AG15,(AH15-AS15)/2,AG15-AS15),0))) -> 87635.49787 | AB16: =IF(AB15=0,0,IF($A16-Inputs!$D$6>25,"",IF(AB15-AT15+AH15>0,AB15-AT15+AH15,0))) -> 73284.62963 | AC16: =IF(AC15=0,0,IF($A16-Inputs!$D$6>20,"",IF(AC15-AU15+AI15>0,AC15-AU15+AI15,0))) -> 114219.4521 | AD16: =IF(AD15=0,0,IF($A16-Inputs!$D$6>IF(Inputs!$D$9=0,20,25),"",IF(AV15<$AD$2*Inputs!$D$4,IF(V15*12>AD15,0,AD15),IF(AD15-AV15+AJ15>0,AD15-AV15+AJ15,0)))) -> 100000 | AE16: 40153.18436 | AG16: =IF(AA16<AS15,0,IF(AA16="","",IF(Calculations!$A16-Inputs!$D$6>24,"",IF(AS16<$AA$2*Inputs!$D$4,$AA$2*Inputs!$D$4-($AA$2*Inputs!$D$4-AS16)/2,MIN($AA$2*Inputs!$D$4,AA16*Inputs!$D$4))))) -> 5258.129872 | AH16: =IF(AB16="","",IF(Calculations!$A16-Inputs!$D$6>24,"",IF(AB16>(Inputs!$D$2+Inputs!$D$3),(Inputs!$D$2+Inputs!$D$3)*Inputs!$D$4,IF(AB16<$X$3*12,0,AB16*Inputs!$D$4)))) -> 4397.077778 | AI16: =IF(AC16="","",IF(Calculations!$A16-Inputs!$D$6>24,"",IF(AC16>(Inputs!$D$2+Inputs!$D$3),(Inputs!$D$2+Inputs!$D$3)*Inputs!$D$4,IF(AC16<$X$3*12,0,AC16*Inputs!$D$4)))) -> 6000 | AJ16: =IF(AD16<AV15,0,IF(AD16="","",IF(Calculations!$A16-Inputs!$D$6>IF(Inputs!$D$9=0,19,24),"",IF(AV16<$AD$2*Inputs!$D$4,MAX(0,AV16),MIN($AD$2*Inputs!$D$4,AD16*Inputs!$D$4))))) -> 2600.898032 | AK16: =IF(AE16="","",IF(AE16<$AW$2,0,IF(AE16>(Inputs!$D$2+Inputs!$D$3),(Inputs!$D$2+Inputs!$D$3)*'Main page'!$N$5,AE16*'Main page'!$N$5))) -> 1606.127375 | AL16: =IF(AF16="","",IF(AF16<$AX$2,0,IF(AF16>(Inputs!$D$2+Inputs!$D$3),(Inputs!$D$2+Inputs!$D$3)*Inputs!$D$4,AF16*Inputs!$D$4))) ->  | AM16: =IFERROR(AG16/AA16,"") -> 0.06 | AN16: 0.06 | AO16: 0.05253045684 | AP16: 0.02600898032 | AQ16: 0.04 | AS16: =IFERROR(IF(OR(AA16="",AA16=0),"",IF(AA16<S16*12,AA16,S16*12)),"") -> 8319.243487 | AT16: 9266.124654 | AU16: 6177.416436 | AV16: 2600.898032 | AW16: 7271.763952 | AY16: =IF($A16-Inputs!$D$6>19,"",MIN((Inputs!$D$2/(Inputs!$D$2+Inputs!$D$3))*C16*0.1/12,$Y$2)) -> 346.6351453 | AZ16: =IF($A16-Inputs!$D$6>19,"",MIN(D16*0.1/12,$Y$2)) -> 160.2084617 | BA16: =IF($A16-Inputs!$D$6>19,"",MIN((Inputs!$D$3/(Inputs!$D$2+Inputs!$D$3))*C16*0.1/12,$Z$2)) -> 346.6351453 | BB16: =IF($A16-Inputs!$D$6>19,"",MIN(E16*0.1/12,$Z$2)) -> 354.5762413 | BC16: =(Inputs!$D$2/(Inputs!$D$2+Inputs!$D$3))*IF($A16-Inputs!$D$6>IF(Inputs!$D$9=0,19,24),"",F16*((0.1*Inputs!$D$9+0.05*(1-Inputs!$D$9)))/12) -> 204.8298586 | BD16: =IF($A16-Inputs!$D$6>IF(Inputs!$D$9=0,19,24),"",G16*((0.1*Inputs!$D$9+0.05*(1-Inputs!$D$9)))/12) -> 0 | BE16: =(Inputs!$D$3/(Inputs!$D$2+Inputs!$D$3))*IF($A16-Inputs!$D$6>IF(Inputs!$D$9=0,19,24),"",F16*((0.1*Inputs!$D$9+0.05*(1-Inputs!$D$9)))/12) -> 204.8298586 | BF16: =IF(Inputs!$D$3=0,0,1)*IF($A16-Inputs!$D$6>IF(Inputs!$D$9=0,19,24),"",H16*((0.1*Inputs!$D$9+0.05*(1-Inputs!$D$9)))/12) -> 216.7415027 | BG16: 693.2702906 | BH16: 409.6597171 | BI16: 514.784703 | BJ16: 216.7415027 | BK16: -178.4855875 | BL16: -192.9182145 | BM16: =#REF! ->  | BN16: =IFERROR(((BI16-BG16)+#REF!/12)*12,"") ->  | BO16: =IFERROR(((BJ16-BH16)+#REF!/12)*12,"") ->  | BP16: =IFERROR(AS16/((1+'Main page'!$N$4)^($A16-$A$2)),"") -> 4201.783278 | BQ16: =IFERROR(AU16/((1+'Main page'!$N$4)^($A16-$A$2)),"") -> 3120.015074 | BR16: =IFERROR(AT16/((1+'Main page'!$N$4)^($A16-$A$2)),"") -> 4680.022611 | BS16: =IFERROR(AV16/((1+'Main page'!$N$4)^($A16-$A$2)),"") -> 1313.630245 | BT16: =IF(AW16="","",IFERROR(AW16/((1+'Main page'!$N$4)^($A16-$A$2)),"")) -> 3672.734934 | BU16: =IFERROR(AX16/((1+'Main page'!$N$4)^($A16-$A$2)),"") ->  | BW16: 2038 | BX16: 0 | BY16: 0 | BZ16: 0 | CA16: 0 | CC16: =$CC$2+IF(AND(Inputs!$K$2="",Inputs!$K$8<>""),1,0)+IF(AND(Calculations!$A16>=Inputs!$G$6,Inputs!$G$6<>""),1,0)+IF(AND(Calculations!$A16>=Inputs!$G$7,Inputs!$G$7<>""),1,0)+IF(AND(Calculations!$A16>=Inputs!$G$8,Inputs!$G$8<>""),1,0)+IF(AND(Calculations!$A16>=Inputs!$G$9,Inputs!$G$9<>""),1,0) -> 4 | CG16: 15 | CH16: 86540 | CI16: 129810 | CJ16: 194715 | CK16: 2038 | CL16: =+CL15*(1+Inputs!$J$12) -> 151258.9725 | CM16: 1512.589725 | CN16: 3025.17945 | CO16: 4537.769175 | CP16: 6050.358899 | CQ16: 7562.948624 | CR16: 9075.538349 | CS16: 10588.12807 | CT16: 12100.7178 | CU16: 13613.30752 | CV16: 15125.89725 | CW16: 16638.48697 | CX16: 18151.0767 | CY16: 19663.66642 | CZ16: 21176.25615 | DA16: 22688.84587 | DB16: 24201.4356 | DC16: 25714.02532 | DD16: 27226.61505 | DE16: 28739.20477 | DF16: 30251.7945 | DG16: 2038 | DH16: =CM16*(1+'Main page'!$N$4)+DH15*(1+'Main page'!$N$4) -> 27350.44005 | DI16: =CN16*(1+'Main page'!$N$4)+DI15*(1+'Main page'!$N$4) -> 54700.8801 | DJ16: =CO16*(1+'Main page'!$N$4)+DJ15*(1+'Main page'!$N$4) -> 82051.32014 | DK16: =CP16*(1+'Main page'!$N$4)+DK15*(1+'Main page'!$N$4) -> 109401.7602 | DL16: =CQ16*(1+'Main page'!$N$4)+DL15*(1+'Main page'!$N$4) -> 136752.2002 | DM16: =CR16*(1+'Main page'!$N$4)+DM15*(1+'Main page'!$N$4) -> 164102.6403 | DN16: =CS16*(1+'Main page'!$N$4)+DN15*(1+'Main page'!$N$4) -> 191453.0803 | DO16: =CT16*(1+'Main page'!$N$4)+DO15*(1+'Main page'!$N$4) -> 218803.5204 | DP16: =CU16*(1+'Main page'!$N$4)+DP15*(1+'Main page'!$N$4) -> 246153.9604 | DQ16: =CV16*(1+'Main page'!$N$4)+DQ15*(1+'Main page'!$N$4) -> 273504.4005 | DR16: =CW16*(1+'Main page'!$N$4)+DR15*(1+'Main page'!$N$4) -> 300854.8405 | DS16: =CX16*(1+'Main page'!$N$4)+DS15*(1+'Main page'!$N$4) -> 328205.2806 | DT16: =CY16*(1+'Main page'!$N$4)+DT15*(1+'Main page'!$N$4) -> 355555.7206 | DU16: =CZ16*(1+'Main page'!$N$4)+DU15*(1+'Main page'!$N$4) -> 382906.1607 | DV16: =DA16*(1+'Main page'!$N$4)+DV15*(1+'Main page'!$N$4) -> 410256.6007 | DW16: =DB16*(1+'Main page'!$N$4)+DW15*(1+'Main page'!$N$4) -> 437607.0408 | DX16: =DC16*(1+'Main page'!$N$4)+DX15*(1+'Main page'!$N$4) -> 464957.4808 | DY16: =DD16*(1+'Main page'!$N$4)+DY15*(1+'Main page'!$N$4) -> 492307.9209 | DZ16: =DE16*(1+'Main page'!$N$4)+DZ15*(1+'Main page'!$N$4) -> 519658.3609 | EA16: =DF16*(1+'Main page'!$N$4)+EA15*(1+'Main page'!$N$4) -> 547008.801 | EB16: 0.055 | EC16: 0.04084 | ED16: 0.06126 | EG16: =+EG15*(1+Inputs!$J$12) -> 151258.9725
A17: 2039 | B17: =IF((SUM(((1+Inputs!$J$12)^($A17-$A$11))*Inputs!$J$11+((1+Inputs!$K$12)^($A17-$A$11))*Inputs!$K$11)-VLOOKUP($CC17,Calculations!$CG$1:$CI$9,3,FALSE)*((1+Inputs!$D$5)^($A17-$A$2)))<=0,0,(SUM(((1+Inputs!$J$12)^($A17-$A$11))*Inputs!$J$11+((1+Inputs!$K$12)^($A17-$A$11))*Inputs!$K$11)-VLOOKUP($CC17,Calculations!$CG$1:$CI$9,3,FALSE)*((1+Inputs!$D$5)^($A17-$A$2)))) -> 85688.20791 | C17: =IF(Inputs!$J$11*((1+Inputs!$J$12)^(Calculations!A17-$A$11))+Inputs!$K$11*((1+Inputs!$K$12)^(A17-$A$11))-((1+Inputs!$D$5)^(A17-$A$2))*VLOOKUP(CC17,Calculations!$CG$1:$CJ$16,3,FALSE)<0,0,Inputs!$J$11*((1+Inputs!$J$12)^(Calculations!A17-$A$11))+Inputs!$K$11*((1+Inputs!$K$12)^(A17-$A$11))-((1+Inputs!$D$5)^(A17-$A$2))*VLOOKUP(CC17,Calculations!$CG$1:$CJ$16,3,FALSE)) -> 85688.20791 | D17: =IF(Inputs!$J$11*((1+Inputs!$J$12)^(Calculations!A17-Calculations!$A$11))-((1+Inputs!$D$5)^(A17-$A$2))*VLOOKUP(CC17-1,Calculations!$CG$1:$CJ$18,3,FALSE)<0,0,Inputs!$J$11*((1+Inputs!$J$12)^(Calculations!A17-Calculations!$A$11))-((1+Inputs!$D$5)^(A17-$A$2))*VLOOKUP(CC17-1,Calculations!$CG$1:$CJ$18,3,FALSE)) -> 19801.76586 | E17: =IF(Inputs!$K$11*((1+Inputs!$J$12)^(Calculations!A17-Calculations!$A$11))-((1+Inputs!$D$5)^(A17-$A$2))*VLOOKUP(1,Calculations!$CG$1:$CJ$18,3,FALSE)<0,0,Inputs!$K$11*((1+Inputs!$J$12)^(Calculations!A17-Calculations!$A$11))-((1+Inputs!$D$5)^(A17-$A$2))*VLOOKUP(1,Calculations!$CG$1:$CJ$18,3,FALSE)) -> 43825.62343 | F17: =IF(Inputs!$J$11*((1+Inputs!$J$12)^(Calculations!A17-$A$11))+Inputs!$K$11*((1+Inputs!$K$12)^(A17-$A$11))-((1+Inputs!$D$5)^(A17-$A$2))*VLOOKUP(CC17,Calculations!$CG$1:$CJ$16,4,FALSE)<0,0,Inputs!$J$11*((1+Inputs!$J$12)^(Calculations!A17-$A$11))+Inputs!$K$11*((1+Inputs!$K$12)^(A17-$A$11))-((1+Inputs!$D$5)^(A17-$A$2))*VLOOKUP(CC17,Calculations!$CG$1:$CJ$16,4,FALSE)) -> 50633.94104 | G17: =IF(Inputs!$K$11="",Calculations!F17,IF(Inputs!$J$11*((1+Inputs!$J$12)^(Calculations!A17-Calculations!$A$11))-((1+Inputs!$D$5)^(A17-$A$2))*VLOOKUP(CC17-1,Calculations!$CG$1:$CJ$18,4,FALSE)<0,0,Inputs!$J$11*((1+Inputs!$J$12)^(Calculations!A17-Calculations!$A$11))-((1+Inputs!$D$5)^(A17-$A$2))*VLOOKUP(CC17-1,Calculations!$CG$1:$CJ$18,4,FALSE))) -> 0 | H17: =IF(Inputs!$K$11*((1+Inputs!$J$12)^(Calculations!A17-Calculations!$A$11))-((1+Inputs!$D$5)^(A17-$A$2))*VLOOKUP(1,Calculations!$CG$1:$CJ$18,4,FALSE)<0,0,Inputs!$K$11*((1+Inputs!$J$12)^(Calculations!A17-Calculations!$A$11))-((1+Inputs!$D$5)^(A17-$A$2))*VLOOKUP(1,Calculations!$CG$1:$CJ$18,4,FALSE)) -> 26789.24973 | I17: =IF($A17-Inputs!$D$6>24,"",(Inputs!$D$2/(Inputs!$D$2+Inputs!$D$3)*B17*0.1/12)) -> 357.0341996 | J17: =IF(AND(Inputs!$D$3>=0,Inputs!$P$1=1),IF($A17-Inputs!$D$6>24,"",MIN((Inputs!$D$2/(Inputs!$D$2+Inputs!$D$3))*C17*0.15/12,$Y$2)),IF(Inputs!P16=3,IF($A17-Inputs!$D$6>24,"",MIN(C17*0.15/12,$Y$2)),IF($A17-Inputs!$D$6>24,"",MIN(D17*0.15/12,$Y$2)))) -> 247.5220733 | K17: =IF(AND(Inputs!$D$3>=0,Inputs!$P$1=1),IF($A17-Inputs!$D$6>19,"",MIN((Inputs!$D$2/(Inputs!$D$2+Inputs!$D$3))*C17*0.1/12,$Y$2)),IF(Inputs!P16=3,IF($A17-Inputs!$D$6>19,"",MIN(C17*0.1/12,$Y$2)),IF($A17-Inputs!$D$6>19,"",MIN(D17*0.1/12,$Y$2)))) -> 165.0147155 | L17: =IFERROR(IF(AND(OR(Inputs!$D$3>=0,Inputs!$D$3=""),Inputs!$P$1=1),(Inputs!$D$2/(Inputs!$D$2+Inputs!$D$3))*IF($A17-Inputs!$D$6>IF(Inputs!$D$9=0,19,24),"",F17*((0.1*Inputs!$D$9+0.05*(1-Inputs!$D$9)))/12),IF(Inputs!P16=3,IF($A17-Inputs!$D$6>IF(Inputs!$D$9=0,19,24),"",F17*((0.1*Inputs!$D$9+0.05*(1-Inputs!$D$9)))/12),IF($A17-Inputs!$D$6>IF(Inputs!$D$9=0,19,24),"",G17*((0.1*Inputs!$D$9+0.05*(1-Inputs!$D$9)))/12))),"") -> 0 | M17: 302.9901646 | N17: =IF($A17-Inputs!$D$6>24,"",(Inputs!$D$3/(Inputs!$D$2+Inputs!$D$3)*B17*0.1/12)) -> 357.0341996 | O17: =IF(AND(Inputs!$D$3>0,Inputs!$P$1=1),IF($A17-Inputs!$D$6>24,"",MIN((Inputs!$D$3/(Inputs!$D$2+Inputs!$D$3))*C17*0.15/12,$Z$2)),IF(Inputs!P16=3,(Inputs!$D$3/(Inputs!$D$2+Inputs!$D$3))*IF($A17-Inputs!$D$6>24,"",MIN(C17*0.15/12,$Z$2)),IF($A17-Inputs!$D$6>24,"",MIN(E17*0.15/12,$Z$2)))) -> 547.8202929 | P17: =IF(AND(Inputs!$D$3>0,Inputs!$P$1=1),IF($A17-Inputs!$D$6>19,"",MIN((Inputs!$D$3/(Inputs!$D$2+Inputs!$D$3))*C17*0.1/12,$Z$2)),IF(Inputs!P16=3,(Inputs!$D$3/(Inputs!$D$2+Inputs!$D$3))*IF($A17-Inputs!$D$6>19,"",MIN(C17*0.1/12,$Z$2)),IF($A17-Inputs!$D$6>19,"",MIN(E17*0.1/12,$Z$2)))) -> 365.2135286 | Q17: =IFERROR(IF(OR(Inputs!$D$3=0,Inputs!$D$3=""),0,IF(AND(Inputs!$D$3>0,Inputs!$P$1=1),(Inputs!$D$3/(Inputs!$D$2+Inputs!$D$3))*IF($A17-Inputs!$D$6>IF(Inputs!$D$9=0,19,24),"",F17*((0.1*Inputs!$D$9+0.05*(1-Inputs!$D$9)))/12),IF(Inputs!P16=3,IF($A17-Inputs!$D$6>IF(Inputs!$D$9=0,19,24),"",F17*((0.1*Inputs!$D$9+0.05*(1-Inputs!$D$9)))/12),IF($A17-Inputs!$D$6>IF(Inputs!$D$9=0,19,24),"",H17*((0.1*Inputs!$D$9+0.05*(1-Inputs!$D$9)))/12)))),"") -> 223.2437477 | R17: 302.9901646 | S17: 714.0683993 | T17: 795.3423662 | U17: 530.2282441 | V17: 223.2437477 | W17: 605.9803293 | Y17: =IF(AF17="","",(Inputs!$D$2)*(((Inputs!$D$4/12)*((1+Inputs!$D$4/12)^120))/(((1+Inputs!$D$4/12)^120)-1))) ->  | Z17: =IF(AF17="","",(Inputs!$D$3)*(((Inputs!$D$4/12)*((1+Inputs!$D$4/12)^120))/(((1+Inputs!$D$4/12)^120)-1))) ->  | AA17: =IF(AA16=0,0,IF($A17-Inputs!$D$6>25,"",IF((AA16+IF(AS16<AG16,(AH16-AS16)/2,AG16-AS16))>0,AA16+IF(AS16<AG16,(AH16-AS16)/2,AG16-AS16),0))) -> 84574.38425 | AB17: =IF(AB16=0,0,IF($A17-Inputs!$D$6>25,"",IF(AB16-AT16+AH16>0,AB16-AT16+AH16,0))) -> 68415.58275 | AC17: =IF(AC16=0,0,IF($A17-Inputs!$D$6>20,"",IF(AC16-AU16+AI16>0,AC16-AU16+AI16,0))) -> 114042.0357 | AD17: =IF(AD16=0,0,IF($A17-Inputs!$D$6>IF(Inputs!$D$9=0,20,25),"",IF(AV16<$AD$2*Inputs!$D$4,IF(V16*12>AD16,0,AD16),IF(AD16-AV16+AJ16>0,AD16-AV16+AJ16,0)))) -> 100000 | AE17: 34487.54779 | AG17: =IF(AA17<AS16,0,IF(AA17="","",IF(Calculations!$A17-Inputs!$D$6>24,"",IF(AS17<$AA$2*Inputs!$D$4,$AA$2*Inputs!$D$4-($AA$2*Inputs!$D$4-AS17)/2,MIN($AA$2*Inputs!$D$4,AA17*Inputs!$D$4))))) -> 5074.463055 | AH17: =IF(AB17="","",IF(Calculations!$A17-Inputs!$D$6>24,"",IF(AB17>(Inputs!$D$2+Inputs!$D$3),(Inputs!$D$2+Inputs!$D$3)*Inputs!$D$4,IF(AB17<$X$3*12,0,AB17*Inputs!$D$4)))) -> 4104.934965 | AI17: =IF(AC17="","",IF(Calculations!$A17-Inputs!$D$6>24,"",IF(AC17>(Inputs!$D$2+Inputs!$D$3),(Inputs!$D$2+Inputs!$D$3)*Inputs!$D$4,IF(AC17<$X$3*12,0,AC17*Inputs!$D$4)))) -> 6000 | AJ17: =IF(AD17<AV16,0,IF(AD17="","",IF(Calculations!$A17-Inputs!$D$6>IF(Inputs!$D$9=0,19,24),"",IF(AV17<$AD$2*Inputs!$D$4,MAX(0,AV17),MIN($AD$2*Inputs!$D$4,AD17*Inputs!$D$4))))) -> 2678.924973 | AK17: =IF(AE17="","",IF(AE17<$AW$2,0,IF(AE17>(Inputs!$D$2+Inputs!$D$3),(Inputs!$D$2+Inputs!$D$3)*'Main page'!$N$5,AE17*'Main page'!$N$5))) -> 1379.501911 | AM17: =IFERROR(AG17/AA17,"") -> 0.06 | AN17: 0.06 | AO17: 0.05261217904 | AP17: 0.02678924973 | AQ17: 0.04 | AS17: =IFERROR(IF(OR(AA17="",AA17=0),"",IF(AA17<S17*12,AA17,S17*12)),"") -> 8568.820791 | AT17: 9544.108394 | AU17: 6362.738929 | AV17: 2678.924973 | AW17: 7271.763952 | AY17: =IF($A17-Inputs!$D$6>19,"",MIN((Inputs!$D$2/(Inputs!$D$2+Inputs!$D$3))*C17*0.1/12,$Y$2)) -> 357.0341996 | AZ17: =IF($A17-Inputs!$D$6>19,"",MIN(D17*0.1/12,$Y$2)) -> 165.0147155 | BA17: =IF($A17-Inputs!$D$6>19,"",MIN((Inputs!$D$3/(Inputs!$D$2+Inputs!$D$3))*C17*0.1/12,$Z$2)) -> 357.0341996 | BB17: =IF($A17-Inputs!$D$6>19,"",MIN(E17*0.1/12,$Z$2)) -> 365.2135286 | BC17: =(Inputs!$D$2/(Inputs!$D$2+Inputs!$D$3))*IF($A17-Inputs!$D$6>IF(Inputs!$D$9=0,19,24),"",F17*((0.1*Inputs!$D$9+0.05*(1-Inputs!$D$9)))/12) -> 210.9747543 | BD17: =IF($A17-Inputs!$D$6>IF(Inputs!$D$9=0,19,24),"",G17*((0.1*Inputs!$D$9+0.05*(1-Inputs!$D$9)))/12) -> 0 | BE17: =(Inputs!$D$3/(Inputs!$D$2+Inputs!$D$3))*IF($A17-Inputs!$D$6>IF(Inputs!$D$9=0,19,24),"",F17*((0.1*Inputs!$D$9+0.05*(1-Inputs!$D$9)))/12) -> 210.9747543 | BF17: =IF(Inputs!$D$3=0,0,1)*IF($A17-Inputs!$D$6>IF(Inputs!$D$9=0,19,24),"",H17*((0.1*Inputs!$D$9+0.05*(1-Inputs!$D$9)))/12) -> 223.2437477 | BG17: 714.0683993 | BH17: 421.9495087 | BI17: 530.2282441 | BJ17: 223.2437477 | BK17: -183.8401552 | BL17: -198.7057609 | BM17: =#REF! ->  | BN17: =IFERROR(((BI17-BG17)+#REF!/12)*12,"") ->  | BO17: =IFERROR(((BJ17-BH17)+#REF!/12)*12,"") ->  | BP17: =IFERROR(AS17/((1+'Main page'!$N$4)^($A17-$A$2)),"") -> 4121.749311 | BQ17: =IFERROR(AU17/((1+'Main page'!$N$4)^($A17-$A$2)),"") -> 3060.586216 | BR17: =IFERROR(AT17/((1+'Main page'!$N$4)^($A17-$A$2)),"") -> 4590.879324 | BS17: =IFERROR(AV17/((1+'Main page'!$N$4)^($A17-$A$2)),"") -> 1288.608716 | BT17: =IF(AW17="","",IFERROR(AW17/((1+'Main page'!$N$4)^($A17-$A$2)),"")) -> 3497.842794 | BU17: =IFERROR(AX17/((1+'Main page'!$N$4)^($A17-$A$2)),"") ->  | BW17: 2039 | BX17: 0 | BY17: 0 | BZ17: 0 | CA17: 0 | CC17: =$CC$2+IF(AND(Inputs!$K$2="",Inputs!$K$8<>""),1,0)+IF(AND(Calculations!$A17>=Inputs!$G$6,Inputs!$G$6<>""),1,0)+IF(AND(Calculations!$A17>=Inputs!$G$7,Inputs!$G$7<>""),1,0)+IF(AND(Calculations!$A17>=Inputs!$G$8,Inputs!$G$8<>""),1,0)+IF(AND(Calculations!$A17>=Inputs!$G$9,Inputs!$G$9<>""),1,0) -> 4 | CG17: 0 | CH17: 14580 | CI17: 21870 | CJ17: 32805 | CK17: 2039 | CL17: =+CL16*(1+Inputs!$J$12) -> 155796.7417 | CM17: 1557.967417 | CN17: 3115.934833 | CO17: 4673.90225 | CP17: 6231.869666 | CQ17: 7789.837083 | CR17: 9347.8045 | CS17: 10905.77192 | CT17: 12463.73933 | CU17: 14021.70675 | CV17: 15579.67417 | CW17: 17137.64158 | CX17: 18695.609 | CY17: 20253.57642 | CZ17: 21811.54383 | DA17: 23369.51125 | DB17: 24927.47867 | DC17: 26485.44608 | DD17: 28043.4135 | DE17: 29601.38092 | DF17: 31159.34833 | DG17: 2039 | DH17: =CM17*(1+'Main page'!$N$4)+DH16*(1+'Main page'!$N$4) -> 30353.82784 | DI17: =CN17*(1+'Main page'!$N$4)+DI16*(1+'Main page'!$N$4) -> 60707.65567 | DJ17: =CO17*(1+'Main page'!$N$4)+DJ16*(1+'Main page'!$N$4) -> 91061.48351 | DK17: =CP17*(1+'Main page'!$N$4)+DK16*(1+'Main page'!$N$4) -> 121415.3113 | DL17: =CQ17*(1+'Main page'!$N$4)+DL16*(1+'Main page'!$N$4) -> 151769.1392 | DM17: =CR17*(1+'Main page'!$N$4)+DM16*(1+'Main page'!$N$4) -> 182122.967 | DN17: =CS17*(1+'Main page'!$N$4)+DN16*(1+'Main page'!$N$4) -> 212476.7949 | DO17: =CT17*(1+'Main page'!$N$4)+DO16*(1+'Main page'!$N$4) -> 242830.6227 | DP17: =CU17*(1+'Main page'!$N$4)+DP16*(1+'Main page'!$N$4) -> 273184.4505 | DQ17: =CV17*(1+'Main page'!$N$4)+DQ16*(1+'Main page'!$N$4) -> 303538.2784 | DR17: =CW17*(1+'Main page'!$N$4)+DR16*(1+'Main page'!$N$4) -> 333892.1062 | DS17: =CX17*(1+'Main page'!$N$4)+DS16*(1+'Main page'!$N$4) -> 364245.934 | DT17: =CY17*(1+'Main page'!$N$4)+DT16*(1+'Main page'!$N$4) -> 394599.7619 | DU17: =CZ17*(1+'Main page'!$N$4)+DU16*(1+'Main page'!$N$4) -> 424953.5897 | DV17: =DA17*(1+'Main page'!$N$4)+DV16*(1+'Main page'!$N$4) -> 455307.4176 | DW17: =DB17*(1+'Main page'!$N$4)+DW16*(1+'Main page'!$N$4) -> 485661.2454 | DX17: =DC17*(1+'Main page'!$N$4)+DX16*(1+'Main page'!$N$4) -> 516015.0732 | DY17: =DD17*(1+'Main page'!$N$4)+DY16*(1+'Main page'!$N$4) -> 546368.9011 | DZ17: =DE17*(1+'Main page'!$N$4)+DZ16*(1+'Main page'!$N$4) -> 576722.7289 | EA17: =DF17*(1+'Main page'!$N$4)+EA16*(1+'Main page'!$N$4) -> 607076.5567 | EB17: 0.055 | EC17: 0.04084 | ED17: 0.06126 | EG17: =+EG16*(1+Inputs!$J$12) -> 155796.7417
A18: 2040 | B18: =IF((SUM(((1+Inputs!$J$12)^($A18-$A$11))*Inputs!$J$11+((1+Inputs!$K$12)^($A18-$A$11))*Inputs!$K$11)-VLOOKUP($CC18,Calculations!$CG$1:$CI$9,3,FALSE)*((1+Inputs!$D$5)^($A18-$A$2)))<=0,0,(SUM(((1+Inputs!$J$12)^($A18-$A$11))*Inputs!$J$11+((1+Inputs!$K$12)^($A18-$A$11))*Inputs!$K$11)-VLOOKUP($CC18,Calculations!$CG$1:$CI$9,3,FALSE)*((1+Inputs!$D$5)^($A18-$A$2)))) -> 88258.85415 | C18: =IF(Inputs!$J$11*((1+Inputs!$J$12)^(Calculations!A18-$A$11))+Inputs!$K$11*((1+Inputs!$K$12)^(A18-$A$11))-((1+Inputs!$D$5)^(A18-$A$2))*VLOOKUP(CC18,Calculations!$CG$1:$CJ$16,3,FALSE)<0,0,Inputs!$J$11*((1+Inputs!$J$12)^(Calculations!A18-$A$11))+Inputs!$K$11*((1+Inputs!$K$12)^(A18-$A$11))-((1+Inputs!$D$5)^(A18-$A$2))*VLOOKUP(CC18,Calculations!$CG$1:$CJ$16,3,FALSE)) -> 88258.85415 | D18: =IF(Inputs!$J$11*((1+Inputs!$J$12)^(Calculations!A18-Calculations!$A$11))-((1+Inputs!$D$5)^(A18-$A$2))*VLOOKUP(CC18-1,Calculations!$CG$1:$CJ$18,3,FALSE)<0,0,Inputs!$J$11*((1+Inputs!$J$12)^(Calculations!A18-Calculations!$A$11))-((1+Inputs!$D$5)^(A18-$A$2))*VLOOKUP(CC18-1,Calculations!$CG$1:$CJ$18,3,FALSE)) -> 20395.81884 | E18: =IF(Inputs!$K$11*((1+Inputs!$J$12)^(Calculations!A18-Calculations!$A$11))-((1+Inputs!$D$5)^(A18-$A$2))*VLOOKUP(1,Calculations!$CG$1:$CJ$18,3,FALSE)<0,0,Inputs!$K$11*((1+Inputs!$J$12)^(Calculations!A18-Calculations!$A$11))-((1+Inputs!$D$5)^(A18-$A$2))*VLOOKUP(1,Calculations!$CG$1:$CJ$18,3,FALSE)) -> 45140.39213 | F18: =IF(Inputs!$J$11*((1+Inputs!$J$12)^(Calculations!A18-$A$11))+Inputs!$K$11*((1+Inputs!$K$12)^(A18-$A$11))-((1+Inputs!$D$5)^(A18-$A$2))*VLOOKUP(CC18,Calculations!$CG$1:$CJ$16,4,FALSE)<0,0,Inputs!$J$11*((1+Inputs!$J$12)^(Calculations!A18-$A$11))+Inputs!$K$11*((1+Inputs!$K$12)^(A18-$A$11))-((1+Inputs!$D$5)^(A18-$A$2))*VLOOKUP(CC18,Calculations!$CG$1:$CJ$16,4,FALSE)) -> 52152.95927 | G18: =IF(Inputs!$K$11="",Calculations!F18,IF(Inputs!$J$11*((1+Inputs!$J$12)^(Calculations!A18-Calculations!$A$11))-((1+Inputs!$D$5)^(A18-$A$2))*VLOOKUP(CC18-1,Calculations!$CG$1:$CJ$18,4,FALSE)<0,0,Inputs!$J$11*((1+Inputs!$J$12)^(Calculations!A18-Calculations!$A$11))-((1+Inputs!$D$5)^(A18-$A$2))*VLOOKUP(CC18-1,Calculations!$CG$1:$CJ$18,4,FALSE))) -> 0 | H18: =IF(Inputs!$K$11*((1+Inputs!$J$12)^(Calculations!A18-Calculations!$A$11))-((1+Inputs!$D$5)^(A18-$A$2))*VLOOKUP(1,Calculations!$CG$1:$CJ$18,4,FALSE)<0,0,Inputs!$K$11*((1+Inputs!$J$12)^(Calculations!A18-Calculations!$A$11))-((1+Inputs!$D$5)^(A18-$A$2))*VLOOKUP(1,Calculations!$CG$1:$CJ$18,4,FALSE)) -> 27592.92722 | I18: =IF($A18-Inputs!$D$6>24,"",(Inputs!$D$2/(Inputs!$D$2+Inputs!$D$3)*B18*0.1/12)) -> 367.7452256 | J18: =IF(AND(Inputs!$D$3>=0,Inputs!$P$1=1),IF($A18-Inputs!$D$6>24,"",MIN((Inputs!$D$2/(Inputs!$D$2+Inputs!$D$3))*C18*0.15/12,$Y$2)),IF(Inputs!P17=3,IF($A18-Inputs!$D$6>24,"",MIN(C18*0.15/12,$Y$2)),IF($A18-Inputs!$D$6>24,"",MIN(D18*0.15/12,$Y$2)))) -> 254.9477355 | K18: =IF(AND(Inputs!$D$3>=0,Inputs!$P$1=1),IF($A18-Inputs!$D$6>19,"",MIN((Inputs!$D$2/(Inputs!$D$2+Inputs!$D$3))*C18*0.1/12,$Y$2)),IF(Inputs!P17=3,IF($A18-Inputs!$D$6>19,"",MIN(C18*0.1/12,$Y$2)),IF($A18-Inputs!$D$6>19,"",MIN(D18*0.1/12,$Y$2)))) -> 169.965157 | L18: =IFERROR(IF(AND(OR(Inputs!$D$3>=0,Inputs!$D$3=""),Inputs!$P$1=1),(Inputs!$D$2/(Inputs!$D$2+Inputs!$D$3))*IF($A18-Inputs!$D$6>IF(Inputs!$D$9=0,19,24),"",F18*((0.1*Inputs!$D$9+0.05*(1-Inputs!$D$9)))/12),IF(Inputs!P17=3,IF($A18-Inputs!$D$6>IF(Inputs!$D$9=0,19,24),"",F18*((0.1*Inputs!$D$9+0.05*(1-Inputs!$D$9)))/12),IF($A18-Inputs!$D$6>IF(Inputs!$D$9=0,19,24),"",G18*((0.1*Inputs!$D$9+0.05*(1-Inputs!$D$9)))/12))),"") -> 0 | M18: 302.9901646 | N18: =IF($A18-Inputs!$D$6>24,"",(Inputs!$D$3/(Inputs!$D$2+Inputs!$D$3)*B18*0.1/12)) -> 367.7452256 | O18: =IF(AND(Inputs!$D$3>0,Inputs!$P$1=1),IF($A18-Inputs!$D$6>24,"",MIN((Inputs!$D$3/(Inputs!$D$2+Inputs!$D$3))*C18*0.15/12,$Z$2)),IF(Inputs!P17=3,(Inputs!$D$3/(Inputs!$D$2+Inputs!$D$3))*IF($A18-Inputs!$D$6>24,"",MIN(C18*0.15/12,$Z$2)),IF($A18-Inputs!$D$6>24,"",MIN(E18*0.15/12,$Z$2)))) -> 555.1025097 | P18: =IF(AND(Inputs!$D$3>0,Inputs!$P$1=1),IF($A18-Inputs!$D$6>19,"",MIN((Inputs!$D$3/(Inputs!$D$2+Inputs!$D$3))*C18*0.1/12,$Z$2)),IF(Inputs!P17=3,(Inputs!$D$3/(Inputs!$D$2+Inputs!$D$3))*IF($A18-Inputs!$D$6>19,"",MIN(C18*0.1/12,$Z$2)),IF($A18-Inputs!$D$6>19,"",MIN(E18*0.1/12,$Z$2)))) -> 376.1699344 | Q18: =IFERROR(IF(OR(Inputs!$D$3=0,Inputs!$D$3=""),0,IF(AND(Inputs!$D$3>0,Inputs!$P$1=1),(Inputs!$D$3/(Inputs!$D$2+Inputs!$D$3))*IF($A18-Inputs!$D$6>IF(Inputs!$D$9=0,19,24),"",F18*((0.1*Inputs!$D$9+0.05*(1-Inputs!$D$9)))/12),IF(Inputs!P17=3,IF($A18-Inputs!$D$6>IF(Inputs!$D$9=0,19,24),"",F18*((0.1*Inputs!$D$9+0.05*(1-Inputs!$D$9)))/12),IF($A18-Inputs!$D$6>IF(Inputs!$D$9=0,19,24),"",H18*((0.1*Inputs!$D$9+0.05*(1-Inputs!$D$9)))/12)))),"") -> 229.9410602 | R18: 302.9901646 | S18: 735.4904513 | T18: 810.0502452 | U18: 546.1350914 | V18: 229.9410602 | W18: 605.9803293 | Y18: =IF(AF18="","",(Inputs!$D$2)*(((Inputs!$D$4/12)*((1+Inputs!$D$4/12)^120))/(((1+Inputs!$D$4/12)^120)-1))) ->  | Z18: =IF(AF18="","",(Inputs!$D$3)*(((Inputs!$D$4/12)*((1+Inputs!$D$4/12)^120))/(((1+Inputs!$D$4/12)^120)-1))) ->  | AA18: =IF(AA17=0,0,IF($A18-Inputs!$D$6>25,"",IF((AA17+IF(AS17<AG17,(AH17-AS17)/2,AG17-AS17))>0,AA17+IF(AS17<AG17,(AH17-AS17)/2,AG17-AS17),0))) -> 81080.02652 | AB18: =IF(AB17=0,0,IF($A18-Inputs!$D$6>25,"",IF(AB17-AT17+AH17>0,AB17-AT17+AH17,0))) -> 62976.40932 | AC18: =IF(AC17=0,0,IF($A18-Inputs!$D$6>20,"",IF(AC17-AU17+AI17>0,AC17-AU17+AI17,0))) -> 113679.2968 | AD18: =IF(AD17=0,0,IF($A18-Inputs!$D$6>IF(Inputs!$D$9=0,20,25),"",IF(AV17<$AD$2*Inputs!$D$4,IF(V17*12>AD17,0,AD17),IF(AD17-AV17+AJ17>0,AD17-AV17+AJ17,0)))) -> 100000 | AE18: 28595.28575 | AG18: =IF(AA18<AS17,0,IF(AA18="","",IF(Calculations!$A18-Inputs!$D$6>24,"",IF(AS18<$AA$2*Inputs!$D$4,$AA$2*Inputs!$D$4-($AA$2*Inputs!$D$4-AS18)/2,MIN($AA$2*Inputs!$D$4,AA18*Inputs!$D$4))))) -> 4864.801591 | AH18: =IF(AB18="","",IF(Calculations!$A18-Inputs!$D$6>24,"",IF(AB18>(Inputs!$D$2+Inputs!$D$3),(Inputs!$D$2+Inputs!$D$3)*Inputs!$D$4,IF(AB18<$X$3*12,0,AB18*Inputs!$D$4)))) -> 3778.584559 | AI18: =IF(AC18="","",IF(Calculations!$A18-Inputs!$D$6>24,"",IF(AC18>(Inputs!$D$2+Inputs!$D$3),(Inputs!$D$2+Inputs!$D$3)*Inputs!$D$4,IF(AC18<$X$3*12,0,AC18*Inputs!$D$4)))) -> 6000 | AJ18: =IF(AD18<AV17,0,IF(AD18="","",IF(Calculations!$A18-Inputs!$D$6>IF(Inputs!$D$9=0,19,24),"",IF(AV18<$AD$2*Inputs!$D$4,MAX(0,AV18),MIN($AD$2*Inputs!$D$4,AD18*Inputs!$D$4))))) -> 2759.292722 | AK18: =IF(AE18="","",IF(AE18<$AW$2,0,IF(AE18>(Inputs!$D$2+Inputs!$D$3),(Inputs!$D$2+Inputs!$D$3)*'Main page'!$N$5,AE18*'Main page'!$N$5))) -> 1143.81143 | AM18: =IFERROR(AG18/AA18,"") -> 0.06 | AN18: 0.06 | AO18: 0.05278005909 | AP18: 0.02759292722 | AQ18: 0.04 | AS18: =IFERROR(IF(OR(AA18="",AA18=0),"",IF(AA18<S18*12,AA18,S18*12)),"") -> 8825.885415 | AT18: 9720.602943 | AU18: 6553.621097 | AV18: 2759.292722 | AW18: 7271.763952 | AY18: =IF($A18-Inputs!$D$6>19,"",MIN((Inputs!$D$2/(Inputs!$D$2+Inputs!$D$3))*C18*0.1/12,$Y$2)) -> 367.7452256 | AZ18: =IF($A18-Inputs!$D$6>19,"",MIN(D18*0.1/12,$Y$2)) -> 169.965157 | BA18: =IF($A18-Inputs!$D$6>19,"",MIN((Inputs!$D$3/(Inputs!$D$2+Inputs!$D$3))*C18*0.1/12,$Z$2)) -> 367.7452256 | BB18: =IF($A18-Inputs!$D$6>19,"",MIN(E18*0.1/12,$Z$2)) -> 376.1699344 | BC18: =(Inputs!$D$2/(Inputs!$D$2+Inputs!$D$3))*IF($A18-Inputs!$D$6>IF(Inputs!$D$9=0,19,24),"",F18*((0.1*Inputs!$D$9+0.05*(1-Inputs!$D$9)))/12) -> 217.303997 | BD18: =IF($A18-Inputs!$D$6>IF(Inputs!$D$9=0,19,24),"",G18*((0.1*Inputs!$D$9+0.05*(1-Inputs!$D$9)))/12) -> 0 | BE18: =(Inputs!$D$3/(Inputs!$D$2+Inputs!$D$3))*IF($A18-Inputs!$D$6>IF(Inputs!$D$9=0,19,24),"",F18*((0.1*Inputs!$D$9+0.05*(1-Inputs!$D$9)))/12) -> 217.303997 | BF18: =IF(Inputs!$D$3=0,0,1)*IF($A18-Inputs!$D$6>IF(Inputs!$D$9=0,19,24),"",H18*((0.1*Inputs!$D$9+0.05*(1-Inputs!$D$9)))/12) -> 229.9410602 | BG18: 735.4904513 | BH18: 434.6079939 | BI18: 546.1350914 | BJ18: 229.9410602 | BK18: -189.3553598 | BL18: -204.6669338 | BM18: =#REF! ->  | BN18: =IFERROR(((BI18-BG18)+#REF!/12)*12,"") ->  | BO18: =IFERROR(((BJ18-BH18)+#REF!/12)*12,"") ->  | BP18: =IFERROR(AS18/((1+'Main page'!$N$4)^($A18-$A$2)),"") -> 4043.2398 | BQ18: =IFERROR(AU18/((1+'Main page'!$N$4)^($A18-$A$2)),"") -> 3002.289335 | BR18: =IFERROR(AT18/((1+'Main page'!$N$4)^($A18-$A$2)),"") -> 4453.120209 | BS18: =IFERROR(AV18/((1+'Main page'!$N$4)^($A18-$A$2)),"") -> 1264.063789 | BT18: =IF(AW18="","",IFERROR(AW18/((1+'Main page'!$N$4)^($A18-$A$2)),"")) -> 3331.278851 | BU18: =IFERROR(AX18/((1+'Main page'!$N$4)^($A18-$A$2)),"") ->  | BW18: 2040 | BX18: 0 | BY18: 0 | BZ18: 0 | CA18: 0 | CC18: =$CC$2+IF(AND(Inputs!$K$2="",Inputs!$K$8<>""),1,0)+IF(AND(Calculations!$A18>=Inputs!$G$6,Inputs!$G$6<>""),1,0)+IF(AND(Calculations!$A18>=Inputs!$G$7,Inputs!$G$7<>""),1,0)+IF(AND(Calculations!$A18>=Inputs!$G$8,Inputs!$G$8<>""),1,0)+IF(AND(Calculations!$A18>=Inputs!$G$9,Inputs!$G$9<>""),1,0) -> 4 | CK18: 2040 | CL18: =+CL17*(1+Inputs!$J$12) -> 160470.6439 | CM18: 1604.706439 | CN18: 3209.412878 | CO18: 4814.119317 | CP18: 6418.825756 | CQ18: 8023.532195 | CR18: 9628.238635 | CS18: 11232.94507 | CT18: 12837.65151 | CU18: 14442.35795 | CV18: 16047.06439 | CW18: 17651.77083 | CX18: 19256.47727 | CY18: 20861.18371 | CZ18: 22465.89015 | DA18: 24070.59659 | DB18: 25675.30303 | DC18: 27280.00946 | DD18: 28884.7159 | DE18: 30489.42234 | DF18: 32094.12878 | DG18: 2040 | DH18: =CM18*(1+'Main page'!$N$4)+DH17*(1+'Main page'!$N$4) -> 33556.46099 | DI18: =CN18*(1+'Main page'!$N$4)+DI17*(1+'Main page'!$N$4) -> 67112.92198 | DJ18: =CO18*(1+'Main page'!$N$4)+DJ17*(1+'Main page'!$N$4) -> 100669.383 | DK18: =CP18*(1+'Main page'!$N$4)+DK17*(1+'Main page'!$N$4) -> 134225.844 | DL18: =CQ18*(1+'Main page'!$N$4)+DL17*(1+'Main page'!$N$4) -> 167782.305 | DM18: =CR18*(1+'Main page'!$N$4)+DM17*(1+'Main page'!$N$4) -> 201338.7659 | DN18: =CS18*(1+'Main page'!$N$4)+DN17*(1+'Main page'!$N$4) -> 234895.2269 | DO18: =CT18*(1+'Main page'!$N$4)+DO17*(1+'Main page'!$N$4) -> 268451.6879 | DP18: =CU18*(1+'Main page'!$N$4)+DP17*(1+'Main page'!$N$4) -> 302008.1489 | DQ18: =CV18*(1+'Main page'!$N$4)+DQ17*(1+'Main page'!$N$4) -> 335564.6099 | DR18: =CW18*(1+'Main page'!$N$4)+DR17*(1+'Main page'!$N$4) -> 369121.0709 | DS18: =CX18*(1+'Main page'!$N$4)+DS17*(1+'Main page'!$N$4) -> 402677.5319 | DT18: =CY18*(1+'Main page'!$N$4)+DT17*(1+'Main page'!$N$4) -> 436233.9929 | DU18: =CZ18*(1+'Main page'!$N$4)+DU17*(1+'Main page'!$N$4) -> 469790.4539 | DV18: =DA18*(1+'Main page'!$N$4)+DV17*(1+'Main page'!$N$4) -> 503346.9149 | DW18: =DB18*(1+'Main page'!$N$4)+DW17*(1+'Main page'!$N$4) -> 536903.3758 | DX18: =DC18*(1+'Main page'!$N$4)+DX17*(1+'Main page'!$N$4) -> 570459.8368 | DY18: =DD18*(1+'Main page'!$N$4)+DY17*(1+'Main page'!$N$4) -> 604016.2978 | DZ18: =DE18*(1+'Main page'!$N$4)+DZ17*(1+'Main page'!$N$4) -> 637572.7588 | EA18: =DF18*(1+'Main page'!$N$4)+EA17*(1+'Main page'!$N$4) -> 671129.2198 | EB18: 0.055 | EC18: 0.04084 | ED18: 0.06057558383 | EG18: =+EG17*(1+Inputs!$J$12) -> 160470.6439
A19: 2041 | B19: =IF((SUM(((1+Inputs!$J$12)^($A19-$A$11))*Inputs!$J$11+((1+Inputs!$K$12)^($A19-$A$11))*Inputs!$K$11)-VLOOKUP($CC19,Calculations!$CG$1:$CI$9,3,FALSE)*((1+Inputs!$D$5)^($A19-$A$2)))<=0,0,(SUM(((1+Inputs!$J$12)^($A19-$A$11))*Inputs!$J$11+((1+Inputs!$K$12)^($A19-$A$11))*Inputs!$K$11)-VLOOKUP($CC19,Calculations!$CG$1:$CI$9,3,FALSE)*((1+Inputs!$D$5)^($A19-$A$2)))) -> 90906.61977 | C19: =IF(Inputs!$J$11*((1+Inputs!$J$12)^(Calculations!A19-$A$11))+Inputs!$K$11*((1+Inputs!$K$12)^(A19-$A$11))-((1+Inputs!$D$5)^(A19-$A$2))*VLOOKUP(CC19,Calculations!$CG$1:$CJ$16,3,FALSE)<0,0,Inputs!$J$11*((1+Inputs!$J$12)^(Calculations!A19-$A$11))+Inputs!$K$11*((1+Inputs!$K$12)^(A19-$A$11))-((1+Inputs!$D$5)^(A19-$A$2))*VLOOKUP(CC19,Calculations!$CG$1:$CJ$16,3,FALSE)) -> 90906.61977 | D19: =IF(Inputs!$J$11*((1+Inputs!$J$12)^(Calculations!A19-Calculations!$A$11))-((1+Inputs!$D$5)^(A19-$A$2))*VLOOKUP(CC19-1,Calculations!$CG$1:$CJ$18,3,FALSE)<0,0,Inputs!$J$11*((1+Inputs!$J$12)^(Calculations!A19-Calculations!$A$11))-((1+Inputs!$D$5)^(A19-$A$2))*VLOOKUP(CC19-1,Calculations!$CG$1:$CJ$18,3,FALSE)) -> 21007.69341 | E19: =IF(Inputs!$K$11*((1+Inputs!$J$12)^(Calculations!A19-Calculations!$A$11))-((1+Inputs!$D$5)^(A19-$A$2))*VLOOKUP(1,Calculations!$CG$1:$CJ$18,3,FALSE)<0,0,Inputs!$K$11*((1+Inputs!$J$12)^(Calculations!A19-Calculations!$A$11))-((1+Inputs!$D$5)^(A19-$A$2))*VLOOKUP(1,Calculations!$CG$1:$CJ$18,3,FALSE)) -> 46494.6039 | F19: =IF(Inputs!$J$11*((1+Inputs!$J$12)^(Calculations!A19-$A$11))+Inputs!$K$11*((1+Inputs!$K$12)^(A19-$A$11))-((1+Inputs!$D$5)^(A19-$A$2))*VLOOKUP(CC19,Calculations!$CG$1:$CJ$16,4,FALSE)<0,0,Inputs!$J$11*((1+Inputs!$J$12)^(Calculations!A19-$A$11))+Inputs!$K$11*((1+Inputs!$K$12)^(A19-$A$11))-((1+Inputs!$D$5)^(A19-$A$2))*VLOOKUP(CC19,Calculations!$CG$1:$CJ$16,4,FALSE)) -> 53717.54805 | G19: =IF(Inputs!$K$11="",Calculations!F19,IF(Inputs!$J$11*((1+Inputs!$J$12)^(Calculations!A19-Calculations!$A$11))-((1+Inputs!$D$5)^(A19-$A$2))*VLOOKUP(CC19-1,Calculations!$CG$1:$CJ$18,4,FALSE)<0,0,Inputs!$J$11*((1+Inputs!$J$12)^(Calculations!A19-Calculations!$A$11))-((1+Inputs!$D$5)^(A19-$A$2))*VLOOKUP(CC19-1,Calculations!$CG$1:$CJ$18,4,FALSE))) -> 0 | H19: =IF(Inputs!$K$11*((1+Inputs!$J$12)^(Calculations!A19-Calculations!$A$11))-((1+Inputs!$D$5)^(A19-$A$2))*VLOOKUP(1,Calculations!$CG$1:$CJ$18,4,FALSE)<0,0,Inputs!$K$11*((1+Inputs!$J$12)^(Calculations!A19-Calculations!$A$11))-((1+Inputs!$D$5)^(A19-$A$2))*VLOOKUP(1,Calculations!$CG$1:$CJ$18,4,FALSE)) -> 28420.71504 | I19: =IF($A19-Inputs!$D$6>24,"",(Inputs!$D$2/(Inputs!$D$2+Inputs!$D$3)*B19*0.1/12)) -> 378.7775824 | J19: =IF(AND(Inputs!$D$3>=0,Inputs!$P$1=1),IF($A19-Inputs!$D$6>24,"",MIN((Inputs!$D$2/(Inputs!$D$2+Inputs!$D$3))*C19*0.15/12,$Y$2)),IF(Inputs!P18=3,IF($A19-Inputs!$D$6>24,"",MIN(C19*0.15/12,$Y$2)),IF($A19-Inputs!$D$6>24,"",MIN(D19*0.15/12,$Y$2)))) -> 262.5961676 | K19: =IF(AND(Inputs!$D$3>=0,Inputs!$P$1=1),IF($A19-Inputs!$D$6>19,"",MIN((Inputs!$D$2/(Inputs!$D$2+Inputs!$D$3))*C19*0.1/12,$Y$2)),IF(Inputs!P18=3,IF($A19-Inputs!$D$6>19,"",MIN(C19*0.1/12,$Y$2)),IF($A19-Inputs!$D$6>19,"",MIN(D19*0.1/12,$Y$2)))) -> 175.0641117 | L19: =IFERROR(IF(AND(OR(Inputs!$D$3>=0,Inputs!$D$3=""),Inputs!$P$1=1),(Inputs!$D$2/(Inputs!$D$2+Inputs!$D$3))*IF($A19-Inputs!$D$6>IF(Inputs!$D$9=0,19,24),"",F19*((0.1*Inputs!$D$9+0.05*(1-Inputs!$D$9)))/12),IF(Inputs!P18=3,IF($A19-Inputs!$D$6>IF(Inputs!$D$9=0,19,24),"",F19*((0.1*Inputs!$D$9+0.05*(1-Inputs!$D$9)))/12),IF($A19-Inputs!$D$6>IF(Inputs!$D$9=0,19,24),"",G19*((0.1*Inputs!$D$9+0.05*(1-Inputs!$D$9)))/12))),"") -> 0 | M19: 302.9901646 | N19: =IF($A19-Inputs!$D$6>24,"",(Inputs!$D$3/(Inputs!$D$2+Inputs!$D$3)*B19*0.1/12)) -> 378.7775824 | O19: =IF(AND(Inputs!$D$3>0,Inputs!$P$1=1),IF($A19-Inputs!$D$6>24,"",MIN((Inputs!$D$3/(Inputs!$D$2+Inputs!$D$3))*C19*0.15/12,$Z$2)),IF(Inputs!P18=3,(Inputs!$D$3/(Inputs!$D$2+Inputs!$D$3))*IF($A19-Inputs!$D$6>24,"",MIN(C19*0.15/12,$Z$2)),IF($A19-Inputs!$D$6>24,"",MIN(E19*0.15/12,$Z$2)))) -> 555.1025097 | P19: =IF(AND(Inputs!$D$3>0,Inputs!$P$1=1),IF($A19-Inputs!$D$6>19,"",MIN((Inputs!$D$3/(Inputs!$D$2+Inputs!$D$3))*C19*0.1/12,$Z$2)),IF(Inputs!P18=3,(Inputs!$D$3/(Inputs!$D$2+Inputs!$D$3))*IF($A19-Inputs!$D$6>19,"",MIN(C19*0.1/12,$Z$2)),IF($A19-Inputs!$D$6>19,"",MIN(E19*0.1/12,$Z$2)))) -> 387.4550325 | Q19: =IFERROR(IF(OR(Inputs!$D$3=0,Inputs!$D$3=""),0,IF(AND(Inputs!$D$3>0,Inputs!$P$1=1),(Inputs!$D$3/(Inputs!$D$2+Inputs!$D$3))*IF($A19-Inputs!$D$6>IF(Inputs!$D$9=0,19,24),"",F19*((0.1*Inputs!$D$9+0.05*(1-Inputs!$D$9)))/12),IF(Inputs!P18=3,IF($A19-Inputs!$D$6>IF(Inputs!$D$9=0,19,24),"",F19*((0.1*Inputs!$D$9+0.05*(1-Inputs!$D$9)))/12),IF($A19-Inputs!$D$6>IF(Inputs!$D$9=0,19,24),"",H19*((0.1*Inputs!$D$9+0.05*(1-Inputs!$D$9)))/12)))),"") -> 236.839292 | R19: 302.9901646 | S19: 757.5551648 | T19: 817.6986773 | U19: 562.5191442 | V19: 236.839292 | W19: 605.9803293 | Y19: =IF(AF19="","",(Inputs!$D$2)*(((Inputs!$D$4/12)*((1+Inputs!$D$4/12)^120))/(((1+Inputs!$D$4/12)^120)-1))) ->  | Z19: =IF(AF19="","",(Inputs!$D$3)*(((Inputs!$D$4/12)*((1+Inputs!$D$4/12)^120))/(((1+Inputs!$D$4/12)^120)-1))) ->  | AA19: =IF(AA18=0,0,IF($A19-Inputs!$D$6>25,"",IF((AA18+IF(AS18<AG18,(AH18-AS18)/2,AG18-AS18))>0,AA18+IF(AS18<AG18,(AH18-AS18)/2,AG18-AS18),0))) -> 77118.94269 | AB19: =IF(AB18=0,0,IF($A19-Inputs!$D$6>25,"",IF(AB18-AT18+AH18>0,AB18-AT18+AH18,0))) -> 57034.39094 | AC19: =IF(AC18=0,0,IF($A19-Inputs!$D$6>20,"",IF(AC18-AU18+AI18>0,AC18-AU18+AI18,0))) -> 113125.6757 | AD19: =IF(AD18=0,0,IF($A19-Inputs!$D$6>IF(Inputs!$D$9=0,20,25),"",IF(AV18<$AD$2*Inputs!$D$4,IF(V18*12>AD18,0,AD18),IF(AD18-AV18+AJ18>0,AD18-AV18+AJ18,0)))) -> 100000 | AE19: 22467.33322 | AG19: =IF(AA19<AS18,0,IF(AA19="","",IF(Calculations!$A19-Inputs!$D$6>24,"",IF(AS19<$AA$2*Inputs!$D$4,$AA$2*Inputs!$D$4-($AA$2*Inputs!$D$4-AS19)/2,MIN($AA$2*Inputs!$D$4,AA19*Inputs!$D$4))))) -> 4627.136562 | AH19: =IF(AB19="","",IF(Calculations!$A19-Inputs!$D$6>24,"",IF(AB19>(Inputs!$D$2+Inputs!$D$3),(Inputs!$D$2+Inputs!$D$3)*Inputs!$D$4,IF(AB19<$X$3*12,0,AB19*Inputs!$D$4)))) -> 3422.063456 | AI19: =IF(AC19="","",IF(Calculations!$A19-Inputs!$D$6>24,"",IF(AC19>(Inputs!$D$2+Inputs!$D$3),(Inputs!$D$2+Inputs!$D$3)*Inputs!$D$4,IF(AC19<$X$3*12,0,AC19*Inputs!$D$4)))) -> 6000 | AJ19: =IF(AD19<AV18,0,IF(AD19="","",IF(Calculations!$A19-Inputs!$D$6>IF(Inputs!$D$9=0,19,24),"",IF(AV19<$AD$2*Inputs!$D$4,MAX(0,AV19),MIN($AD$2*Inputs!$D$4,AD19*Inputs!$D$4))))) -> 2842.071504 | AK19: =IF(AE19="","",IF(AE19<$AW$2,0,IF(AE19>(Inputs!$D$2+Inputs!$D$3),(Inputs!$D$2+Inputs!$D$3)*'Main page'!$N$5,AE19*'Main page'!$N$5))) -> 898.6933289 | AM19: =IFERROR(AG19/AA19,"") -> 0.06 | AN19: 0.06 | AO19: 0.05303835725 | AP19: 0.02842071504 | AQ19: 0.04 | AS19: =IFERROR(IF(OR(AA19="",AA19=0),"",IF(AA19<S19*12,AA19,S19*12)),"") -> 9090.661977 | AT19: 9812.384127 | AU19: 6750.22973 | AV19: 2842.071504 | AW19: 7271.763952 | AY19: =IF($A19-Inputs!$D$6>19,"",MIN((Inputs!$D$2/(Inputs!$D$2+Inputs!$D$3))*C19*0.1/12,$Y$2)) -> 378.7775824 | AZ19: =IF($A19-Inputs!$D$6>19,"",MIN(D19*0.1/12,$Y$2)) -> 175.0641117 | BA19: =IF($A19-Inputs!$D$6>19,"",MIN((Inputs!$D$3/(Inputs!$D$2+Inputs!$D$3))*C19*0.1/12,$Z$2)) -> 378.7775824 | BB19: =IF($A19-Inputs!$D$6>19,"",MIN(E19*0.1/12,$Z$2)) -> 387.4550325 | BC19: =(Inputs!$D$2/(Inputs!$D$2+Inputs!$D$3))*IF($A19-Inputs!$D$6>IF(Inputs!$D$9=0,19,24),"",F19*((0.1*Inputs!$D$9+0.05*(1-Inputs!$D$9)))/12) -> 223.8231169 | BD19: =IF($A19-Inputs!$D$6>IF(Inputs!$D$9=0,19,24),"",G19*((0.1*Inputs!$D$9+0.05*(1-Inputs!$D$9)))/12) -> 0 | BE19: =(Inputs!$D$3/(Inputs!$D$2+Inputs!$D$3))*IF($A19-Inputs!$D$6>IF(Inputs!$D$9=0,19,24),"",F19*((0.1*Inputs!$D$9+0.05*(1-Inputs!$D$9)))/12) -> 223.8231169 | BF19: =IF(Inputs!$D$3=0,0,1)*IF($A19-Inputs!$D$6>IF(Inputs!$D$9=0,19,24),"",H19*((0.1*Inputs!$D$9+0.05*(1-Inputs!$D$9)))/12) -> 236.839292 | BG19: 757.5551648 | BH19: 447.6462337 | BI19: 562.5191442 | BJ19: 236.839292 | BK19: -195.0360206 | BL19: -210.8069418 | BM19: =#REF! ->  | BN19: =IFERROR(((BI19-BG19)+#REF!/12)*12,"") ->  | BO19: =IFERROR(((BJ19-BH19)+#REF!/12)*12,"") ->  | BP19: =IFERROR(AS19/((1+'Main page'!$N$4)^($A19-$A$2)),"") -> 3966.225709 | BQ19: =IFERROR(AU19/((1+'Main page'!$N$4)^($A19-$A$2)),"") -> 2945.102872 | BR19: =IFERROR(AT19/((1+'Main page'!$N$4)^($A19-$A$2)),"") -> 4281.110692 | BS19: =IFERROR(AV19/((1+'Main page'!$N$4)^($A19-$A$2)),"") -> 1239.986383 | BT19: =IF(AW19="","",IFERROR(AW19/((1+'Main page'!$N$4)^($A19-$A$2)),"")) -> 3172.646525 | BU19: =IFERROR(AX19/((1+'Main page'!$N$4)^($A19-$A$2)),"") ->  | BW19: 2041 | BX19: 0 | BY19: 0 | BZ19: 0 | CA19: 0 | CC19: =$CC$2+IF(AND(Inputs!$K$2="",Inputs!$K$8<>""),1,0)+IF(AND(Calculations!$A19>=Inputs!$G$6,Inputs!$G$6<>""),1,0)+IF(AND(Calculations!$A19>=Inputs!$G$7,Inputs!$G$7<>""),1,0)+IF(AND(Calculations!$A19>=Inputs!$G$8,Inputs!$G$8<>""),1,0)+IF(AND(Calculations!$A19>=Inputs!$G$9,Inputs!$G$9<>""),1,0) -> 4 | CK19: 2041 | CL19: =+CL18*(1+Inputs!$J$12) -> 165284.7632 | CM19: 1652.847632 | CN19: 3305.695265 | CO19: 4958.542897 | CP19: 6611.390529 | CQ19: 8264.238161 | CR19: 9917.085794 | CS19: 11569.93343 | CT19: 13222.78106 | CU19: 14875.62869 | CV19: 16528.47632 | CW19: 18181.32395 | CX19: 19834.17159 | CY19: 21487.01922 | CZ19: 23139.86685 | DA19: 24792.71448 | DB19: 26445.56212 | DC19: 28098.40975 | DD19: 29751.25738 | DE19: 31404.10501 | DF19: 33056.95265 | DG19: 2041 | DH19: =CM19*(1+'Main page'!$N$4)+DH18*(1+'Main page'!$N$4) -> 36969.77405 | DI19: =CN19*(1+'Main page'!$N$4)+DI18*(1+'Main page'!$N$4) -> 73939.54811 | DJ19: =CO19*(1+'Main page'!$N$4)+DJ18*(1+'Main page'!$N$4) -> 110909.3222 | DK19: =CP19*(1+'Main page'!$N$4)+DK18*(1+'Main page'!$N$4) -> 147879.0962 | DL19: =CQ19*(1+'Main page'!$N$4)+DL18*(1+'Main page'!$N$4) -> 184848.8703 | DM19: =CR19*(1+'Main page'!$N$4)+DM18*(1+'Main page'!$N$4) -> 221818.6443 | DN19: =CS19*(1+'Main page'!$N$4)+DN18*(1+'Main page'!$N$4) -> 258788.4184 | DO19: =CT19*(1+'Main page'!$N$4)+DO18*(1+'Main page'!$N$4) -> 295758.1924 | DP19: =CU19*(1+'Main page'!$N$4)+DP18*(1+'Main page'!$N$4) -> 332727.9665 | DQ19: =CV19*(1+'Main page'!$N$4)+DQ18*(1+'Main page'!$N$4) -> 369697.7405 | DR19: =CW19*(1+'Main page'!$N$4)+DR18*(1+'Main page'!$N$4) -> 406667.5146 | DS19: =CX19*(1+'Main page'!$N$4)+DS18*(1+'Main page'!$N$4) -> 443637.2886 | DT19: =CY19*(1+'Main page'!$N$4)+DT18*(1+'Main page'!$N$4) -> 480607.0627 | DU19: =CZ19*(1+'Main page'!$N$4)+DU18*(1+'Main page'!$N$4) -> 517576.8368 | DV19: =DA19*(1+'Main page'!$N$4)+DV18*(1+'Main page'!$N$4) -> 554546.6108 | DW19: =DB19*(1+'Main page'!$N$4)+DW18*(1+'Main page'!$N$4) -> 591516.3849 | DX19: =DC19*(1+'Main page'!$N$4)+DX18*(1+'Main page'!$N$4) -> 628486.1589 | DY19: =DD19*(1+'Main page'!$N$4)+DY18*(1+'Main page'!$N$4) -> 665455.933 | DZ19: =DE19*(1+'Main page'!$N$4)+DZ18*(1+'Main page'!$N$4) -> 702425.707 | EA19: =DF19*(1+'Main page'!$N$4)+EA18*(1+'Main page'!$N$4) -> 739395.4811 | EB19: 0.055 | EC19: 0.04084 | ED19: 0.0593665377 | EG19: =+EG18*(1+Inputs!$J$12) -> 165284.7632
A20: 2042 | B20: =IF((SUM(((1+Inputs!$J$12)^($A20-$A$11))*Inputs!$J$11+((1+Inputs!$K$12)^($A20-$A$11))*Inputs!$K$11)-VLOOKUP($CC20,Calculations!$CG$1:$CI$9,3,FALSE)*((1+Inputs!$D$5)^($A20-$A$2)))<=0,0,(SUM(((1+Inputs!$J$12)^($A20-$A$11))*Inputs!$J$11+((1+Inputs!$K$12)^($A20-$A$11))*Inputs!$K$11)-VLOOKUP($CC20,Calculations!$CG$1:$CI$9,3,FALSE)*((1+Inputs!$D$5)^($A20-$A$2)))) -> 93633.81837 | C20: =IF(Inputs!$J$11*((1+Inputs!$J$12)^(Calculations!A20-$A$11))+Inputs!$K$11*((1+Inputs!$K$12)^(A20-$A$11))-((1+Inputs!$D$5)^(A20-$A$2))*VLOOKUP(CC20,Calculations!$CG$1:$CJ$16,3,FALSE)<0,0,Inputs!$J$11*((1+Inputs!$J$12)^(Calculations!A20-$A$11))+Inputs!$K$11*((1+Inputs!$K$12)^(A20-$A$11))-((1+Inputs!$D$5)^(A20-$A$2))*VLOOKUP(CC20,Calculations!$CG$1:$CJ$16,3,FALSE)) -> 93633.81837 | D20: =IF(Inputs!$J$11*((1+Inputs!$J$12)^(Calculations!A20-Calculations!$A$11))-((1+Inputs!$D$5)^(A20-$A$2))*VLOOKUP(CC20-1,Calculations!$CG$1:$CJ$18,3,FALSE)<0,0,Inputs!$J$11*((1+Inputs!$J$12)^(Calculations!A20-Calculations!$A$11))-((1+Inputs!$D$5)^(A20-$A$2))*VLOOKUP(CC20-1,Calculations!$CG$1:$CJ$18,3,FALSE)) -> 21637.92421 | E20: =IF(Inputs!$K$11*((1+Inputs!$J$12)^(Calculations!A20-Calculations!$A$11))-((1+Inputs!$D$5)^(A20-$A$2))*VLOOKUP(1,Calculations!$CG$1:$CJ$18,3,FALSE)<0,0,Inputs!$K$11*((1+Inputs!$J$12)^(Calculations!A20-Calculations!$A$11))-((1+Inputs!$D$5)^(A20-$A$2))*VLOOKUP(1,Calculations!$CG$1:$CJ$18,3,FALSE)) -> 47889.44201 | F20: =IF(Inputs!$J$11*((1+Inputs!$J$12)^(Calculations!A20-$A$11))+Inputs!$K$11*((1+Inputs!$K$12)^(A20-$A$11))-((1+Inputs!$D$5)^(A20-$A$2))*VLOOKUP(CC20,Calculations!$CG$1:$CJ$16,4,FALSE)<0,0,Inputs!$J$11*((1+Inputs!$J$12)^(Calculations!A20-$A$11))+Inputs!$K$11*((1+Inputs!$K$12)^(A20-$A$11))-((1+Inputs!$D$5)^(A20-$A$2))*VLOOKUP(CC20,Calculations!$CG$1:$CJ$16,4,FALSE)) -> 55329.07449 | G20: =IF(Inputs!$K$11="",Calculations!F20,IF(Inputs!$J$11*((1+Inputs!$J$12)^(Calculations!A20-Calculations!$A$11))-((1+Inputs!$D$5)^(A20-$A$2))*VLOOKUP(CC20-1,Calculations!$CG$1:$CJ$18,4,FALSE)<0,0,Inputs!$J$11*((1+Inputs!$J$12)^(Calculations!A20-Calculations!$A$11))-((1+Inputs!$D$5)^(A20-$A$2))*VLOOKUP(CC20-1,Calculations!$CG$1:$CJ$18,4,FALSE))) -> 0 | H20: =IF(Inputs!$K$11*((1+Inputs!$J$12)^(Calculations!A20-Calculations!$A$11))-((1+Inputs!$D$5)^(A20-$A$2))*VLOOKUP(1,Calculations!$CG$1:$CJ$18,4,FALSE)<0,0,Inputs!$K$11*((1+Inputs!$J$12)^(Calculations!A20-Calculations!$A$11))-((1+Inputs!$D$5)^(A20-$A$2))*VLOOKUP(1,Calculations!$CG$1:$CJ$18,4,FALSE)) -> 29273.33649 | I20: =IF($A20-Inputs!$D$6>24,"",(Inputs!$D$2/(Inputs!$D$2+Inputs!$D$3)*B20*0.1/12)) -> 390.1409099 | J20: =IF(AND(Inputs!$D$3>=0,Inputs!$P$1=1),IF($A20-Inputs!$D$6>24,"",MIN((Inputs!$D$2/(Inputs!$D$2+Inputs!$D$3))*C20*0.15/12,$Y$2)),IF(Inputs!P19=3,IF($A20-Inputs!$D$6>24,"",MIN(C20*0.15/12,$Y$2)),IF($A20-Inputs!$D$6>24,"",MIN(D20*0.15/12,$Y$2)))) -> 270.4740526 | K20: =IF(AND(Inputs!$D$3>=0,Inputs!$P$1=1),IF($A20-Inputs!$D$6>19,"",MIN((Inputs!$D$2/(Inputs!$D$2+Inputs!$D$3))*C20*0.1/12,$Y$2)),IF(Inputs!P19=3,IF($A20-Inputs!$D$6>19,"",MIN(C20*0.1/12,$Y$2)),IF($A20-Inputs!$D$6>19,"",MIN(D20*0.1/12,$Y$2)))) -> 180.3160351 | L20: =IFERROR(IF(AND(OR(Inputs!$D$3>=0,Inputs!$D$3=""),Inputs!$P$1=1),(Inputs!$D$2/(Inputs!$D$2+Inputs!$D$3))*IF($A20-Inputs!$D$6>IF(Inputs!$D$9=0,19,24),"",F20*((0.1*Inputs!$D$9+0.05*(1-Inputs!$D$9)))/12),IF(Inputs!P19=3,IF($A20-Inputs!$D$6>IF(Inputs!$D$9=0,19,24),"",F20*((0.1*Inputs!$D$9+0.05*(1-Inputs!$D$9)))/12),IF($A20-Inputs!$D$6>IF(Inputs!$D$9=0,19,24),"",G20*((0.1*Inputs!$D$9+0.05*(1-Inputs!$D$9)))/12))),"") -> 0 | M20: 302.9901646 | N20: =IF($A20-Inputs!$D$6>24,"",(Inputs!$D$3/(Inputs!$D$2+Inputs!$D$3)*B20*0.1/12)) -> 390.1409099 | O20: =IF(AND(Inputs!$D$3>0,Inputs!$P$1=1),IF($A20-Inputs!$D$6>24,"",MIN((Inputs!$D$3/(Inputs!$D$2+Inputs!$D$3))*C20*0.15/12,$Z$2)),IF(Inputs!P19=3,(Inputs!$D$3/(Inputs!$D$2+Inputs!$D$3))*IF($A20-Inputs!$D$6>24,"",MIN(C20*0.15/12,$Z$2)),IF($A20-Inputs!$D$6>24,"",MIN(E20*0.15/12,$Z$2)))) -> 555.1025097 | P20: =IF(AND(Inputs!$D$3>0,Inputs!$P$1=1),IF($A20-Inputs!$D$6>19,"",MIN((Inputs!$D$3/(Inputs!$D$2+Inputs!$D$3))*C20*0.1/12,$Z$2)),IF(Inputs!P19=3,(Inputs!$D$3/(Inputs!$D$2+Inputs!$D$3))*IF($A20-Inputs!$D$6>19,"",MIN(C20*0.1/12,$Z$2)),IF($A20-Inputs!$D$6>19,"",MIN(E20*0.1/12,$Z$2)))) -> 399.0786834 | Q20: =IFERROR(IF(OR(Inputs!$D$3=0,Inputs!$D$3=""),0,IF(AND(Inputs!$D$3>0,Inputs!$P$1=1),(Inputs!$D$3/(Inputs!$D$2+Inputs!$D$3))*IF($A20-Inputs!$D$6>IF(Inputs!$D$9=0,19,24),"",F20*((0.1*Inputs!$D$9+0.05*(1-Inputs!$D$9)))/12),IF(Inputs!P19=3,IF($A20-Inputs!$D$6>IF(Inputs!$D$9=0,19,24),"",F20*((0.1*Inputs!$D$9+0.05*(1-Inputs!$D$9)))/12),IF($A20-Inputs!$D$6>IF(Inputs!$D$9=0,19,24),"",H20*((0.1*Inputs!$D$9+0.05*(1-Inputs!$D$9)))/12)))),"") -> 243.9444707 | R20: 302.9901646 | S20: 780.2818197 | T20: 825.5765623 | U20: 579.3947185 | V20: 243.9444707 | W20: 605.9803293 | Y20: =IF(AF20="","",(Inputs!$D$2)*(((Inputs!$D$4/12)*((1+Inputs!$D$4/12)^120))/(((1+Inputs!$D$4/12)^120)-1))) ->  | Z20: =IF(AF20="","",(Inputs!$D$3)*(((Inputs!$D$4/12)*((1+Inputs!$D$4/12)^120))/(((1+Inputs!$D$4/12)^120)-1))) ->  | AA20: =IF(AA19=0,0,IF($A20-Inputs!$D$6>25,"",IF((AA19+IF(AS19<AG19,(AH19-AS19)/2,AG19-AS19))>0,AA19+IF(AS19<AG19,(AH19-AS19)/2,AG19-AS19),0))) -> 72655.41728 | AB20: =IF(AB19=0,0,IF($A20-Inputs!$D$6>25,"",IF(AB19-AT19+AH19>0,AB19-AT19+AH19,0))) -> 50644.07027 | AC20: =IF(AC19=0,0,IF($A20-Inputs!$D$6>20,"",IF(AC19-AU19+AI19>0,AC19-AU19+AI19,0))) -> 112375.4459 | AD20: =IF(AD19=0,0,IF($A20-Inputs!$D$6>IF(Inputs!$D$9=0,20,25),"",IF(AV19<$AD$2*Inputs!$D$4,IF(V19*12>AD19,0,AD19),IF(AD19-AV19+AJ19>0,AD19-AV19+AJ19,0)))) -> 100000 | AE20: 16094.2626 | AG20: =IF(AA20<AS19,0,IF(AA20="","",IF(Calculations!$A20-Inputs!$D$6>24,"",IF(AS20<$AA$2*Inputs!$D$4,$AA$2*Inputs!$D$4-($AA$2*Inputs!$D$4-AS20)/2,MIN($AA$2*Inputs!$D$4,AA20*Inputs!$D$4))))) -> 4359.325037 | AH20: =IF(AB20="","",IF(Calculations!$A20-Inputs!$D$6>24,"",IF(AB20>(Inputs!$D$2+Inputs!$D$3),(Inputs!$D$2+Inputs!$D$3)*Inputs!$D$4,IF(AB20<$X$3*12,0,AB20*Inputs!$D$4)))) -> 3038.644216 | AI20: =IF(AC20="","",IF(Calculations!$A20-Inputs!$D$6>24,"",IF(AC20>(Inputs!$D$2+Inputs!$D$3),(Inputs!$D$2+Inputs!$D$3)*Inputs!$D$4,IF(AC20<$X$3*12,0,AC20*Inputs!$D$4)))) -> 6000 | AJ20: =IF(AD20<AV19,0,IF(AD20="","",IF(Calculations!$A20-Inputs!$D$6>IF(Inputs!$D$9=0,19,24),"",IF(AV20<$AD$2*Inputs!$D$4,MAX(0,AV20),MIN($AD$2*Inputs!$D$4,AD20*Inputs!$D$4))))) -> 2927.333649 | AK20: =IF(AE20="","",IF(AE20<$AW$2,0,IF(AE20>(Inputs!$D$2+Inputs!$D$3),(Inputs!$D$2+Inputs!$D$3)*'Main page'!$N$5,AE20*'Main page'!$N$5))) -> 643.770504 | AM20: =IFERROR(AG20/AA20,"") -> 0.06 | AN20: 0.06 | AO20: 0.05339244664 | AP20: 0.02927333649 | AQ20: 0.04 | AS20: =IFERROR(IF(OR(AA20="",AA20=0),"",IF(AA20<S20*12,AA20,S20*12)),"") -> 9363.381837 | AT20: 9906.918748 | AU20: 6952.736622 | AV20: 2927.333649 | AW20: 7271.763952 | AY20: =IF($A20-Inputs!$D$6>19,"",MIN((Inputs!$D$2/(Inputs!$D$2+Inputs!$D$3))*C20*0.1/12,$Y$2)) -> 390.1409099 | AZ20: =IF($A20-Inputs!$D$6>19,"",MIN(D20*0.1/12,$Y$2)) -> 180.3160351 | BA20: =IF($A20-Inputs!$D$6>19,"",MIN((Inputs!$D$3/(Inputs!$D$2+Inputs!$D$3))*C20*0.1/12,$Z$2)) -> 390.1409099 | BB20: =IF($A20-Inputs!$D$6>19,"",MIN(E20*0.1/12,$Z$2)) -> 399.0786834 | BC20: =(Inputs!$D$2/(Inputs!$D$2+Inputs!$D$3))*IF($A20-Inputs!$D$6>IF(Inputs!$D$9=0,19,24),"",F20*((0.1*Inputs!$D$9+0.05*(1-Inputs!$D$9)))/12) -> 230.5378104 | BD20: =IF($A20-Inputs!$D$6>IF(Inputs!$D$9=0,19,24),"",G20*((0.1*Inputs!$D$9+0.05*(1-Inputs!$D$9)))/12) -> 0 | BE20: =(Inputs!$D$3/(Inputs!$D$2+Inputs!$D$3))*IF($A20-Inputs!$D$6>IF(Inputs!$D$9=0,19,24),"",F20*((0.1*Inputs!$D$9+0.05*(1-Inputs!$D$9)))/12) -> 230.5378104 | BF20: =IF(Inputs!$D$3=0,0,1)*IF($A20-Inputs!$D$6>IF(Inputs!$D$9=0,19,24),"",H20*((0.1*Inputs!$D$9+0.05*(1-Inputs!$D$9)))/12) -> 243.9444707 | BG20: 780.2818197 | BH20: 461.0756208 | BI20: 579.3947185 | BJ20: 243.9444707 | BK20: -200.8871012 | BL20: -217.13115 | BM20: =#REF! ->  | BN20: =IFERROR(((BI20-BG20)+#REF!/12)*12,"") ->  | BO20: =IFERROR(((BJ20-BH20)+#REF!/12)*12,"") ->  | BP20: =IFERROR(AS20/((1+'Main page'!$N$4)^($A20-$A$2)),"") -> 3890.678553 | BQ20: =IFERROR(AU20/((1+'Main page'!$N$4)^($A20-$A$2)),"") -> 2889.005674 | BR20: =IFERROR(AT20/((1+'Main page'!$N$4)^($A20-$A$2)),"") -> 4116.529366 | BS20: =IFERROR(AV20/((1+'Main page'!$N$4)^($A20-$A$2)),"") -> 1216.367595 | BT20: =IF(AW20="","",IFERROR(AW20/((1+'Main page'!$N$4)^($A20-$A$2)),"")) -> 3021.568119 | BU20: =IFERROR(AX20/((1+'Main page'!$N$4)^($A20-$A$2)),"") ->  | BW20: 2042 | BX20: 0 | BY20: 0 | BZ20: 0 | CA20: 0 | CC20: =$CC$2+IF(AND(Inputs!$K$2="",Inputs!$K$8<>""),1,0)+IF(AND(Calculations!$A20>=Inputs!$G$6,Inputs!$G$6<>""),1,0)+IF(AND(Calculations!$A20>=Inputs!$G$7,Inputs!$G$7<>""),1,0)+IF(AND(Calculations!$A20>=Inputs!$G$8,Inputs!$G$8<>""),1,0)+IF(AND(Calculations!$A20>=Inputs!$G$9,Inputs!$G$9<>""),1,0) -> 4 | CK20: 2042 | CL20: =+CL19*(1+Inputs!$J$12) -> 170243.3061 | CM20: 1702.433061 | CN20: 3404.866122 | CO20: 5107.299184 | CP20: 6809.732245 | CQ20: 8512.165306 | CR20: 10214.59837 | CS20: 11917.03143 | CT20: 13619.46449 | CU20: 15321.89755 | CV20: 17024.33061 | CW20: 18726.76367 | CX20: 20429.19673 | CY20: 22131.6298 | CZ20: 23834.06286 | DA20: 25536.49592 | DB20: 27238.92898 | DC20: 28941.36204 | DD20: 30643.7951 | DE20: 32346.22816 | DF20: 34048.66122 | DG20: 2042 | DH20: =CM20*(1+'Main page'!$N$4)+DH19*(1+'Main page'!$N$4) -> 40605.81747 | DI20: =CN20*(1+'Main page'!$N$4)+DI19*(1+'Main page'!$N$4) -> 81211.63494 | DJ20: =CO20*(1+'Main page'!$N$4)+DJ19*(1+'Main page'!$N$4) -> 121817.4524 | DK20: =CP20*(1+'Main page'!$N$4)+DK19*(1+'Main page'!$N$4) -> 162423.2699 | DL20: =CQ20*(1+'Main page'!$N$4)+DL19*(1+'Main page'!$N$4) -> 203029.0874 | DM20: =CR20*(1+'Main page'!$N$4)+DM19*(1+'Main page'!$N$4) -> 243634.9048 | DN20: =CS20*(1+'Main page'!$N$4)+DN19*(1+'Main page'!$N$4) -> 284240.7223 | DO20: =CT20*(1+'Main page'!$N$4)+DO19*(1+'Main page'!$N$4) -> 324846.5398 | DP20: =CU20*(1+'Main page'!$N$4)+DP19*(1+'Main page'!$N$4) -> 365452.3572 | DQ20: =CV20*(1+'Main page'!$N$4)+DQ19*(1+'Main page'!$N$4) -> 406058.1747 | DR20: =CW20*(1+'Main page'!$N$4)+DR19*(1+'Main page'!$N$4) -> 446663.9922 | DS20: =CX20*(1+'Main page'!$N$4)+DS19*(1+'Main page'!$N$4) -> 487269.8096 | DT20: =CY20*(1+'Main page'!$N$4)+DT19*(1+'Main page'!$N$4) -> 527875.6271 | DU20: =CZ20*(1+'Main page'!$N$4)+DU19*(1+'Main page'!$N$4) -> 568481.4446 | DV20: =DA20*(1+'Main page'!$N$4)+DV19*(1+'Main page'!$N$4) -> 609087.2621 | DW20: =DB20*(1+'Main page'!$N$4)+DW19*(1+'Main page'!$N$4) -> 649693.0795 | DX20: =DC20*(1+'Main page'!$N$4)+DX19*(1+'Main page'!$N$4) -> 690298.897 | DY20: =DD20*(1+'Main page'!$N$4)+DY19*(1+'Main page'!$N$4) -> 730904.7145 | DZ20: =DE20*(1+'Main page'!$N$4)+DZ19*(1+'Main page'!$N$4) -> 771510.5319 | EA20: =DF20*(1+'Main page'!$N$4)+EA19*(1+'Main page'!$N$4) -> 812116.3494 | EB20: 0.055 | EC20: 0.04084 | ED20: 0.05819270651 | EG20: =+EG19*(1+Inputs!$J$12) -> 170243.3061
A21: 2043 | B21: =IF((SUM(((1+Inputs!$J$12)^($A21-$A$11))*Inputs!$J$11+((1+Inputs!$K$12)^($A21-$A$11))*Inputs!$K$11)-VLOOKUP($CC21,Calculations!$CG$1:$CI$9,3,FALSE)*((1+Inputs!$D$5)^($A21-$A$2)))<=0,0,(SUM(((1+Inputs!$J$12)^($A21-$A$11))*Inputs!$J$11+((1+Inputs!$K$12)^($A21-$A$11))*Inputs!$K$11)-VLOOKUP($CC21,Calculations!$CG$1:$CI$9,3,FALSE)*((1+Inputs!$D$5)^($A21-$A$2)))) -> 96442.83292 | C21: =IF(Inputs!$J$11*((1+Inputs!$J$12)^(Calculations!A21-$A$11))+Inputs!$K$11*((1+Inputs!$K$12)^(A21-$A$11))-((1+Inputs!$D$5)^(A21-$A$2))*VLOOKUP(CC21,Calculations!$CG$1:$CJ$16,3,FALSE)<0,0,Inputs!$J$11*((1+Inputs!$J$12)^(Calculations!A21-$A$11))+Inputs!$K$11*((1+Inputs!$K$12)^(A21-$A$11))-((1+Inputs!$D$5)^(A21-$A$2))*VLOOKUP(CC21,Calculations!$CG$1:$CJ$16,3,FALSE)) -> 96442.83292 | D21: =IF(Inputs!$J$11*((1+Inputs!$J$12)^(Calculations!A21-Calculations!$A$11))-((1+Inputs!$D$5)^(A21-$A$2))*VLOOKUP(CC21-1,Calculations!$CG$1:$CJ$18,3,FALSE)<0,0,Inputs!$J$11*((1+Inputs!$J$12)^(Calculations!A21-Calculations!$A$11))-((1+Inputs!$D$5)^(A21-$A$2))*VLOOKUP(CC21-1,Calculations!$CG$1:$CJ$18,3,FALSE)) -> 22287.06193 | E21: =IF(Inputs!$K$11*((1+Inputs!$J$12)^(Calculations!A21-Calculations!$A$11))-((1+Inputs!$D$5)^(A21-$A$2))*VLOOKUP(1,Calculations!$CG$1:$CJ$18,3,FALSE)<0,0,Inputs!$K$11*((1+Inputs!$J$12)^(Calculations!A21-Calculations!$A$11))-((1+Inputs!$D$5)^(A21-$A$2))*VLOOKUP(1,Calculations!$CG$1:$CJ$18,3,FALSE)) -> 49326.12527 | F21: =IF(Inputs!$J$11*((1+Inputs!$J$12)^(Calculations!A21-$A$11))+Inputs!$K$11*((1+Inputs!$K$12)^(A21-$A$11))-((1+Inputs!$D$5)^(A21-$A$2))*VLOOKUP(CC21,Calculations!$CG$1:$CJ$16,4,FALSE)<0,0,Inputs!$J$11*((1+Inputs!$J$12)^(Calculations!A21-$A$11))+Inputs!$K$11*((1+Inputs!$K$12)^(A21-$A$11))-((1+Inputs!$D$5)^(A21-$A$2))*VLOOKUP(CC21,Calculations!$CG$1:$CJ$16,4,FALSE)) -> 56988.94673 | G21: =IF(Inputs!$K$11="",Calculations!F21,IF(Inputs!$J$11*((1+Inputs!$J$12)^(Calculations!A21-Calculations!$A$11))-((1+Inputs!$D$5)^(A21-$A$2))*VLOOKUP(CC21-1,Calculations!$CG$1:$CJ$18,4,FALSE)<0,0,Inputs!$J$11*((1+Inputs!$J$12)^(Calculations!A21-Calculations!$A$11))-((1+Inputs!$D$5)^(A21-$A$2))*VLOOKUP(CC21-1,Calculations!$CG$1:$CJ$18,4,FALSE))) -> 0 | H21: =IF(Inputs!$K$11*((1+Inputs!$J$12)^(Calculations!A21-Calculations!$A$11))-((1+Inputs!$D$5)^(A21-$A$2))*VLOOKUP(1,Calculations!$CG$1:$CJ$18,4,FALSE)<0,0,Inputs!$K$11*((1+Inputs!$J$12)^(Calculations!A21-Calculations!$A$11))-((1+Inputs!$D$5)^(A21-$A$2))*VLOOKUP(1,Calculations!$CG$1:$CJ$18,4,FALSE)) -> 30151.53658 | I21: =IF($A21-Inputs!$D$6>24,"",(Inputs!$D$2/(Inputs!$D$2+Inputs!$D$3)*B21*0.1/12)) -> 401.8451372 | J21: =IF(AND(Inputs!$D$3>=0,Inputs!$P$1=1),IF($A21-Inputs!$D$6>24,"",MIN((Inputs!$D$2/(Inputs!$D$2+Inputs!$D$3))*C21*0.15/12,$Y$2)),IF(Inputs!P20=3,IF($A21-Inputs!$D$6>24,"",MIN(C21*0.15/12,$Y$2)),IF($A21-Inputs!$D$6>24,"",MIN(D21*0.15/12,$Y$2)))) -> 278.5882742 | K21: =IF(AND(Inputs!$D$3>=0,Inputs!$P$1=1),IF($A21-Inputs!$D$6>19,"",MIN((Inputs!$D$2/(Inputs!$D$2+Inputs!$D$3))*C21*0.1/12,$Y$2)),IF(Inputs!P20=3,IF($A21-Inputs!$D$6>19,"",MIN(C21*0.1/12,$Y$2)),IF($A21-Inputs!$D$6>19,"",MIN(D21*0.1/12,$Y$2)))) -> 185.7255161 | L21: =IFERROR(IF(AND(OR(Inputs!$D$3>=0,Inputs!$D$3=""),Inputs!$P$1=1),(Inputs!$D$2/(Inputs!$D$2+Inputs!$D$3))*IF($A21-Inputs!$D$6>IF(Inputs!$D$9=0,19,24),"",F21*((0.1*Inputs!$D$9+0.05*(1-Inputs!$D$9)))/12),IF(Inputs!P20=3,IF($A21-Inputs!$D$6>IF(Inputs!$D$9=0,19,24),"",F21*((0.1*Inputs!$D$9+0.05*(1-Inputs!$D$9)))/12),IF($A21-Inputs!$D$6>IF(Inputs!$D$9=0,19,24),"",G21*((0.1*Inputs!$D$9+0.05*(1-Inputs!$D$9)))/12))),"") -> 0 | M21: 302.9901646 | N21: =IF($A21-Inputs!$D$6>24,"",(Inputs!$D$3/(Inputs!$D$2+Inputs!$D$3)*B21*0.1/12)) -> 401.8451372 | O21: =IF(AND(Inputs!$D$3>0,Inputs!$P$1=1),IF($A21-Inputs!$D$6>24,"",MIN((Inputs!$D$3/(Inputs!$D$2+Inputs!$D$3))*C21*0.15/12,$Z$2)),IF(Inputs!P20=3,(Inputs!$D$3/(Inputs!$D$2+Inputs!$D$3))*IF($A21-Inputs!$D$6>24,"",MIN(C21*0.15/12,$Z$2)),IF($A21-Inputs!$D$6>24,"",MIN(E21*0.15/12,$Z$2)))) -> 555.1025097 | P21: =IF(AND(Inputs!$D$3>0,Inputs!$P$1=1),IF($A21-Inputs!$D$6>19,"",MIN((Inputs!$D$3/(Inputs!$D$2+Inputs!$D$3))*C21*0.1/12,$Z$2)),IF(Inputs!P20=3,(Inputs!$D$3/(Inputs!$D$2+Inputs!$D$3))*IF($A21-Inputs!$D$6>19,"",MIN(C21*0.1/12,$Z$2)),IF($A21-Inputs!$D$6>19,"",MIN(E21*0.1/12,$Z$2)))) -> 411.0510439 | Q21: =IFERROR(IF(OR(Inputs!$D$3=0,Inputs!$D$3=""),0,IF(AND(Inputs!$D$3>0,Inputs!$P$1=1),(Inputs!$D$3/(Inputs!$D$2+Inputs!$D$3))*IF($A21-Inputs!$D$6>IF(Inputs!$D$9=0,19,24),"",F21*((0.1*Inputs!$D$9+0.05*(1-Inputs!$D$9)))/12),IF(Inputs!P20=3,IF($A21-Inputs!$D$6>IF(Inputs!$D$9=0,19,24),"",F21*((0.1*Inputs!$D$9+0.05*(1-Inputs!$D$9)))/12),IF($A21-Inputs!$D$6>IF(Inputs!$D$9=0,19,24),"",H21*((0.1*Inputs!$D$9+0.05*(1-Inputs!$D$9)))/12)))),"") -> 251.2628049 | R21: 302.9901646 | S21: 803.6902743 | T21: 833.6907839 | U21: 596.7765601 | V21: 251.2628049 | W21: 605.9803293 | Y21: =IF(AF21="","",(Inputs!$D$2)*(((Inputs!$D$4/12)*((1+Inputs!$D$4/12)^120))/(((1+Inputs!$D$4/12)^120)-1))) ->  | Z21: =IF(AF21="","",(Inputs!$D$3)*(((Inputs!$D$4/12)*((1+Inputs!$D$4/12)^120))/(((1+Inputs!$D$4/12)^120)-1))) ->  | AA21: =IF(AA20=0,0,IF($A21-Inputs!$D$6>25,"",IF((AA20+IF(AS20<AG20,(AH20-AS20)/2,AG20-AS20))>0,AA20+IF(AS20<AG20,(AH20-AS20)/2,AG20-AS20),0))) -> 67651.36048 | AB21: =IF(AB20=0,0,IF($A21-Inputs!$D$6>25,"",IF(AB20-AT20+AH20>0,AB20-AT20+AH20,0))) -> 43775.79573 | AC21: =IF(AC20=0,0,IF($A21-Inputs!$D$6>20,"",IF(AC20-AU20+AI20>0,AC20-AU20+AI20,0))) -> 111422.7093 | AD21: =IF(AD20=0,0,IF($A21-Inputs!$D$6>IF(Inputs!$D$9=0,20,25),"",IF(AV20<$AD$2*Inputs!$D$4,IF(V20*12>AD20,0,AD20),IF(AD20-AV20+AJ20>0,AD20-AV20+AJ20,0)))) -> 100000 | AE21: 9466.269153 | AG21: =IF(AA21<AS20,0,IF(AA21="","",IF(Calculations!$A21-Inputs!$D$6>24,"",IF(AS21<$AA$2*Inputs!$D$4,$AA$2*Inputs!$D$4-($AA$2*Inputs!$D$4-AS21)/2,MIN($AA$2*Inputs!$D$4,AA21*Inputs!$D$4))))) -> 4059.081629 | AH21: =IF(AB21="","",IF(Calculations!$A21-Inputs!$D$6>24,"",IF(AB21>(Inputs!$D$2+Inputs!$D$3),(Inputs!$D$2+Inputs!$D$3)*Inputs!$D$4,IF(AB21<$X$3*12,0,AB21*Inputs!$D$4)))) -> 2626.547744 | AI21: =IF(AC21="","",IF(Calculations!$A21-Inputs!$D$6>24,"",IF(AC21>(Inputs!$D$2+Inputs!$D$3),(Inputs!$D$2+Inputs!$D$3)*Inputs!$D$4,IF(AC21<$X$3*12,0,AC21*Inputs!$D$4)))) -> 6000 | AJ21: =IF(AD21<AV20,0,IF(AD21="","",IF(Calculations!$A21-Inputs!$D$6>IF(Inputs!$D$9=0,19,24),"",IF(AV21<$AD$2*Inputs!$D$4,MAX(0,AV21),MIN($AD$2*Inputs!$D$4,AD21*Inputs!$D$4))))) -> 3015.153658 | AK21: =IF(AE21="","",IF(AE21<$AW$2,0,IF(AE21>(Inputs!$D$2+Inputs!$D$3),(Inputs!$D$2+Inputs!$D$3)*'Main page'!$N$5,AE21*'Main page'!$N$5))) -> 378.6507661 | AM21: =IFERROR(AG21/AA21,"") -> 0.06 | AN21: 0.06 | AO21: 0.05384898678 | AP21: 0.03015153658 | AQ21: 0.04 | AS21: =IFERROR(IF(OR(AA21="",AA21=0),"",IF(AA21<S21*12,AA21,S21*12)),"") -> 9644.283292 | AT21: 10004.28941 | AU21: 7161.318721 | AV21: 3015.153658 | AW21: 7271.763952 | AY21: =IF($A21-Inputs!$D$6>19,"",MIN((Inputs!$D$2/(Inputs!$D$2+Inputs!$D$3))*C21*0.1/12,$Y$2)) -> 401.8451372 | AZ21: =IF($A21-Inputs!$D$6>19,"",MIN(D21*0.1/12,$Y$2)) -> 185.7255161 | BA21: =IF($A21-Inputs!$D$6>19,"",MIN((Inputs!$D$3/(Inputs!$D$2+Inputs!$D$3))*C21*0.1/12,$Z$2)) -> 401.8451372 | BB21: =IF($A21-Inputs!$D$6>19,"",MIN(E21*0.1/12,$Z$2)) -> 411.0510439 | BC21: =(Inputs!$D$2/(Inputs!$D$2+Inputs!$D$3))*IF($A21-Inputs!$D$6>IF(Inputs!$D$9=0,19,24),"",F21*((0.1*Inputs!$D$9+0.05*(1-Inputs!$D$9)))/12) -> 237.4539447 | BD21: =IF($A21-Inputs!$D$6>IF(Inputs!$D$9=0,19,24),"",G21*((0.1*Inputs!$D$9+0.05*(1-Inputs!$D$9)))/12) -> 0 | BE21: =(Inputs!$D$3/(Inputs!$D$2+Inputs!$D$3))*IF($A21-Inputs!$D$6>IF(Inputs!$D$9=0,19,24),"",F21*((0.1*Inputs!$D$9+0.05*(1-Inputs!$D$9)))/12) -> 237.4539447 | BF21: =IF(Inputs!$D$3=0,0,1)*IF($A21-Inputs!$D$6>IF(Inputs!$D$9=0,19,24),"",H21*((0.1*Inputs!$D$9+0.05*(1-Inputs!$D$9)))/12) -> 251.2628049 | BG21: 803.6902743 | BH21: 474.9078894 | BI21: 596.7765601 | BJ21: 251.2628049 | BK21: -206.9137143 | BL21: -223.6450845 | BM21: =#REF! ->  | BN21: =IFERROR(((BI21-BG21)+#REF!/12)*12,"") ->  | BO21: =IFERROR(((BJ21-BH21)+#REF!/12)*12,"") ->  | BP21: =IFERROR(AS21/((1+'Main page'!$N$4)^($A21-$A$2)),"") -> 3816.57039 | BQ21: =IFERROR(AU21/((1+'Main page'!$N$4)^($A21-$A$2)),"") -> 2833.976995 | BR21: =IFERROR(AT21/((1+'Main page'!$N$4)^($A21-$A$2)),"") -> 3959.037034 | BS21: =IFERROR(AV21/((1+'Main page'!$N$4)^($A21-$A$2)),"") -> 1193.198688 | BT21: =IF(AW21="","",IFERROR(AW21/((1+'Main page'!$N$4)^($A21-$A$2)),"")) -> 2877.683923 | BU21: =IFERROR(AX21/((1+'Main page'!$N$4)^($A21-$A$2)),"") ->  | BW21: 2043 | BX21: 0 | BY21: 0 | BZ21: 0 | CA21: 0 | CC21: =$CC$2+IF(AND(Inputs!$K$2="",Inputs!$K$8<>""),1,0)+IF(AND(Calculations!$A21>=Inputs!$G$6,Inputs!$G$6<>""),1,0)+IF(AND(Calculations!$A21>=Inputs!$G$7,Inputs!$G$7<>""),1,0)+IF(AND(Calculations!$A21>=Inputs!$G$8,Inputs!$G$8<>""),1,0)+IF(AND(Calculations!$A21>=Inputs!$G$9,Inputs!$G$9<>""),1,0) -> 4 | CG21: https://aspe.hhs.gov/poverty-guidelines | CK21: 2043 | CL21: =+CL20*(1+Inputs!$J$12) -> 175350.6053 | CM21: 1753.506053 | CN21: 3507.012106 | CO21: 5260.518159 | CP21: 7014.024212 | CQ21: 8767.530265 | CR21: 10521.03632 | CS21: 12274.54237 | CT21: 14028.04842 | CU21: 15781.55448 | CV21: 17535.06053 | CW21: 19288.56658 | CX21: 21042.07264 | CY21: 22795.57869 | CZ21: 24549.08474 | DA21: 26302.5908 | DB21: 28056.09685 | DC21: 29809.6029 | DD21: 31563.10896 | DE21: 33316.61501 | DF21: 35070.12106 | DG21: 2043 | DH21: =CM21*(1+'Main page'!$N$4)+DH20*(1+'Main page'!$N$4) -> 44477.2897 | DI21: =CN21*(1+'Main page'!$N$4)+DI20*(1+'Main page'!$N$4) -> 88954.5794 | DJ21: =CO21*(1+'Main page'!$N$4)+DJ20*(1+'Main page'!$N$4) -> 133431.8691 | DK21: =CP21*(1+'Main page'!$N$4)+DK20*(1+'Main page'!$N$4) -> 177909.1588 | DL21: =CQ21*(1+'Main page'!$N$4)+DL20*(1+'Main page'!$N$4) -> 222386.4485 | DM21: =CR21*(1+'Main page'!$N$4)+DM20*(1+'Main page'!$N$4) -> 266863.7382 | DN21: =CS21*(1+'Main page'!$N$4)+DN20*(1+'Main page'!$N$4) -> 311341.0279 | DO21: =CT21*(1+'Main page'!$N$4)+DO20*(1+'Main page'!$N$4) -> 355818.3176 | DP21: =CU21*(1+'Main page'!$N$4)+DP20*(1+'Main page'!$N$4) -> 400295.6073 | DQ21: =CV21*(1+'Main page'!$N$4)+DQ20*(1+'Main page'!$N$4) -> 444772.897 | DR21: =CW21*(1+'Main page'!$N$4)+DR20*(1+'Main page'!$N$4) -> 489250.1867 | DS21: =CX21*(1+'Main page'!$N$4)+DS20*(1+'Main page'!$N$4) -> 533727.4764 | DT21: =CY21*(1+'Main page'!$N$4)+DT20*(1+'Main page'!$N$4) -> 578204.7661 | DU21: =CZ21*(1+'Main page'!$N$4)+DU20*(1+'Main page'!$N$4) -> 622682.0558 | DV21: =DA21*(1+'Main page'!$N$4)+DV20*(1+'Main page'!$N$4) -> 667159.3455 | DW21: =DB21*(1+'Main page'!$N$4)+DW20*(1+'Main page'!$N$4) -> 711636.6352 | DX21: =DC21*(1+'Main page'!$N$4)+DX20*(1+'Main page'!$N$4) -> 756113.9249 | DY21: =DD21*(1+'Main page'!$N$4)+DY20*(1+'Main page'!$N$4) -> 800591.2146 | DZ21: =DE21*(1+'Main page'!$N$4)+DZ20*(1+'Main page'!$N$4) -> 845068.5043 | EA21: =DF21*(1+'Main page'!$N$4)+EA20*(1+'Main page'!$N$4) -> 889545.794 | EB21: 0.055 | EC21: 0.04084 | ED21: 0.05705306457 | EG21: =+EG20*(1+Inputs!$J$12) -> 175350.6053
A22: 2044 | B22: =IF((SUM(((1+Inputs!$J$12)^($A22-$A$11))*Inputs!$J$11+((1+Inputs!$K$12)^($A22-$A$11))*Inputs!$K$11)-VLOOKUP($CC22,Calculations!$CG$1:$CI$9,3,FALSE)*((1+Inputs!$D$5)^($A22-$A$2)))<=0,0,(SUM(((1+Inputs!$J$12)^($A22-$A$11))*Inputs!$J$11+((1+Inputs!$K$12)^($A22-$A$11))*Inputs!$K$11)-VLOOKUP($CC22,Calculations!$CG$1:$CI$9,3,FALSE)*((1+Inputs!$D$5)^($A22-$A$2)))) -> 99336.11791 | C22: =IF(Inputs!$J$11*((1+Inputs!$J$12)^(Calculations!A22-$A$11))+Inputs!$K$11*((1+Inputs!$K$12)^(A22-$A$11))-((1+Inputs!$D$5)^(A22-$A$2))*VLOOKUP(CC22,Calculations!$CG$1:$CJ$16,3,FALSE)<0,0,Inputs!$J$11*((1+Inputs!$J$12)^(Calculations!A22-$A$11))+Inputs!$K$11*((1+Inputs!$K$12)^(A22-$A$11))-((1+Inputs!$D$5)^(A22-$A$2))*VLOOKUP(CC22,Calculations!$CG$1:$CJ$16,3,FALSE)) -> 99336.11791 | D22: =IF(Inputs!$J$11*((1+Inputs!$J$12)^(Calculations!A22-Calculations!$A$11))-((1+Inputs!$D$5)^(A22-$A$2))*VLOOKUP(CC22-1,Calculations!$CG$1:$CJ$18,3,FALSE)<0,0,Inputs!$J$11*((1+Inputs!$J$12)^(Calculations!A22-Calculations!$A$11))-((1+Inputs!$D$5)^(A22-$A$2))*VLOOKUP(CC22-1,Calculations!$CG$1:$CJ$18,3,FALSE)) -> 22955.67379 | E22: =IF(Inputs!$K$11*((1+Inputs!$J$12)^(Calculations!A22-Calculations!$A$11))-((1+Inputs!$D$5)^(A22-$A$2))*VLOOKUP(1,Calculations!$CG$1:$CJ$18,3,FALSE)<0,0,Inputs!$K$11*((1+Inputs!$J$12)^(Calculations!A22-Calculations!$A$11))-((1+Inputs!$D$5)^(A22-$A$2))*VLOOKUP(1,Calculations!$CG$1:$CJ$18,3,FALSE)) -> 50805.90903 | F22: =IF(Inputs!$J$11*((1+Inputs!$J$12)^(Calculations!A22-$A$11))+Inputs!$K$11*((1+Inputs!$K$12)^(A22-$A$11))-((1+Inputs!$D$5)^(A22-$A$2))*VLOOKUP(CC22,Calculations!$CG$1:$CJ$16,4,FALSE)<0,0,Inputs!$J$11*((1+Inputs!$J$12)^(Calculations!A22-$A$11))+Inputs!$K$11*((1+Inputs!$K$12)^(A22-$A$11))-((1+Inputs!$D$5)^(A22-$A$2))*VLOOKUP(CC22,Calculations!$CG$1:$CJ$16,4,FALSE)) -> 58698.61513 | G22: =IF(Inputs!$K$11="",Calculations!F22,IF(Inputs!$J$11*((1+Inputs!$J$12)^(Calculations!A22-Calculations!$A$11))-((1+Inputs!$D$5)^(A22-$A$2))*VLOOKUP(CC22-1,Calculations!$CG$1:$CJ$18,4,FALSE)<0,0,Inputs!$J$11*((1+Inputs!$J$12)^(Calculations!A22-Calculations!$A$11))-((1+Inputs!$D$5)^(A22-$A$2))*VLOOKUP(CC22-1,Calculations!$CG$1:$CJ$18,4,FALSE))) -> 0 | H22: =IF(Inputs!$K$11*((1+Inputs!$J$12)^(Calculations!A22-Calculations!$A$11))-((1+Inputs!$D$5)^(A22-$A$2))*VLOOKUP(1,Calculations!$CG$1:$CJ$18,4,FALSE)<0,0,Inputs!$K$11*((1+Inputs!$J$12)^(Calculations!A22-Calculations!$A$11))-((1+Inputs!$D$5)^(A22-$A$2))*VLOOKUP(1,Calculations!$CG$1:$CJ$18,4,FALSE)) -> 31056.08268 | I22: =IF($A22-Inputs!$D$6>24,"",(Inputs!$D$2/(Inputs!$D$2+Inputs!$D$3)*B22*0.1/12)) -> 413.9004913 | J22: =IF(AND(Inputs!$D$3>=0,Inputs!$P$1=1),IF($A22-Inputs!$D$6>24,"",MIN((Inputs!$D$2/(Inputs!$D$2+Inputs!$D$3))*C22*0.15/12,$Y$2)),IF(Inputs!P21=3,IF($A22-Inputs!$D$6>24,"",MIN(C22*0.15/12,$Y$2)),IF($A22-Inputs!$D$6>24,"",MIN(D22*0.15/12,$Y$2)))) -> 286.9459224 | K22: =IF(AND(Inputs!$D$3>=0,Inputs!$P$1=1),IF($A22-Inputs!$D$6>19,"",MIN((Inputs!$D$2/(Inputs!$D$2+Inputs!$D$3))*C22*0.1/12,$Y$2)),IF(Inputs!P21=3,IF($A22-Inputs!$D$6>19,"",MIN(C22*0.1/12,$Y$2)),IF($A22-Inputs!$D$6>19,"",MIN(D22*0.1/12,$Y$2)))) ->  | L22: =IFERROR(IF(AND(OR(Inputs!$D$3>=0,Inputs!$D$3=""),Inputs!$P$1=1),(Inputs!$D$2/(Inputs!$D$2+Inputs!$D$3))*IF($A22-Inputs!$D$6>IF(Inputs!$D$9=0,19,24),"",F22*((0.1*Inputs!$D$9+0.05*(1-Inputs!$D$9)))/12),IF(Inputs!P21=3,IF($A22-Inputs!$D$6>IF(Inputs!$D$9=0,19,24),"",F22*((0.1*Inputs!$D$9+0.05*(1-Inputs!$D$9)))/12),IF($A22-Inputs!$D$6>IF(Inputs!$D$9=0,19,24),"",G22*((0.1*Inputs!$D$9+0.05*(1-Inputs!$D$9)))/12))),"") -> 0 | M22: 302.9901646 | N22: =IF($A22-Inputs!$D$6>24,"",(Inputs!$D$3/(Inputs!$D$2+Inputs!$D$3)*B22*0.1/12)) -> 413.9004913 | O22: =IF(AND(Inputs!$D$3>0,Inputs!$P$1=1),IF($A22-Inputs!$D$6>24,"",MIN((Inputs!$D$3/(Inputs!$D$2+Inputs!$D$3))*C22*0.15/12,$Z$2)),IF(Inputs!P21=3,(Inputs!$D$3/(Inputs!$D$2+Inputs!$D$3))*IF($A22-Inputs!$D$6>24,"",MIN(C22*0.15/12,$Z$2)),IF($A22-Inputs!$D$6>24,"",MIN(E22*0.15/12,$Z$2)))) -> 555.1025097 | P22: =IF(AND(Inputs!$D$3>0,Inputs!$P$1=1),IF($A22-Inputs!$D$6>19,"",MIN((Inputs!$D$3/(Inputs!$D$2+Inputs!$D$3))*C22*0.1/12,$Z$2)),IF(Inputs!P21=3,(Inputs!$D$3/(Inputs!$D$2+Inputs!$D$3))*IF($A22-Inputs!$D$6>19,"",MIN(C22*0.1/12,$Z$2)),IF($A22-Inputs!$D$6>19,"",MIN(E22*0.1/12,$Z$2)))) ->  | Q22: =IFERROR(IF(OR(Inputs!$D$3=0,Inputs!$D$3=""),0,IF(AND(Inputs!$D$3>0,Inputs!$P$1=1),(Inputs!$D$3/(Inputs!$D$2+Inputs!$D$3))*IF($A22-Inputs!$D$6>IF(Inputs!$D$9=0,19,24),"",F22*((0.1*Inputs!$D$9+0.05*(1-Inputs!$D$9)))/12),IF(Inputs!P21=3,IF($A22-Inputs!$D$6>IF(Inputs!$D$9=0,19,24),"",F22*((0.1*Inputs!$D$9+0.05*(1-Inputs!$D$9)))/12),IF($A22-Inputs!$D$6>IF(Inputs!$D$9=0,19,24),"",H22*((0.1*Inputs!$D$9+0.05*(1-Inputs!$D$9)))/12)))),"") -> 258.800689 | S22: 827.8009826 | T22: 842.0484321 | V22: 258.800689 | Y22: =IF(AF22="","",(Inputs!$D$2)*(((Inputs!$D$4/12)*((1+Inputs!$D$4/12)^120))/(((1+Inputs!$D$4/12)^120)-1))) ->  | Z22: =IF(AF22="","",(Inputs!$D$3)*(((Inputs!$D$4/12)*((1+Inputs!$D$4/12)^120))/(((1+Inputs!$D$4/12)^120)-1))) ->  | AA22: =IF(AA21=0,0,IF($A22-Inputs!$D$6>25,"",IF((AA21+IF(AS21<AG21,(AH21-AS21)/2,AG21-AS21))>0,AA21+IF(AS21<AG21,(AH21-AS21)/2,AG21-AS21),0))) -> 62066.15881 | AB22: =IF(AB21=0,0,IF($A22-Inputs!$D$6>25,"",IF(AB21-AT21+AH21>0,AB21-AT21+AH21,0))) -> 36398.05407 | AC22: =IF(AC21=0,0,IF($A22-Inputs!$D$6>20,"",IF(AC21-AU21+AI21>0,AC21-AU21+AI21,0))) -> 110261.3906 | AD22: =IF(AD21=0,0,IF($A22-Inputs!$D$6>IF(Inputs!$D$9=0,20,25),"",IF(AV21<$AD$2*Inputs!$D$4,IF(V21*12>AD21,0,AD21),IF(AD21-AV21+AJ21>0,AD21-AV21+AJ21,0)))) -> 100000 | AE22: 2573.155968 | AG22: =IF(AA22<AS21,0,IF(AA22="","",IF(Calculations!$A22-Inputs!$D$6>24,"",IF(AS22<$AA$2*Inputs!$D$4,$AA$2*Inputs!$D$4-($AA$2*Inputs!$D$4-AS22)/2,MIN($AA$2*Inputs!$D$4,AA22*Inputs!$D$4))))) -> 3723.969529 | AH22: =IF(AB22="","",IF(Calculations!$A22-Inputs!$D$6>24,"",IF(AB22>(Inputs!$D$2+Inputs!$D$3),(Inputs!$D$2+Inputs!$D$3)*Inputs!$D$4,IF(AB22<$X$3*12,0,AB22*Inputs!$D$4)))) -> 2183.883244 | AJ22: =IF(AD22<AV21,0,IF(AD22="","",IF(Calculations!$A22-Inputs!$D$6>IF(Inputs!$D$9=0,19,24),"",IF(AV22<$AD$2*Inputs!$D$4,MAX(0,AV22),MIN($AD$2*Inputs!$D$4,AD22*Inputs!$D$4))))) -> 3105.608268 | AK22: =IF(AE22="","",IF(AE22<$AW$2,0,IF(AE22>(Inputs!$D$2+Inputs!$D$3),(Inputs!$D$2+Inputs!$D$3)*'Main page'!$N$5,AE22*'Main page'!$N$5))) -> 0 | AM22: =IFERROR(AG22/AA22,"") -> 0.06 | AN22: 0.06 | AO22: 0 | AP22: 0.03105608268 | AQ22: 0 | AS22: =IFERROR(IF(OR(AA22="",AA22=0),"",IF(AA22<S22*12,AA22,S22*12)),"") -> 9933.611791 | AT22: 10104.58119 | AV22: 3105.608268 | AY22: =IF($A22-Inputs!$D$6>19,"",MIN((Inputs!$D$2/(Inputs!$D$2+Inputs!$D$3))*C22*0.1/12,$Y$2)) ->  | AZ22: =IF($A22-Inputs!$D$6>19,"",MIN(D22*0.1/12,$Y$2)) ->  | BA22: =IF($A22-Inputs!$D$6>19,"",MIN((Inputs!$D$3/(Inputs!$D$2+Inputs!$D$3))*C22*0.1/12,$Z$2)) ->  | BB22: =IF($A22-Inputs!$D$6>19,"",MIN(E22*0.1/12,$Z$2)) ->  | BC22: =IFERROR((Inputs!$D$2/(Inputs!$D$2+Inputs!$D$3))*IF($A22-Inputs!$D$6>IF(Inputs!$D$9=0,19,24),"",F22*((0.1*Inputs!$D$9+0.05*(1-Inputs!$D$9)))/12),"") -> 244.577563 | BD22: =IF($A22-Inputs!$D$6>IF(Inputs!$D$9=0,19,24),"",G22*((0.1*Inputs!$D$9+0.05*(1-Inputs!$D$9)))/12) -> 0 | BE22: =IFERROR((Inputs!$D$3/(Inputs!$D$2+Inputs!$D$3))*IF($A22-Inputs!$D$6>IF(Inputs!$D$9=0,19,24),"",F22*((0.1*Inputs!$D$9+0.05*(1-Inputs!$D$9)))/12),"") -> 244.577563 | BF22: =IF(Inputs!$D$3=0,0,1)*IF($A22-Inputs!$D$6>IF(Inputs!$D$9=0,19,24),"",H22*((0.1*Inputs!$D$9+0.05*(1-Inputs!$D$9)))/12) -> 258.800689 | BH22: 489.1551261 | BJ22: 258.800689 | BL22: -230.3544371 | BM22: =#REF! ->  | BN22: =IFERROR(((BI22-BG22)+#REF!/12)*12,"") ->  | BO22: =IFERROR(((BJ22-BH22)+#REF!/12)*12,"") ->  | BP22: =IFERROR(AS22/((1+'Main page'!$N$4)^($A22-$A$2)),"") -> 3743.873811 | BQ22: =IFERROR(AU22/((1+'Main page'!$N$4)^($A22-$A$2)),"") ->  | BR22: =IFERROR(AT22/((1+'Main page'!$N$4)^($A22-$A$2)),"") -> 3808.310378 | BS22: =IFERROR(AV22/((1+'Main page'!$N$4)^($A22-$A$2)),"") -> 1170.471094 | BT22: =IF(AW22="","",IFERROR(AW22/((1+'Main page'!$N$4)^($A22-$A$2)),"")) ->  | BU22: =IFERROR(AX22/((1+'Main page'!$N$4)^($A22-$A$2)),"") ->  | BW22: 2044 | BX22: 0 | BY22: 1 | BZ22: 0 | CA22: 0 | CC22: =$CC$2+IF(AND(Inputs!$K$2="",Inputs!$K$8<>""),1,0)+IF(AND(Calculations!$A22>=Inputs!$G$6,Inputs!$G$6<>""),1,0)+IF(AND(Calculations!$A22>=Inputs!$G$7,Inputs!$G$7<>""),1,0)+IF(AND(Calculations!$A22>=Inputs!$G$8,Inputs!$G$8<>""),1,0)+IF(AND(Calculations!$A22>=Inputs!$G$9,Inputs!$G$9<>""),1,0) -> 4 | CK22: 2044 | CL22: =+CL21*(1+Inputs!$J$12) -> 180611.1235 | CM22: 1806.111235 | CN22: 3612.222469 | CO22: 5418.333704 | CP22: 7224.444939 | CQ22: 9030.556173 | CR22: 10836.66741 | CS22: 12642.77864 | CT22: 14448.88988 | CU22: 16255.00111 | CV22: 18061.11235 | CW22: 19867.22358 | CX22: 21673.33482 | CY22: 23479.44605 | CZ22: 25285.55729 | DA22: 27091.66852 | DB22: 28897.77975 | DC22: 30703.89099 | DD22: 32510.00222 | DE22: 34316.11346 | DF22: 36122.22469 | DG22: 2044 | DH22: =CM22*(1+'Main page'!$N$4)+DH21*(1+'Main page'!$N$4) -> 48597.57098 | DI22: =CN22*(1+'Main page'!$N$4)+DI21*(1+'Main page'!$N$4) -> 97195.14196 | DJ22: =CO22*(1+'Main page'!$N$4)+DJ21*(1+'Main page'!$N$4) -> 145792.7129 | DK22: =CP22*(1+'Main page'!$N$4)+DK21*(1+'Main page'!$N$4) -> 194390.2839 | DL22: =CQ22*(1+'Main page'!$N$4)+DL21*(1+'Main page'!$N$4) -> 242987.8549 | DM22: =CR22*(1+'Main page'!$N$4)+DM21*(1+'Main page'!$N$4) -> 291585.4259 | DN22: =CS22*(1+'Main page'!$N$4)+DN21*(1+'Main page'!$N$4) -> 340182.9969 | DO22: =CT22*(1+'Main page'!$N$4)+DO21*(1+'Main page'!$N$4) -> 388780.5679 | DP22: =CU22*(1+'Main page'!$N$4)+DP21*(1+'Main page'!$N$4) -> 437378.1388 | DQ22: =CV22*(1+'Main page'!$N$4)+DQ21*(1+'Main page'!$N$4) -> 485975.7098 | DR22: =CW22*(1+'Main page'!$N$4)+DR21*(1+'Main page'!$N$4) -> 534573.2808 | DS22: =CX22*(1+'Main page'!$N$4)+DS21*(1+'Main page'!$N$4) -> 583170.8518 | DT22: =CY22*(1+'Main page'!$N$4)+DT21*(1+'Main page'!$N$4) -> 631768.4228 | DU22: =CZ22*(1+'Main page'!$N$4)+DU21*(1+'Main page'!$N$4) -> 680365.9937 | DV22: =DA22*(1+'Main page'!$N$4)+DV21*(1+'Main page'!$N$4) -> 728963.5647 | DW22: =DB22*(1+'Main page'!$N$4)+DW21*(1+'Main page'!$N$4) -> 777561.1357 | DX22: =DC22*(1+'Main page'!$N$4)+DX21*(1+'Main page'!$N$4) -> 826158.7067 | DY22: =DD22*(1+'Main page'!$N$4)+DY21*(1+'Main page'!$N$4) -> 874756.2777 | DZ22: =DE22*(1+'Main page'!$N$4)+DZ21*(1+'Main page'!$N$4) -> 923353.8486 | EA22: =DF22*(1+'Main page'!$N$4)+EA21*(1+'Main page'!$N$4) -> 971951.4196 | EB22: 0.055 | EC22: 0 | ED22: 0.05594661609 | EG22: =+EG21*(1+Inputs!$J$12) -> 180611.1235
A23: 2045 | B23: =IF((SUM(((1+Inputs!$J$12)^($A23-$A$11))*Inputs!$J$11+((1+Inputs!$K$12)^($A23-$A$11))*Inputs!$K$11)-VLOOKUP($CC23,Calculations!$CG$1:$CI$9,3,FALSE)*((1+Inputs!$D$5)^($A23-$A$2)))<=0,0,(SUM(((1+Inputs!$J$12)^($A23-$A$11))*Inputs!$J$11+((1+Inputs!$K$12)^($A23-$A$11))*Inputs!$K$11)-VLOOKUP($CC23,Calculations!$CG$1:$CI$9,3,FALSE)*((1+Inputs!$D$5)^($A23-$A$2)))) -> 102316.2014 | C23: =IF(Inputs!$J$11*((1+Inputs!$J$12)^(Calculations!A23-$A$11))+Inputs!$K$11*((1+Inputs!$K$12)^(A23-$A$11))-((1+Inputs!$D$5)^(A23-$A$2))*VLOOKUP(CC23,Calculations!$CG$1:$CJ$16,3,FALSE)<0,0,Inputs!$J$11*((1+Inputs!$J$12)^(Calculations!A23-$A$11))+Inputs!$K$11*((1+Inputs!$K$12)^(A23-$A$11))-((1+Inputs!$D$5)^(A23-$A$2))*VLOOKUP(CC23,Calculations!$CG$1:$CJ$16,3,FALSE)) -> 102316.2014 | D23: =IF(Inputs!$J$11*((1+Inputs!$J$12)^(Calculations!A23-Calculations!$A$11))-((1+Inputs!$D$5)^(A23-$A$2))*VLOOKUP(CC23-1,Calculations!$CG$1:$CJ$18,3,FALSE)<0,0,Inputs!$J$11*((1+Inputs!$J$12)^(Calculations!A23-Calculations!$A$11))-((1+Inputs!$D$5)^(A23-$A$2))*VLOOKUP(CC23-1,Calculations!$CG$1:$CJ$18,3,FALSE)) -> 23644.34401 | E23: =IF(Inputs!$K$11*((1+Inputs!$J$12)^(Calculations!A23-Calculations!$A$11))-((1+Inputs!$D$5)^(A23-$A$2))*VLOOKUP(1,Calculations!$CG$1:$CJ$18,3,FALSE)<0,0,Inputs!$K$11*((1+Inputs!$J$12)^(Calculations!A23-Calculations!$A$11))-((1+Inputs!$D$5)^(A23-$A$2))*VLOOKUP(1,Calculations!$CG$1:$CJ$18,3,FALSE)) -> 52330.0863 | F23: =IF(Inputs!$J$11*((1+Inputs!$J$12)^(Calculations!A23-$A$11))+Inputs!$K$11*((1+Inputs!$K$12)^(A23-$A$11))-((1+Inputs!$D$5)^(A23-$A$2))*VLOOKUP(CC23,Calculations!$CG$1:$CJ$16,4,FALSE)<0,0,Inputs!$J$11*((1+Inputs!$J$12)^(Calculations!A23-$A$11))+Inputs!$K$11*((1+Inputs!$K$12)^(A23-$A$11))-((1+Inputs!$D$5)^(A23-$A$2))*VLOOKUP(CC23,Calculations!$CG$1:$CJ$16,4,FALSE)) -> 60459.57358 | G23: =IF(Inputs!$K$11="",Calculations!F23,IF(Inputs!$J$11*((1+Inputs!$J$12)^(Calculations!A23-Calculations!$A$11))-((1+Inputs!$D$5)^(A23-$A$2))*VLOOKUP(CC23-1,Calculations!$CG$1:$CJ$18,4,FALSE)<0,0,Inputs!$J$11*((1+Inputs!$J$12)^(Calculations!A23-Calculations!$A$11))-((1+Inputs!$D$5)^(A23-$A$2))*VLOOKUP(CC23-1,Calculations!$CG$1:$CJ$18,4,FALSE))) -> 0 | H23: =IF(Inputs!$K$11*((1+Inputs!$J$12)^(Calculations!A23-Calculations!$A$11))-((1+Inputs!$D$5)^(A23-$A$2))*VLOOKUP(1,Calculations!$CG$1:$CJ$18,4,FALSE)<0,0,Inputs!$K$11*((1+Inputs!$J$12)^(Calculations!A23-Calculations!$A$11))-((1+Inputs!$D$5)^(A23-$A$2))*VLOOKUP(1,Calculations!$CG$1:$CJ$18,4,FALSE)) -> 31987.76516 | I23: =IF($A23-Inputs!$D$6>24,"",(Inputs!$D$2/(Inputs!$D$2+Inputs!$D$3)*B23*0.1/12)) -> 426.317506 | J23: =IF(AND(Inputs!$D$3>=0,Inputs!$P$1=1),IF($A23-Inputs!$D$6>24,"",MIN((Inputs!$D$2/(Inputs!$D$2+Inputs!$D$3))*C23*0.15/12,$Y$2)),IF(Inputs!P22=3,IF($A23-Inputs!$D$6>24,"",MIN(C23*0.15/12,$Y$2)),IF($A23-Inputs!$D$6>24,"",MIN(D23*0.15/12,$Y$2)))) -> 295.5543001 | K23: =IF(AND(Inputs!$D$3>=0,Inputs!$P$1=1),IF($A23-Inputs!$D$6>19,"",MIN((Inputs!$D$2/(Inputs!$D$2+Inputs!$D$3))*C23*0.1/12,$Y$2)),IF(Inputs!P22=3,IF($A23-Inputs!$D$6>19,"",MIN(C23*0.1/12,$Y$2)),IF($A23-Inputs!$D$6>19,"",MIN(D23*0.1/12,$Y$2)))) ->  | L23: =IFERROR(IF(AND(OR(Inputs!$D$3>=0,Inputs!$D$3=""),Inputs!$P$1=1),(Inputs!$D$2/(Inputs!$D$2+Inputs!$D$3))*IF($A23-Inputs!$D$6>IF(Inputs!$D$9=0,19,24),"",F23*((0.1*Inputs!$D$9+0.05*(1-Inputs!$D$9)))/12),IF(Inputs!P22=3,IF($A23-Inputs!$D$6>IF(Inputs!$D$9=0,19,24),"",F23*((0.1*Inputs!$D$9+0.05*(1-Inputs!$D$9)))/12),IF($A23-Inputs!$D$6>IF(Inputs!$D$9=0,19,24),"",G23*((0.1*Inputs!$D$9+0.05*(1-Inputs!$D$9)))/12))),"") -> 0 | N23: =IF($A23-Inputs!$D$6>24,"",(Inputs!$D$3/(Inputs!$D$2+Inputs!$D$3)*B23*0.1/12)) -> 426.317506 | O23: =IF(AND(Inputs!$D$3>0,Inputs!$P$1=1),IF($A23-Inputs!$D$6>24,"",MIN((Inputs!$D$3/(Inputs!$D$2+Inputs!$D$3))*C23*0.15/12,$Z$2)),IF(Inputs!P22=3,(Inputs!$D$3/(Inputs!$D$2+Inputs!$D$3))*IF($A23-Inputs!$D$6>24,"",MIN(C23*0.15/12,$Z$2)),IF($A23-Inputs!$D$6>24,"",MIN(E23*0.15/12,$Z$2)))) -> 555.1025097 | P23: =IF(AND(Inputs!$D$3>0,Inputs!$P$1=1),IF($A23-Inputs!$D$6>19,"",MIN((Inputs!$D$3/(Inputs!$D$2+Inputs!$D$3))*C23*0.1/12,$Z$2)),IF(Inputs!P22=3,(Inputs!$D$3/(Inputs!$D$2+Inputs!$D$3))*IF($A23-Inputs!$D$6>19,"",MIN(C23*0.1/12,$Z$2)),IF($A23-Inputs!$D$6>19,"",MIN(E23*0.1/12,$Z$2)))) ->  | Q23: =IFERROR(IF(OR(Inputs!$D$3=0,Inputs!$D$3=""),0,IF(AND(Inputs!$D$3>0,Inputs!$P$1=1),(Inputs!$D$3/(Inputs!$D$2+Inputs!$D$3))*IF($A23-Inputs!$D$6>IF(Inputs!$D$9=0,19,24),"",F23*((0.1*Inputs!$D$9+0.05*(1-Inputs!$D$9)))/12),IF(Inputs!P22=3,IF($A23-Inputs!$D$6>IF(Inputs!$D$9=0,19,24),"",F23*((0.1*Inputs!$D$9+0.05*(1-Inputs!$D$9)))/12),IF($A23-Inputs!$D$6>IF(Inputs!$D$9=0,19,24),"",H23*((0.1*Inputs!$D$9+0.05*(1-Inputs!$D$9)))/12)))),"") -> 266.5647097 | S23: 852.635012 | T23: 850.6568098 | V23: 266.5647097 | Y23: =IF(AF23="","",(Inputs!$D$2)*(((Inputs!$D$4/12)*((1+Inputs!$D$4/12)^120))/(((1+Inputs!$D$4/12)^120)-1))) ->  | Z23: =IF(AF23="","",(Inputs!$D$3)*(((Inputs!$D$4/12)*((1+Inputs!$D$4/12)^120))/(((1+Inputs!$D$4/12)^120)-1))) ->  | AA23: =IF(AA22=0,0,IF($A23-Inputs!$D$6>25,"",IF((AA22+IF(AS22<AG22,(AH22-AS22)/2,AG22-AS22))>0,AA22+IF(AS22<AG22,(AH22-AS22)/2,AG22-AS22),0))) -> 55856.51655 | AB23: =IF(AB22=0,0,IF($A23-Inputs!$D$6>25,"",IF(AB22-AT22+AH22>0,AB22-AT22+AH22,0))) -> 28477.35613 | AD23: =IF(AD22=0,0,IF($A23-Inputs!$D$6>IF(Inputs!$D$9=0,20,25),"",IF(AV22<$AD$2*Inputs!$D$4,IF(V22*12>AD22,0,AD22),IF(AD22-AV22+AJ22>0,AD22-AV22+AJ22,0)))) -> 100000 | AE23: 0 | AG23: =IF(AA23<AS22,0,IF(AA23="","",IF(Calculations!$A23-Inputs!$D$6>24,"",IF(AS23<$AA$2*Inputs!$D$4,$AA$2*Inputs!$D$4-($AA$2*Inputs!$D$4-AS23)/2,MIN($AA$2*Inputs!$D$4,AA23*Inputs!$D$4))))) -> 3351.390993 | AH23: =IF(AB23="","",IF(Calculations!$A23-Inputs!$D$6>24,"",IF(AB23>(Inputs!$D$2+Inputs!$D$3),(Inputs!$D$2+Inputs!$D$3)*Inputs!$D$4,IF(AB23<$X$3*12,0,AB23*Inputs!$D$4)))) -> 1708.641368 | AJ23: =IF(AD23<AV22,0,IF(AD23="","",IF(Calculations!$A23-Inputs!$D$6>IF(Inputs!$D$9=0,19,24),"",IF(AV23<$AD$2*Inputs!$D$4,MAX(0,AV23),MIN($AD$2*Inputs!$D$4,AD23*Inputs!$D$4))))) -> 3198.776516 | AK23: =IF(AE23="","",IF(AE23<$AW$2,0,IF(AE23>(Inputs!$D$2+Inputs!$D$3),(Inputs!$D$2+Inputs!$D$3)*'Main page'!$N$5,AE23*'Main page'!$N$5))) -> 0 | AM23: =IFERROR(AG23/AA23,"") -> 0.06 | AN23: 0.06 | AP23: 0.03198776516 | AS23: =IFERROR(IF(OR(AA23="",AA23=0),"",IF(AA23<S23*12,AA23,S23*12)),"") -> 10231.62014 | AT23: 10207.88172 | AV23: 3198.776516 | AY23: =IF($A23-Inputs!$D$6>19,"",MIN((Inputs!$D$2/(Inputs!$D$2+Inputs!$D$3))*C23*0.1/12,$Y$2)) ->  | AZ23: =IF($A23-Inputs!$D$6>19,"",MIN(D23*0.1/12,$Y$2)) ->  | BA23: =IF($A23-Inputs!$D$6>19,"",MIN((Inputs!$D$3/(Inputs!$D$2+Inputs!$D$3))*C23*0.1/12,$Z$2)) ->  | BB23: =IF($A23-Inputs!$D$6>19,"",MIN(E23*0.1/12,$Z$2)) ->  | BC23: =IFERROR((Inputs!$D$2/(Inputs!$D$2+Inputs!$D$3))*IF($A23-Inputs!$D$6>IF(Inputs!$D$9=0,19,24),"",F23*((0.1*Inputs!$D$9+0.05*(1-Inputs!$D$9)))/12),"") -> 251.9148899 | BD23: =IF($A23-Inputs!$D$6>IF(Inputs!$D$9=0,19,24),"",G23*((0.1*Inputs!$D$9+0.05*(1-Inputs!$D$9)))/12) -> 0 | BE23: =IFERROR((Inputs!$D$3/(Inputs!$D$2+Inputs!$D$3))*IF($A23-Inputs!$D$6>IF(Inputs!$D$9=0,19,24),"",F23*((0.1*Inputs!$D$9+0.05*(1-Inputs!$D$9)))/12),"") -> 251.9148899 | BF23: =IF(Inputs!$D$3=0,0,1)*IF($A23-Inputs!$D$6>IF(Inputs!$D$9=0,19,24),"",H23*((0.1*Inputs!$D$9+0.05*(1-Inputs!$D$9)))/12) -> 266.5647097 | BH23: 503.8297798 | BJ23: 266.5647097 | BL23: -237.2650702 | BM23: =#REF! ->  | BN23: =IFERROR(((BI23-BG23)+#REF!/12)*12,"") ->  | BO23: =IFERROR(((BJ23-BH23)+#REF!/12)*12,"") ->  | BP23: =IFERROR(AS23/((1+'Main page'!$N$4)^($A23-$A$2)),"") -> 3672.561929 | BQ23: =IFERROR(AU23/((1+'Main page'!$N$4)^($A23-$A$2)),"") ->  | BR23: =IFERROR(AT23/((1+'Main page'!$N$4)^($A23-$A$2)),"") -> 3664.041202 | BS23: =IFERROR(AV23/((1+'Main page'!$N$4)^($A23-$A$2)),"") -> 1148.176407 | BT23: =IF(AW23="","",IFERROR(AW23/((1+'Main page'!$N$4)^($A23-$A$2)),"")) ->  | BU23: =IFERROR(AX23/((1+'Main page'!$N$4)^($A23-$A$2)),"") ->  | BW23: 2045 | BX23: 0 | BZ23: 0 | CA23: 0 | CC23: =$CC$2+IF(AND(Inputs!$K$2="",Inputs!$K$8<>""),1,0)+IF(AND(Calculations!$A23>=Inputs!$G$6,Inputs!$G$6<>""),1,0)+IF(AND(Calculations!$A23>=Inputs!$G$7,Inputs!$G$7<>""),1,0)+IF(AND(Calculations!$A23>=Inputs!$G$8,Inputs!$G$8<>""),1,0)+IF(AND(Calculations!$A23>=Inputs!$G$9,Inputs!$G$9<>""),1,0) -> 4 | CK23: 2045 | CL23: =+CL22*(1+Inputs!$J$12) -> 186029.4572 | CM23: 1860.294572 | CN23: 3720.589143 | CO23: 5580.883715 | CP23: 7441.178287 | CQ23: 9301.472859 | CR23: 11161.76743 | CS23: 13022.062 | CT23: 14882.35657 | CU23: 16742.65115 | CV23: 18602.94572 | CW23: 20463.24029 | CX23: 22323.53486 | CY23: 24183.82943 | CZ23: 26044.124 | DA23: 27904.41858 | DB23: 29764.71315 | DC23: 31625.00772 | DD23: 33485.30229 | DE23: 35345.59686 | DF23: 37205.89143 | DG23: 2045 | DH23: =CM23*(1+'Main page'!$N$4)+DH22*(1+'Main page'!$N$4) -> 52980.75883 | DI23: =CN23*(1+'Main page'!$N$4)+DI22*(1+'Main page'!$N$4) -> 105961.5177 | DJ23: =CO23*(1+'Main page'!$N$4)+DJ22*(1+'Main page'!$N$4) -> 158942.2765 | DK23: =CP23*(1+'Main page'!$N$4)+DK22*(1+'Main page'!$N$4) -> 211923.0353 | DL23: =CQ23*(1+'Main page'!$N$4)+DL22*(1+'Main page'!$N$4) -> 264903.7942 | DM23: =CR23*(1+'Main page'!$N$4)+DM22*(1+'Main page'!$N$4) -> 317884.553 | DN23: =CS23*(1+'Main page'!$N$4)+DN22*(1+'Main page'!$N$4) -> 370865.3118 | DO23: =CT23*(1+'Main page'!$N$4)+DO22*(1+'Main page'!$N$4) -> 423846.0706 | DP23: =CU23*(1+'Main page'!$N$4)+DP22*(1+'Main page'!$N$4) -> 476826.8295 | DQ23: =CV23*(1+'Main page'!$N$4)+DQ22*(1+'Main page'!$N$4) -> 529807.5883 | DR23: =CW23*(1+'Main page'!$N$4)+DR22*(1+'Main page'!$N$4) -> 582788.3471 | DS23: =CX23*(1+'Main page'!$N$4)+DS22*(1+'Main page'!$N$4) -> 635769.106 | DT23: =CY23*(1+'Main page'!$N$4)+DT22*(1+'Main page'!$N$4) -> 688749.8648 | DU23: =CZ23*(1+'Main page'!$N$4)+DU22*(1+'Main page'!$N$4) -> 741730.6236 | DV23: =DA23*(1+'Main page'!$N$4)+DV22*(1+'Main page'!$N$4) -> 794711.3825 | DW23: =DB23*(1+'Main page'!$N$4)+DW22*(1+'Main page'!$N$4) -> 847692.1413 | DX23: =DC23*(1+'Main page'!$N$4)+DX22*(1+'Main page'!$N$4) -> 900672.9001 | DY23: =DD23*(1+'Main page'!$N$4)+DY22*(1+'Main page'!$N$4) -> 953653.659 | DZ23: =DE23*(1+'Main page'!$N$4)+DZ22*(1+'Main page'!$N$4) -> 1006634.418 | EA23: =DF23*(1+'Main page'!$N$4)+EA22*(1+'Main page'!$N$4) -> 1059615.177 | EB23: 0.055 | EC23: 0 | ED23: 0.05487239426 | EG23: =+EG22*(1+Inputs!$J$12) -> 186029.4572
A24: 2046 | B24: =IF((SUM(((1+Inputs!$J$12)^($A24-$A$11))*Inputs!$J$11+((1+Inputs!$K$12)^($A24-$A$11))*Inputs!$K$11)-VLOOKUP($CC24,Calculations!$CG$1:$CI$9,3,FALSE)*((1+Inputs!$D$5)^($A24-$A$2)))<=0,0,(SUM(((1+Inputs!$J$12)^($A24-$A$11))*Inputs!$J$11+((1+Inputs!$K$12)^($A24-$A$11))*Inputs!$K$11)-VLOOKUP($CC24,Calculations!$CG$1:$CI$9,3,FALSE)*((1+Inputs!$D$5)^($A24-$A$2)))) -> 105385.6875 | C24: =IF(Inputs!$J$11*((1+Inputs!$J$12)^(Calculations!A24-$A$11))+Inputs!$K$11*((1+Inputs!$K$12)^(A24-$A$11))-((1+Inputs!$D$5)^(A24-$A$2))*VLOOKUP(CC24,Calculations!$CG$1:$CJ$16,3,FALSE)<0,0,Inputs!$J$11*((1+Inputs!$J$12)^(Calculations!A24-$A$11))+Inputs!$K$11*((1+Inputs!$K$12)^(A24-$A$11))-((1+Inputs!$D$5)^(A24-$A$2))*VLOOKUP(CC24,Calculations!$CG$1:$CJ$16,3,FALSE)) -> 105385.6875 | D24: =IF(Inputs!$J$11*((1+Inputs!$J$12)^(Calculations!A24-Calculations!$A$11))-((1+Inputs!$D$5)^(A24-$A$2))*VLOOKUP(CC24-1,Calculations!$CG$1:$CJ$18,3,FALSE)<0,0,Inputs!$J$11*((1+Inputs!$J$12)^(Calculations!A24-Calculations!$A$11))-((1+Inputs!$D$5)^(A24-$A$2))*VLOOKUP(CC24-1,Calculations!$CG$1:$CJ$18,3,FALSE)) -> 24353.67433 | E24: =IF(Inputs!$K$11*((1+Inputs!$J$12)^(Calculations!A24-Calculations!$A$11))-((1+Inputs!$D$5)^(A24-$A$2))*VLOOKUP(1,Calculations!$CG$1:$CJ$18,3,FALSE)<0,0,Inputs!$K$11*((1+Inputs!$J$12)^(Calculations!A24-Calculations!$A$11))-((1+Inputs!$D$5)^(A24-$A$2))*VLOOKUP(1,Calculations!$CG$1:$CJ$18,3,FALSE)) -> 53899.98889 | F24: =IF(Inputs!$J$11*((1+Inputs!$J$12)^(Calculations!A24-$A$11))+Inputs!$K$11*((1+Inputs!$K$12)^(A24-$A$11))-((1+Inputs!$D$5)^(A24-$A$2))*VLOOKUP(CC24,Calculations!$CG$1:$CJ$16,4,FALSE)<0,0,Inputs!$J$11*((1+Inputs!$J$12)^(Calculations!A24-$A$11))+Inputs!$K$11*((1+Inputs!$K$12)^(A24-$A$11))-((1+Inputs!$D$5)^(A24-$A$2))*VLOOKUP(CC24,Calculations!$CG$1:$CJ$16,4,FALSE)) -> 62273.36079 | G24: =IF(Inputs!$K$11="",Calculations!F24,IF(Inputs!$J$11*((1+Inputs!$J$12)^(Calculations!A24-Calculations!$A$11))-((1+Inputs!$D$5)^(A24-$A$2))*VLOOKUP(CC24-1,Calculations!$CG$1:$CJ$18,4,FALSE)<0,0,Inputs!$J$11*((1+Inputs!$J$12)^(Calculations!A24-Calculations!$A$11))-((1+Inputs!$D$5)^(A24-$A$2))*VLOOKUP(CC24-1,Calculations!$CG$1:$CJ$18,4,FALSE))) -> 0 | H24: =IF(Inputs!$K$11*((1+Inputs!$J$12)^(Calculations!A24-Calculations!$A$11))-((1+Inputs!$D$5)^(A24-$A$2))*VLOOKUP(1,Calculations!$CG$1:$CJ$18,4,FALSE)<0,0,Inputs!$K$11*((1+Inputs!$J$12)^(Calculations!A24-Calculations!$A$11))-((1+Inputs!$D$5)^(A24-$A$2))*VLOOKUP(1,Calculations!$CG$1:$CJ$18,4,FALSE)) -> 32947.39812 | I24: =IF($A24-Inputs!$D$6>24,"",(Inputs!$D$2/(Inputs!$D$2+Inputs!$D$3)*B24*0.1/12)) -> 439.1070312 | J24: =IF(AND(Inputs!$D$3>=0,Inputs!$P$1=1),IF($A24-Inputs!$D$6>24,"",MIN((Inputs!$D$2/(Inputs!$D$2+Inputs!$D$3))*C24*0.15/12,$Y$2)),IF(Inputs!P23=3,IF($A24-Inputs!$D$6>24,"",MIN(C24*0.15/12,$Y$2)),IF($A24-Inputs!$D$6>24,"",MIN(D24*0.15/12,$Y$2)))) -> 304.4209291 | K24: =IF(AND(Inputs!$D$3>=0,Inputs!$P$1=1),IF($A24-Inputs!$D$6>19,"",MIN((Inputs!$D$2/(Inputs!$D$2+Inputs!$D$3))*C24*0.1/12,$Y$2)),IF(Inputs!P23=3,IF($A24-Inputs!$D$6>19,"",MIN(C24*0.1/12,$Y$2)),IF($A24-Inputs!$D$6>19,"",MIN(D24*0.1/12,$Y$2)))) ->  | L24: =IFERROR(IF(AND(OR(Inputs!$D$3>=0,Inputs!$D$3=""),Inputs!$P$1=1),(Inputs!$D$2/(Inputs!$D$2+Inputs!$D$3))*IF($A24-Inputs!$D$6>IF(Inputs!$D$9=0,19,24),"",F24*((0.1*Inputs!$D$9+0.05*(1-Inputs!$D$9)))/12),IF(Inputs!P23=3,IF($A24-Inputs!$D$6>IF(Inputs!$D$9=0,19,24),"",F24*((0.1*Inputs!$D$9+0.05*(1-Inputs!$D$9)))/12),IF($A24-Inputs!$D$6>IF(Inputs!$D$9=0,19,24),"",G24*((0.1*Inputs!$D$9+0.05*(1-Inputs!$D$9)))/12))),"") -> 0 | N24: =IF($A24-Inputs!$D$6>24,"",(Inputs!$D$3/(Inputs!$D$2+Inputs!$D$3)*B24*0.1/12)) -> 439.1070312 | O24: =IF(AND(Inputs!$D$3>0,Inputs!$P$1=1),IF($A24-Inputs!$D$6>24,"",MIN((Inputs!$D$3/(Inputs!$D$2+Inputs!$D$3))*C24*0.15/12,$Z$2)),IF(Inputs!P23=3,(Inputs!$D$3/(Inputs!$D$2+Inputs!$D$3))*IF($A24-Inputs!$D$6>24,"",MIN(C24*0.15/12,$Z$2)),IF($A24-Inputs!$D$6>24,"",MIN(E24*0.15/12,$Z$2)))) -> 555.1025097 | P24: =IF(AND(Inputs!$D$3>0,Inputs!$P$1=1),IF($A24-Inputs!$D$6>19,"",MIN((Inputs!$D$3/(Inputs!$D$2+Inputs!$D$3))*C24*0.1/12,$Z$2)),IF(Inputs!P23=3,(Inputs!$D$3/(Inputs!$D$2+Inputs!$D$3))*IF($A24-Inputs!$D$6>19,"",MIN(C24*0.1/12,$Z$2)),IF($A24-Inputs!$D$6>19,"",MIN(E24*0.1/12,$Z$2)))) ->  | Q24: =IFERROR(IF(OR(Inputs!$D$3=0,Inputs!$D$3=""),0,IF(AND(Inputs!$D$3>0,Inputs!$P$1=1),(Inputs!$D$3/(Inputs!$D$2+Inputs!$D$3))*IF($A24-Inputs!$D$6>IF(Inputs!$D$9=0,19,24),"",F24*((0.1*Inputs!$D$9+0.05*(1-Inputs!$D$9)))/12),IF(Inputs!P23=3,IF($A24-Inputs!$D$6>IF(Inputs!$D$9=0,19,24),"",F24*((0.1*Inputs!$D$9+0.05*(1-Inputs!$D$9)))/12),IF($A24-Inputs!$D$6>IF(Inputs!$D$9=0,19,24),"",H24*((0.1*Inputs!$D$9+0.05*(1-Inputs!$D$9)))/12)))),"") -> 274.561651 | S24: 878.2140624 | T24: 859.5234388 | V24: 274.561651 | Y24: =IF(AF24="","",(Inputs!$D$2)*(((Inputs!$D$4/12)*((1+Inputs!$D$4/12)^120))/(((1+Inputs!$D$4/12)^120)-1))) ->  | Z24: =IF(AF24="","",(Inputs!$D$3)*(((Inputs!$D$4/12)*((1+Inputs!$D$4/12)^120))/(((1+Inputs!$D$4/12)^120)-1))) ->  | AA24: =IF(AA23=0,0,IF($A24-Inputs!$D$6>25,"",IF((AA23+IF(AS23<AG23,(AH23-AS23)/2,AG23-AS23))>0,AA23+IF(AS23<AG23,(AH23-AS23)/2,AG23-AS23),0))) -> 48976.2874 | AB24: =IF(AB23=0,0,IF($A24-Inputs!$D$6>25,"",IF(AB23-AT23+AH23>0,AB23-AT23+AH23,0))) -> 19978.11578 | AD24: =IF(AD23=0,0,IF($A24-Inputs!$D$6>IF(Inputs!$D$9=0,20,25),"",IF(AV23<$AD$2*Inputs!$D$4,IF(V23*12>AD23,0,AD23),IF(AD23-AV23+AJ23>0,AD23-AV23+AJ23,0)))) -> 100000 | AE24: 0 | AG24: =IF(AA24<AS23,0,IF(AA24="","",IF(Calculations!$A24-Inputs!$D$6>24,"",IF(AS24<$AA$2*Inputs!$D$4,$AA$2*Inputs!$D$4-($AA$2*Inputs!$D$4-AS24)/2,MIN($AA$2*Inputs!$D$4,AA24*Inputs!$D$4))))) -> 2938.577244 | AH24: =IF(AB24="","",IF(Calculations!$A24-Inputs!$D$6>24,"",IF(AB24>(Inputs!$D$2+Inputs!$D$3),(Inputs!$D$2+Inputs!$D$3)*Inputs!$D$4,IF(AB24<$X$3*12,0,AB24*Inputs!$D$4)))) -> 1198.686947 | AJ24: =IF(AD24<AV23,0,IF(AD24="","",IF(Calculations!$A24-Inputs!$D$6>IF(Inputs!$D$9=0,19,24),"",IF(AV24<$AD$2*Inputs!$D$4,MAX(0,AV24),MIN($AD$2*Inputs!$D$4,AD24*Inputs!$D$4))))) -> 3294.739812 | AK24: =IF(AE24="","",IF(AE24<$AW$2,0,IF(AE24>(Inputs!$D$2+Inputs!$D$3),(Inputs!$D$2+Inputs!$D$3)*'Main page'!$N$5,AE24*'Main page'!$N$5))) -> 0 | AM24: =IFERROR(AG24/AA24,"") -> 0.06 | AN24: 0.06 | AP24: 0.03294739812 | AS24: =IFERROR(IF(OR(AA24="",AA24=0),"",IF(AA24<S24*12,AA24,S24*12)),"") -> 10538.56875 | AT24: 10314.28127 | AV24: 3294.739812 | AY24: =IF($A24-Inputs!$D$6>19,"",MIN((Inputs!$D$2/(Inputs!$D$2+Inputs!$D$3))*C24*0.1/12,$Y$2)) ->  | AZ24: =IF($A24-Inputs!$D$6>19,"",MIN(D24*0.1/12,$Y$2)) ->  | BA24: =IF($A24-Inputs!$D$6>19,"",MIN((Inputs!$D$3/(Inputs!$D$2+Inputs!$D$3))*C24*0.1/12,$Z$2)) ->  | BB24: =IF($A24-Inputs!$D$6>19,"",MIN(E24*0.1/12,$Z$2)) ->  | BC24: =IFERROR((Inputs!$D$2/(Inputs!$D$2+Inputs!$D$3))*IF($A24-Inputs!$D$6>IF(Inputs!$D$9=0,19,24),"",F24*((0.1*Inputs!$D$9+0.05*(1-Inputs!$D$9)))/12),"") -> 259.4723366 | BD24: =IF($A24-Inputs!$D$6>IF(Inputs!$D$9=0,19,24),"",G24*((0.1*Inputs!$D$9+0.05*(1-Inputs!$D$9)))/12) -> 0 | BE24: =IFERROR((Inputs!$D$3/(Inputs!$D$2+Inputs!$D$3))*IF($A24-Inputs!$D$6>IF(Inputs!$D$9=0,19,24),"",F24*((0.1*Inputs!$D$9+0.05*(1-Inputs!$D$9)))/12),"") -> 259.4723366 | BF24: =IF(Inputs!$D$3=0,0,1)*IF($A24-Inputs!$D$6>IF(Inputs!$D$9=0,19,24),"",H24*((0.1*Inputs!$D$9+0.05*(1-Inputs!$D$9)))/12) -> 274.561651 | BH24: 518.9446732 | BJ24: 274.561651 | BL24: -244.3830223 | BM24: =#REF! ->  | BN24: =IFERROR(((BI24-BG24)+#REF!/12)*12,"") ->  | BO24: =IFERROR(((BJ24-BH24)+#REF!/12)*12,"") ->  | BP24: =IFERROR(AS24/((1+'Main page'!$N$4)^($A24-$A$2)),"") -> 3602.608368 | BQ24: =IFERROR(AU24/((1+'Main page'!$N$4)^($A24-$A$2)),"") ->  | BR24: =IFERROR(AT24/((1+'Main page'!$N$4)^($A24-$A$2)),"") -> 3525.935721 | BS24: =IFERROR(AV24/((1+'Main page'!$N$4)^($A24-$A$2)),"") -> 1126.30638 | BT24: =IF(AW24="","",IFERROR(AW24/((1+'Main page'!$N$4)^($A24-$A$2)),"")) ->  | BU24: =IFERROR(AX24/((1+'Main page'!$N$4)^($A24-$A$2)),"") ->  | BW24: 2046 | BX24: 0 | BZ24: 0 | CA24: 0 | CC24: =$CC$2+IF(AND(Inputs!$K$2="",Inputs!$K$8<>""),1,0)+IF(AND(Calculations!$A24>=Inputs!$G$6,Inputs!$G$6<>""),1,0)+IF(AND(Calculations!$A24>=Inputs!$G$7,Inputs!$G$7<>""),1,0)+IF(AND(Calculations!$A24>=Inputs!$G$8,Inputs!$G$8<>""),1,0)+IF(AND(Calculations!$A24>=Inputs!$G$9,Inputs!$G$9<>""),1,0) -> 4 | CK24: 2046 | CL24: =+CL23*(1+Inputs!$J$12) -> 191610.3409 | CM24: 1916.103409 | CN24: 3832.206818 | CO24: 5748.310227 | CP24: 7664.413635 | CQ24: 9580.517044 | CR24: 11496.62045 | CS24: 13412.72386 | CT24: 15328.82727 | CU24: 17244.93068 | CV24: 19161.03409 | CW24: 21077.1375 | CX24: 22993.24091 | CY24: 24909.34432 | CZ24: 26825.44772 | DA24: 28741.55113 | DB24: 30657.65454 | DC24: 32573.75795 | DD24: 34489.86136 | DE24: 36405.96477 | DF24: 38322.06818 | DG24: 2046 | DH24: =CM24*(1+'Main page'!$N$4)+DH23*(1+'Main page'!$N$4) -> 57641.70535 | DI24: =CN24*(1+'Main page'!$N$4)+DI23*(1+'Main page'!$N$4) -> 115283.4107 | DJ24: =CO24*(1+'Main page'!$N$4)+DJ23*(1+'Main page'!$N$4) -> 172925.1161 | DK24: =CP24*(1+'Main page'!$N$4)+DK23*(1+'Main page'!$N$4) -> 230566.8214 | DL24: =CQ24*(1+'Main page'!$N$4)+DL23*(1+'Main page'!$N$4) -> 288208.5268 | DM24: =CR24*(1+'Main page'!$N$4)+DM23*(1+'Main page'!$N$4) -> 345850.2321 | DN24: =CS24*(1+'Main page'!$N$4)+DN23*(1+'Main page'!$N$4) -> 403491.9375 | DO24: =CT24*(1+'Main page'!$N$4)+DO23*(1+'Main page'!$N$4) -> 461133.6428 | DP24: =CU24*(1+'Main page'!$N$4)+DP23*(1+'Main page'!$N$4) -> 518775.3482 | DQ24: =CV24*(1+'Main page'!$N$4)+DQ23*(1+'Main page'!$N$4) -> 576417.0535 | DR24: =CW24*(1+'Main page'!$N$4)+DR23*(1+'Main page'!$N$4) -> 634058.7589 | DS24: =CX24*(1+'Main page'!$N$4)+DS23*(1+'Main page'!$N$4) -> 691700.4642 | DT24: =CY24*(1+'Main page'!$N$4)+DT23*(1+'Main page'!$N$4) -> 749342.1696 | DU24: =CZ24*(1+'Main page'!$N$4)+DU23*(1+'Main page'!$N$4) -> 806983.8749 | DV24: =DA24*(1+'Main page'!$N$4)+DV23*(1+'Main page'!$N$4) -> 864625.5803 | DW24: =DB24*(1+'Main page'!$N$4)+DW23*(1+'Main page'!$N$4) -> 922267.2856 | DX24: =DC24*(1+'Main page'!$N$4)+DX23*(1+'Main page'!$N$4) -> 979908.991 | DY24: =DD24*(1+'Main page'!$N$4)+DY23*(1+'Main page'!$N$4) -> 1037550.696 | DZ24: =DE24*(1+'Main page'!$N$4)+DZ23*(1+'Main page'!$N$4) -> 1095192.402 | EA24: =DF24*(1+'Main page'!$N$4)+EA23*(1+'Main page'!$N$4) -> 1152834.107 | EB24: 0.055 | EC24: 0 | ED24: 0.05382946044 | EG24: =+EG23*(1+Inputs!$J$12) -> 191610.3409
A25: 2047 | B25: =IF((SUM(((1+Inputs!$J$12)^($A25-$A$11))*Inputs!$J$11+((1+Inputs!$K$12)^($A25-$A$11))*Inputs!$K$11)-VLOOKUP($CC25,Calculations!$CG$1:$CI$9,3,FALSE)*((1+Inputs!$D$5)^($A25-$A$2)))<=0,0,(SUM(((1+Inputs!$J$12)^($A25-$A$11))*Inputs!$J$11+((1+Inputs!$K$12)^($A25-$A$11))*Inputs!$K$11)-VLOOKUP($CC25,Calculations!$CG$1:$CI$9,3,FALSE)*((1+Inputs!$D$5)^($A25-$A$2)))) -> 108547.2581 | C25: =IF(Inputs!$J$11*((1+Inputs!$J$12)^(Calculations!A25-$A$11))+Inputs!$K$11*((1+Inputs!$K$12)^(A25-$A$11))-((1+Inputs!$D$5)^(A25-$A$2))*VLOOKUP(CC25,Calculations!$CG$1:$CJ$16,3,FALSE)<0,0,Inputs!$J$11*((1+Inputs!$J$12)^(Calculations!A25-$A$11))+Inputs!$K$11*((1+Inputs!$K$12)^(A25-$A$11))-((1+Inputs!$D$5)^(A25-$A$2))*VLOOKUP(CC25,Calculations!$CG$1:$CJ$16,3,FALSE)) -> 108547.2581 | D25: =IF(Inputs!$J$11*((1+Inputs!$J$12)^(Calculations!A25-Calculations!$A$11))-((1+Inputs!$D$5)^(A25-$A$2))*VLOOKUP(CC25-1,Calculations!$CG$1:$CJ$18,3,FALSE)<0,0,Inputs!$J$11*((1+Inputs!$J$12)^(Calculations!A25-Calculations!$A$11))-((1+Inputs!$D$5)^(A25-$A$2))*VLOOKUP(CC25-1,Calculations!$CG$1:$CJ$18,3,FALSE)) -> 25084.28456 | E25: =IF(Inputs!$K$11*((1+Inputs!$J$12)^(Calculations!A25-Calculations!$A$11))-((1+Inputs!$D$5)^(A25-$A$2))*VLOOKUP(1,Calculations!$CG$1:$CJ$18,3,FALSE)<0,0,Inputs!$K$11*((1+Inputs!$J$12)^(Calculations!A25-Calculations!$A$11))-((1+Inputs!$D$5)^(A25-$A$2))*VLOOKUP(1,Calculations!$CG$1:$CJ$18,3,FALSE)) -> 55516.98856 | F25: =IF(Inputs!$J$11*((1+Inputs!$J$12)^(Calculations!A25-$A$11))+Inputs!$K$11*((1+Inputs!$K$12)^(A25-$A$11))-((1+Inputs!$D$5)^(A25-$A$2))*VLOOKUP(CC25,Calculations!$CG$1:$CJ$16,4,FALSE)<0,0,Inputs!$J$11*((1+Inputs!$J$12)^(Calculations!A25-$A$11))+Inputs!$K$11*((1+Inputs!$K$12)^(A25-$A$11))-((1+Inputs!$D$5)^(A25-$A$2))*VLOOKUP(CC25,Calculations!$CG$1:$CJ$16,4,FALSE)) -> 64141.56161 | G25: =IF(Inputs!$K$11="",Calculations!F25,IF(Inputs!$J$11*((1+Inputs!$J$12)^(Calculations!A25-Calculations!$A$11))-((1+Inputs!$D$5)^(A25-$A$2))*VLOOKUP(CC25-1,Calculations!$CG$1:$CJ$18,4,FALSE)<0,0,Inputs!$J$11*((1+Inputs!$J$12)^(Calculations!A25-Calculations!$A$11))-((1+Inputs!$D$5)^(A25-$A$2))*VLOOKUP(CC25-1,Calculations!$CG$1:$CJ$18,4,FALSE))) -> 0 | H25: =IF(Inputs!$K$11*((1+Inputs!$J$12)^(Calculations!A25-Calculations!$A$11))-((1+Inputs!$D$5)^(A25-$A$2))*VLOOKUP(1,Calculations!$CG$1:$CJ$18,4,FALSE)<0,0,Inputs!$K$11*((1+Inputs!$J$12)^(Calculations!A25-Calculations!$A$11))-((1+Inputs!$D$5)^(A25-$A$2))*VLOOKUP(1,Calculations!$CG$1:$CJ$18,4,FALSE)) -> 33935.82006 | I25: =IF($A25-Inputs!$D$6>24,"",(Inputs!$D$2/(Inputs!$D$2+Inputs!$D$3)*B25*0.1/12)) -> 452.2802421 | J25: =IF(AND(Inputs!$D$3>=0,Inputs!$P$1=1),IF($A25-Inputs!$D$6>24,"",MIN((Inputs!$D$2/(Inputs!$D$2+Inputs!$D$3))*C25*0.15/12,$Y$2)),IF(Inputs!P24=3,IF($A25-Inputs!$D$6>24,"",MIN(C25*0.15/12,$Y$2)),IF($A25-Inputs!$D$6>24,"",MIN(D25*0.15/12,$Y$2)))) -> 313.553557 | K25: =IF(AND(Inputs!$D$3>=0,Inputs!$P$1=1),IF($A25-Inputs!$D$6>19,"",MIN((Inputs!$D$2/(Inputs!$D$2+Inputs!$D$3))*C25*0.1/12,$Y$2)),IF(Inputs!P24=3,IF($A25-Inputs!$D$6>19,"",MIN(C25*0.1/12,$Y$2)),IF($A25-Inputs!$D$6>19,"",MIN(D25*0.1/12,$Y$2)))) ->  | L25: =IFERROR(IF(AND(OR(Inputs!$D$3>=0,Inputs!$D$3=""),Inputs!$P$1=1),(Inputs!$D$2/(Inputs!$D$2+Inputs!$D$3))*IF($A25-Inputs!$D$6>IF(Inputs!$D$9=0,19,24),"",F25*((0.1*Inputs!$D$9+0.05*(1-Inputs!$D$9)))/12),IF(Inputs!P24=3,IF($A25-Inputs!$D$6>IF(Inputs!$D$9=0,19,24),"",F25*((0.1*Inputs!$D$9+0.05*(1-Inputs!$D$9)))/12),IF($A25-Inputs!$D$6>IF(Inputs!$D$9=0,19,24),"",G25*((0.1*Inputs!$D$9+0.05*(1-Inputs!$D$9)))/12))),"") -> 0 | N25: =IF($A25-Inputs!$D$6>24,"",(Inputs!$D$3/(Inputs!$D$2+Inputs!$D$3)*B25*0.1/12)) -> 452.2802421 | O25: =IF(AND(Inputs!$D$3>0,Inputs!$P$1=1),IF($A25-Inputs!$D$6>24,"",MIN((Inputs!$D$3/(Inputs!$D$2+Inputs!$D$3))*C25*0.15/12,$Z$2)),IF(Inputs!P24=3,(Inputs!$D$3/(Inputs!$D$2+Inputs!$D$3))*IF($A25-Inputs!$D$6>24,"",MIN(C25*0.15/12,$Z$2)),IF($A25-Inputs!$D$6>24,"",MIN(E25*0.15/12,$Z$2)))) -> 555.1025097 | P25: =IF(AND(Inputs!$D$3>0,Inputs!$P$1=1),IF($A25-Inputs!$D$6>19,"",MIN((Inputs!$D$3/(Inputs!$D$2+Inputs!$D$3))*C25*0.1/12,$Z$2)),IF(Inputs!P24=3,(Inputs!$D$3/(Inputs!$D$2+Inputs!$D$3))*IF($A25-Inputs!$D$6>19,"",MIN(C25*0.1/12,$Z$2)),IF($A25-Inputs!$D$6>19,"",MIN(E25*0.1/12,$Z$2)))) ->  | Q25: =IFERROR(IF(OR(Inputs!$D$3=0,Inputs!$D$3=""),0,IF(AND(Inputs!$D$3>0,Inputs!$P$1=1),(Inputs!$D$3/(Inputs!$D$2+Inputs!$D$3))*IF($A25-Inputs!$D$6>IF(Inputs!$D$9=0,19,24),"",F25*((0.1*Inputs!$D$9+0.05*(1-Inputs!$D$9)))/12),IF(Inputs!P24=3,IF($A25-Inputs!$D$6>IF(Inputs!$D$9=0,19,24),"",F25*((0.1*Inputs!$D$9+0.05*(1-Inputs!$D$9)))/12),IF($A25-Inputs!$D$6>IF(Inputs!$D$9=0,19,24),"",H25*((0.1*Inputs!$D$9+0.05*(1-Inputs!$D$9)))/12)))),"") -> 282.7985005 | S25: 904.5604843 | T25: 868.6560667 | V25: 282.7985005 | Y25: =IF(AF25="","",(Inputs!$D$2)*(((Inputs!$D$4/12)*((1+Inputs!$D$4/12)^120))/(((1+Inputs!$D$4/12)^120)-1))) ->  | Z25: =IF(AF25="","",(Inputs!$D$3)*(((Inputs!$D$4/12)*((1+Inputs!$D$4/12)^120))/(((1+Inputs!$D$4/12)^120)-1))) ->  | AA25: =IF(AA24=0,0,IF($A25-Inputs!$D$6>25,"",IF((AA24+IF(AS24<AG24,(AH24-AS24)/2,AG24-AS24))>0,AA24+IF(AS24<AG24,(AH24-AS24)/2,AG24-AS24),0))) -> 41376.2959 | AB25: =IF(AB24=0,0,IF($A25-Inputs!$D$6>25,"",IF(AB24-AT24+AH24>0,AB24-AT24+AH24,0))) -> 10862.52146 | AD25: =IF(AD24=0,0,IF($A25-Inputs!$D$6>IF(Inputs!$D$9=0,20,25),"",IF(AV24<$AD$2*Inputs!$D$4,IF(V24*12>AD24,0,AD24),IF(AD24-AV24+AJ24>0,AD24-AV24+AJ24,0)))) -> 100000 | AE25: 0 | AG25: =IF(AA25<AS24,0,IF(AA25="","",IF(Calculations!$A25-Inputs!$D$6>24,"",IF(AS25<$AA$2*Inputs!$D$4,$AA$2*Inputs!$D$4-($AA$2*Inputs!$D$4-AS25)/2,MIN($AA$2*Inputs!$D$4,AA25*Inputs!$D$4))))) -> 2482.577754 | AH25: =IF(AB25="","",IF(Calculations!$A25-Inputs!$D$6>24,"",IF(AB25>(Inputs!$D$2+Inputs!$D$3),(Inputs!$D$2+Inputs!$D$3)*Inputs!$D$4,IF(AB25<$X$3*12,0,AB25*Inputs!$D$4)))) -> 0 | AJ25: =IF(AD25<AV24,0,IF(AD25="","",IF(Calculations!$A25-Inputs!$D$6>IF(Inputs!$D$9=0,19,24),"",IF(AV25<$AD$2*Inputs!$D$4,MAX(0,AV25),MIN($AD$2*Inputs!$D$4,AD25*Inputs!$D$4))))) -> 3393.582006 | AK25: =IF(AE25="","",IF(AE25<$AW$2,0,IF(AE25>(Inputs!$D$2+Inputs!$D$3),(Inputs!$D$2+Inputs!$D$3)*'Main page'!$N$5,AE25*'Main page'!$N$5))) -> 0 | AM25: =IFERROR(AG25/AA25,"") -> 0.06 | AN25: 0 | AP25: 0.03393582006 | AS25: =IFERROR(IF(OR(AA25="",AA25=0),"",IF(AA25<S25*12,AA25,S25*12)),"") -> 10854.72581 | AT25: 10423.8728 | AV25: 3393.582006 | AY25: =IF($A25-Inputs!$D$6>19,"",MIN((Inputs!$D$2/(Inputs!$D$2+Inputs!$D$3))*C25*0.1/12,$Y$2)) ->  | AZ25: =IF($A25-Inputs!$D$6>19,"",MIN(D25*0.1/12,$Y$2)) ->  | BA25: =IF($A25-Inputs!$D$6>19,"",MIN((Inputs!$D$3/(Inputs!$D$2+Inputs!$D$3))*C25*0.1/12,$Z$2)) ->  | BB25: =IF($A25-Inputs!$D$6>19,"",MIN(E25*0.1/12,$Z$2)) ->  | BC25: =IFERROR((Inputs!$D$2/(Inputs!$D$2+Inputs!$D$3))*IF($A25-Inputs!$D$6>IF(Inputs!$D$9=0,19,24),"",F25*((0.1*Inputs!$D$9+0.05*(1-Inputs!$D$9)))/12),"") -> 267.2565067 | BD25: =IF($A25-Inputs!$D$6>IF(Inputs!$D$9=0,19,24),"",G25*((0.1*Inputs!$D$9+0.05*(1-Inputs!$D$9)))/12) -> 0 | BE25: =IFERROR((Inputs!$D$3/(Inputs!$D$2+Inputs!$D$3))*IF($A25-Inputs!$D$6>IF(Inputs!$D$9=0,19,24),"",F25*((0.1*Inputs!$D$9+0.05*(1-Inputs!$D$9)))/12),"") -> 267.2565067 | BF25: =IF(Inputs!$D$3=0,0,1)*IF($A25-Inputs!$D$6>IF(Inputs!$D$9=0,19,24),"",H25*((0.1*Inputs!$D$9+0.05*(1-Inputs!$D$9)))/12) -> 282.7985005 | BH25: 534.5130134 | BJ25: 282.7985005 | BL25: -251.7145129 | BM25: =#REF! ->  | BN25: =IFERROR(((BI25-BG25)+#REF!/12)*12,"") ->  | BO25: =IFERROR(((BJ25-BH25)+#REF!/12)*12,"") ->  | BP25: =IFERROR(AS25/((1+'Main page'!$N$4)^($A25-$A$2)),"") -> 3533.987256 | BQ25: =IFERROR(AU25/((1+'Main page'!$N$4)^($A25-$A$2)),"") ->  | BR25: =IFERROR(AT25/((1+'Main page'!$N$4)^($A25-$A$2)),"") -> 3393.713879 | BS25: =IFERROR(AV25/((1+'Main page'!$N$4)^($A25-$A$2)),"") -> 1104.852925 | BT25: =IF(AW25="","",IFERROR(AW25/((1+'Main page'!$N$4)^($A25-$A$2)),"")) ->  | BU25: =IFERROR(AX25/((1+'Main page'!$N$4)^($A25-$A$2)),"") ->  | BW25: 2047 | BX25: 0 | BZ25: 0 | CA25: 0 | CC25: =$CC$2+IF(AND(Inputs!$K$2="",Inputs!$K$8<>""),1,0)+IF(AND(Calculations!$A25>=Inputs!$G$6,Inputs!$G$6<>""),1,0)+IF(AND(Calculations!$A25>=Inputs!$G$7,Inputs!$G$7<>""),1,0)+IF(AND(Calculations!$A25>=Inputs!$G$8,Inputs!$G$8<>""),1,0)+IF(AND(Calculations!$A25>=Inputs!$G$9,Inputs!$G$9<>""),1,0) -> 4 | CK25: 2047 | CL25: =+CL24*(1+Inputs!$J$12) -> 197358.6511 | CM25: 1973.586511 | CN25: 3947.173022 | CO25: 5920.759533 | CP25: 7894.346045 | CQ25: 9867.932556 | CR25: 11841.51907 | CS25: 13815.10558 | CT25: 15788.69209 | CU25: 17762.2786 | CV25: 19735.86511 | CW25: 21709.45162 | CX25: 23683.03813 | CY25: 25656.62464 | CZ25: 27630.21116 | DA25: 29603.79767 | DB25: 31577.38418 | DC25: 33550.97069 | DD25: 35524.5572 | DE25: 37498.14371 | DF25: 39471.73022 | DG25: 2047 | DH25: =CM25*(1+'Main page'!$N$4)+DH24*(1+'Main page'!$N$4) -> 62596.05646 | DI25: =CN25*(1+'Main page'!$N$4)+DI24*(1+'Main page'!$N$4) -> 125192.1129 | DJ25: =CO25*(1+'Main page'!$N$4)+DJ24*(1+'Main page'!$N$4) -> 187788.1694 | DK25: =CP25*(1+'Main page'!$N$4)+DK24*(1+'Main page'!$N$4) -> 250384.2258 | DL25: =CQ25*(1+'Main page'!$N$4)+DL24*(1+'Main page'!$N$4) -> 312980.2823 | DM25: =CR25*(1+'Main page'!$N$4)+DM24*(1+'Main page'!$N$4) -> 375576.3387 | DN25: =CS25*(1+'Main page'!$N$4)+DN24*(1+'Main page'!$N$4) -> 438172.3952 | DO25: =CT25*(1+'Main page'!$N$4)+DO24*(1+'Main page'!$N$4) -> 500768.4516 | DP25: =CU25*(1+'Main page'!$N$4)+DP24*(1+'Main page'!$N$4) -> 563364.5081 | DQ25: =CV25*(1+'Main page'!$N$4)+DQ24*(1+'Main page'!$N$4) -> 625960.5646 | DR25: =CW25*(1+'Main page'!$N$4)+DR24*(1+'Main page'!$N$4) -> 688556.621 | DS25: =CX25*(1+'Main page'!$N$4)+DS24*(1+'Main page'!$N$4) -> 751152.6775 | DT25: =CY25*(1+'Main page'!$N$4)+DT24*(1+'Main page'!$N$4) -> 813748.7339 | DU25: =CZ25*(1+'Main page'!$N$4)+DU24*(1+'Main page'!$N$4) -> 876344.7904 | DV25: =DA25*(1+'Main page'!$N$4)+DV24*(1+'Main page'!$N$4) -> 938940.8468 | DW25: =DB25*(1+'Main page'!$N$4)+DW24*(1+'Main page'!$N$4) -> 1001536.903 | DX25: =DC25*(1+'Main page'!$N$4)+DX24*(1+'Main page'!$N$4) -> 1064132.96 | DY25: =DD25*(1+'Main page'!$N$4)+DY24*(1+'Main page'!$N$4) -> 1126729.016 | DZ25: =DE25*(1+'Main page'!$N$4)+DZ24*(1+'Main page'!$N$4) -> 1189325.073 | EA25: =DF25*(1+'Main page'!$N$4)+EA24*(1+'Main page'!$N$4) -> 1251921.129 | EB25: 0.055 | EC25: 0 | ED25: 0.05281690334 | EG25: =+EG24*(1+Inputs!$J$12) -> 197358.6511
A26: 2048 | B26: =IF((SUM(((1+Inputs!$J$12)^($A26-$A$11))*Inputs!$J$11+((1+Inputs!$K$12)^($A26-$A$11))*Inputs!$K$11)-VLOOKUP($CC26,Calculations!$CG$1:$CI$9,3,FALSE)*((1+Inputs!$D$5)^($A26-$A$2)))<=0,0,(SUM(((1+Inputs!$J$12)^($A26-$A$11))*Inputs!$J$11+((1+Inputs!$K$12)^($A26-$A$11))*Inputs!$K$11)-VLOOKUP($CC26,Calculations!$CG$1:$CI$9,3,FALSE)*((1+Inputs!$D$5)^($A26-$A$2)))) -> 111803.6759 | C26: =IF(Inputs!$J$11*((1+Inputs!$J$12)^(Calculations!A26-$A$11))+Inputs!$K$11*((1+Inputs!$K$12)^(A26-$A$11))-((1+Inputs!$D$5)^(A26-$A$2))*VLOOKUP(CC26,Calculations!$CG$1:$CJ$16,3,FALSE)<0,0,Inputs!$J$11*((1+Inputs!$J$12)^(Calculations!A26-$A$11))+Inputs!$K$11*((1+Inputs!$K$12)^(A26-$A$11))-((1+Inputs!$D$5)^(A26-$A$2))*VLOOKUP(CC26,Calculations!$CG$1:$CJ$16,3,FALSE)) -> 111803.6759 | D26: =IF(Inputs!$J$11*((1+Inputs!$J$12)^(Calculations!A26-Calculations!$A$11))-((1+Inputs!$D$5)^(A26-$A$2))*VLOOKUP(CC26-1,Calculations!$CG$1:$CJ$18,3,FALSE)<0,0,Inputs!$J$11*((1+Inputs!$J$12)^(Calculations!A26-Calculations!$A$11))-((1+Inputs!$D$5)^(A26-$A$2))*VLOOKUP(CC26-1,Calculations!$CG$1:$CJ$18,3,FALSE)) -> 25836.81309 | E26: =IF(Inputs!$K$11*((1+Inputs!$J$12)^(Calculations!A26-Calculations!$A$11))-((1+Inputs!$D$5)^(A26-$A$2))*VLOOKUP(1,Calculations!$CG$1:$CJ$18,3,FALSE)<0,0,Inputs!$K$11*((1+Inputs!$J$12)^(Calculations!A26-Calculations!$A$11))-((1+Inputs!$D$5)^(A26-$A$2))*VLOOKUP(1,Calculations!$CG$1:$CJ$18,3,FALSE)) -> 57182.49821 | F26: =IF(Inputs!$J$11*((1+Inputs!$J$12)^(Calculations!A26-$A$11))+Inputs!$K$11*((1+Inputs!$K$12)^(A26-$A$11))-((1+Inputs!$D$5)^(A26-$A$2))*VLOOKUP(CC26,Calculations!$CG$1:$CJ$16,4,FALSE)<0,0,Inputs!$J$11*((1+Inputs!$J$12)^(Calculations!A26-$A$11))+Inputs!$K$11*((1+Inputs!$K$12)^(A26-$A$11))-((1+Inputs!$D$5)^(A26-$A$2))*VLOOKUP(CC26,Calculations!$CG$1:$CJ$16,4,FALSE)) -> 66065.80846 | G26: =IF(Inputs!$K$11="",Calculations!F26,IF(Inputs!$J$11*((1+Inputs!$J$12)^(Calculations!A26-Calculations!$A$11))-((1+Inputs!$D$5)^(A26-$A$2))*VLOOKUP(CC26-1,Calculations!$CG$1:$CJ$18,4,FALSE)<0,0,Inputs!$J$11*((1+Inputs!$J$12)^(Calculations!A26-Calculations!$A$11))-((1+Inputs!$D$5)^(A26-$A$2))*VLOOKUP(CC26-1,Calculations!$CG$1:$CJ$18,4,FALSE))) -> 0 | H26: =IF(Inputs!$K$11*((1+Inputs!$J$12)^(Calculations!A26-Calculations!$A$11))-((1+Inputs!$D$5)^(A26-$A$2))*VLOOKUP(1,Calculations!$CG$1:$CJ$18,4,FALSE)<0,0,Inputs!$K$11*((1+Inputs!$J$12)^(Calculations!A26-Calculations!$A$11))-((1+Inputs!$D$5)^(A26-$A$2))*VLOOKUP(1,Calculations!$CG$1:$CJ$18,4,FALSE)) -> 34953.89466 | I26: =IF($A26-Inputs!$D$6>24,"",(Inputs!$D$2/(Inputs!$D$2+Inputs!$D$3)*B26*0.1/12)) -> 465.8486494 | J26: =IF(AND(Inputs!$D$3>=0,Inputs!$P$1=1),IF($A26-Inputs!$D$6>24,"",MIN((Inputs!$D$2/(Inputs!$D$2+Inputs!$D$3))*C26*0.15/12,$Y$2)),IF(Inputs!P25=3,IF($A26-Inputs!$D$6>24,"",MIN(C26*0.15/12,$Y$2)),IF($A26-Inputs!$D$6>24,"",MIN(D26*0.15/12,$Y$2)))) -> 322.9601637 | K26: =IF(AND(Inputs!$D$3>=0,Inputs!$P$1=1),IF($A26-Inputs!$D$6>19,"",MIN((Inputs!$D$2/(Inputs!$D$2+Inputs!$D$3))*C26*0.1/12,$Y$2)),IF(Inputs!P25=3,IF($A26-Inputs!$D$6>19,"",MIN(C26*0.1/12,$Y$2)),IF($A26-Inputs!$D$6>19,"",MIN(D26*0.1/12,$Y$2)))) ->  | L26: =IFERROR(IF(AND(OR(Inputs!$D$3>=0,Inputs!$D$3=""),Inputs!$P$1=1),(Inputs!$D$2/(Inputs!$D$2+Inputs!$D$3))*IF($A26-Inputs!$D$6>IF(Inputs!$D$9=0,19,24),"",F26*((0.1*Inputs!$D$9+0.05*(1-Inputs!$D$9)))/12),IF(Inputs!P25=3,IF($A26-Inputs!$D$6>IF(Inputs!$D$9=0,19,24),"",F26*((0.1*Inputs!$D$9+0.05*(1-Inputs!$D$9)))/12),IF($A26-Inputs!$D$6>IF(Inputs!$D$9=0,19,24),"",G26*((0.1*Inputs!$D$9+0.05*(1-Inputs!$D$9)))/12))),"") -> 0 | N26: =IF($A26-Inputs!$D$6>24,"",(Inputs!$D$3/(Inputs!$D$2+Inputs!$D$3)*B26*0.1/12)) -> 465.8486494 | O26: =IF(AND(Inputs!$D$3>0,Inputs!$P$1=1),IF($A26-Inputs!$D$6>24,"",MIN((Inputs!$D$3/(Inputs!$D$2+Inputs!$D$3))*C26*0.15/12,$Z$2)),IF(Inputs!P25=3,(Inputs!$D$3/(Inputs!$D$2+Inputs!$D$3))*IF($A26-Inputs!$D$6>24,"",MIN(C26*0.15/12,$Z$2)),IF($A26-Inputs!$D$6>24,"",MIN(E26*0.15/12,$Z$2)))) -> 555.1025097 | P26: =IF(AND(Inputs!$D$3>0,Inputs!$P$1=1),IF($A26-Inputs!$D$6>19,"",MIN((Inputs!$D$3/(Inputs!$D$2+Inputs!$D$3))*C26*0.1/12,$Z$2)),IF(Inputs!P25=3,(Inputs!$D$3/(Inputs!$D$2+Inputs!$D$3))*IF($A26-Inputs!$D$6>19,"",MIN(C26*0.1/12,$Z$2)),IF($A26-Inputs!$D$6>19,"",MIN(E26*0.1/12,$Z$2)))) ->  | Q26: =IFERROR(IF(OR(Inputs!$D$3=0,Inputs!$D$3=""),0,IF(AND(Inputs!$D$3>0,Inputs!$P$1=1),(Inputs!$D$3/(Inputs!$D$2+Inputs!$D$3))*IF($A26-Inputs!$D$6>IF(Inputs!$D$9=0,19,24),"",F26*((0.1*Inputs!$D$9+0.05*(1-Inputs!$D$9)))/12),IF(Inputs!P25=3,IF($A26-Inputs!$D$6>IF(Inputs!$D$9=0,19,24),"",F26*((0.1*Inputs!$D$9+0.05*(1-Inputs!$D$9)))/12),IF($A26-Inputs!$D$6>IF(Inputs!$D$9=0,19,24),"",H26*((0.1*Inputs!$D$9+0.05*(1-Inputs!$D$9)))/12)))),"") -> 291.2824555 | S26: 931.6972988 | T26: 878.0626734 | V26: 291.2824555 | Y26: =IF(AF26="","",(Inputs!$D$2)*(((Inputs!$D$4/12)*((1+Inputs!$D$4/12)^120))/(((1+Inputs!$D$4/12)^120)-1))) ->  | Z26: =IF(AF26="","",(Inputs!$D$3)*(((Inputs!$D$4/12)*((1+Inputs!$D$4/12)^120))/(((1+Inputs!$D$4/12)^120)-1))) ->  | AA26: =IF(AA25=0,0,IF($A26-Inputs!$D$6>25,"",IF((AA25+IF(AS25<AG25,(AH25-AS25)/2,AG25-AS25))>0,AA25+IF(AS25<AG25,(AH25-AS25)/2,AG25-AS25),0))) -> 33004.14784 | AB26: =IF(AB25=0,0,IF($A26-Inputs!$D$6>25,"",IF(AB25-AT25+AH25>0,AB25-AT25+AH25,0))) -> 438.6486609 | AD26: =IF(AD25=0,0,IF($A26-Inputs!$D$6>IF(Inputs!$D$9=0,20,25),"",IF(AV25<$AD$2*Inputs!$D$4,IF(V25*12>AD25,0,AD25),IF(AD25-AV25+AJ25>0,AD25-AV25+AJ25,0)))) -> 100000 | AE26: 0 | AG26: =IF(AA26<AS25,0,IF(AA26="","",IF(Calculations!$A26-Inputs!$D$6>24,"",IF(AS26<$AA$2*Inputs!$D$4,$AA$2*Inputs!$D$4-($AA$2*Inputs!$D$4-AS26)/2,MIN($AA$2*Inputs!$D$4,AA26*Inputs!$D$4))))) -> 1980.24887 | AH26: =IF(AB26="","",IF(Calculations!$A26-Inputs!$D$6>24,"",IF(AB26>(Inputs!$D$2+Inputs!$D$3),(Inputs!$D$2+Inputs!$D$3)*Inputs!$D$4,IF(AB26<$X$3*12,0,AB26*Inputs!$D$4)))) -> 0 | AJ26: =IF(AD26<AV25,0,IF(AD26="","",IF(Calculations!$A26-Inputs!$D$6>IF(Inputs!$D$9=0,19,24),"",IF(AV26<$AD$2*Inputs!$D$4,MAX(0,AV26),MIN($AD$2*Inputs!$D$4,AD26*Inputs!$D$4))))) -> 3495.389466 | AK26: =IF(AE26="","",IF(AE26<$AW$2,0,IF(AE26>(Inputs!$D$2+Inputs!$D$3),(Inputs!$D$2+Inputs!$D$3)*'Main page'!$N$5,AE26*'Main page'!$N$5))) -> 0 | AM26: =IFERROR(AG26/AA26,"") -> 0.06 | AN26: 0 | AP26: 0.03495389466 | AS26: =IFERROR(IF(OR(AA26="",AA26=0),"",IF(AA26<S26*12,AA26,S26*12)),"") -> 11180.36759 | AT26: 438.6486609 | AV26: 3495.389466 | AY26: =IF($A26-Inputs!$D$6>19,"",MIN((Inputs!$D$2/(Inputs!$D$2+Inputs!$D$3))*C26*0.1/12,$Y$2)) ->  | AZ26: =IF($A26-Inputs!$D$6>19,"",MIN(D26*0.1/12,$Y$2)) ->  | BA26: =IF($A26-Inputs!$D$6>19,"",MIN((Inputs!$D$3/(Inputs!$D$2+Inputs!$D$3))*C26*0.1/12,$Z$2)) ->  | BB26: =IF($A26-Inputs!$D$6>19,"",MIN(E26*0.1/12,$Z$2)) ->  | BC26: =IFERROR((Inputs!$D$2/(Inputs!$D$2+Inputs!$D$3))*IF($A26-Inputs!$D$6>IF(Inputs!$D$9=0,19,24),"",F26*((0.1*Inputs!$D$9+0.05*(1-Inputs!$D$9)))/12),"") -> 275.2742019 | BD26: =IF($A26-Inputs!$D$6>IF(Inputs!$D$9=0,19,24),"",G26*((0.1*Inputs!$D$9+0.05*(1-Inputs!$D$9)))/12) -> 0 | BE26: =IFERROR((Inputs!$D$3/(Inputs!$D$2+Inputs!$D$3))*IF($A26-Inputs!$D$6>IF(Inputs!$D$9=0,19,24),"",F26*((0.1*Inputs!$D$9+0.05*(1-Inputs!$D$9)))/12),"") -> 275.2742019 | BF26: =IF(Inputs!$D$3=0,0,1)*IF($A26-Inputs!$D$6>IF(Inputs!$D$9=0,19,24),"",H26*((0.1*Inputs!$D$9+0.05*(1-Inputs!$D$9)))/12) -> 291.2824555 | BH26: 550.5484038 | BJ26: 291.2824555 | BL26: -259.2659483 | BM26: =#REF! ->  | BN26: =IFERROR(((BI26-BG26)+#REF!/12)*12,"") ->  | BO26: =IFERROR(((BJ26-BH26)+#REF!/12)*12,"") ->  | BP26: =IFERROR(AS26/((1+'Main page'!$N$4)^($A26-$A$2)),"") -> 3466.673213 | BQ26: =IFERROR(AU26/((1+'Main page'!$N$4)^($A26-$A$2)),"") ->  | BR26: =IFERROR(AT26/((1+'Main page'!$N$4)^($A26-$A$2)),"") -> 136.0108736 | BS26: =IFERROR(AV26/((1+'Main page'!$N$4)^($A26-$A$2)),"") -> 1083.808107 | BT26: =IF(AW26="","",IFERROR(AW26/((1+'Main page'!$N$4)^($A26-$A$2)),"")) ->  | BU26: =IFERROR(AX26/((1+'Main page'!$N$4)^($A26-$A$2)),"") ->  | BW26: 2048 | BX26: 0 | BZ26: 1 | CA26: 0 | CC26: =$CC$2+IF(AND(Inputs!$K$2="",Inputs!$K$8<>""),1,0)+IF(AND(Calculations!$A26>=Inputs!$G$6,Inputs!$G$6<>""),1,0)+IF(AND(Calculations!$A26>=Inputs!$G$7,Inputs!$G$7<>""),1,0)+IF(AND(Calculations!$A26>=Inputs!$G$8,Inputs!$G$8<>""),1,0)+IF(AND(Calculations!$A26>=Inputs!$G$9,Inputs!$G$9<>""),1,0) -> 4 | CK26: 2048 | CL26: =+CL25*(1+Inputs!$J$12) -> 203279.4106 | CM26: 2032.794106 | CN26: 4065.588213 | CO26: 6098.382319 | CP26: 8131.176426 | CQ26: 10163.97053 | CR26: 12196.76464 | CS26: 14229.55875 | CT26: 16262.35285 | CU26: 18295.14696 | CV26: 20327.94106 | CW26: 22360.73517 | CX26: 24393.52928 | CY26: 26426.32338 | CZ26: 28459.11749 | DA26: 30491.9116 | DB26: 32524.7057 | DC26: 34557.49981 | DD26: 36590.29392 | DE26: 38623.08802 | DF26: 40655.88213 | DG26: 2048 | DH26: =CM26*(1+'Main page'!$N$4)+DH25*(1+'Main page'!$N$4) -> 67860.29309 | DI26: =CN26*(1+'Main page'!$N$4)+DI25*(1+'Main page'!$N$4) -> 135720.5862 | DJ26: =CO26*(1+'Main page'!$N$4)+DJ25*(1+'Main page'!$N$4) -> 203580.8793 | DK26: =CP26*(1+'Main page'!$N$4)+DK25*(1+'Main page'!$N$4) -> 271441.1724 | DL26: =CQ26*(1+'Main page'!$N$4)+DL25*(1+'Main page'!$N$4) -> 339301.4655 | DM26: =CR26*(1+'Main page'!$N$4)+DM25*(1+'Main page'!$N$4) -> 407161.7585 | DN26: =CS26*(1+'Main page'!$N$4)+DN25*(1+'Main page'!$N$4) -> 475022.0516 | DO26: =CT26*(1+'Main page'!$N$4)+DO25*(1+'Main page'!$N$4) -> 542882.3447 | DP26: =CU26*(1+'Main page'!$N$4)+DP25*(1+'Main page'!$N$4) -> 610742.6378 | DQ26: =CV26*(1+'Main page'!$N$4)+DQ25*(1+'Main page'!$N$4) -> 678602.9309 | DR26: =CW26*(1+'Main page'!$N$4)+DR25*(1+'Main page'!$N$4) -> 746463.224 | DS26: =CX26*(1+'Main page'!$N$4)+DS25*(1+'Main page'!$N$4) -> 814323.5171 | DT26: =CY26*(1+'Main page'!$N$4)+DT25*(1+'Main page'!$N$4) -> 882183.8102 | DU26: =CZ26*(1+'Main page'!$N$4)+DU25*(1+'Main page'!$N$4) -> 950044.1033 | DV26: =DA26*(1+'Main page'!$N$4)+DV25*(1+'Main page'!$N$4) -> 1017904.396 | DW26: =DB26*(1+'Main page'!$N$4)+DW25*(1+'Main page'!$N$4) -> 1085764.689 | DX26: =DC26*(1+'Main page'!$N$4)+DX25*(1+'Main page'!$N$4) -> 1153624.983 | DY26: =DD26*(1+'Main page'!$N$4)+DY25*(1+'Main page'!$N$4) -> 1221485.276 | DZ26: =DE26*(1+'Main page'!$N$4)+DZ25*(1+'Main page'!$N$4) -> 1289345.569 | EA26: =DF26*(1+'Main page'!$N$4)+EA25*(1+'Main page'!$N$4) -> 1357205.862 | EB26: 0.055 | EC26: 0 | ED26: 0.002157860747 | EG26: =+EG25*(1+Inputs!$J$12) -> 203279.4106
A27: 2049 | B27: =IF((SUM(((1+Inputs!$J$12)^($A27-$A$11))*Inputs!$J$11+((1+Inputs!$K$12)^($A27-$A$11))*Inputs!$K$11)-VLOOKUP($CC27,Calculations!$CG$1:$CI$9,3,FALSE)*((1+Inputs!$D$5)^($A27-$A$2)))<=0,0,(SUM(((1+Inputs!$J$12)^($A27-$A$11))*Inputs!$J$11+((1+Inputs!$K$12)^($A27-$A$11))*Inputs!$K$11)-VLOOKUP($CC27,Calculations!$CG$1:$CI$9,3,FALSE)*((1+Inputs!$D$5)^($A27-$A$2)))) -> 115157.7861 | C27: =IF(Inputs!$J$11*((1+Inputs!$J$12)^(Calculations!A27-$A$11))+Inputs!$K$11*((1+Inputs!$K$12)^(A27-$A$11))-((1+Inputs!$D$5)^(A27-$A$2))*VLOOKUP(CC27,Calculations!$CG$1:$CJ$16,3,FALSE)<0,0,Inputs!$J$11*((1+Inputs!$J$12)^(Calculations!A27-$A$11))+Inputs!$K$11*((1+Inputs!$K$12)^(A27-$A$11))-((1+Inputs!$D$5)^(A27-$A$2))*VLOOKUP(CC27,Calculations!$CG$1:$CJ$16,3,FALSE)) -> 115157.7861 | D27: =IF(Inputs!$J$11*((1+Inputs!$J$12)^(Calculations!A27-Calculations!$A$11))-((1+Inputs!$D$5)^(A27-$A$2))*VLOOKUP(CC27-1,Calculations!$CG$1:$CJ$18,3,FALSE)<0,0,Inputs!$J$11*((1+Inputs!$J$12)^(Calculations!A27-Calculations!$A$11))-((1+Inputs!$D$5)^(A27-$A$2))*VLOOKUP(CC27-1,Calculations!$CG$1:$CJ$18,3,FALSE)) -> 26611.91749 | E27: =IF(Inputs!$K$11*((1+Inputs!$J$12)^(Calculations!A27-Calculations!$A$11))-((1+Inputs!$D$5)^(A27-$A$2))*VLOOKUP(1,Calculations!$CG$1:$CJ$18,3,FALSE)<0,0,Inputs!$K$11*((1+Inputs!$J$12)^(Calculations!A27-Calculations!$A$11))-((1+Inputs!$D$5)^(A27-$A$2))*VLOOKUP(1,Calculations!$CG$1:$CJ$18,3,FALSE)) -> 58897.97316 | F27: =IF(Inputs!$J$11*((1+Inputs!$J$12)^(Calculations!A27-$A$11))+Inputs!$K$11*((1+Inputs!$K$12)^(A27-$A$11))-((1+Inputs!$D$5)^(A27-$A$2))*VLOOKUP(CC27,Calculations!$CG$1:$CJ$16,4,FALSE)<0,0,Inputs!$J$11*((1+Inputs!$J$12)^(Calculations!A27-$A$11))+Inputs!$K$11*((1+Inputs!$K$12)^(A27-$A$11))-((1+Inputs!$D$5)^(A27-$A$2))*VLOOKUP(CC27,Calculations!$CG$1:$CJ$16,4,FALSE)) -> 68047.78271 | G27: =IF(Inputs!$K$11="",Calculations!F27,IF(Inputs!$J$11*((1+Inputs!$J$12)^(Calculations!A27-Calculations!$A$11))-((1+Inputs!$D$5)^(A27-$A$2))*VLOOKUP(CC27-1,Calculations!$CG$1:$CJ$18,4,FALSE)<0,0,Inputs!$J$11*((1+Inputs!$J$12)^(Calculations!A27-Calculations!$A$11))-((1+Inputs!$D$5)^(A27-$A$2))*VLOOKUP(CC27-1,Calculations!$CG$1:$CJ$18,4,FALSE))) -> 0 | H27: =IF(Inputs!$K$11*((1+Inputs!$J$12)^(Calculations!A27-Calculations!$A$11))-((1+Inputs!$D$5)^(A27-$A$2))*VLOOKUP(1,Calculations!$CG$1:$CJ$18,4,FALSE)<0,0,Inputs!$K$11*((1+Inputs!$J$12)^(Calculations!A27-Calculations!$A$11))-((1+Inputs!$D$5)^(A27-$A$2))*VLOOKUP(1,Calculations!$CG$1:$CJ$18,4,FALSE)) -> 36002.5115 | I27: =IF($A27-Inputs!$D$6>24,"",(Inputs!$D$2/(Inputs!$D$2+Inputs!$D$3)*B27*0.1/12)) ->  | J27: =IF(AND(Inputs!$D$3>=0,Inputs!$P$1=1),IF($A27-Inputs!$D$6>24,"",MIN((Inputs!$D$2/(Inputs!$D$2+Inputs!$D$3))*C27*0.15/12,$Y$2)),IF(Inputs!P26=3,IF($A27-Inputs!$D$6>24,"",MIN(C27*0.15/12,$Y$2)),IF($A27-Inputs!$D$6>24,"",MIN(D27*0.15/12,$Y$2)))) ->  | K27: =IF(AND(Inputs!$D$3>=0,Inputs!$P$1=1),IF($A27-Inputs!$D$6>19,"",MIN((Inputs!$D$2/(Inputs!$D$2+Inputs!$D$3))*C27*0.1/12,$Y$2)),IF(Inputs!P26=3,IF($A27-Inputs!$D$6>19,"",MIN(C27*0.1/12,$Y$2)),IF($A27-Inputs!$D$6>19,"",MIN(D27*0.1/12,$Y$2)))) ->  | L27: =IFERROR(IF(AND(OR(Inputs!$D$3>=0,Inputs!$D$3=""),Inputs!$P$1=1),(Inputs!$D$2/(Inputs!$D$2+Inputs!$D$3))*IF($A27-Inputs!$D$6>IF(Inputs!$D$9=0,19,24),"",F27*((0.1*Inputs!$D$9+0.05*(1-Inputs!$D$9)))/12),IF(Inputs!P26=3,IF($A27-Inputs!$D$6>IF(Inputs!$D$9=0,19,24),"",F27*((0.1*Inputs!$D$9+0.05*(1-Inputs!$D$9)))/12),IF($A27-Inputs!$D$6>IF(Inputs!$D$9=0,19,24),"",G27*((0.1*Inputs!$D$9+0.05*(1-Inputs!$D$9)))/12))),"") ->  | N27: =IF($A27-Inputs!$D$6>24,"",(Inputs!$D$3/(Inputs!$D$2+Inputs!$D$3)*B27*0.1/12)) ->  | O27: =IF(AND(Inputs!$D$3>0,Inputs!$P$1=1),IF($A27-Inputs!$D$6>24,"",MIN((Inputs!$D$3/(Inputs!$D$2+Inputs!$D$3))*C27*0.15/12,$Z$2)),IF(Inputs!P26=3,(Inputs!$D$3/(Inputs!$D$2+Inputs!$D$3))*IF($A27-Inputs!$D$6>24,"",MIN(C27*0.15/12,$Z$2)),IF($A27-Inputs!$D$6>24,"",MIN(E27*0.15/12,$Z$2)))) ->  | P27: =IF(AND(Inputs!$D$3>0,Inputs!$P$1=1),IF($A27-Inputs!$D$6>19,"",MIN((Inputs!$D$3/(Inputs!$D$2+Inputs!$D$3))*C27*0.1/12,$Z$2)),IF(Inputs!P26=3,(Inputs!$D$3/(Inputs!$D$2+Inputs!$D$3))*IF($A27-Inputs!$D$6>19,"",MIN(C27*0.1/12,$Z$2)),IF($A27-Inputs!$D$6>19,"",MIN(E27*0.1/12,$Z$2)))) ->  | Q27: =IFERROR(IF(OR(Inputs!$D$3=0,Inputs!$D$3=""),0,IF(AND(Inputs!$D$3>0,Inputs!$P$1=1),(Inputs!$D$3/(Inputs!$D$2+Inputs!$D$3))*IF($A27-Inputs!$D$6>IF(Inputs!$D$9=0,19,24),"",F27*((0.1*Inputs!$D$9+0.05*(1-Inputs!$D$9)))/12),IF(Inputs!P26=3,IF($A27-Inputs!$D$6>IF(Inputs!$D$9=0,19,24),"",F27*((0.1*Inputs!$D$9+0.05*(1-Inputs!$D$9)))/12),IF($A27-Inputs!$D$6>IF(Inputs!$D$9=0,19,24),"",H27*((0.1*Inputs!$D$9+0.05*(1-Inputs!$D$9)))/12)))),"") ->  | Y27: =IF(AF27="","",(Inputs!$D$2)*(((Inputs!$D$4/12)*((1+Inputs!$D$4/12)^120))/(((1+Inputs!$D$4/12)^120)-1))) ->  | Z27: =IF(AF27="","",(Inputs!$D$3)*(((Inputs!$D$4/12)*((1+Inputs!$D$4/12)^120))/(((1+Inputs!$D$4/12)^120)-1))) ->  | AA27: =IF(AA26=0,0,IF($A27-Inputs!$D$6>25,"",IF((AA26+IF(AS26<AG26,(AH26-AS26)/2,AG26-AS26))>0,AA26+IF(AS26<AG26,(AH26-AS26)/2,AG26-AS26),0))) -> 23804.02912 | AB27: =IF(AB26=0,0,IF($A27-Inputs!$D$6>25,"",IF(AB26-AT26+AH26>0,AB26-AT26+AH26,0))) -> 0 | AD27: =IF(AD26=0,0,IF($A27-Inputs!$D$6>IF(Inputs!$D$9=0,20,25),"",IF(AV26<$AD$2*Inputs!$D$4,IF(V26*12>AD26,0,AD26),IF(AD26-AV26+AJ26>0,AD26-AV26+AJ26,0)))) -> 100000 | AE27: 0 | AJ27: =IF(AD27<AV26,0,IF(AD27="","",IF(Calculations!$A27-Inputs!$D$6>IF(Inputs!$D$9=0,19,24),"",IF(AV27<$AD$2*Inputs!$D$4,MAX(0,AV27),MIN($AD$2*Inputs!$D$4,AD27*Inputs!$D$4))))) ->  | AK27: =IF(AE27="","",IF(AE27<$AW$2,0,IF(AE27>Inputs!$D$2,Inputs!$D$2*'Main page'!$N$5,AE27*'Main page'!$N$5))) -> 0 | AM27: =IFERROR(AG27/AA27,"") -> 0 | AS27: =IFERROR(IF(OR(AA27="",AA27=0),"",IF(AA27<S27*12,AA27,S27*12)),"") ->  | BF27: =IF(Inputs!$D$3=0,0,1)*IF($A27-Inputs!$D$6>IF(Inputs!$D$9=0,19,24),"",H27*((0.1*Inputs!$D$9+0.05*(1-Inputs!$D$9)))/12) ->  | BH27: 0 | BL27: =IFERROR((BJ27-BH27),"") ->  | BO27: =IFERROR(((BJ27-BH27)+#REF!/12)*12,"") ->  | BP27: =IFERROR(AS27/((1+'Main page'!$N$4)^($A27-$A$2)),"") ->  | BQ27: =IFERROR(AU27/((1+'Main page'!$N$4)^($A27-$A$2)),"") ->  | BR27: =IFERROR(AT27/((1+'Main page'!$N$4)^($A27-$A$2)),"") ->  | BS27: =IFERROR(AV27/((1+'Main page'!$N$4)^($A27-$A$2)),"") ->  | BT27: =IF(AW27="","",IFERROR(AW27/((1+'Main page'!$N$4)^($A27-$A$2)),"")) ->  | BU27: =IFERROR(AX27/((1+'Main page'!$N$4)^($A27-$A$2)),"") ->  | BW27: 2049 | BX27: 1 | BZ27: 0 | CA27: 1 | CC27: =$CC$2+IF(AND(Inputs!$K$2="",Inputs!$K$8<>""),1,0)+IF(AND(Calculations!$A27>=Inputs!$G$6,Inputs!$G$6<>""),1,0)+IF(AND(Calculations!$A27>=Inputs!$G$7,Inputs!$G$7<>""),1,0)+IF(AND(Calculations!$A27>=Inputs!$G$8,Inputs!$G$8<>""),1,0)+IF(AND(Calculations!$A27>=Inputs!$G$9,Inputs!$G$9<>""),1,0) -> 4 | CK27: 2049 | CL27: =+CL26*(1+Inputs!$J$12) -> 209377.793 | CM27: 2093.77793 | CN27: 4187.555859 | CO27: 6281.333789 | CP27: 8375.111719 | CQ27: 10468.88965 | CR27: 12562.66758 | CS27: 14656.44551 | CT27: 16750.22344 | CU27: 18844.00137 | CV27: 20937.7793 | CW27: 23031.55723 | CX27: 25125.33516 | CY27: 27219.11309 | CZ27: 29312.89102 | DA27: 31406.66894 | DB27: 33500.44687 | DC27: 35594.2248 | DD27: 37688.00273 | DE27: 39781.78066 | DF27: 41875.55859 | DG27: 2049 | DH27: =CM27*(1+'Main page'!$N$4)+DH26*(1+'Main page'!$N$4) -> 73451.77457 | DI27: =CN27*(1+'Main page'!$N$4)+DI26*(1+'Main page'!$N$4) -> 146903.5491 | DJ27: =CO27*(1+'Main page'!$N$4)+DJ26*(1+'Main page'!$N$4) -> 220355.3237 | DK27: =CP27*(1+'Main page'!$N$4)+DK26*(1+'Main page'!$N$4) -> 293807.0983 | DL27: =CQ27*(1+'Main page'!$N$4)+DL26*(1+'Main page'!$N$4) -> 367258.8729 | DM27: =CR27*(1+'Main page'!$N$4)+DM26*(1+'Main page'!$N$4) -> 440710.6474 | DN27: =CS27*(1+'Main page'!$N$4)+DN26*(1+'Main page'!$N$4) -> 514162.422 | DO27: =CT27*(1+'Main page'!$N$4)+DO26*(1+'Main page'!$N$4) -> 587614.1966 | DP27: =CU27*(1+'Main page'!$N$4)+DP26*(1+'Main page'!$N$4) -> 661065.9711 | DQ27: =CV27*(1+'Main page'!$N$4)+DQ26*(1+'Main page'!$N$4) -> 734517.7457 | DR27: =CW27*(1+'Main page'!$N$4)+DR26*(1+'Main page'!$N$4) -> 807969.5203 | DS27: =CX27*(1+'Main page'!$N$4)+DS26*(1+'Main page'!$N$4) -> 881421.2949 | DT27: =CY27*(1+'Main page'!$N$4)+DT26*(1+'Main page'!$N$4) -> 954873.0694 | DU27: =CZ27*(1+'Main page'!$N$4)+DU26*(1+'Main page'!$N$4) -> 1028324.844 | DV27: =DA27*(1+'Main page'!$N$4)+DV26*(1+'Main page'!$N$4) -> 1101776.619 | DW27: =DB27*(1+'Main page'!$N$4)+DW26*(1+'Main page'!$N$4) -> 1175228.393 | DX27: =DC27*(1+'Main page'!$N$4)+DX26*(1+'Main page'!$N$4) -> 1248680.168 | DY27: =DD27*(1+'Main page'!$N$4)+DY26*(1+'Main page'!$N$4) -> 1322131.942 | DZ27: =DE27*(1+'Main page'!$N$4)+DZ26*(1+'Main page'!$N$4) -> 1395583.717 | EA27: =DF27*(1+'Main page'!$N$4)+EA26*(1+'Main page'!$N$4) -> 1469035.491 | EG27: =+EG26*(1+Inputs!$J$12) -> 209377.793
A28: 2050 | B28: =IF((SUM(((1+Inputs!$J$12)^($A28-$A$11))*Inputs!$J$11+((1+Inputs!$K$12)^($A28-$A$11))*Inputs!$K$11)-VLOOKUP($CA28,Calculations!$CG$1:$CI$9,3,FALSE)*((1+Inputs!$D$5)^($A28-$A$2)))<=0,0,(SUM(((1+Inputs!$J$12)^($A28-$A$11))*Inputs!$J$11+((1+Inputs!$K$12)^($A28-$A$11))*Inputs!$K$11)-VLOOKUP($CA28,Calculations!$CG$1:$CI$9,3,FALSE)*((1+Inputs!$D$5)^($A28-$A$2)))) -> 118612.5197 | I28: =IF($A28-Inputs!$D$6>24,"",(Inputs!$D$2/(Inputs!$D$2+Inputs!$D$3)*B28*0.1/12)) ->  | L28: =IFERROR(IF(AND(OR(Inputs!$D$3>=0,Inputs!$D$3=""),Inputs!$P$1=1),(Inputs!$D$2/(Inputs!$D$2+Inputs!$D$3))*IF($A28-Inputs!$D$6>IF(Inputs!$D$9=0,19,24),"",F28*((0.1*Inputs!$D$9+0.05*(1-Inputs!$D$9)))/12),IF(Inputs!P27=3,IF($A28-Inputs!$D$6>IF(Inputs!$D$9=0,19,24),"",F28*((0.1*Inputs!$D$9+0.05*(1-Inputs!$D$9)))/12),IF($A28-Inputs!$D$6>IF(Inputs!$D$9=0,19,24),"",G28*((0.1*Inputs!$D$9+0.05*(1-Inputs!$D$9)))/12))),"") ->  | N28: =IF($A28-Inputs!$D$6>24,"",(Inputs!$D$3/(Inputs!$D$2+Inputs!$D$3)*B28*0.1/12)) ->  | Q28: =IFERROR(IF(OR(Inputs!$D$3=0,Inputs!$D$3=""),0,IF(AND(Inputs!$D$3>0,Inputs!$P$1=1),(Inputs!$D$3/(Inputs!$D$2+Inputs!$D$3))*IF($A28-Inputs!$D$6>IF(Inputs!$D$9=0,19,24),"",F28*((0.1*Inputs!$D$9+0.05*(1-Inputs!$D$9)))/12),IF(Inputs!P27=3,IF($A28-Inputs!$D$6>IF(Inputs!$D$9=0,19,24),"",F28*((0.1*Inputs!$D$9+0.05*(1-Inputs!$D$9)))/12),IF($A28-Inputs!$D$6>IF(Inputs!$D$9=0,19,24),"",H28*((0.1*Inputs!$D$9+0.05*(1-Inputs!$D$9)))/12)))),"") ->  | S28: =IFERROR(I28+N28,"") ->  | V28: =IFERROR(L28+Q28,"") ->  | Y28: =IF(AF28="","",(Inputs!$D$2)*(((Inputs!$D$4/12)*((1+Inputs!$D$4/12)^120))/(((1+Inputs!$D$4/12)^120)-1))) ->  | Z28: =IF(AF28="","",(Inputs!$D$3)*(((Inputs!$D$4/12)*((1+Inputs!$D$4/12)^120))/(((1+Inputs!$D$4/12)^120)-1))) ->  | AE28: 0 | AK28: =IF(AE28="","",IF(AE28<$AW$2,0,IF(AE28>Inputs!$D$2,Inputs!$D$2*'Main page'!$N$5,AE28*'Main page'!$N$5))) -> 0 | AM28: =IFERROR(AG28/AA28,"") ->  | AT28: =IFERROR(IF((A28-$A$2)>=10,"",IF(AX26>AX27,"",IF(Y28*12>#REF!,#REF!,Y28*12))),"") ->  | AV28: =IFERROR(IF(OR(#REF!="",#REF!=0),"",IF(#REF!>$Y$2*12,L28*12,#REF!)),"") ->  | AW28: =IFERROR(IF(OR(AE28="",AE28=0),"",IF(AE28<W28*12,AE28,W28*12)),"") ->  | BQ28: =IFERROR(AT28/((1+'Main page'!$N$4)^($A28-$A$2)),"") ->  | BR28: =IFERROR(AV28/((1+'Main page'!$N$4)^($A28-$A$2)),"") ->  | BS28: =IF(AX28="","",IFERROR(AX28/((1+'Main page'!$N$4)^($A28-$A$2)),"")) ->  | BT28: =IF(AW28="","",IFERROR(AW28/((1+'Main page'!$N$4)^($A28-$A$2)),"")) ->  | BU28: =IF(AW28="","",IFERROR(AW28/((1+'Main page'!$N$4)^($A28-$A$2)),"")) ->  | CA28: =$CC$2+IF(AND(Inputs!$K$2="",Inputs!$K$8<>""),1,0)+IF(AND(Calculations!$A28>=Inputs!$G$6,Inputs!$G$6<>""),1,0)+IF(AND(Calculations!$A28>=Inputs!$G$7,Inputs!$G$7<>""),1,0)+IF(AND(Calculations!$A28>=Inputs!$G$8,Inputs!$G$8<>""),1,0)+IF(AND(Calculations!$A28>=Inputs!$G$9,Inputs!$G$9<>""),1,0) -> 4 | CK28: 2050 | DF28: =DG27+1 -> 2050
A29: 2051 | B29: =IF((SUM(((1+Inputs!$J$12)^($A29-$A$11))*Inputs!$J$11+((1+Inputs!$K$12)^($A29-$A$11))*Inputs!$K$11)-VLOOKUP($CA29,Calculations!$CG$1:$CI$9,3,FALSE)*((1+Inputs!$D$5)^($A29-$A$2)))<=0,0,(SUM(((1+Inputs!$J$12)^($A29-$A$11))*Inputs!$J$11+((1+Inputs!$K$12)^($A29-$A$11))*Inputs!$K$11)-VLOOKUP($CA29,Calculations!$CG$1:$CI$9,3,FALSE)*((1+Inputs!$D$5)^($A29-$A$2)))) -> 122170.8953 | I29: =IF($A29-Inputs!$D$6>24,"",(Inputs!$D$2/(Inputs!$D$2+Inputs!$D$3)*B29*0.1/12)) ->  | L29: =IFERROR(IF(AND(OR(Inputs!$D$3>=0,Inputs!$D$3=""),Inputs!$P$1=1),(Inputs!$D$2/(Inputs!$D$2+Inputs!$D$3))*IF($A29-Inputs!$D$6>IF(Inputs!$D$9=0,19,24),"",F29*((0.1*Inputs!$D$9+0.05*(1-Inputs!$D$9)))/12),IF(Inputs!P28=3,IF($A29-Inputs!$D$6>IF(Inputs!$D$9=0,19,24),"",F29*((0.1*Inputs!$D$9+0.05*(1-Inputs!$D$9)))/12),IF($A29-Inputs!$D$6>IF(Inputs!$D$9=0,19,24),"",G29*((0.1*Inputs!$D$9+0.05*(1-Inputs!$D$9)))/12))),"") ->  | N29: =IF($A29-Inputs!$D$6>24,"",(Inputs!$D$3/(Inputs!$D$2+Inputs!$D$3)*B29*0.1/12)) ->  | Q29: =IFERROR(IF(OR(Inputs!$D$3=0,Inputs!$D$3=""),0,IF(AND(Inputs!$D$3>0,Inputs!$P$1=1),(Inputs!$D$3/(Inputs!$D$2+Inputs!$D$3))*IF($A29-Inputs!$D$6>IF(Inputs!$D$9=0,19,24),"",F29*((0.1*Inputs!$D$9+0.05*(1-Inputs!$D$9)))/12),IF(Inputs!P28=3,IF($A29-Inputs!$D$6>IF(Inputs!$D$9=0,19,24),"",F29*((0.1*Inputs!$D$9+0.05*(1-Inputs!$D$9)))/12),IF($A29-Inputs!$D$6>IF(Inputs!$D$9=0,19,24),"",H29*((0.1*Inputs!$D$9+0.05*(1-Inputs!$D$9)))/12)))),"") ->  | V29: =IFERROR(L29+Q29,"") ->  | Y29: =IF(AF29="","",(Inputs!$D$2)*(((Inputs!$D$4/12)*((1+Inputs!$D$4/12)^120))/(((1+Inputs!$D$4/12)^120)-1))) ->  | Z29: =IF(AF29="","",(Inputs!$D$3)*(((Inputs!$D$4/12)*((1+Inputs!$D$4/12)^120))/(((1+Inputs!$D$4/12)^120)-1))) ->  | AE29: 0 | AK29: =IF(AE29="","",IF(AE29<$AW$2,0,IF(AE29>Inputs!$D$2,Inputs!$D$2*'Main page'!$N$5,AE29*'Main page'!$N$5))) -> 0 | AM29: =IFERROR(AG29/AA29,"") ->  | AT29: =IFERROR(IF((A29-$A$2)>=10,"",IF(AX27>AT28,"",IF(Y29*12>#REF!,#REF!,Y29*12))),"") ->  | AV29: =IFERROR(IF(OR(#REF!="",#REF!=0),"",IF(#REF!>$Y$2*12,L29*12,#REF!)),"") ->  | BQ29: =IFERROR(AT29/((1+'Main page'!$N$4)^($A29-$A$2)),"") ->  | BR29: =IFERROR(AV29/((1+'Main page'!$N$4)^($A29-$A$2)),"") ->  | BS29: =IF(AX29="","",IFERROR(AX29/((1+'Main page'!$N$4)^($A29-$A$2)),"")) ->  | BT29: =IF(AW29="","",IFERROR(AW29/((1+'Main page'!$N$4)^($A29-$A$2)),"")) ->  | BU29: =IF(AW29="","",IFERROR(AW29/((1+'Main page'!$N$4)^($A29-$A$2)),"")) ->  | CA29: =$CC$2+IF(AND(Inputs!$K$2="",Inputs!$K$8<>""),1,0)+IF(AND(Calculations!$A29>=Inputs!$G$6,Inputs!$G$6<>""),1,0)+IF(AND(Calculations!$A29>=Inputs!$G$7,Inputs!$G$7<>""),1,0)+IF(AND(Calculations!$A29>=Inputs!$G$8,Inputs!$G$8<>""),1,0)+IF(AND(Calculations!$A29>=Inputs!$G$9,Inputs!$G$9<>""),1,0) -> 4 | CK29: 2051 | CL29: 0.01 | CM29: 0.02 | CN29: 0.03 | CO29: 0.035 | CP29: 0.047 | CQ29: 0.055 | CR29: 0.067 | CS29: 0.075 | CT29: 0.087 | CU29: 0.095 | CV29: 0.107 | CW29: 0.115 | CX29: 0.127 | CY29: 0.135 | CZ29: 0.147 | DA29: 0.155 | DB29: 0.167 | DC29: 0.18 | DD29: 0.19 | DE29: 0.2 | DF29: =DF28+1 -> 2051 | DG29: 0.01 | DH29: 0.02 | DI29: 0.03 | DJ29: 0.04 | DK29: 0.05 | DL29: 0.06 | DM29: 0.07 | DN29: 0.08 | DO29: 0.09 | DP29: 0.1 | DQ29: 0.11 | DR29: 0.12 | DS29: 0.13 | DT29: 0.14 | DU29: 0.15 | DV29: 0.16 | DW29: 0.17 | DX29: 0.18 | DY29: 0.19 | DZ29: 0.2
A30: 2052 | B30: =IF((SUM(((1+Inputs!$J$12)^($A30-$A$11))*Inputs!$J$11+((1+Inputs!$K$12)^($A30-$A$11))*Inputs!$K$11)-VLOOKUP($CA30,Calculations!$CG$1:$CI$9,3,FALSE)*((1+Inputs!$D$5)^($A30-$A$2)))<=0,0,(SUM(((1+Inputs!$J$12)^($A30-$A$11))*Inputs!$J$11+((1+Inputs!$K$12)^($A30-$A$11))*Inputs!$K$11)-VLOOKUP($CA30,Calculations!$CG$1:$CI$9,3,FALSE)*((1+Inputs!$D$5)^($A30-$A$2)))) -> 125836.0222 | I30: =IF($A30-Inputs!$D$6>24,"",(Inputs!$D$2/(Inputs!$D$2+Inputs!$D$3)*B30*0.1/12)) ->  | L30: =IFERROR(IF(AND(OR(Inputs!$D$3>=0,Inputs!$D$3=""),Inputs!$P$1=1),(Inputs!$D$2/(Inputs!$D$2+Inputs!$D$3))*IF($A30-Inputs!$D$6>IF(Inputs!$D$9=0,19,24),"",F30*((0.1*Inputs!$D$9+0.05*(1-Inputs!$D$9)))/12),IF(Inputs!P29=3,IF($A30-Inputs!$D$6>IF(Inputs!$D$9=0,19,24),"",F30*((0.1*Inputs!$D$9+0.05*(1-Inputs!$D$9)))/12),IF($A30-Inputs!$D$6>IF(Inputs!$D$9=0,19,24),"",G30*((0.1*Inputs!$D$9+0.05*(1-Inputs!$D$9)))/12))),"") ->  | N30: =IF($A30-Inputs!$D$6>24,"",(Inputs!$D$3/(Inputs!$D$2+Inputs!$D$3)*B30*0.1/12)) ->  | Q30: =IFERROR(IF(OR(Inputs!$D$3=0,Inputs!$D$3=""),0,IF(AND(Inputs!$D$3>0,Inputs!$P$1=1),(Inputs!$D$3/(Inputs!$D$2+Inputs!$D$3))*IF($A30-Inputs!$D$6>IF(Inputs!$D$9=0,19,24),"",F30*((0.1*Inputs!$D$9+0.05*(1-Inputs!$D$9)))/12),IF(Inputs!P29=3,IF($A30-Inputs!$D$6>IF(Inputs!$D$9=0,19,24),"",F30*((0.1*Inputs!$D$9+0.05*(1-Inputs!$D$9)))/12),IF($A30-Inputs!$D$6>IF(Inputs!$D$9=0,19,24),"",H30*((0.1*Inputs!$D$9+0.05*(1-Inputs!$D$9)))/12)))),"") ->  | S30: =IFERROR(I30+N30,"") ->  | V30: =IFERROR(L30+Q30,"") ->  | Y30: =IF(AF30="","",(Inputs!$D$2)*(((Inputs!$D$4/12)*((1+Inputs!$D$4/12)^120))/(((1+Inputs!$D$4/12)^120)-1))) ->  | Z30: =IF(AF30="","",(Inputs!$D$3)*(((Inputs!$D$4/12)*((1+Inputs!$D$4/12)^120))/(((1+Inputs!$D$4/12)^120)-1))) ->  | AE30: 0 | AK30: =IF(AE30="","",IF(AE30<$AW$2,0,IF(AE30>Inputs!$D$2,Inputs!$D$2*'Main page'!$N$5,AE30*'Main page'!$N$5))) -> 0 | AM30: =IFERROR(AG30/AA30,"") ->  | AT30: =IFERROR(IF((A30-$A$2)>=10,"",IF(AT28>AT29,"",IF(Y30*12>#REF!,#REF!,Y30*12))),"") ->  | AV30: =IFERROR(IF(OR(#REF!="",#REF!=0),"",IF(#REF!>$Y$2*12,L30*12,#REF!)),"") ->  | BQ30: =IFERROR(AT30/((1+'Main page'!$N$4)^($A30-$A$2)),"") ->  | BR30: =IFERROR(AV30/((1+'Main page'!$N$4)^($A30-$A$2)),"") ->  | BS30: =IF(AX30="","",IFERROR(AX30/((1+'Main page'!$N$4)^($A30-$A$2)),"")) ->  | BT30: =IF(AW30="","",IFERROR(AW30/((1+'Main page'!$N$4)^($A30-$A$2)),"")) ->  | BU30: =IF(AW30="","",IFERROR(AW30/((1+'Main page'!$N$4)^($A30-$A$2)),"")) ->  | CA30: =$CC$2+IF(AND(Inputs!$K$2="",Inputs!$K$8<>""),1,0)+IF(AND(Calculations!$A30>=Inputs!$G$6,Inputs!$G$6<>""),1,0)+IF(AND(Calculations!$A30>=Inputs!$G$7,Inputs!$G$7<>""),1,0)+IF(AND(Calculations!$A30>=Inputs!$G$8,Inputs!$G$8<>""),1,0)+IF(AND(Calculations!$A30>=Inputs!$G$9,Inputs!$G$9<>""),1,0) -> 4 | CK30: 2052 | DF30: =DF29+1 -> 2052
A31: 2053 | B31: =IF((SUM(((1+Inputs!$J$12)^($A31-$A$11))*Inputs!$J$11+((1+Inputs!$K$12)^($A31-$A$11))*Inputs!$K$11)-VLOOKUP($CA31,Calculations!$CG$1:$CI$9,3,FALSE)*((1+Inputs!$D$5)^($A31-$A$2)))<=0,0,(SUM(((1+Inputs!$J$12)^($A31-$A$11))*Inputs!$J$11+((1+Inputs!$K$12)^($A31-$A$11))*Inputs!$K$11)-VLOOKUP($CA31,Calculations!$CG$1:$CI$9,3,FALSE)*((1+Inputs!$D$5)^($A31-$A$2)))) -> 129611.1028 | I31: =IF($A31-Inputs!$D$6>24,"",(Inputs!$D$2/(Inputs!$D$2+Inputs!$D$3)*B31*0.1/12)) ->  | L31: =IFERROR(IF(AND(OR(Inputs!$D$3>=0,Inputs!$D$3=""),Inputs!$P$1=1),(Inputs!$D$2/(Inputs!$D$2+Inputs!$D$3))*IF($A31-Inputs!$D$6>IF(Inputs!$D$9=0,19,24),"",F31*((0.1*Inputs!$D$9+0.05*(1-Inputs!$D$9)))/12),IF(Inputs!P30=3,IF($A31-Inputs!$D$6>IF(Inputs!$D$9=0,19,24),"",F31*((0.1*Inputs!$D$9+0.05*(1-Inputs!$D$9)))/12),IF($A31-Inputs!$D$6>IF(Inputs!$D$9=0,19,24),"",G31*((0.1*Inputs!$D$9+0.05*(1-Inputs!$D$9)))/12))),"") ->  | N31: =IF($A31-Inputs!$D$6>24,"",(Inputs!$D$3/(Inputs!$D$2+Inputs!$D$3)*B31*0.1/12)) ->  | Q31: =IFERROR(IF(OR(Inputs!$D$3=0,Inputs!$D$3=""),0,IF(AND(Inputs!$D$3>0,Inputs!$P$1=1),(Inputs!$D$3/(Inputs!$D$2+Inputs!$D$3))*IF($A31-Inputs!$D$6>IF(Inputs!$D$9=0,19,24),"",F31*((0.1*Inputs!$D$9+0.05*(1-Inputs!$D$9)))/12),IF(Inputs!P30=3,IF($A31-Inputs!$D$6>IF(Inputs!$D$9=0,19,24),"",F31*((0.1*Inputs!$D$9+0.05*(1-Inputs!$D$9)))/12),IF($A31-Inputs!$D$6>IF(Inputs!$D$9=0,19,24),"",H31*((0.1*Inputs!$D$9+0.05*(1-Inputs!$D$9)))/12)))),"") ->  | S31: =IFERROR(I31+N31,"") ->  | V31: =IFERROR(L31+Q31,"") ->  | Y31: =IF(AF31="","",(Inputs!$D$2)*(((Inputs!$D$4/12)*((1+Inputs!$D$4/12)^120))/(((1+Inputs!$D$4/12)^120)-1))) ->  | Z31: =IF(AF31="","",(Inputs!$D$3)*(((Inputs!$D$4/12)*((1+Inputs!$D$4/12)^120))/(((1+Inputs!$D$4/12)^120)-1))) ->  | AE31: 0 | AK31: =IF(AE31="","",IF(AE31<$AW$2,0,IF(AE31>Inputs!$D$2,Inputs!$D$2*'Main page'!$N$5,AE31*'Main page'!$N$5))) -> 0 | AM31: =IFERROR(AG31/AA31,"") ->  | AT31: =IFERROR(IF((A31-$A$2)>=10,"",IF(AT29>AT30,"",IF(Y31*12>#REF!,#REF!,Y31*12))),"") ->  | AV31: =IFERROR(IF(OR(#REF!="",#REF!=0),"",IF(#REF!>$Y$2*12,L31*12,#REF!)),"") ->  | BQ31: =IFERROR(AT31/((1+'Main page'!$N$4)^($A31-$A$2)),"") ->  | BR31: =IFERROR(AV31/((1+'Main page'!$N$4)^($A31-$A$2)),"") ->  | BS31: =IF(AX31="","",IFERROR(AX31/((1+'Main page'!$N$4)^($A31-$A$2)),"")) ->  | BT31: =IF(AW31="","",IFERROR(AW31/((1+'Main page'!$N$4)^($A31-$A$2)),"")) ->  | BU31: =IF(AW31="","",IFERROR(AW31/((1+'Main page'!$N$4)^($A31-$A$2)),"")) ->  | CA31: =$CC$2+IF(AND(Inputs!$K$2="",Inputs!$K$8<>""),1,0)+IF(AND(Calculations!$A31>=Inputs!$G$6,Inputs!$G$6<>""),1,0)+IF(AND(Calculations!$A31>=Inputs!$G$7,Inputs!$G$7<>""),1,0)+IF(AND(Calculations!$A31>=Inputs!$G$8,Inputs!$G$8<>""),1,0)+IF(AND(Calculations!$A31>=Inputs!$G$9,Inputs!$G$9<>""),1,0) -> 4 | CK31: 2053 | DF31: =DF30+1 -> 2053
A32: 2054 | B32: =IF((SUM(((1+Inputs!$J$12)^($A32-$A$11))*Inputs!$J$11+((1+Inputs!$K$12)^($A32-$A$11))*Inputs!$K$11)-VLOOKUP($CA32,Calculations!$CG$1:$CI$9,3,FALSE)*((1+Inputs!$D$5)^($A32-$A$2)))<=0,0,(SUM(((1+Inputs!$J$12)^($A32-$A$11))*Inputs!$J$11+((1+Inputs!$K$12)^($A32-$A$11))*Inputs!$K$11)-VLOOKUP($CA32,Calculations!$CG$1:$CI$9,3,FALSE)*((1+Inputs!$D$5)^($A32-$A$2)))) -> 133499.4359 | I32: =IF($A32-Inputs!$D$6>24,"",(Inputs!$D$2/(Inputs!$D$2+Inputs!$D$3)*B32*0.1/12)) ->  | L32: =IFERROR(IF(AND(OR(Inputs!$D$3>=0,Inputs!$D$3=""),Inputs!$P$1=1),(Inputs!$D$2/(Inputs!$D$2+Inputs!$D$3))*IF($A32-Inputs!$D$6>IF(Inputs!$D$9=0,19,24),"",F32*((0.1*Inputs!$D$9+0.05*(1-Inputs!$D$9)))/12),IF(Inputs!P31=3,IF($A32-Inputs!$D$6>IF(Inputs!$D$9=0,19,24),"",F32*((0.1*Inputs!$D$9+0.05*(1-Inputs!$D$9)))/12),IF($A32-Inputs!$D$6>IF(Inputs!$D$9=0,19,24),"",G32*((0.1*Inputs!$D$9+0.05*(1-Inputs!$D$9)))/12))),"") ->  | N32: =IF($A32-Inputs!$D$6>24,"",(Inputs!$D$3/(Inputs!$D$2+Inputs!$D$3)*B32*0.1/12)) ->  | Q32: =IFERROR(IF(OR(Inputs!$D$3=0,Inputs!$D$3=""),0,IF(AND(Inputs!$D$3>0,Inputs!$P$1=1),(Inputs!$D$3/(Inputs!$D$2+Inputs!$D$3))*IF($A32-Inputs!$D$6>IF(Inputs!$D$9=0,19,24),"",F32*((0.1*Inputs!$D$9+0.05*(1-Inputs!$D$9)))/12),IF(Inputs!P31=3,IF($A32-Inputs!$D$6>IF(Inputs!$D$9=0,19,24),"",F32*((0.1*Inputs!$D$9+0.05*(1-Inputs!$D$9)))/12),IF($A32-Inputs!$D$6>IF(Inputs!$D$9=0,19,24),"",H32*((0.1*Inputs!$D$9+0.05*(1-Inputs!$D$9)))/12)))),"") ->  | S32: =IFERROR(I32+N32,"") ->  | V32: =IFERROR(L32+Q32,"") ->  | Y32: =IF(AF32="","",(Inputs!$D$2)*(((Inputs!$D$4/12)*((1+Inputs!$D$4/12)^120))/(((1+Inputs!$D$4/12)^120)-1))) ->  | Z32: =IF(AF32="","",(Inputs!$D$3)*(((Inputs!$D$4/12)*((1+Inputs!$D$4/12)^120))/(((1+Inputs!$D$4/12)^120)-1))) ->  | AE32: 0 | AK32: =IF(AE32="","",IF(AE32<$AW$2,0,IF(AE32>Inputs!$D$2,Inputs!$D$2*'Main page'!$N$5,AE32*'Main page'!$N$5))) -> 0 | AM32: =IFERROR(AG32/AA32,"") ->  | AT32: =IFERROR(IF((A32-$A$2)>=10,"",IF(AT30>AT31,"",IF(Y32*12>#REF!,#REF!,Y32*12))),"") ->  | AV32: =IFERROR(IF(OR(#REF!="",#REF!=0),"",IF(#REF!>$Y$2*12,L32*12,#REF!)),"") ->  | BQ32: =IFERROR(AT32/((1+'Main page'!$N$4)^($A32-$A$2)),"") ->  | BR32: =IFERROR(AV32/((1+'Main page'!$N$4)^($A32-$A$2)),"") ->  | BS32: =IF(AX32="","",IFERROR(AX32/((1+'Main page'!$N$4)^($A32-$A$2)),"")) ->  | BT32: =IF(AW32="","",IFERROR(AW32/((1+'Main page'!$N$4)^($A32-$A$2)),"")) ->  | BU32: =IF(AW32="","",IFERROR(AW32/((1+'Main page'!$N$4)^($A32-$A$2)),"")) ->  | CA32: =$CC$2+IF(AND(Inputs!$K$2="",Inputs!$K$8<>""),1,0)+IF(AND(Calculations!$A32>=Inputs!$G$6,Inputs!$G$6<>""),1,0)+IF(AND(Calculations!$A32>=Inputs!$G$7,Inputs!$G$7<>""),1,0)+IF(AND(Calculations!$A32>=Inputs!$G$8,Inputs!$G$8<>""),1,0)+IF(AND(Calculations!$A32>=Inputs!$G$9,Inputs!$G$9<>""),1,0) -> 4 | CK32: 2054 | DF32: =DF31+1 -> 2054

Sheet Main page
B1: Total Payments (Until Payoff or Forgiveness) | C1: Remaining Balance (When Loans Are Forgiven) | D1: Taxes Due (from user input) | E1: Total Cost of Loan Payback | F1: =CONCATENATE("Cost of Loan Payback in "&YEAR(TODAY())&" Dollars, aka Net Present Value") -> Cost of Loan Payback in 2024 Dollars, aka Net Present Value | G1: Year of Total Repayment or Forgiveness | H1: First Monthly Payment | I1: Fixed Method Monthly Tax Penalty Account Savings in Mutual Funds | J1: Mandatory "Tax Rate" under IDR Plan | K1: Savings Rate for Tax Bomb | M1: ASSUMPTIONS IN THESE TWO COLUMNS, FEEL FREE TO CHANGE
A2: Old REPAYE (Revised Pay As You Earn 25 Year) | B2: =SUM(Calculations!AS:AS) -> 200525.9538 | C2: =IF(G2<Inputs!$D$6+25,0,INDEX(Calculations!$A$1:$AX$32,MATCH(MIN(G2),Calculations!$A$1:$A$32,0),27)) -> 23804.02912 | D2: =C2*SUM($N$2+$N$3) -> 9521.61165 | E2: =B2+D2 -> 210047.5654 | F2: =SUM(Calculations!BP:BP)+D2/((1+N4)^(G2-Calculations!A2)) -> 113028.0878 | G2: =IFERROR(INDEX(Calculations!$A$1:$AF$32,MATCH(1,Calculations!$BX$1:$BX$32,0),1),1) -> 2049 | H2: =Calculations!S2 -> 458.3333333 | I2: =(D2*($N$4/12)/((1+($N$4/12))^((Inputs!$D$6+25-YEAR(TODAY()))*12)-1))*1.1 -> 17.58791278 | J2: =AVERAGE(Calculations!EB2:EB26) -> 0.055 | K2: =IFERROR(INDEX(Calculations!DF1:DZ32,29,MATCH(Q2,INDIRECT("Calculations!Bu"&MATCH(G2,Calculations!DF1:DF32,0)&":CN"&MATCH(G2,Calculations!DF1:DF32,0)),0)+2),"N/A") -> N/A | M2: Federal Tax (When Loans are Forgiven) | N2: 0.35 | Q2: =HLOOKUP(D2,INDIRECT("Calculations!Bu"&MATCH(G2,Calculations!DF1:DF32,0)&":Cn"&MATCH(G2,Calculations!DF1:DF32,0)),1,TRUE) -> 
A3: Old IBR (25 Year) | B3: =SUM(Calculations!AT:AT) -> 204414.5157 | C3: =IF(G3<Inputs!$D$6+25,0,INDEX(Calculations!$A$1:$AF$32,MATCH(MIN(G3),Calculations!$A$1:$A$32,0),28)) -> 0 | D3: =C3*SUM($N$2+$N$3) -> 0 | E3: =B3+D3 -> 204414.5157 | F3: =SUM(Calculations!BR:BR)+D3/((1+N4)^(G3-Calculations!A2)) -> 116522.5242 | G3: =IFERROR(INDEX(Calculations!$A$1:$AF$32,MATCH(1,Calculations!$BZ$1:$BZ$32,0),1),0) -> 2048 | H3: =Calculations!T2 -> 510.5 | I3: =(D3*($N$4/12)/((1+($N$4/12))^((Inputs!$D$6+25-YEAR(TODAY()))*12)-1))*1.1 -> 0 | J3: =AVERAGE(Calculations!EC2:EC21) -> 0.04084 | K3: =IFERROR(INDEX(Calculations!DF1:DZ32,29,MATCH(Q3,INDIRECT("Calculations!Bu"&MATCH(G4,Calculations!DF1:DF32,0)&":Cn"&MATCH(G4,Calculations!DF1:DF32,0)),0)+2),"N/A") -> N/A | M3: State Tax (When Loans are Forgiven) | N3: 0.05 | Q3: =HLOOKUP(D4,INDIRECT("Calculations!Bu"&MATCH(G4,Calculations!DF1:DF32,0)&":CN"&MATCH(G4,Calculations!DF1:DF32,0)),1,TRUE) ->  | W3: =R3/(1+'Main page'!$N$4) -> 0
A4: PAYE / New IBR (20 Year) | B4: =IF(Inputs!$D$8="no",SUM(Calculations!AU:AU),"N/A") -> 109738.6094 | C4: =IF(Inputs!$D$8="no",IF(G4<Inputs!$D$6+20,0,INDEX(Calculations!$A$1:$AF$32,MATCH(MIN(G4),Calculations!$A$1:$A$32,0),29)),"N/A") -> 110261.3906 | D4: =IF(Inputs!$D$8="no",C4*SUM($N$2+$N$3),"N/A") -> 44104.55623 | E4: =IF(Inputs!$D$8="no",B4+D4,"N/A") -> 153843.1656 | F4: =IF(Inputs!$D$8="no",SUM(Calculations!BQ:BQ)+D4/((1+N4)^(G4-Calculations!A2)),"N/A") -> 85082.72816 | G4: =IF(Inputs!$D$8="no",IFERROR(INDEX(Calculations!$A$1:$AF$32,MATCH(1,Calculations!$BY$1:$BY$32,0),1),0),"N/A") -> 2044 | H4: =IF(Inputs!$D$8="no",Calculations!U2,"N/A") -> 340.3333333 | I4: =IF(Inputs!$D$8="no",(D4*($N$4/12)/((1+($N$4/12))^((Inputs!$D$6+20-YEAR(TODAY()))*12)-1))*1.1,"N/A") -> 118.0317224 | J4: =AVERAGE(Calculations!ED2:ED26) -> 0.0573988451 | K4: =IFERROR(INDEX(Calculations!DF1:DZ32,29,MATCH(Q4,INDIRECT("Calculations!Bu"&MATCH(G3,Calculations!DF1:DF32,0)&":CN"&MATCH(G3,Calculations!DF1:DF32,0)),0)+2),"N/A") -> N/A | M4: Inv. Return You Think You Can Get Long Term | N4: 0.05 | Q4: =HLOOKUP(D3,INDIRECT("Calculations!Bu"&MATCH(G3,Calculations!DF1:DF32,0)&":CN"&MATCH(G3,Calculations!DF1:DF32,0)),1,TRUE) -> 
A5: SAVE (20 years undergrad, 25 years grad) | B5: =SUM(Calculations!AV:AV) -> 62691.705 | C5: =IF(G5<Inputs!$D$6+IF(Inputs!$D$9=0,20,25),0,INDEX(Calculations!$A$1:$AX$32,MATCH(MIN(G5),Calculations!$A$1:$A$32,0),30)) -> 100000 | D5: =C5*SUM($N$2+$N$3) -> 40000 | E5: =B5+D5 -> 102691.705 | F5: =SUM(Calculations!BS:BS)+D5/((1+N4)^(G5-Calculations!A3)) -> 46860.34888 | G5: =IFERROR(INDEX(Calculations!$A$1:$AX$32,MATCH(1,Calculations!$CA$1:$CA$32,0),1),0) -> 2049 | H5: =Calculations!V2 -> 143.2916667 | I5: =(D5*($N$4/12)/((1+($N$4/12))^((Inputs!$D$6+IF(Inputs!D9=0,20,25)-YEAR(TODAY()))*12)-1))*1.1 -> 73.88628493 | M5: Private Refinancing (Avg Interest Rate) | N5: 0.04
A6: Standard 10 Year | B6: =SUM(Calculations!AX:AX) -> 133224.6023 | C6: N/A | D6: N/A | E6: =B6 -> 133224.6023 | F6: =SUM(Calculations!BU:BU) -> 108016.1319 | G6: =INDEX(Calculations!$A$1:$AF$32,MATCH(1,Calculations!$CB$1:$CB$17,0),1) -> 2034 | H6: =(Inputs!D2+Inputs!D3)*(((Inputs!$D$4/12)*((1+Inputs!$D$4/12)^120))/(((1+Inputs!$D$4/12)^120)-1)) -> 1110.205019 | I6: N/A | M6: Refinancing Loan Term (Years) | N6: 20
